Workbook

Sheet Cover
C9: Victorian Transmission System
C10: ="VTS Tariff Model"&Err_Chks_Msg&Sens_Chks_Msg&Alt_Chks_Msg -> VTS Tariff Model
C11: Go to Table of Contents
C21: Cover Notes:

Sheet Contents
B2: =Model_Name -> VTS Tariff Model
B3: Go to Cover Sheet
A6: é | B6: Section & Sheet Titles
F8: a. | H8: =Model_Changes__BA!B1 -> Model Changes / Comments
B9: 1 | D9: ='Inputs -->'!C9 -> Inputs
F10: a. | H10: =TS_BA!B1 -> Time Series Assumptions
F11: b. | H11: =General_BA!B1 -> General Assumptions
F12: c. | H12: =WACC_BA!B1 -> WACC Assumptions
F13: d. | H13: =Pipeline_BA!B1 -> Pipeline Distances Inputs
F14: e. | H14: =Working_Capital_BA!B1 -> Working Capital Assumptions
F15: f. | H15: =Opex_Forecast_BA!B1 -> Base Case - Operating Cost Forecasts
F16: g. | H16: =Scope_Changes_BA!B1 -> Scope Change Forecasts
F17: h. | H17: =Volume_Assumptions_BA!B1 -> Volume Forecast Assumptions
F18: i. | H18: =RAB_Model_BO!B1 -> RAB Model Inputs
B19: 2 | D19: ='Input Format -->'!C9 -> Input Format
F20: a. | H20: =WACC_BO!B1 -> WACC Outputs
F21: b. | H21: ='O&M_Workings_BO'!B1 -> O&M Workings
F22: c. | H22: ='O&M_Regulatory_TO'!B1 -> O&M Summary
F23: d. | H23: =Withdrawal_Volumes_Forecasts_BO!B1 -> Withdrawal Forecast Summary
B24: 3 | D24: ='Meter Calcs -->'!C9 -> Withdrawal Volumes
F25: a. | H25: =Vencorp_Summary_BO!B1 -> Summary - Vencorp Forecasts
F26: b. | H26: =Power_Station_BO!B1 -> Withdrawal Volumes - Power Station
F27: c. | H27: =Annual_CTM_BO!B1 -> Annual CTM
F28: d. | H28: =Tariff_V_BO!B1 -> Withdrawal Volumes - Tariff V
F29: e. | H29: =Tariff_D_BO!B1 -> Withdrawal Volumes - Tariff D
F30: f. | H30: =Exports_BO!B1 -> Withdrawal Volume - Exports
F31: g. | H31: =WithdrawalVol_Summary_BO!B1 -> Withdrawal Volume - Summary Output
... 38 more rows

Sheet Model_Changes__BA
B1: Model Changes / Comments
B2: =Model_Name -> VTS Tariff Model
B3: Go to Table of Contents
A4: é | B4: ç | C4: è
F6: Some of the Key model changes/comments are detailed below.
C9: 1 | F9: Volumes changed to reflect the revised proposal - see submission.
F10: Tariff V Volumes are adjusted in line with the Victoria DB's forecasts
F11: Tariff D Volumes are based on AEMO's latest forecasts
F12: Other volume adjustments (exports & GPG) are in line with the Draft Decision
C14: 2 | F14: Creation of new asset zones - 30 Anglesea and 31 Kakallo
F15: In this instance Kakallo has not been utilised.
C17: 3 | F17: For the Gas to Culcairn project, this can be split into two portions - looping (pipelines) and the MAOP upgrade (city gates & regulators)
F18: The costs are individually recovered as seen in the RAB_Model_BO sheet.
C20: 4 | F20: APA has reversed the adjustment AER has made to the Geelong zone to account for the introduction of the Anglesea pipeline
F21: AER had previously adjusted the distance for the Geelong zone to 0.5 km. This is no longer relevant as APA has created a new asset zone for this asset and amended the flowpaths to reflect this change.
C23: 5 | F23: Addition of the Warragul pipeline
C25: 6 | F25: Adjustment to ORC values. APA has amended the ORC values to be consistent. AER raised an issue with the ORC allocation for zone 13. APA has amended this in line with the asset class.
F26: Further information can be determined in the ORC value spreadsheet and in the submission.
C28: 7 | F28: APA has amended the formula in Withdrawal_Volumes_Forecasts_BO row 8 to reflect the proper gas flows.
C30: 8 | F30: For the northern zones, APA has ensured that all gas is flowing from Port Campbell. There is some Longford gas flowing to Geelong.
C32: 9 | F32: APA has amended the volumes in the Western Zone as the Iluka meter was receiving costs from Longford.
C34: 10 | F34: APA agrees with AER's assertion that the prudent discounts are normally capped at 100% of the indirect costs. However, the use of the percentages applied to the indirect costs is is also used as a mechanism for APA to apply prudent discounts. In several cases, the bypass tariff remains lower than the direct cost tariff and therefore, APA has to apply a % in excess of 100% to ensure the appropriate prudent discount has been applied. This is consistent with AER's approach as the Draft Decision which approved the relevant prudent discount tariffs.
C38: 11 | F38: APA has allocated the compressor costs and step changes directly to the zones to ensure that the costs are properly allocated.
C40: 12 | F40: APA has smoothed the tariffs to be flat over the 5 year period.
C42: 13 | F42: APA has followed the AER requirement to allocate indirect costs to the Northern zones and Culcairn to the extent necessary to generate acceptable tariffs. Under the current situation this results in a zero allocation. Further information can be found in the submission.
C44: 14 | F44: The definition of capacity at Culcairn is the capacity available for exports from the VTS when the VTS is at capacity, ie, on a 1 in 20 peak day. The ability of the VTS to support exports on any day with lower system demand is greater than this published capacity. This is explicitly recognised in the RIN where both a winter and a higher Summer capacity are published. Because the VTS is a Winter peaking system the capacity limitations are shown for the Winter. This means that demand at Culcairn, which is much higher in Summer, can cause the load factor calculated against the Winter capacity to seem impossibly high and daily flows can be greater than the defined Winter capacity
C45: 15 | F45: On Power_Station_BO tab, have used 2015 actuals. Then used the percentage breakdown of each power station in 2015 actuals, broken down the forecasts for each Power station using AEMO total forecasts.
C51: 2021 Changes
C53: 16 | F53: Pipeline_BA tab distance column has been linked to the Pipeline Distance File

Sheet Inputs -->
C9: Inputs
C10: Section 1.
C11: =Model_Name -> VTS Tariff Model
C12: Go to Table of Contents
C13: ç | D13: è
C17: Section Cover Notes:
C18: General inputs that feed into the breakdown of cost allocations per meter.
C19: General assumptions regarding WACC, Dates and Allocations

Sheet TS_BA
B1: Time Series Assumptions
B2: =Model_Name -> VTS Tariff Model
B3: Go to Table of Contents
A4: é | B4: ç | C4: è
B7: Time Series Assumptions | J7: Inputs To be updated
C9: Core Time Series Assumptions
D11: Title | J11: Primary
D12: Periodicity | J12: =Annual -> Annual
D13: Financial Year End | J13: 31 | K13: 12
D14: Start Date | J14: 2023-01-01
D15: Periods | J15: 6
D16: Period Type | J16: =INDEX(LU_Period_Type_Names,MATCH(TS_Periodicity,LU_Periodicity,0)) -> Year
D17: Period Type Prefix | J17: =CHOOSE(MATCH(TS_Periodicity,LU_Periodicity,0),Yr_Name,"H","Q","M") -> Year
D18: Financial Year End Is Month End? | J18: =OR(AND(DD_TS_Fin_YE_Day>=28,DD_TS_Fin_YE_Mth=2), DD_TS_Fin_YE_Day>=DAY(EOMONTH(DATE(YEAR(TS_Start_Date),DD_TS_Fin_YE_Mth,1),0))) -> TRUE
D19: First Period Financial Year Start Date | J19: =IF(TS_Mth_End,DATE(YEAR(TS_Per_1_FY_End_Date)-IF(TS_Per_1_FY_End_Date=EOMONTH(DATE(YEAR(TS_Per_1_FY_End_Date),Mths_In_Yr,1),0),0,1),MOD(MONTH(TS_Per_1_FY_End_Date),Mths_In_Yr)+1,1), EDATE(TS_Per_1_FY_End_Date,-Mths_In_Yr)+1) -> 2023-01-01
D20: First Period Financial Year End Date | J20: =IF(TS_Mth_End,EOMONTH(DATE(YEAR(TS_Start_Date)+IF(MONTH(TS_Start_Date)>DD_TS_Fin_YE_Mth,1,0),DD_TS_Fin_YE_Mth,1),0), DATE(YEAR(TS_Start_Date)+IF(TS_Start_Date>DATE(YEAR(TS_Start_Date),DD_TS_Fin_YE_Mth,DD_TS_Fin_YE_Day),1,0),DD_TS_Fin_YE_Mth,DD_TS_Fin_YE_Day)) -> 2023-12-31
D21: Periods In Year | J21: =INDEX(LU_Pers_In_Yr,MATCH(TS_Periodicity,LU_Periodicity,0)) -> 1
D22: Months In Period | J22: =Mths_In_Yr/TS_Pers_In_Yr -> 12
D23: First Period Financial Period Number | J23: =INT((((YEAR(TS_Start_Date)-YEAR(TS_Per_1_FY_Start_Date))*Mths_In_Yr+MONTH(TS_Start_Date)-MONTH(TS_Per_1_FY_Start_Date)+1 +IF(TS_Mth_End,0, IF(TS_Start_Date>(EDATE(TS_Per_1_FY_Start_Date,(YEAR(TS_Start_Date)-YEAR(TS_Per_1_FY_Start_Date))*Mths_In_Yr+MONTH(TS_Start_Date)-MONTH(TS_Per_1_FY_Start_Date)+1)-1),1,0) -IF(TS_Start_Date<EDATE(TS_Per_1_FY_Start_Date,(YEAR(TS_Start_Date)-YEAR(TS_Per_1_FY_Start_Date))*Mths_In_Yr+MONTH(TS_Start_Date)-MONTH(TS_Per_1_FY_Start_Date)),1,0)))-1)/TS_Mths_In_Per)+1 -> 1
D24: First Period Start Date (If Full Period) | J24: =IF(TS_Mth_End,EOMONTH(EDATE(TS_Per_1_FY_Start_Date,(TS_Per_1_Number-1)*TS_Mths_In_Per-1),0)+1, EDATE(TS_Per_1_FY_Start_Date,(TS_Per_1_Number-1)*TS_Mths_In_Per)) -> 2023-01-01
D25: First Period End Date | J25: =IF(TS_Mth_End,EOMONTH(EDATE(TS_Per_1_FY_Start_Date,TS_Per_1_Number*TS_Mths_In_Per-1),0), EDATE(TS_Per_1_FY_Start_Date,TS_Per_1_Number*TS_Mths_In_Per)-1) -> 2023-12-31
D26: Denomination | J26: 2
D27: Denomination Label | J27: =INDEX(LU_Denom,DD_TS_Denom) -> $Millions
C29: Historical & Forecast Period Titles
D31: Include in Period Titles? | J31: TRUE
D32: Actual Periods | J32: 1
D33: Budget Periods | J33: 0
D34: Historical / Actual Periods Title | J34: (A)
D35: Budget Periods Title | J35: (B)
D36: Forecast Period Title | J36: (F)
C38: Data & Projections - Timing Assumptions
D40: Data Term Basis | J40: 1
D41: Data - Active Periods | J41: 5
D42: Projections - Start Date | J42: 2023-01-01
D44: Data Time Series Sheets
E46: Data End Date | J46: =TS_Proj_Start_Date-1 -> 2027-12-31
E47: Total Data Periods | J47: 0
E48: Full Data Periods | J48: =IF(TS_Data_Total_Pers=0,0, TS_Data_Total_Pers-IF(TS_Data_End_Date<>IF(TS_Data_Total_Pers=1,TS_Per_1_End_Date, IF(TS_Mth_End,EOMONTH(EDATE(TS_Per_1_FY_Start_Date,(TS_Per_1_Number+TS_Data_Total_Pers-1)*TS_Mths_In_Per-1),0), EDATE(TS_Per_1_FY_Start_Date,(TS_Per_1_Number+TS_Data_Total_Pers-1)*TS_Mths_In_Per)-1)),1,0)) -> 0
E49: Final Data Period Is Stub | J49: =IF(TS_Data_End_Date<TS_Start_Date,FALSE, IF(TS_Data_End_Date=TS_Per_1_End_Date,IF(TS_Start_Date<>TS_Per_1_Start_Date,TRUE,FALSE), IF(TS_Data_End_Date<TS_Per_1_End_Date,TRUE, IF(TS_Data_End_Date<>IF(TS_Data_Total_Pers=1,TS_Per_1_End_Date, IF(TS_Mth_End,EOMONTH(EDATE(TS_Per_1_FY_Start_Date,(TS_Per_1_Number+TS_Data_Total_Pers-1)*TS_Mths_In_Per-1),0),EDATE(TS_Per_1_FY_Start_Date,(TS_Per_1_Number+TS_Data_Total_Pers-1)*TS_Mths_In_Per)-1)),TRUE,FALSE)))) -> TRUE
D51: Projections Time Series Sheets
E53: Projections Start Date | J53: =IF(DD_TS_Data_Term_Basis=1,IF(TS_Mth_End,EOMONTH(EDATE(TS_Per_1_FY_Start_Date,(TS_Per_1_Number+TS_Data_Pers_Ass-1)*TS_Mths_In_Per-1),0), EDATE(TS_Per_1_FY_Start_Date,(TS_Per_1_Number+TS_Data_Pers_Ass-1)*TS_Mths_In_Per)-1)+1,TS_Proj_Start_Date_Ass) -> 2028-01-01
E54: First Period Financial Year Start Date | J54: =IF(TS_Mth_End,DATE(YEAR(TS_Proj_Per_1_FY_End_Date)-IF(TS_Proj_Per_1_FY_End_Date=EOMONTH(DATE(YEAR(TS_Proj_Per_1_FY_End_Date),Mths_In_Yr,1),0),0,1),MOD(MONTH(TS_Proj_Per_1_FY_End_Date),Mths_In_Yr)+1,1), EDATE(TS_Proj_Per_1_FY_End_Date,-Mths_In_Yr)+1) -> 2028-01-01
E55: First Period Financial Year End Date | J55: =IF(TS_Mth_End,EOMONTH(DATE(YEAR(TS_Proj_Start_Date)+IF(MONTH(TS_Proj_Start_Date)>DD_TS_Fin_YE_Mth,1,0),DD_TS_Fin_YE_Mth,1),0), DATE(YEAR(TS_Proj_Start_Date)+IF(TS_Proj_Start_Date>DATE(YEAR(TS_Proj_Start_Date),DD_TS_Fin_YE_Mth,DD_TS_Fin_YE_Day),1,0),DD_TS_Fin_YE_Mth,DD_TS_Fin_YE_Day)) -> 2028-12-31
E56: First Period Financial Period Number | J56: =INT((((YEAR(TS_Proj_Start_Date)-YEAR(TS_Proj_Per_1_FY_Start_Date))*Mths_In_Yr+MONTH(TS_Proj_Start_Date)-MONTH(TS_Proj_Per_1_FY_Start_Date)+1 +IF(TS_Mth_End,0, IF(TS_Proj_Start_Date>(EDATE(TS_Proj_Per_1_FY_Start_Date,(YEAR(TS_Proj_Start_Date)-YEAR(TS_Proj_Per_1_FY_Start_Date))*Mths_In_Yr+MONTH(TS_Proj_Start_Date)-MONTH(TS_Proj_Per_1_FY_Start_Date)+1)-1),1,0) -IF(TS_Proj_Start_Date<EDATE(TS_Proj_Per_1_FY_Start_Date,(YEAR(TS_Proj_Start_Date)-YEAR(TS_Proj_Per_1_FY_Start_Date))*Mths_In_Yr+MONTH(TS_Proj_Start_Date)-MONTH(TS_Proj_Per_1_FY_Start_Date)),1,0))) -1)/TS_Mths_In_Per)+1 -> 1
E57: First Period Start Date (If Full Period) | J57: =IF(TS_Mth_End,EOMONTH(EDATE(TS_Proj_Per_1_FY_Start_Date,(TS_Proj_Per_1_Number-1)*TS_Mths_In_Per-1),0)+ 1,EDATE(TS_Proj_Per_1_FY_Start_Date,(TS_Proj_Per_1_Number-1)*TS_Mths_In_Per)) -> 2028-01-01
E58: First Period End Date | J58: =IF(TS_Mth_End,EOMONTH(EDATE(TS_Proj_Per_1_FY_Start_Date,TS_Proj_Per_1_Number*TS_Mths_In_Per-1),0), EDATE(TS_Proj_Per_1_FY_Start_Date,TS_Proj_Per_1_Number*TS_Mths_In_Per)-1) -> 2028-12-31
C60: Notes:
C61: - | D61: A Financial Year End assumption of 28th of February is assumed to be a month end financial year end, even in a leap year.
C62: - | D62: The "Model Denomination" assumption will not necessarily automatically change the denomination of the outputs of this model.
C63: - | D63: A "Budget Period" refers to either a period in the current financial year or periods containing combined actual and forecast data.
C64: - | D64: "Data & Projections - Timing Assumptions" are used as the basis for related data and projections time series sheets.
C65: - | D65: Use the bpmToolbox "Update Time Series Columns" tool to hide inactive data and projections time series periods.

Sheet General_BA
B1: General Assumptions
B2: =Model_Name -> VTS Tariff Model | K2: Inputs updated per PTRM File on October 2021
B3: Go to Table of Contents
A4: é | B4: ç | C4: è
J5: Calendar Year
J6: =Working_Capital_BA!I4 -> 2022 | K6: =J6+1 -> 2023 | L6: =K6+1 -> 2024 | M6: =L6+1 -> 2025 | N6: =M6+1 -> 2026 | O6: =N6+1 -> 2027
C7: Inflation Assumption over 5 years | H7: =[1]RAB_Model_BO!$BH$7 -> 0.0199938725 | J7: =[1]RAB_Model_BO!BJ$7 -> 0.02 | K7: =J7 -> 0.02 | L7: =K7 -> 0.02 | M7: 0.02 | N7: 0.02 | O7: 0.02
C9: Peak Day Calculation
D11: Peak | H11: 0.525
D12: Annual | H12: =1-H11 -> 0.475
C14: WACC (Nominal) : | H14: =I14 -> 0.04272691463 | I14: =WACC_BA!I25 -> 0.04272691463
C16: X-factor (1) : | H16: 0 | J16: =CPI -> 0.0199938725
C17: X-factor (2) : | H17: 0 | J17: =CPI -> 0.0199938725
C20: Input Annual X-Factors | L20: -0.048 | M20: =L20 -> -0.048 | N20: =M20 -> -0.048 | O20: -0.048 | Q20: For use in <Tariff Calc BO>

Sheet WACC_BA
B1: WACC Assumptions
B2: =Model_Name -> VTS Tariff Model | I2: Inputs Updated per latest PTRM as Linked
B3: Go to Table of Contents
A4: é | B4: ç | C4: è
C6: WACC Assumptions
D8: Nominal Risk Free Rate (Rf) | I8: =[1]RAB_Model_BO!BI35 -> 0.012425
D9: Inflation Rate | I9: =[1]RAB_Model_BO!BI36 -> 0.0199938725
D10: Cost of Debt Margin over rf | I10: =[1]RAB_Model_BO!BI37 -> 0.02611985771
D11: Cost of raising debt | I11: =[1]RAB_Model_BO!BI38 -> 0.00081
D12: Nominal pre-tax cost of debt | I12: =[1]RAB_Model_BO!BI39 -> 0.03854485771 | K12: Return on Debt | L12: =I12 -> 0.03854485771
D13: Market Risk Premium | I13: =[1]RAB_Model_BO!BI40 -> 0.061
D14: Corporate Tax Rate | I14: =[1]RAB_Model_BO!BI41 -> 0.3
D15: Effective Tax Rate for Equity (From Relevant Cash flows) | I15: =[1]RAB_Model_BO!BI42 -> 0.2776679838
D16: Effective Tax Rate for Debt (Effective Debt Shield) | I16: =[1]RAB_Model_BO!BI43 -> 0.3026456267
D17: Proportion of Franking Credits or Gamma | I17: =[1]RAB_Model_BO!BI44 -> 0.585
D18: LT Proportion of Equity Funding | I18: =[1]RAB_Model_BO!BI45 -> 0.4
D19: LT Proportion of Debt Funding | I19: =[1]RAB_Model_BO!BI46 -> 0.6
D20: Equity Beta | I20: =[1]RAB_Model_BO!BI47 -> 0.6
C22: WACC Output
D23: Pre-tax nominal return on equity | I23: =I24*(1/(1-I15*(1-I17))) -> 0.05538176314
D24: Post-tax nominal return on equity | I24: =ROUND(I8+I13*I20,3) -> 0.049
D25: Nominal Vanilla WACC | I25: =I18*I24+I19*I12 -> 0.04272691463
D26: Real Vanilla WACC | I26: =(1+I25)/(1+I9)-1 -> 0.02228743009
D27: Pre-Tax Nominal WACC | I27: =I24*(1/(1-I15*(1-I17)))*I18+I12*I19 -> 0.04527961988
D28: Pre-Tax Real WACC | I28: =(1+I27)/(1+I9)-1 -> 0.02479009733

Sheet Pipeline_BA
B1: Pipeline Distances Inputs
B2: =Model_Name -> VTS Tariff Model | I2: Updated per Distance File Linked
B3: Go to Table of Contents
A4: é | B4: ç | C4: è
K5: Linked to Dist. File
K6: per Friday session
C7: Zone # | D7: Zones | G7: Tariff Zones | H7: Start Location | I7: End Location | K7: Pipeline length (kms) | M7: Allocation % | O7: Compressor Switches | P7: CG & Regulator Switch | Q7: Pipeline Switch | S7: Comments
C9: 1 | D9: 1 Longford to Tyers (loop end) | G9: LaTrobe | H9: Longford | I9: Tyers (end loop) | K9: =[2]Pipeline_BA!$K9 -> 64.7847 | M9: 1 | O9: 1 | P9: 1 | Q9: 1
C10: 2 | D10: 2 Tyers (loop end) to Bunyip | G10: West Gippsland | H10: Tyers (end loop) | I10: Bunyip | K10: =[2]Pipeline_BA!$K10 -> 62.0923 | M10: 1 | O10: 1 | P10: 1 | Q10: 1
C11: 3 | D11: 3 Tyers to Morwell & Maryvale lateral | G11: Maryvale | H11: Maryvale lateral | K11: =[2]Pipeline_BA!$K11 -> 5.4 | M11: 1 | O11: 0 | P11: 0 | Q11: 1
C12: 3 | D12: 3 Tyers to Morwell & Maryvale lateral | G12: Tyers | H12: Tyers | I12: Morwell | K12: =[2]Pipeline_BA!$K12 -> 20.63046 | M12: 1 | O12: 1 | P12: 1 | Q12: 1
C13: 3 | D13: 3 Tyers to Morwell & Maryvale lateral | G13: LaTrobe | H13: Latrobe | I13: Morwell | K13: =[2]Pipeline_BA!$K13 -> 0 | M13: 1 | O13: 0 | P13: 0 | Q13: 0
C14: 4 | D14: 4 Lurgi pipeline plus laterals | G14: Lurgi | H14: Morwell | I14: Healsville - Koo Wee Rup Rd | K14: 97.74857 | M14: 1 | O14: 1 | P14: 0 | Q14: 1
C15: 4 | D15: 4 Lurgi pipeline plus laterals | G15: Metro | H15: Healsville - Koo Wee Rup Rd | I15: Dandenong | K15: 30.62093 | M15: 1 | O15: 0 | P15: 1 | Q15: 1
C16: 5 | D16: 5 Bunyip to Pakenham | G16: Metro | H16: Bunyip | I16: Pakenham | K16: =[2]Pipeline_BA!$K16 -> 18.6693 | M16: 1 | O16: 1 | P16: 1 | Q16: 1
C17: 6 | D17: 6 Pakenham to Wollert | G17: Metro | H17: Pakenham | I17: Wollert | K17: =[2]Pipeline_BA!$K17 -> 92.4117 | M17: 1 | O17: 1 | P17: 1 | Q17: 1
C18: 7 | D18: 7 Pakenham to Dandenong | G18: Metro | H18: Pakenham | I18: Dandenong | K18: =[2]Pipeline_BA!$K18 -> 27.9937 | M18: 1 | O18: 1 | P18: 1 | Q18: 1
C19: 8 | D19: 8 Dandenong to St. Kilda | G19: Metro | H19: Dandenong | I19: St Kilda | K19: =[2]Pipeline_BA!$K19 -> 36.1183 | M19: 1 | O19: 1 | P19: 1 | Q19: 1
C20: 9 | D20: 9 St. Kilda to Werribee | G20: Metro | H20: St Kilda | I20: Werribee | K20: =[2]Pipeline_BA!$K20 -> 37.5682 | M20: 0.85 | O20: 0.85 | P20: 1 | Q20: 1 | R20: Brooklyn Compressor costs split - (estimate)
C21: 10 | D21: 10 Werribee to Geelong | G21: Metro | H21: Werribee | I21: Little River | K21: =[2]Pipeline_BA!$K21 -> 17.5975 | M21: 1 | O21: 0 | P21: 0 | Q21: 1
C22: 10 | D22: 10 Werribee to Geelong | G22: Metro | H22: Little River | I22: Geelong | K22: =[2]Pipeline_BA!$K22 -> 18.1277 | M22: 1 | O22: 1 | P22: 1 | Q22: 1
C23: 11 | D23: 11 Brooklyn to Ballan Junction | G23: Metro | H23: Brooklyn | I23: Melton South City Gate | K23: 26.245 | M23: 0.15 | O23: 0.15 | P23: 1 | Q23: 1 | R23: Brooklyn Compressor costs split - (estimate)
C24: 11 | D24: 11 Brooklyn to Ballan Junction | G24: Calder | H24: Melton South City Gate | I24: Ballan Junction | K24: 40.3542 | M24: 1 | O24: 0 | P24: 1 | Q24: 1
C25: 12 | D25: 12 Ballan Junction to Ballarat | G25: Calder | H25: Ballan Jctn | I25: Ballarat | K25: =[2]Pipeline_BA!$K25 -> 22.6004 | M25: 1 | O25: 1 | P25: 1 | Q25: 1
C26: 13 | D26: 13 Wollert to Euroa | G26: South Hume | H26: Wollert | I26: Euroa | K26: =[2]Pipeline_BA!$K26 -> 124.3139 | M26: 1 | O26: 1 | P26: 1 | Q26: 1
C27: 14 | D27: 14 Ballan Junction to Daylesford Jctn | G27: Calder | H27: Ballan Junction | I27: Daylesford Junction | K27: =[2]Pipeline_BA!$K27 -> 39.9597 | M27: 1 | O27: 1 | P27: 1 | Q27: 1
C28: 15 | D28: 15 Daylesford Junction to Bendigo | G28: Calder | H28: Daylesford Junction | I28: Bendigo | K28: =[2]Pipeline_BA!$K28 -> 50.7336 | M28: 1 | O28: 1 | P28: 1 | Q28: 1
C29: 16 | D29: 16 Guilford to Maryborough | G29: Calder | H29: Guildford | I29: Maryborough | K29: =[2]Pipeline_BA!$K29 -> 31.3668 | M29: 1 | O29: 1 | P29: 1 | Q29: 1
C30: 17 | D30: 17 Wandong to Daylesford Junction | G30: Calder | H30: Wandong | I30: Daylesford Junction | K30: =[2]Pipeline_BA!$K30 -> 84.0628 | M30: 1 | O30: 1 | P30: 1 | Q30: 1
C31: 18 | D31: 18 Euroa to Wodonga | G31: North Hume | H31: Euroa | I31: Barnawartha City Gate | K31: =[2]Pipeline_BA!$K31 -> 134.1846 | M31: 0.85 | O31: 0.85 | P31: 1 | Q31: 1 | R31: Euroa Compressor costs split - (estimate)
C32: 18 | D32: 18 Euroa to Wodonga | G32: Wodonga | H32: Barnawartha City Gate | I32: Wodonga | K32: =[2]Pipeline_BA!$K32 -> 10.6693 | M32: 1 | O32: 0 | P32: 0 | Q32: 1
C33: 19 | D33: 19 Euroa to Kyabram | G33: Echuca | H33: Euroa | I33: Kyabram | K33: =[2]Pipeline_BA!$K33 -> 71.9217 | M33: 0.15 | O33: 0.15 | P33: 1 | Q33: 1 | R33: Euroa Compressor costs split - (estimate)
C34: 20 | D34: 20 Kyabram to Echuca | G34: Echuca | H34: Kyabram | I34: Echuca | K34: =[2]Pipeline_BA!$K34 -> 30.6476 | M34: 1 | O34: 1 | P34: 1 | Q34: 1
C35: 21 | D35: 21 Wollert to Keon Park | G35: Metro | H35: Wollert | I35: Keon Park | K35: =[2]Pipeline_BA!$K35 -> 18.8452 | M35: 1 | O35: 1 | P35: 1 | Q35: 1
C36: 22 | D36: 22 Deer Park to Sunbury | G36: Metro | H36: Deer Park | I36: Sunbury | K36: =[2]Pipeline_BA!$K36 -> 24.0279 | M36: 1 | O36: 1 | P36: 1 | Q36: 1
C37: 23 | D37: 23 Paaratte to Portland | G37: Western | H37: North Paaratte | I37: Portland | K37: =[2]Pipeline_BA!$K37 -> 216.9792 | M37: 1 | O37: 1 | P37: 1 | Q37: 1
C38: 29 | D38: 29 WORM | G38: Metro | H38: Plumpton | I38: Wollert | K38: =[2]Pipeline_BA!$K38 -> 51.2 | M38: 1 | O38: 1 | P38: 1 | Q38: 1
C39: 30 | D39: 30 Anglesea | G39: Geelong | K39: 15 | M39: 1 | O39: 1 | P39: 1 | Q39: 1
C40: 31 | D40: 31 Kalkallo | G40: Metro | K40: 9.5 | M40: 1 | O40: 1 | P40: 1 | Q40: 1
C41: 51 | D41: 51 Interconnect | G41: Interconnect | H41: Barnawartha | I41: Culcairn | K41: =[2]Pipeline_BA!$K41 -> 63.22397 | M41: 1 | O41: 1 | P41: 1 | Q41: 1
C42: 52 | D42: 52 South West Pipeline | G42: South West | H42: Iona | I42: North Paaratte | K42: =[2]Pipeline_BA!$K42 -> 7.7534 | M42: 1 | O42: 1 | P42: 1 | Q42: 1
C43: 28 | D43: 28 Brooklyn Corio Loop | G43: Metro | H43: Brooklyn | I43: Lara | K43: =[2]Pipeline_BA!$K43 -> 58 | M43: 1 | O43: 1 | P43: 1 | Q43: 1
C44: 28 | D44: 28 Brooklyn Corio Loop | G44: Metro | H44: Brooklyn | I44: Lara | K44: =[2]Pipeline_BA!$K44 -> 58 | M44: 0 | O44: 0 | P44: 0 | Q44: 0 | R44: Longford Injection Tariff | T44: =Injection_Tariffs_BO!G8 -> 1.122399384
C45: 24 | D45: 24 Barnawartha to Culcairn | G45: Interconnect | H45: Barnawartha | I45: Culcairn | K45: =[2]Pipeline_BA!$K45 -> 63.22397 | M45: 0.24 | R45: Culcairn Injection Tariff | T45: =Injection_Tariffs_BO!G13 -> 0.9500439441
C46: 25 | D46: 25 Chiltern Valley to Koonoomoo | G46: Murray Valley | H46: Chiltern Valley | I46: Koonoomoo | K46: =[2]Pipeline_BA!$K46 -> 103.5502 | M46: 1 | O46: 1 | P46: 0 | Q46: 1 | R46: Port Campbell Injection Tariff | T46: =Injection_Tariffs_BO!G16 -> 1.232995041 | V46: =T46/T44 -> 1.09853503
C47: 26 | D47: 26 Lara to Port Campbell | G47: South West | H47: Iona | I47: Lara | K47: =[2]Pipeline_BA!$K47 -> 143.9791 | M47: 0.061 | O47: 1 | P47: 1 | Q47: 1
C48: 27 | D48: 27 Port Campbell to Paaratte | G48: South West | H48: Iona | I48: North Paaratte | K48: =[2]Pipeline_BA!$K48 -> 7.7534 | M48: =M47 -> 0.061 | O48: 1 | P48: 1 | Q48: 1
C49: 4 | D49: 4 Lurgi pipeline plus laterals | G49: Lurgi | H49: Morwell | I49: Healsville - Koo Wee Rup Rd | K49: 97.74857 | M49: 0 | O49: 0 | P49: 0 | Q49: 1
C50: 13 | D50: 13 Wollert to Euroa | G50: South Hume | H50: Wollert | I50: Euroa | K50: =[2]Pipeline_BA!$K50 -> 124.3139 | M50: 1 | O50: 1 | P50: 1 | Q50: 1
C51: 18 | D51: 18 Euroa to Wodonga | G51: North Hume | H51: Euroa | I51: Barnawartha City Gate | K51: =K31 -> 134.1846 | M51: 0.85 | O51: 0 | P51: 0 | Q51: 0
C52: 19 | D52: 19 Euroa to Kyabram | G52: Echuca | H52: Euroa | I52: Kyabram | K52: =[2]Pipeline_BA!$K52 -> 71.9217 | M52: 0.15 | O52: 0 | P52: 0 | Q52: 0

Sheet Working_Capital_BA
B1: Working Capital Assumptions
B2: =Model_Name -> VTS Tariff Model | I2: To be Updated
B3: Go to Table of Contents
A4: é | B4: ç | C4: è | I4: 2022 | J4: =I4+1 -> 2023 | K4: =J4+1 -> 2024 | L4: =K4+1 -> 2025 | M4: =L4+1 -> 2026 | N4: =M4+1 -> 2027
C6: Gas Prices | H6: 1.089 | I6: 1.2997 | J6: 1.123 | K6: 1.11316 | L6: 1.023 | M6: 0.99745 | N6: 1.001237
D8: Gasnet Transmission System | I8: =4.3072268085372*H$6*I6 -> 6.096333822 | J8: =I8*(1+CPI)*J6 -> 6.98306459 | K8: =J8*(1+CPI)*K6 -> 7.928685911 | L8: =K8*(1+CPI)*L6 -> 8.273216901 | M8: =L8*(1+CPI)*M6 -> 8.417112037 | N8: =M8*(1+CPI)*N6 -> 8.596022845
D9: Murray Valley | I9: =4.3072268085372*H$6 -> 4.690569994 | J9: =I9*(1+CPI) -> 4.784352653 | K9: 4.88001039 | L9: 4.977580695 | M9: 5.077101809 | N9: 5.178612736
D10: Interconnect | I10: =4.48543714723137*H6 -> 4.884641053 | J10: 4.982303944 | K10: 5.081919494 | L10: 5.183526744 | M10: 5.287165517 | N10: 5.39287643
D11: SWP | I11: =4.49811921342805*H6*I6 -> 6.366517835 | J11: =I11*(1+CPI)*J6 -> 7.29254771 | K11: =J11*(1+CPI)*K6 -> 8.280078115 | L11: =K11*(1+CPI)*L6 -> 8.639878407 | M11: =L11*(1+CPI)*M6 -> 8.790150846 | N11: =M11*(1+CPI)*N6 -> 8.97699082
D12: WTS | I12: =4.3072268085372*H$6 -> 4.690569994 | J12: 4.784352653 | K12: 4.88001039 | L12: 4.977580695 | M12: 5.077101809 | N12: 5.178612736
D13: Brooklyn Corio Loop | I13: =4.37542230296753*H6 -> 4.764834888 | J13: 4.860102389 | K13: 4.957274657 | L13: 5.056389774 | M13: 5.157486587 | N13: 5.260604716
D14: WORM Stage 1 | I14: =3.8633451171875*H6 -> 4.207182833 | J14: 3.5 | K14: 3.569978554 | L14: 3.64135625 | M14: 3.714161062 | N14: 3.788421525
D15: WORM Stage 2 | I15: 8 | J15: =I15*(1+CPI) -> 8.15995098 | K15: =J15*(1+CPI) -> 8.3231 | L15: =K15*(1+CPI) -> 8.489511 | M15: =L15*(1+CPI) -> 8.6592492 | N15: =M15*(1+CPI) -> 8.832381125
D16: Anglesea | I16: =3.8873125*H6 -> 4.233283313 | J16: 4.317923039 | K16: 4.404255042 | L16: 4.492313156 | M16: 3.7925 | N16: 3.868326761
D17: Northern Looping | I17: 3.8873125 | J17: =I17*(1+CPI) -> 3.965034931 | K17: 4.044311333 | L17: 3.7 | M17: 3.773977328 | N17: 3.84943375
C19: Energy (base linepack data) | H19: TJ
D21: =D8 -> Gasnet Transmission System | H21: 462.117 | J21: =$H21*J8 -> 3226.992859 | K21: 3663.980547 | L21: 3823.194175 | M21: 3889.690563 | N21: 3972.368289
D22: =D9 -> Murray Valley | H22: 2.135 | J22: 10.21459291 | K22: 10.41882218 | L22: 10.62713478 | M22: 10.83961236 | N22: 11.05633819
D23: Interconnect | H23: 9.733 | J23: 48.49276428 | K23: 49.46232243 | L23: 50.4512658 | M23: 51.45998198 | N23: 52.48886629
D24: SWP | H24: 21.981 | J24: 160.2974912 | K24: 182.0043971 | L24: 189.9131673 | M24: 193.2163057 | N24: 197.3232352
D25: WTS | H25: 6.116 | J25: 29.26110083 | K25: 29.84614354 | L25: 30.44288353 | M25: 31.05155467 | N25: 31.67239549
D26: Brooklyn Corio Loop | H26: 8.735 | J26: 42.45299437 | K26: 43.30179413 | L26: 44.16756468 | M26: 45.05064533 | N26: 45.95138219
D27: WORM Stage 1 | H27: 3.1 | J27: 10.85 | K27: 11.06693352 | L27: 11.28820437 | M27: 11.51389929 | N27: 11.74410673
D28: WORM Stage 2 | H28: 15 | J28: 122.3992647 | K28: 124.8465 | L28: 127.342665 | M28: 129.888738 | N28: 132.4857169
D29: Anglesea | H29: 1.5 | J29: 6.476884559 | K29: 6.606382563 | L29: 6.738469734 | M29: 5.68875 | N29: 5.802490142
D30: Northern Looping | H30: =17/3 -> 5.666666667 | J30: 22.46853127 | K30: 22.91776422 | L30: 20.96666667 | M30: 21.38587153 | N30: 21.81345792
C32: Total Cost | I32: =SUM(I21:I30) -> 0 | J32: 3679.906483 | K32: 4144.451607 | L32: 4315.132196 | M32: 4389.785922 | N32: 4482.706278
C34: Inventory
D36: Opening Inventory Value | I36: 706.5097557 | J36: =I40 -> 720.6399509 | K36: =J40 -> 735.0527499 | L36: =K40 -> 749.7538049 | M36: =L40 -> 764.748881 | N36: =M40 -> 780.0438586
D37: Additions | H37: 0.33 | I37: =I36*$H$37 -> 233.1482194 | J37: 237.8111838 | K37: 242.5674075 | L37: 247.4187556 | M37: 252.3671307 | N37: 257.4144733
D38: Write Off | H38: 0.33 | I38: =-$H$38*I36 -> -233.1482194 | J38: -237.8111838 | K38: -242.5674075 | L38: -247.4187556 | M38: -252.3671307 | N38: -257.4144733
D39: Inflation | I39: =I36*(General_BA!J7) -> 14.13019511 | J39: =J36*(General_BA!K7) -> 14.41279902 | K39: =K36*(General_BA!L7) -> 14.701055 | L39: =L36*(General_BA!M7) -> 14.9950761 | M39: =M36*(General_BA!N7) -> 15.29497762 | N39: =N36*(General_BA!O7) -> 15.60087717
D40: Closing Inventory Values | I40: =SUM(I36:I39) -> 720.6399509 | J40: 735.0527499 | K40: 749.7538049 | L40: 764.748881 | M40: 780.0438586 | N40: 795.6447358
C42: Total Transmission Inventories | J42: =J36+J32 -> 4400.546434 | K42: =K36+K32 -> 4879.504357 | L42: =L36+L32 -> 5064.886001 | M42: =M36+M32 -> 5154.534803 | N42: =N36+N32 -> 5262.750137
C44: Nominal Dollars
D46: Return on Linepack | J46: =J32*General_BA!$I$14 -> 157.2310501 | K46: =K32*General_BA!$I$14 -> 177.07963 | L46: =L32*General_BA!$I$14 -> 184.372285 | M46: =M32*General_BA!$I$14 -> 187.5620083 | N46: =N32*General_BA!$I$14 -> 191.5322084
D47: Return on Inventory | J47: =J36*General_BA!$I$14 -> 30.79072166 | K47: =K36*General_BA!$I$14 -> 31.40653609 | L47: =L36*General_BA!$I$14 -> 32.03466681 | M47: =M36*General_BA!$I$14 -> 32.67536015 | N47: =N36*General_BA!$I$14 -> 33.32886735
D48: Total Return on Inventory | J48: =SUM(J46:J47) -> 188.0217718 | K48: =SUM(K46:K47) -> 208.4861661 | L48: =SUM(L46:L47) -> 216.4069518 | M48: =SUM(M46:M47) -> 220.2373685 | N48: =SUM(N46:N47) -> 224.8610758
C50: Real Dollars | J50: 1 | K50: =J50+1 -> 2 | L50: =K50+1 -> 3 | M50: =L50+1 -> 4 | N50: =M50+1 -> 5
D52: Return on Linepack | J52: =J46/(1+WACC_BA!$I$9)^J50 -> 154.1490144 | K52: =K46/(1+WACC_BA!$I$9)^K50 -> 170.2054571 | L52: =L46/(1+WACC_BA!$I$9)^L50 -> 173.7412531 | M52: =M46/(1+WACC_BA!$I$9)^M50 -> 173.2824673 | N52: =N46/(1+WACC_BA!$I$9)^N50 -> 173.481833
D53: Return on Inventory | J53: =J47/(1+WACC_BA!$I$9)^J50 -> 30.18716336 | K53: =K47/(1+WACC_BA!$I$9)^K50 -> 30.18734471 | L53: =L47/(1+WACC_BA!$I$9)^L50 -> 30.18752605 | M53: =M47/(1+WACC_BA!$I$9)^M50 -> 30.1877074 | N53: =N47/(1+WACC_BA!$I$9)^N50 -> 30.18788875
D54: Total Return on Inventory | J54: =SUM(J52:J53) -> 184.3361778 | K54: =SUM(K52:K53) -> 200.3928018 | L54: =SUM(L52:L53) -> 203.9287792 | M54: =SUM(M52:M53) -> 203.4701747 | N54: =SUM(N52:N53) -> 203.6697218
D56: Total Return on Inventory ($m) | J56: =J54/1000 -> 0.1843361778 | K56: =K54/1000 -> 0.2003928018 | L56: =L54/1000 -> 0.2039287792 | M56: =M54/1000 -> 0.2034701747 | N56: =N54/1000 -> 0.2036697218

Sheet Opex_Forecast_BA
B1: Base Case - Operating Cost Forecasts
B2: =Model_Name -> VTS Tariff Model | J2: Taken as accepted for this submission ? Macro broken.
B3: Go to Table of Contents
A4: é | B4: ç | C4: è | I4: =Working_Capital_BA!I4 -> 2022 | J4: =Working_Capital_BA!J4 -> 2023 | K4: =Working_Capital_BA!K4 -> 2024 | L4: =Working_Capital_BA!L4 -> 2025 | M4: =Working_Capital_BA!M4 -> 2026 | N4: =Working_Capital_BA!N4 -> 2027
C6: Direct Operating Cost Assumptions
J7: ='2023Non-Direct Costs_BO'!M30-'2023Non-Direct Costs_BO'!N30 -> 67.003575 | K7: ='2024Non-Direct Costs_BO'!M30-'2024Non-Direct Costs_BO'!N30 -> 138.4001056 | L7: ='2025Non-Direct Costs_BO'!M30-'2025Non-Direct Costs_BO'!N30 -> 203.5788111 | M7: ='2026Non-Direct Costs_BO'!M30-'2026Non-Direct Costs_BO'!N30 -> 248.6527003 | N7: ='2027Non-Direct Costs_BO'!M30-'2027Non-Direct Costs_BO'!N30 -> 310.2612849
D8: Country Cost per Km | J8: 9337.801912 | K8: 9914.661697 | L8: 10132.52223 | M8: 10188.71296 | N8: 10542.64865
D9: Country / Metro Ratio | J9: 2.126673209 | K9: 2.126673209 | L9: 2.126673209 | M9: 2.126673209 | N9: 2.126673209
D10: Metro Cost per Km | J10: =J9*J8 -> 19858.45316 | K10: =K9*K8 -> 21085.24541 | L10: =L9*L8 -> 21548.56356 | M10: =M9*M8 -> 21668.06288 | N10: =N9*N8 -> 22420.76843
C12: Operating Cost Forecasts
C14: Total Direct Costs plus OH | I14: =+I16+I49 -> 0 | J14: 34555005.12 | K14: 35722471.33 | L14: 35054926.83 | M14: 34477038.88 | N14: 34499294.66 | S14: =J14/SUM(Pipeline_BA!K9:K52) -> 14012.41354
C16: Direct O & M - Regulated | I16: =+I18+I20+I29+I34+I41+I47 -> 0 | J16: =+J18+J20+J29+J34+J41+J47 -> 27569009.74 | K16: 28709783.98 | L16: 28040878.14 | M16: 27191387.06 | N16: 27161553.34
C18: Pipeline Operations | J18: =RAB_Model_BO!AF$44*$Q$18*1000000 -> 18570292.53 | K18: =RAB_Model_BO!AG$44*$Q$18*1000000 -> 19338710.1 | L18: =RAB_Model_BO!AH$44*$Q$18*1000000 -> 18888139.79 | M18: =RAB_Model_BO!AI$44*$Q$18*1000000 -> 18315928.53 | N18: =RAB_Model_BO!AJ$44*$Q$18*1000000 -> 18295832.75 | Q18: 0.6735930201
C20: Compressor Stations | I20: =SUM(I21:I27) -> 0 | J20: 7262889.591 | K20: 7563419.695 | L20: 7387200.479 | M20: 7163407.169 | N20: 7155547.657
D21: Brooklyn | J21: =RAB_Model_BO!AF$44*$Q$21*1000000 -> 2109426.983 | K21: =RAB_Model_BO!AG$44*1000000*$Q$21 -> 2196712.671 | L21: =RAB_Model_BO!AH$44*1000000*$Q$21 -> 2145531.724 | M21: =RAB_Model_BO!AI$44*1000000*$Q$21 -> 2080533.4 | N21: =RAB_Model_BO!AJ$44*1000000*$Q$21 -> 2078250.691 | Q21: 0.07651442701
D22: Gooding | J22: =RAB_Model_BO!AF$44*$Q$22*1000000 -> 851783.5238 | K22: =RAB_Model_BO!AG$44*1000000*$Q$22 -> 887029.3564 | L22: =RAB_Model_BO!AH$44*1000000*$Q$22 -> 866362.5649 | M22: =RAB_Model_BO!AI$44*1000000*$Q$22 -> 840116.3373 | N22: =RAB_Model_BO!AJ$44*1000000*$Q$22 -> 839194.5825 | Q22: 0.03089641347
D23: Wollert | J23: =RAB_Model_BO!AF$44*$Q$23*1000000 -> 1466782.139 | K23: =RAB_Model_BO!AG$44*$Q$23*1000000 -> 1527475.914 | L23: =RAB_Model_BO!AH$44*1000000*$Q$23 -> 1491887.434 | M23: =RAB_Model_BO!AI$44*1000000*$Q$23 -> 1446691.094 | N23: =RAB_Model_BO!AJ$44*1000000*$Q$23 -> 1445103.82 | Q23: 0.05320401975
D24: Springhurst | J24: =RAB_Model_BO!AF$44*$Q$24*1000000 -> 835685.2614 | K24: =RAB_Model_BO!AG$44*$Q$24*1000000 -> 870264.9662 | L24: =RAB_Model_BO!AH$44*1000000*$Q$24 -> 849988.7663 | M24: =RAB_Model_BO!AI$44*1000000*$Q$24 -> 824238.5786 | N24: =RAB_Model_BO!AJ$44*1000000*$Q$24 -> 823334.2445 | Q24: 0.03031248744
D25: Iona | J25: =RAB_Model_BO!AF$44*$Q$25*1000000 -> 304514.576 | K25: =RAB_Model_BO!AG$44*$Q$25*1000000 -> 317115.0425 | L25: =RAB_Model_BO!AH$44*1000000*$Q$25 -> 309726.6169 | M25: =RAB_Model_BO!AI$44*1000000*$Q$25 -> 300343.5299 | N25: =RAB_Model_BO!AJ$44*1000000*$Q$25 -> 300014.0004 | Q25: 0.01104553914
D26: Winchelsea | J26: =RAB_Model_BO!AF$44*$Q$26*1000000 -> 965812.7828 | K26: =RAB_Model_BO!AG$44*$Q$26*1000000 -> 1005777.016 | L26: =RAB_Model_BO!AH$44*1000000*$Q$26 -> 982343.5374 | M26: =RAB_Model_BO!AI$44*1000000*$Q$26 -> 952583.6964 | N26: =RAB_Model_BO!AJ$44*1000000*$Q$26 -> 951538.5453 | Q26: 0.03503255257
D27: Euroa | J27: =RAB_Model_BO!AF$44*$Q$27*1000000 -> 728884.3249 | K27: =RAB_Model_BO!AG$44*$Q$27*1000000 -> 759044.7286 | L27: =RAB_Model_BO!AH$44*1000000*$Q$27 -> 741359.8357 | M27: =RAB_Model_BO!AI$44*1000000*$Q$27 -> 718900.5331 | N27: =RAB_Model_BO!AJ$44*1000000*$Q$27 -> 718111.7733 | Q27: 0.02643853848
C29: Odorant Stations | I29: =SUM(I30:I32) -> 0 | J29: 83844.72306 | K29: 87314.12226 | L29: 85279.80091 | M29: 82696.27161 | N29: 82605.53932
D30: Longford | J30: =RAB_Model_BO!AF$44*$Q$30*1000000 -> 76382.02034 | K30: =RAB_Model_BO!AG$44*$Q$30*1000000 -> 79542.6214 | L30: =RAB_Model_BO!AH$44*1000000*$Q$30 -> 77689.36732 | M30: =RAB_Model_BO!AI$44*1000000*$Q$30 -> 75335.78823 | N30: =RAB_Model_BO!AJ$44*1000000*$Q$30 -> 75253.13168 | Q30: 0.002770575406
D31: Dandenong | J31: =RAB_Model_BO!AF$44*$Q$31*1000000 -> 7462.70272 | K31: =RAB_Model_BO!AG$44*$Q$31*1000000 -> 7771.500864 | L31: =RAB_Model_BO!AH$44*1000000*$Q$31 -> 7590.43359 | M31: =RAB_Model_BO!AI$44*1000000*$Q$31 -> 7360.483386 | N31: =RAB_Model_BO!AJ$44*1000000*$Q$31 -> 7352.407647 | Q31: 0.000270691722
... 28 more rows

Sheet Scope_Changes_BA
B1: Scope Change Forecasts
B2: =Model_Name -> VTS Tariff Model
B3: Go to Table of Contents | I3: 1 | J3: 2 | K3: 3 | L3: 4 | M3: 5 | N3: 6
A4: é | B4: ç | C4: è | I4: =Working_Capital_BA!I4 -> 2022 | J4: =Working_Capital_BA!J4 -> 2023 | K4: =Working_Capital_BA!K4 -> 2024 | L4: =Working_Capital_BA!L4 -> 2025 | M4: =Working_Capital_BA!M4 -> 2026 | N4: =Working_Capital_BA!N4 -> 2027
C6: Pipelines | G6: Nominal
C19: Total Pipelines | I19: =SUM(I8:I17) -> 0 | J19: 0 | K19: 0 | L19: 0 | M19: 0 | N19: 0
C21: Compressors
D23: Brooklyn
D24: Gooding
D25: Wollert
D26: Springhurst
D27: Iona
D28: Stonehaven
D29: Euroa
C31: Total Compressors | I31: =SUM(I23:I29) -> 0 | J31: 0 | K31: 0 | L31: 0 | M31: 0 | N31: 0
... 7 more rows

Sheet Volume_Assumptions_BA
B1: Volume Forecast Assumptions
B2: =Model_Name -> VTS Tariff Model
B3: Go to Table of Contents
A4: é | B4: ç | C4: è | I4: =Working_Capital_BA!I4 -> 2022 | J4: =Working_Capital_BA!J4 -> 2023 | K4: =Working_Capital_BA!K4 -> 2024 | L4: =Working_Capital_BA!L4 -> 2025 | M4: =Working_Capital_BA!M4 -> 2026 | N4: =Working_Capital_BA!N4 -> 2027
C6: Vencorp Withdrawal Forecasts | J6: Updated per Scott's file input for 2022 onwards
D8: Tariff V - Industry forecasts
E10: Ballarat | I10: =[3]Volume_Assumptions_BA!I10 -> 9000 | J10: =[3]Volume_Assumptions_BA!J10 -> 9000 | K10: =[3]Volume_Assumptions_BA!K10 -> 9000 | L10: =[3]Volume_Assumptions_BA!L10 -> 9200 | M10: =[3]Volume_Assumptions_BA!M10 -> 8452.235552 | N10: =[3]Volume_Assumptions_BA!N10 -> 8558.628104 | Q10: This forecasts comes from VGPR Table 18 for Tariff V and Tariff D
E11: Geelong | I11: =[3]Volume_Assumptions_BA!I11 -> 11600 | J11: =[3]Volume_Assumptions_BA!J11 -> 11600 | K11: =[3]Volume_Assumptions_BA!K11 -> 11600 | L11: =[3]Volume_Assumptions_BA!L11 -> 11700 | M11: =[3]Volume_Assumptions_BA!M11 -> 10869.8373 | N11: =[3]Volume_Assumptions_BA!N11 -> 11006.66142
E12: Gippsland | I12: =[3]Volume_Assumptions_BA!I12 -> 5900 | J12: =[3]Volume_Assumptions_BA!J12 -> 5900 | K12: =[3]Volume_Assumptions_BA!K12 -> 6000 | L12: =[3]Volume_Assumptions_BA!L12 -> 6000 | M12: =[3]Volume_Assumptions_BA!M12 -> 5566.106339 | N12: =[3]Volume_Assumptions_BA!N12 -> 5636.169727
E13: Melbourne | I13: =[3]Volume_Assumptions_BA!I13 -> 90500 | J13: =[3]Volume_Assumptions_BA!J13 -> 88500 | K13: =[3]Volume_Assumptions_BA!K13 -> 86700 | L13: =[3]Volume_Assumptions_BA!L13 -> 85600 | M13: =[3]Volume_Assumptions_BA!M13 -> 83116.77311 | N13: =[3]Volume_Assumptions_BA!N13 -> 84163.00586
E14: Northern | I14: =[3]Volume_Assumptions_BA!I14 -> 11300 | J14: =[3]Volume_Assumptions_BA!J14 -> 11300 | K14: =[3]Volume_Assumptions_BA!K14 -> 11300 | L14: =[3]Volume_Assumptions_BA!L14 -> 11400 | M14: =[3]Volume_Assumptions_BA!M14 -> 10607.46191 | N14: =[3]Volume_Assumptions_BA!N14 -> 10740.98339
E15: Western | I15: =[3]Volume_Assumptions_BA!I15 -> 1300 | J15: =[3]Volume_Assumptions_BA!J15 -> 1300 | K15: =[3]Volume_Assumptions_BA!K15 -> 1300 | L15: =[3]Volume_Assumptions_BA!L15 -> 1300 | M15: =[3]Volume_Assumptions_BA!M15 -> 1218.171421 | N15: =[3]Volume_Assumptions_BA!N15 -> 1233.505159
D16: Total system | I16: =SUM(I10:I15) -> 129600 | J16: 127600 | K16: 125900 | L16: 125200 | M16: 119830.5856 | N16: 121338.9536
D18: Tariff D - AEMO forecasts
E20: =E10 -> Ballarat | I20: =[3]Volume_Assumptions_BA!I20 -> 1600 | J20: =[3]Volume_Assumptions_BA!J20 -> 1600 | K20: =[3]Volume_Assumptions_BA!K20 -> 1600 | L20: =[3]Volume_Assumptions_BA!L20 -> 1600 | M20: =[3]Volume_Assumptions_BA!M20 -> 1590.659346 | N20: =[3]Volume_Assumptions_BA!N20 -> 1585.378859
E21: Geelong | I21: =[3]Volume_Assumptions_BA!I21 -> 9100 | J21: =[3]Volume_Assumptions_BA!J21 -> 8900 | K21: =[3]Volume_Assumptions_BA!K21 -> 8800 | L21: =[3]Volume_Assumptions_BA!L21 -> 8600 | M21: =[3]Volume_Assumptions_BA!M21 -> 8738.80752 | N21: =[3]Volume_Assumptions_BA!N21 -> 8709.797438
E22: Gippsland | I22: =[3]Volume_Assumptions_BA!I22 -> 7900 | J22: =[3]Volume_Assumptions_BA!J22 -> 7700 | K22: =[3]Volume_Assumptions_BA!K22 -> 7400 | L22: =[3]Volume_Assumptions_BA!L22 -> 7100 | M22: =[3]Volume_Assumptions_BA!M22 -> 7501.628028 | N22: =[3]Volume_Assumptions_BA!N22 -> 7476.724992
E23: Melbourne | I23: =[3]Volume_Assumptions_BA!I23 -> 35300 | J23: =[3]Volume_Assumptions_BA!J23 -> 34900 | K23: =[3]Volume_Assumptions_BA!K23 -> 34500 | L23: =[3]Volume_Assumptions_BA!L23 -> 33900 | M23: =[3]Volume_Assumptions_BA!M23 -> 34189.35706 | N23: =[3]Volume_Assumptions_BA!N23 -> 34075.85919
E24: Northern | I24: =[3]Volume_Assumptions_BA!I24 -> 8700 | J24: =[3]Volume_Assumptions_BA!J24 -> 8700 | K24: =[3]Volume_Assumptions_BA!K24 -> 8600 | L24: =[3]Volume_Assumptions_BA!L24 -> 8500 | M24: =[3]Volume_Assumptions_BA!M24 -> 8463.878744 | N24: =[3]Volume_Assumptions_BA!N24 -> 8435.781339
E25: Western | I25: =[3]Volume_Assumptions_BA!I25 -> 2700 | J25: =[3]Volume_Assumptions_BA!J25 -> 2700 | K25: =[3]Volume_Assumptions_BA!K25 -> 2700 | L25: =[3]Volume_Assumptions_BA!L25 -> 2700 | M25: =[3]Volume_Assumptions_BA!M25 -> 2651.098911 | N25: =[3]Volume_Assumptions_BA!N25 -> 2642.298099
D26: Total system | I26: =SUM(I20:I25) -> 65300 | J26: 64500 | K26: 63600 | L26: 62400 | M26: 63135.42961 | N26: 62925.83992
D28: Total
E30: =E20 -> Ballarat | I30: =I20+I10 -> 10600 | J30: 10600 | K30: 10600 | L30: 10800 | M30: 10042.8949 | N30: 10144.00696
E31: Geelong | I31: =I21+I11 -> 20700 | J31: 20500 | K31: 20400 | L31: 20300 | M31: 19608.64482 | N31: 19716.45886
... 23 more rows

Sheet RAB_Model_BO
B1: RAB Model Inputs
B2: =Model_Name -> VTS Tariff Model | W2: Updated using PTRM 2021 version from Scott
B3: Go to Table of Contents
A4: é | B4: ç | C4: è | J4: =Working_Capital_BA!J4 -> 2023 | K4: =Working_Capital_BA!K4 -> 2024 | L4: =Working_Capital_BA!L4 -> 2025 | M4: =Working_Capital_BA!M4 -> 2026 | N4: =Working_Capital_BA!N4 -> 2027 | W4: =[1]RAB_Model_BO!W$4 -> 2023 | X4: =[1]RAB_Model_BO!X$4 -> 2024 | Y4: =[1]RAB_Model_BO!Y$4 -> 2025 | Z4: =[1]RAB_Model_BO!Z$4 -> 2026 | AA4: =[1]RAB_Model_BO!AA$4 -> 2027 | AG4: 2023 | AH4: 2024 | AI4: 2025 | AJ4: 2026 | AK4: 2027
C6: RAB Model Inputs | P6: RAB Model Inputs
J7: EBSS Numbers need to be updated, input to be provided (Scotts Team) | W7: EBSS Numbers need to be updated, input to be provided (Scotts Team)
C8: Return on Asset | P8: Return on Asset
AE9: Cross System + Refill Revenue Offset
D10: Pipelines | J10: =W10-J57-J60-J66-J69 -> 20635582.5 | K10: =X10-K57-K60-K66-K69 -> 21868783.9 | L10: =Y10-L57-L60-L66-L69 -> 21017780.06 | M10: =Z10-M57-M60-M66-M69 -> 19532235.03 | N10: =AA10-N57-N60-N66-N69 -> 17917220.94 | Q10: Pipelines | W10: =[1]RAB_Model_BO!W10-AG23*1000 -> 33446004.2 | X10: =[1]RAB_Model_BO!X10-AH23*1000 -> 34519845.43 | Y10: =[1]RAB_Model_BO!Y10-AI23*1000 -> 33497987.93 | Z10: =[1]RAB_Model_BO!Z10-AJ23*1000 -> 31829699.87 | AA10: =[1]RAB_Model_BO!AA10-AK23*1000 -> 30019646.24
D11: City Gates & Field Regulators | J11: =W11 -> 2247636.549 | K11: =X11 -> 2103223.816 | L11: =Y11 -> 1959816.425 | M11: =Z11 -> 1817681.971 | N11: =AA11 -> 1677102.052 | Q11: City Gates & Field Regulators | W11: =[1]RAB_Model_BO!W11 -> 2247636.549 | X11: =[1]RAB_Model_BO!X11 -> 2103223.816 | Y11: =[1]RAB_Model_BO!Y11 -> 1959816.425 | Z11: =[1]RAB_Model_BO!Z11 -> 1817681.971 | AA11: =[1]RAB_Model_BO!AA11 -> 1677102.052 | AE11: Refill LNG | AF11: $/GJ | AG11: 0.0539 | AH11: =AG11*(1+General_BA!L7) -> 0.054978 | AI11: =AH11*(1+General_BA!M7) -> 0.05607756 | AJ11: =AI11*(1+General_BA!N7) -> 0.0571991112 | AK11: =AJ11*(1+General_BA!O7) -> 0.05834309342
D12: Compressors | J12: =W12-J63 -> 4922454.439 | K12: =X12-K63 -> 6309170.503 | L12: =Y12-L63 -> 8329479.5 | M12: =Z12-M63 -> 8369559.977 | N12: =AA12-N63 -> 7916585.756 | Q12: Compressors | W12: =[1]RAB_Model_BO!W12 -> 6354276.99 | X12: =[1]RAB_Model_BO!X12 -> 7715529.982 | Y12: =[1]RAB_Model_BO!Y12 -> 9708785.318 | Z12: =[1]RAB_Model_BO!Z12 -> 9720168.12 | AA12: =[1]RAB_Model_BO!AA12 -> 9236797.286 | AF12: ,000 GJ | AG12: =Volume_Assumptions_BA!J241 -> 2300 | AH12: =Volume_Assumptions_BA!K241 -> 2300 | AI12: =Volume_Assumptions_BA!L241 -> 2300 | AJ12: =Volume_Assumptions_BA!M241 -> 2300 | AK12: =Volume_Assumptions_BA!N241 -> 2300
D13: Odourant Plants | J13: =W13 -> 8908.735887 | K13: 8092.885493 | L13: 7288.360007 | M13: 6496.88834 | N13: 5720.283003 | Q13: Odourant Plants | W13: =[1]RAB_Model_BO!W13 -> 8908.735887 | X13: =[1]RAB_Model_BO!X13 -> 8092.885493 | Y13: =[1]RAB_Model_BO!Y13 -> 7288.360007 | Z13: =[1]RAB_Model_BO!Z13 -> 6496.88834 | AA13: =[1]RAB_Model_BO!AA13 -> 5720.283003 | AF13: $'000 | AG13: =AG12*AG11 -> 123.97 | AH13: =AH12*AH11 -> 126.4494 | AI13: 128.978388 | AJ13: 131.5579558 | AK13: 134.1891149
D14: Gas Quality | J14: 51655.43027 | K14: 58770.67689 | L14: 53254.70152 | M14: 85433.19518 | N14: 97538.74116 | Q14: Gas Quality | W14: =[1]RAB_Model_BO!W14 -> 51655.43027 | X14: =[1]RAB_Model_BO!X14 -> 58770.67689 | Y14: =[1]RAB_Model_BO!Y14 -> 53254.70152 | Z14: =[1]RAB_Model_BO!Z14 -> 85433.19518 | AA14: =[1]RAB_Model_BO!AA14 -> 97538.74116
D15: Other | J15: 2156245.382 | K15: 2840273.253 | L15: 3521909.435 | M15: 3790931.211 | N15: 3806040.375 | Q15: Other | W15: =[1]RAB_Model_BO!W15 -> 2156245.382 | X15: =[1]RAB_Model_BO!X15 -> 2840273.253 | Y15: =[1]RAB_Model_BO!Y15 -> 3521909.435 | Z15: =[1]RAB_Model_BO!Z15 -> 3790931.211 | AA15: =[1]RAB_Model_BO!AA15 -> 3806040.375 | AE15: Refill WUGS | AF15: $/GJ | AG15: 0.07894571429 | AH15: =AG15*(1+General_BA!L7) -> 0.08052462857 | AI15: =AH15*(1+General_BA!M7) -> 0.08213512114 | AJ15: =AI15*(1+General_BA!N7) -> 0.08377782357 | AK15: =AJ15*(1+General_BA!O7) -> 0.08545338004
D16: General Building | J16: 957191.4187 | K16: 920275.5313 | L16: 881625.6318 | M16: 838300.9209 | N16: 795072.8084 | Q16: General Building | W16: =[1]RAB_Model_BO!W16 -> 957191.4187 | X16: =[1]RAB_Model_BO!X16 -> 920275.5313 | Y16: =[1]RAB_Model_BO!Y16 -> 881625.6318 | Z16: =[1]RAB_Model_BO!Z16 -> 838300.9209 | AA16: =[1]RAB_Model_BO!AA16 -> 795072.8084 | AF16: ,000 GJ | AG16: =Volume_Assumptions_BA!I242 -> 15800 | AH16: =Volume_Assumptions_BA!J242 -> 15800 | AI16: =Volume_Assumptions_BA!K242 -> 15800 | AJ16: =Volume_Assumptions_BA!L242 -> 15800 | AK16: =Volume_Assumptions_BA!M242 -> 15800
D17: General Land | J17: 296821.4816 | K17: 283270.6367 | L17: 269720.0545 | M17: 256188.3741 | N17: 242695.2442 | Q17: General Land | W17: =[1]RAB_Model_BO!W17 -> 296821.4816 | X17: =[1]RAB_Model_BO!X17 -> 283270.6367 | Y17: =[1]RAB_Model_BO!Y17 -> 269720.0545 | Z17: =[1]RAB_Model_BO!Z17 -> 256188.3741 | AA17: =[1]RAB_Model_BO!AA17 -> 242695.2442 | AF17: $'000 | AG17: =AG16*AG15 -> 1247.342286 | AH17: =AH16*AH15 -> 1272.289131 | AI17: 1297.734914 | AJ17: 1323.689612 | AK17: 1350.163405
D18: Equity Raising Costs | Q18: Equity Raising Costs
P20: Total CS + Refill Revenue | W20: =AG23*1000 -> 2871312.286 | X20: =AH23*1000 -> 2928738.531 | Y20: 2987313.302 | Z20: 3047059.568 | AA20: 3108000.759 | AE20: Cross System | AF20: $'000 | AG20: 1500 | AH20: =AG20*(1+General_BA!L7) -> 1530 | AI20: =AH20*(1+General_BA!M7) -> 1560.6 | AJ20: =AI20*(1+General_BA!N7) -> 1591.812 | AK20: =AJ20*(1+General_BA!O7) -> 1623.64824
C21: Debt Raising Costs (amended) | J21: =W51 -> 539399.0131 | K21: =X51 -> 591697.1807 | L21: =Y51 -> 629974.1607 | M21: =Z51 -> 633899.4071 | N21: =AA51 -> 626506.5444 | P21: Debt Raising Costs | W21: =[1]RAB_Model_BO!W21 -> 561289.2957 | X21: =[1]RAB_Model_BO!X21 -> 615709.8654 | Y21: =[1]RAB_Model_BO!Y21 -> 655540.2296 | Z21: =[1]RAB_Model_BO!Z21 -> 659624.7732 | AA21: =[1]RAB_Model_BO!AA21 -> 651931.8881
C23: Asset Regulatory Depreciation | P23: Asset Regulatory Depreciation | AE23: Total CS + Refill Revenue | AF23: $'000 | AG23: =AG20+AG17+AG13 -> 2871.312286 | AH23: =AH20+AH17+AH13 -> 2928.738531 | AI23: 2987.313302 | AJ23: 3047.059568 | AK23: =AK20+AK17+AK13 -> 3108.000759 | AL23: =SUM(AG23:AK23) -> 14942.42445
D25: Pipelines | J25: =W25-J58-J61-J67-J70 -> 2913156.942 | K25: =X25-K58-K61-K67-K70 -> 9201578.352 | L25: =Y25-L58-L61-L67-L70 -> 10095503.86 | M25: =Z25-M58-M61-M67-M70 -> 10818906.41 | N25: =AA25-N58-N61-N67-N70 -> 11521018.91 | Q25: Pipelines | W25: =[1]RAB_Model_BO!W25 -> 6642894.441 | X25: =[1]RAB_Model_BO!X25 -> 13200314.53 | Y25: =[1]RAB_Model_BO!Y25 -> 14372504.38 | Z25: =[1]RAB_Model_BO!Z25 -> 15383699.92 | AA25: =[1]RAB_Model_BO!AA25 -> 16383403.85
D26: City Gates & Field Regulators | J26: =W26 -> 1857401.181 | K26: =X26 -> 1954242.845 | L26: =Y26 -> 2054288.402 | M26: =Z26 -> 2157628.681 | N26: =AA26 -> 2264356.892 | Q26: City Gates & Field Regulators | W26: =[1]RAB_Model_BO!W26 -> 1857401.181 | X26: =[1]RAB_Model_BO!X26 -> 1954242.845 | Y26: =[1]RAB_Model_BO!Y26 -> 2054288.402 | Z26: =[1]RAB_Model_BO!Z26 -> 2157628.681 | AA26: =[1]RAB_Model_BO!AA26 -> 2264356.892
D27: Compressors | J27: =W27-J64 -> 4421452.961 | K27: =X27-K64 -> 3952388.281 | L27: =Y27-L64 -> 4872964.228 | M27: =Z27-M64 -> 6850737.353 | N27: =AA27-N64 -> 7266629.018 | Q27: Compressors | W27: =[1]RAB_Model_BO!W27 -> 5017402.186 | X27: =[1]RAB_Model_BO!X27 -> 4585564.368 | Y27: =[1]RAB_Model_BO!Y27 -> 5544617.561 | Z27: =[1]RAB_Model_BO!Z27 -> 7562153.437 | AA27: =[1]RAB_Model_BO!AA27 -> 8019129.376
D28: Odourant Plants | J28: =W28 -> 12810.49043 | K28: 13406.08409 | L28: 14020.37313 | M28: 14653.86706 | N28: 15307.08828 | Q28: Odourant Plants | W28: =[1]RAB_Model_BO!W28 -> 12810.49043 | X28: =[1]RAB_Model_BO!X28 -> 13406.08409 | Y28: =[1]RAB_Model_BO!Y28 -> 14020.37313 | Z28: =[1]RAB_Model_BO!Z28 -> 14653.86706 | AA28: =[1]RAB_Model_BO!AA28 -> 15307.08828
D29: Gas Quality | J29: 63561.37781 | K29: 89191.31586 | L29: 93325.83767 | M29: 177446.1375 | N29: 233307.8507 | Q29: Gas Quality | W29: =[1]RAB_Model_BO!W29 -> 63561.37781 | X29: =[1]RAB_Model_BO!X29 -> 89191.31586 | Y29: =[1]RAB_Model_BO!Y29 -> 93325.83767 | Z29: =[1]RAB_Model_BO!Z29 -> 177446.1375 | AA29: =[1]RAB_Model_BO!AA29 -> 233307.8507
D30: Other | J30: 10939322.54 | K30: 15937860.94 | L30: 22328362.87 | M30: 24891436.16 | N30: 21211914.75 | Q30: Other | W30: =[1]RAB_Model_BO!W30 -> 10939322.54 | X30: =[1]RAB_Model_BO!X30 -> 15937860.94 | Y30: =[1]RAB_Model_BO!Y30 -> 22328362.87 | Z30: =[1]RAB_Model_BO!Z30 -> 24891436.16 | AA30: =[1]RAB_Model_BO!AA30 -> 21211914.75
D31: General Building | J31: 293057.3934 | K31: 315737.1327 | L31: 338830.4803 | M31: 361191.839 | N31: 384311.9288 | Q31: General Building | W31: =[1]RAB_Model_BO!W31 -> 293057.3934 | X31: =[1]RAB_Model_BO!X31 -> 315737.1327 | Y31: =[1]RAB_Model_BO!Y31 -> 338830.4803 | Z31: =[1]RAB_Model_BO!Z31 -> 361191.839 | AA31: =[1]RAB_Model_BO!AA31 -> 384311.9288
... 25 more rows

Sheet Input Format -->
C9: Input Format
C10: Section 2.
C11: =Model_Name -> VTS Tariff Model
C12: Go to Table of Contents
C13: ç | D13: è
C17: Section Cover Notes:
C18: Reformatting and structuring of the information procided in Assumptions

Sheet WACC_BO
B1: WACC Outputs
B2: =Model_Name -> VTS Tariff Model
B3: Go to Table of Contents
A4: é | B4: ç | C4: è
C7: Variables
C8: Nominal Risk Free Rate (Rf) | I8: =WACC_BA!I8 -> 0.012425
C9: Inflation Rate | I9: =WACC_BA!I9 -> 0.0199938725
C10: Cost of Debt Margin over rf | I10: =WACC_BA!I10 -> 0.02611985771
C11: Cost of raising debt | I11: =WACC_BA!I11 -> 0.00081
C12: Nominal pre-tax cost of debt | I12: =WACC_BA!I12 -> 0.03854485771
C13: Market Risk Premium | I13: =WACC_BA!I13 -> 0.061
C14: Corporate Tax Rate | I14: =WACC_BA!I14 -> 0.3
C15: Effective Tax Rate for Equity (From Relevant Cash flows) | I15: =WACC_BA!I15 -> 0.2776679838
C16: Effective Tax Rate for Debt (Effective Debt Shield) | I16: =WACC_BA!I16 -> 0.3026456267
C17: Proportion of Franking Credits or Gamma | I17: =WACC_BA!I17 -> 0.585
C18: LT Proportion of Equity Funding | I18: =WACC_BA!I18 -> 0.4
C19: LT Proportion of Debt Funding | I19: =WACC_BA!I19 -> 0.6
C20: Equity Beta | I20: =WACC_BA!I20 -> 0.6
C22: WACC Output | K22: PTRM Output
C23: Pre-tax nominal return on equity | I23: =I24*(1/(1-I15*(1-I17))) -> 0.05541001914
C24: Post-tax nominal return on equity | I24: =I8+I13*I20 -> 0.049025
C25: Nominal Vanilla WACC | I25: =I18*I24+I19*I12 -> 0.04273691463 | K25: =[1]RAB_Model_BO!vanilla01 -> 0.04273691463
C26: Real Vanilla WACC | I26: =(1+I25)/(1+I9)-1 -> 0.02229723407 | K26: =[1]RAB_Model_BO!rvanilla01 -> 0.02229723407
C27: Pre-Tax Nominal WACC | I27: =I24*(1/(1-I15*(1-I17)))*I18+I12*I19 -> 0.04529092228 | K27: =[1]WACC!$G$22 -> 0.04529092228
C28: Pre-Tax Real WACC | I28: =(1+I27)/(1+I9)-1 -> 0.02480117818 | K28: =[1]WACC!$G$23 -> 0.02480117818
C29: Post tax Nominal WACC | I29: =I24*((1-I15)/(1-I15*(1-I17)))*I18+I12*I19*(1-I16) -> 0.03213742739 | K29: =[1]WACC!$G$20 -> 0.0398322219
C30: Post tax Real WACC | I30: =(1+I29)/(1+I9)-1 -> 0.01190551749 | K30: =[1]WACC!$G$21 -> 0.019449479

Sheet O&M_Workings_BO
B1: O&M Workings
B2: =Model_Name -> VTS Tariff Model
B3: Go to Table of Contents | Q3: 1 | R3: 2 | S3: 3 | T3: 4 | U3: 5 | V3: 6
A4: é | B4: ç | C4: è | I4: =Opex_Forecast_BA!I4 -> 2022 | J4: =Opex_Forecast_BA!J4 -> 2023 | K4: =Opex_Forecast_BA!K4 -> 2024 | L4: =Opex_Forecast_BA!L4 -> 2025 | M4: =Opex_Forecast_BA!M4 -> 2026 | N4: =Opex_Forecast_BA!N4 -> 2027 | Q4: =I4 -> 2022 | R4: 2023 | S4: 2024 | T4: 2025 | U4: 2026 | V4: 2027
C7: Pipeline Operations | I7: Base Case | Q7: Scope Changes
D9: Pipeline Operations (remaining) | I9: =I14-SUM(I10:I12) -> -443262.1358 | J9: =J14-SUM(J10:J12) -> 18118167.87 | K9: 18877545.71 | L9: 18417754.94 | M9: 17836138.87 | N9: 17806450.23 | Q9: =Scope_Changes_BA!I19 -> 0 | R9: =Scope_Changes_BA!J19 -> 0 | S9: =Scope_Changes_BA!K19 -> 0 | T9: =Scope_Changes_BA!L19 -> 0 | U9: =Scope_Changes_BA!M19 -> 0 | V9: =Scope_Changes_BA!N19 -> 0
D10: Murray Valley Pipeline | I10: =Opex_Forecast_BA!I80 -> 144840.9866 | J10: =Opex_Forecast_BA!J80 -> 147736.9188 | K10: =Opex_Forecast_BA!K80 -> 150690.7519 | L10: =Opex_Forecast_BA!L80 -> 153703.6436 | M10: =Opex_Forecast_BA!M80 -> 156776.7746 | N10: =Opex_Forecast_BA!N80 -> 159911.3495
D11: InterConnect Pipeline | I11: =Opex_Forecast_BA!I81 -> 85263.18549 | J11: =Opex_Forecast_BA!J81 -> 86967.92675 | K11: =Opex_Forecast_BA!K81 -> 88706.75239 | L11: =Opex_Forecast_BA!L81 -> 90480.34389 | M11: =Opex_Forecast_BA!M81 -> 92289.39635 | N11: =Opex_Forecast_BA!N81 -> 94134.61877
D12: Southwest Pipeline | I12: =Opex_Forecast_BA!I82 -> 213157.9637 | J12: =Opex_Forecast_BA!J82 -> 217419.8169 | K12: =Opex_Forecast_BA!K82 -> 221766.881 | L12: =Opex_Forecast_BA!L82 -> 226200.8597 | M12: =Opex_Forecast_BA!M82 -> 230723.4909 | N12: =Opex_Forecast_BA!N82 -> 235336.5469
C14: Total Pipeline Opex | I14: =Opex_Forecast_BA!I18 -> 0 | J14: =Opex_Forecast_BA!J18 -> 18570292.53 | K14: =Opex_Forecast_BA!K18 -> 19338710.1 | L14: =Opex_Forecast_BA!L18 -> 18888139.79 | M14: =Opex_Forecast_BA!M18 -> 18315928.53 | N14: =Opex_Forecast_BA!N18 -> 18295832.75 | Q14: =SUM(Q9:Q12) -> 0 | R14: 0 | S14: 0 | T14: 0 | U14: 0 | V14: 0
C16: Compressors
D18: Brooklyn | I18: =Opex_Forecast_BA!I21 -> 0 | J18: =Opex_Forecast_BA!J21 -> 2109426.983 | K18: =Opex_Forecast_BA!K21 -> 2196712.671 | L18: =Opex_Forecast_BA!L21 -> 2145531.724 | M18: =Opex_Forecast_BA!M21 -> 2080533.4 | N18: =Opex_Forecast_BA!N21 -> 2078250.691 | Q18: =Scope_Changes_BA!I23 -> 0 | R18: =Scope_Changes_BA!J23 -> 0 | S18: =Scope_Changes_BA!K23 -> 0 | T18: =Scope_Changes_BA!L23 -> 0 | U18: =Scope_Changes_BA!M23 -> 0 | V18: =Scope_Changes_BA!N23 -> 0
D19: Gooding | I19: =Opex_Forecast_BA!I22 -> 0 | J19: =Opex_Forecast_BA!J22 -> 851783.5238 | K19: =Opex_Forecast_BA!K22 -> 887029.3564 | L19: =Opex_Forecast_BA!L22 -> 866362.5649 | M19: =Opex_Forecast_BA!M22 -> 840116.3373 | N19: =Opex_Forecast_BA!N22 -> 839194.5825 | Q19: =Scope_Changes_BA!I24 -> 0 | R19: =Scope_Changes_BA!J24 -> 0 | S19: =Scope_Changes_BA!K24 -> 0 | T19: =Scope_Changes_BA!L24 -> 0 | U19: =Scope_Changes_BA!M24 -> 0 | V19: =Scope_Changes_BA!N24 -> 0
D20: Wollert | I20: =Opex_Forecast_BA!I23 -> 0 | J20: =Opex_Forecast_BA!J23 -> 1466782.139 | K20: =Opex_Forecast_BA!K23 -> 1527475.914 | L20: =Opex_Forecast_BA!L23 -> 1491887.434 | M20: =Opex_Forecast_BA!M23 -> 1446691.094 | N20: =Opex_Forecast_BA!N23 -> 1445103.82 | Q20: =Scope_Changes_BA!I25 -> 0 | R20: =Scope_Changes_BA!J25 -> 0 | S20: =Scope_Changes_BA!K25 -> 0 | T20: =Scope_Changes_BA!L25 -> 0 | U20: =Scope_Changes_BA!M25 -> 0 | V20: =Scope_Changes_BA!N25 -> 0
D21: Springhurst | I21: =Opex_Forecast_BA!I24 -> 0 | J21: =Opex_Forecast_BA!J24 -> 835685.2614 | K21: =Opex_Forecast_BA!K24 -> 870264.9662 | L21: =Opex_Forecast_BA!L24 -> 849988.7663 | M21: =Opex_Forecast_BA!M24 -> 824238.5786 | N21: =Opex_Forecast_BA!N24 -> 823334.2445 | Q21: =Scope_Changes_BA!I26 -> 0 | R21: =Scope_Changes_BA!J26 -> 0 | S21: =Scope_Changes_BA!K26 -> 0 | T21: =Scope_Changes_BA!L26 -> 0 | U21: =Scope_Changes_BA!M26 -> 0 | V21: =Scope_Changes_BA!N26 -> 0
D22: Iona | I22: =Opex_Forecast_BA!I25 -> 0 | J22: =Opex_Forecast_BA!J25 -> 304514.576 | K22: =Opex_Forecast_BA!K25 -> 317115.0425 | L22: =Opex_Forecast_BA!L25 -> 309726.6169 | M22: =Opex_Forecast_BA!M25 -> 300343.5299 | N22: =Opex_Forecast_BA!N25 -> 300014.0004 | Q22: =Scope_Changes_BA!I27 -> 0 | R22: =Scope_Changes_BA!J27 -> 0 | S22: =Scope_Changes_BA!K27 -> 0 | T22: =Scope_Changes_BA!L27 -> 0 | U22: =Scope_Changes_BA!M27 -> 0 | V22: =Scope_Changes_BA!N27 -> 0
D23: Stonehaven | I23: =Opex_Forecast_BA!I26 -> 0 | J23: =Opex_Forecast_BA!J26 -> 965812.7828 | K23: =Opex_Forecast_BA!K26 -> 1005777.016 | L23: =Opex_Forecast_BA!L26 -> 982343.5374 | M23: =Opex_Forecast_BA!M26 -> 952583.6964 | N23: =Opex_Forecast_BA!N26 -> 951538.5453 | Q23: =Scope_Changes_BA!I28 -> 0 | R23: =Scope_Changes_BA!J28 -> 0 | S23: =Scope_Changes_BA!K28 -> 0 | T23: =Scope_Changes_BA!L28 -> 0 | U23: =Scope_Changes_BA!M28 -> 0 | V23: =Scope_Changes_BA!N28 -> 0
D24: Euroa | I24: =Opex_Forecast_BA!I27 -> 0 | J24: =Opex_Forecast_BA!J27 -> 728884.3249 | K24: =Opex_Forecast_BA!K27 -> 759044.7286 | L24: =Opex_Forecast_BA!L27 -> 741359.8357 | M24: =Opex_Forecast_BA!M27 -> 718900.5331 | N24: =Opex_Forecast_BA!N27 -> 718111.7733 | Q24: =Scope_Changes_BA!I29 -> 0 | R24: =Scope_Changes_BA!J29 -> 0 | S24: =Scope_Changes_BA!K29 -> 0 | T24: =Scope_Changes_BA!L29 -> 0 | U24: =Scope_Changes_BA!M29 -> 0 | V24: =Scope_Changes_BA!N29 -> 0
C26: Total Compressor Opex | I26: =SUM(I18:I24) -> 0 | J26: 7262889.591 | K26: 7563419.695 | L26: 7387200.479 | M26: 7163407.169 | N26: 7155547.657 | Q26: =SUM(Q18:Q24) -> 0 | R26: 0 | S26: 0 | T26: 0 | U26: 0 | V26: 0
C28: Odorant Stations
D30: Longford | I30: =Opex_Forecast_BA!I30 -> 0 | J30: =Opex_Forecast_BA!J30 -> 76382.02034 | K30: =Opex_Forecast_BA!K30 -> 79542.6214 | L30: =Opex_Forecast_BA!L30 -> 77689.36732 | M30: =Opex_Forecast_BA!M30 -> 75335.78823 | N30: =Opex_Forecast_BA!N30 -> 75253.13168 | Q30: =Scope_Changes_BA!I43 -> 0 | R30: =Scope_Changes_BA!J43 -> 0 | S30: =Scope_Changes_BA!K43 -> 0 | T30: =Scope_Changes_BA!L43 -> 0 | U30: =Scope_Changes_BA!M43 -> 0 | V30: =Scope_Changes_BA!N43 -> 0
D31: Dandenong | I31: =Opex_Forecast_BA!I31 -> 0 | J31: =Opex_Forecast_BA!J31 -> 7462.70272 | K31: =Opex_Forecast_BA!K31 -> 7771.500864 | L31: =Opex_Forecast_BA!L31 -> 7590.43359 | M31: =Opex_Forecast_BA!M31 -> 7360.483386 | N31: =Opex_Forecast_BA!N31 -> 7352.407647
... 28 more rows

Sheet O&M_Regulatory_TO
B1: O&M Summary
B2: =Model_Name -> VTS Tariff Model
B3: Go to Table of Contents
A4: é | B4: ç | C4: è
B6: =IF(TS_Pers_In_Yr=1,"",TS_Per_Type_Name&" Ending") ->  | J6: =IF(TS_Pers_In_Yr=1,"",LEFT(INDEX(LU_Mth_Names,MONTH(J9)),3)&"-"&RIGHT(YEAR(J9),2))&" " ->  | K6: =IF(TS_Pers_In_Yr=1,"",LEFT(INDEX(LU_Mth_Names,MONTH(K9)),3)&"-"&RIGHT(YEAR(K9),2))&" " ->  | L6: =IF(TS_Pers_In_Yr=1,"",LEFT(INDEX(LU_Mth_Names,MONTH(L9)),3)&"-"&RIGHT(YEAR(L9),2))&" " ->  | M6: =IF(TS_Pers_In_Yr=1,"",LEFT(INDEX(LU_Mth_Names,MONTH(M9)),3)&"-"&RIGHT(YEAR(M9),2))&" " ->  | N6: =IF(TS_Pers_In_Yr=1,"",LEFT(INDEX(LU_Mth_Names,MONTH(N9)),3)&"-"&RIGHT(YEAR(N9),2))&" " -> 
B7: =IF(TS_Pers_In_Yr=1,Yr_Name&" Ending "&DAY(TS_Per_1_End_Date)&" "&INDEX(LU_Mth_Names,DD_TS_Fin_YE_Mth),TS_Per_Type_Name) -> Year Ending 31 December | I7: =Working_Capital_BA!I4 -> 2022 | J7: =Working_Capital_BA!J4 -> 2023 | K7: =Working_Capital_BA!K4 -> 2024 | L7: =Working_Capital_BA!L4 -> 2025 | M7: =Working_Capital_BA!M4 -> 2026 | N7: =Working_Capital_BA!N4 -> 2027
B8: Period Start Date (From Start of Day...) | J8: =IF(J12=1,TS_Start_Date,I9+1) -> 2023-01-01 | K8: =IF(K12=1,TS_Start_Date,J9+1) -> 2024-01-01 | L8: =IF(L12=1,TS_Start_Date,K9+1) -> 2025-01-01 | M8: =IF(M12=1,TS_Start_Date,L9+1) -> 2026-01-01 | N8: =IF(N12=1,TS_Start_Date,M9+1) -> 2027-01-01
B9: Period End Date (Until End of Day...) | J9: =IF(J12=1,TS_Per_1_End_Date, IF(TS_Mth_End,EOMONTH(EDATE(TS_Per_1_FY_Start_Date,(TS_Per_1_Number+J12-1)*TS_Mths_In_Per-1),0), EDATE(TS_Per_1_FY_Start_Date,(TS_Per_1_Number+J12-1)*TS_Mths_In_Per)-1)) -> 2023-12-31 | K9: =IF(K12=1,TS_Per_1_End_Date, IF(TS_Mth_End,EOMONTH(EDATE(TS_Per_1_FY_Start_Date,(TS_Per_1_Number+K12-1)*TS_Mths_In_Per-1),0), EDATE(TS_Per_1_FY_Start_Date,(TS_Per_1_Number+K12-1)*TS_Mths_In_Per)-1)) -> 2024-12-31 | L9: =IF(L12=1,TS_Per_1_End_Date, IF(TS_Mth_End,EOMONTH(EDATE(TS_Per_1_FY_Start_Date,(TS_Per_1_Number+L12-1)*TS_Mths_In_Per-1),0), EDATE(TS_Per_1_FY_Start_Date,(TS_Per_1_Number+L12-1)*TS_Mths_In_Per)-1)) -> 2025-12-31 | M9: =IF(M12=1,TS_Per_1_End_Date, IF(TS_Mth_End,EOMONTH(EDATE(TS_Per_1_FY_Start_Date,(TS_Per_1_Number+M12-1)*TS_Mths_In_Per-1),0), EDATE(TS_Per_1_FY_Start_Date,(TS_Per_1_Number+M12-1)*TS_Mths_In_Per)-1)) -> 2026-12-31 | N9: =IF(N12=1,TS_Per_1_End_Date, IF(TS_Mth_End,EOMONTH(EDATE(TS_Per_1_FY_Start_Date,(TS_Per_1_Number+N12-1)*TS_Mths_In_Per-1),0), EDATE(TS_Per_1_FY_Start_Date,(TS_Per_1_Number+N12-1)*TS_Mths_In_Per)-1)) -> 2027-12-31
B10: Financial Year | J10: =YEAR(TS_Per_1_FY_End_Date)+INT((TS_Per_1_Number+J12-2)/TS_Pers_In_Yr) -> 2023 | K10: =YEAR(TS_Per_1_FY_End_Date)+INT((TS_Per_1_Number+K12-2)/TS_Pers_In_Yr) -> 2024 | L10: =YEAR(TS_Per_1_FY_End_Date)+INT((TS_Per_1_Number+L12-2)/TS_Pers_In_Yr) -> 2025 | M10: =YEAR(TS_Per_1_FY_End_Date)+INT((TS_Per_1_Number+M12-2)/TS_Pers_In_Yr) -> 2026 | N10: =YEAR(TS_Per_1_FY_End_Date)+INT((TS_Per_1_Number+N12-2)/TS_Pers_In_Yr) -> 2027
B11: Financial Year Period | J11: =IF(TS_Pers_In_Yr=1,Yr_Name,TS_Per_Type_Prefix&IF(MOD(TS_Per_1_Number+J12-1,TS_Pers_In_Yr)=0,TS_Pers_In_Yr,MOD(TS_Per_1_Number+J12-1,TS_Pers_In_Yr)))&" " -> Year | K11: =IF(TS_Pers_In_Yr=1,Yr_Name,TS_Per_Type_Prefix&IF(MOD(TS_Per_1_Number+K12-1,TS_Pers_In_Yr)=0,TS_Pers_In_Yr,MOD(TS_Per_1_Number+K12-1,TS_Pers_In_Yr)))&" " -> Year | L11: =IF(TS_Pers_In_Yr=1,Yr_Name,TS_Per_Type_Prefix&IF(MOD(TS_Per_1_Number+L12-1,TS_Pers_In_Yr)=0,TS_Pers_In_Yr,MOD(TS_Per_1_Number+L12-1,TS_Pers_In_Yr)))&" " -> Year | M11: =IF(TS_Pers_In_Yr=1,Yr_Name,TS_Per_Type_Prefix&IF(MOD(TS_Per_1_Number+M12-1,TS_Pers_In_Yr)=0,TS_Pers_In_Yr,MOD(TS_Per_1_Number+M12-1,TS_Pers_In_Yr)))&" " -> Year | N11: =IF(TS_Pers_In_Yr=1,Yr_Name,TS_Per_Type_Prefix&IF(MOD(TS_Per_1_Number+N12-1,TS_Pers_In_Yr)=0,TS_Pers_In_Yr,MOD(TS_Per_1_Number+N12-1,TS_Pers_In_Yr)))&" " -> Year
B12: Counter | J12: =COLUMN(J12)-COLUMN($J12)+1 -> 1 | K12: =COLUMN(K12)-COLUMN($J12)+1 -> 2 | L12: =COLUMN(L12)-COLUMN($J12)+1 -> 3 | M12: =COLUMN(M12)-COLUMN($J12)+1 -> 4 | N12: =COLUMN(N12)-COLUMN($J12)+1 -> 5
B13: Period Key | J13: =J10&"-"&J11 -> 2023-Year | K13: =K10&"-"&K11 -> 2024-Year | L13: =L10&"-"&L11 -> 2025-Year | M13: =M10&"-"&M11 -> 2026-Year | N13: =N10&"-"&N11 -> 2027-Year
C16: Total Direct Costs plus OH | I16: =I18+I83 -> 0 | J16: 34555005.12 | K16: 35722471.33 | L16: 35054926.83 | M16: 34477038.88 | N16: 34499294.66
C18: Direct O & M - Regulated | I18: =I27+I39+I47+I69+I77+I81 -> 0 | J18: 27569009.74 | K18: 28709783.98 | L18: 28040878.14 | M18: 27191387.06 | N18: 27161553.34
C20: Pipeline Operations
D22: Pipeline Operations (remaining) | J22: ='O&M_Workings_BO'!J9+'O&M_Workings_BO'!R9 -> 18118167.87 | K22: ='O&M_Workings_BO'!K9+'O&M_Workings_BO'!S9 -> 18877545.71 | L22: ='O&M_Workings_BO'!L9+'O&M_Workings_BO'!T9 -> 18417754.94 | M22: ='O&M_Workings_BO'!M9+'O&M_Workings_BO'!U9 -> 17836138.87 | N22: ='O&M_Workings_BO'!N9+'O&M_Workings_BO'!V9 -> 17806450.23
D23: Murray Valley Pipeline | J23: ='O&M_Workings_BO'!J10+'O&M_Workings_BO'!R10 -> 147736.9188 | K23: ='O&M_Workings_BO'!K10+'O&M_Workings_BO'!S10 -> 150690.7519 | L23: ='O&M_Workings_BO'!L10+'O&M_Workings_BO'!T10 -> 153703.6436 | M23: ='O&M_Workings_BO'!M10+'O&M_Workings_BO'!U10 -> 156776.7746 | N23: ='O&M_Workings_BO'!N10+'O&M_Workings_BO'!V10 -> 159911.3495
D24: InterConnect Pipeline | J24: ='O&M_Workings_BO'!J11+'O&M_Workings_BO'!R11 -> 86967.92675 | K24: ='O&M_Workings_BO'!K11+'O&M_Workings_BO'!S11 -> 88706.75239 | L24: ='O&M_Workings_BO'!L11+'O&M_Workings_BO'!T11 -> 90480.34389 | M24: ='O&M_Workings_BO'!M11+'O&M_Workings_BO'!U11 -> 92289.39635 | N24: ='O&M_Workings_BO'!N11+'O&M_Workings_BO'!V11 -> 94134.61877
D25: Southwest Pipeline | J25: ='O&M_Workings_BO'!J12+'O&M_Workings_BO'!R12 -> 217419.8169 | K25: ='O&M_Workings_BO'!K12+'O&M_Workings_BO'!S12 -> 221766.881 | L25: ='O&M_Workings_BO'!L12+'O&M_Workings_BO'!T12 -> 226200.8597 | M25: ='O&M_Workings_BO'!M12+'O&M_Workings_BO'!U12 -> 230723.4909 | N25: ='O&M_Workings_BO'!N12+'O&M_Workings_BO'!V12 -> 235336.5469
C27: Total Pipeline Opex | I27: =SUM(I22:I25) -> 0 | J27: =SUM(J22:J25) -> 18570292.53 | K27: 19338710.1 | L27: 18888139.79 | M27: 18315928.53 | N27: 18295832.75
C29: Compressors
D31: Brooklyn | I31: ='O&M_Workings_BO'!I18+'O&M_Workings_BO'!Q18 -> 0 | J31: ='O&M_Workings_BO'!J18+'O&M_Workings_BO'!R18 -> 2109426.983 | K31: ='O&M_Workings_BO'!K18+'O&M_Workings_BO'!S18 -> 2196712.671 | L31: ='O&M_Workings_BO'!L18+'O&M_Workings_BO'!T18 -> 2145531.724 | M31: ='O&M_Workings_BO'!M18+'O&M_Workings_BO'!U18 -> 2080533.4 | N31: ='O&M_Workings_BO'!N18+'O&M_Workings_BO'!V18 -> 2078250.691
... 28 more rows

Sheet Withdrawal_Volumes_Forecasts_BO
B1: Withdrawal Forecast Summary
B2: =Model_Name -> VTS Tariff Model
B3: Go to Table of Contents
A4: é | B4: ç | C4: è | I4: ='O&M_Regulatory_TO'!I7 -> 2022 | J4: ='O&M_Regulatory_TO'!J7 -> 2023 | K4: ='O&M_Regulatory_TO'!K7 -> 2024 | L4: ='O&M_Regulatory_TO'!L7 -> 2025 | M4: ='O&M_Regulatory_TO'!M7 -> 2026 | N4: ='O&M_Regulatory_TO'!N7 -> 2027
C6: Annual Injection Volumes - TJ
D8: Longford | I8: =Volume_Assumptions_BA!I228 -> 178084.81 | J8: =Volume_Assumptions_BA!J228 -> 175476.6658 | K8: =Volume_Assumptions_BA!K228 -> 173172.383 | L8: =Volume_Assumptions_BA!L228 -> 170851.2191 | M8: =Volume_Assumptions_BA!M228 -> 166936.0628 | N8: =Volume_Assumptions_BA!N228 -> 168045.9699
D9: Port Campbell (base) | I9: =Volume_Assumptions_BA!I229 -> 15013.63608 | J9: =Volume_Assumptions_BA!J229 -> 14793.75361 | K9: =Volume_Assumptions_BA!K229 -> 14599.48852 | L9: =Volume_Assumptions_BA!L229 -> 14403.80023 | M9: =Volume_Assumptions_BA!M229 -> 14073.72867 | N9: =Volume_Assumptions_BA!N229 -> 14167.30061
D10: Port Campbell balancing | I10: =I21-SUM(I11:I13,I8:I9) -> 6524.271987 | J10: 6362.313829 | K10: 6264.186039 | L10: 6165.354895 | M10: 5997.990163 | N10: 6044.23437
D11: Culcairn | I11: 0 | J11: 0 | K11: 0 | L11: 0 | M11: 0 | N11: 0 | O11: Why would this be blanked out? Gas_Source_BO refers to these cells
D12: Pakenham | I12: =Volume_Assumptions_BA!I232 -> 9758.471624 | J12: =Volume_Assumptions_BA!J232 -> 9615.553756 | K12: =Volume_Assumptions_BA!K232 -> 9489.286515 | L12: =Volume_Assumptions_BA!L232 -> 9362.094238 | M12: =Volume_Assumptions_BA!M232 -> 9147.556336 | N12: =Volume_Assumptions_BA!N232 -> 9208.375655
D13: Dandenong (LNG) | I13: =Volume_Assumptions_BA!I233 -> 709.2477974 | J13: =Volume_Assumptions_BA!J233 -> 698.8604964 | K13: =Volume_Assumptions_BA!K233 -> 689.6833664 | L13: =Volume_Assumptions_BA!L233 -> 680.4390046 | M13: =Volume_Assumptions_BA!M233 -> 664.8463441 | N13: =Volume_Assumptions_BA!N233 -> 669.2667052
D14: Total | I14: =SUM(I8:I13) -> 210090.4375 | J14: 206947.1475 | K14: 204215.0275 | L14: 201462.9075 | M14: 196820.1843 | N14: 198135.1473
D16: Annual System VenCorp Forecast | I16: =Volume_Assumptions_BA!I236 -> 196194.38 | J16: =Volume_Assumptions_BA!J236 -> 193051.09 | K16: =Volume_Assumptions_BA!K236 -> 190318.97 | L16: =Volume_Assumptions_BA!L236 -> 187566.85 | M16: =Volume_Assumptions_BA!M236 -> 182924.1269 | N16: =Volume_Assumptions_BA!N236 -> 184239.0898
D17: Exclude LNG Refill | I17: =Volume_Assumptions_BA!I241 -> 1713.954 | J17: =Volume_Assumptions_BA!J241 -> 2300 | K17: =Volume_Assumptions_BA!K241 -> 2300 | L17: =Volume_Assumptions_BA!L241 -> 2300 | M17: =Volume_Assumptions_BA!M241 -> 2300 | N17: =Volume_Assumptions_BA!N241 -> 2300
D18: Excl WUGS Refill | I18: =Volume_Assumptions_BA!I242 -> 15800 | J18: =Volume_Assumptions_BA!J242 -> 15800 | K18: =Volume_Assumptions_BA!K242 -> 15800 | L18: =Volume_Assumptions_BA!L242 -> 15800 | M18: =Volume_Assumptions_BA!M242 -> 15800 | N18: =Volume_Assumptions_BA!N242 -> 15800
D19: Incld Vic Hub Exports | I19: =Volume_Assumptions_BA!I237 -> 0 | J19: =Volume_Assumptions_BA!J237 -> 0 | K19: =Volume_Assumptions_BA!K237 -> 0 | L19: =Volume_Assumptions_BA!L237 -> 0 | M19: =Volume_Assumptions_BA!M237 -> 0 | N19: =Volume_Assumptions_BA!N237 -> 0
D20: Incld NSW Hub Exports | I20: =Volume_Assumptions_BA!I238 -> 13896.05748 | J20: =Volume_Assumptions_BA!J238 -> 13896.05748 | K20: =Volume_Assumptions_BA!K238 -> 13896.05748 | L20: =Volume_Assumptions_BA!L238 -> 13896.05748 | M20: =Volume_Assumptions_BA!M238 -> 13896.05748 | N20: =Volume_Assumptions_BA!N238 -> 13896.05748
D21: Annual Injection Fcast | I21: =SUM(I16,I19:I20) -> 210090.4375 | J21: 206947.1475 | K21: 204215.0275 | L21: 201462.9075 | M21: 196820.1843 | N21: 198135.1473
F22: Average system Usage | J22: =J21/365 -> 566.9784862 | K22: =K21/365 -> 559.493226 | L22: =L21/365 -> 551.9531712 | M22: =M21/366 -> 537.7600665 | N22: =N21/365 -> 542.8360199 | O22: (Source for Table 4.3 in AAI) | R22: 2024 has 365 days 2026 has 366 days - not a leap year
C23: 1:2 Peak Day Volumes - TJ
D25: Longford | I25: =Volume_Assumptions_BA!I246 -> 850.152551 | J25: =Volume_Assumptions_BA!J246 -> 833.9168811 | K25: =Volume_Assumptions_BA!K246 -> 822.933928 | L25: =Volume_Assumptions_BA!L246 -> 817.6812113 | M25: =Volume_Assumptions_BA!M246 -> 879.3934516 | N25: =Volume_Assumptions_BA!N246 -> 857.3030066
D26: Port Campbell (base) | I26: =Volume_Assumptions_BA!I247 -> 178.1550007 | J26: =Volume_Assumptions_BA!J247 -> 176.047304 | K26: =Volume_Assumptions_BA!K247 -> 174.6215091 | L26: =Volume_Assumptions_BA!L247 -> 173.9396072 | M26: =Volume_Assumptions_BA!M247 -> 181.9510222 | N26: =Volume_Assumptions_BA!N247 -> 179.083265
D27: Port Campbell balancing | I27: =Volume_Assumptions_BA!I248-Volume_Assumptions_BA!I255 -> 0 | J27: =Volume_Assumptions_BA!J248-Volume_Assumptions_BA!J255 -> 0 | K27: =Volume_Assumptions_BA!K248-Volume_Assumptions_BA!K255 -> 0 | L27: =Volume_Assumptions_BA!L248-Volume_Assumptions_BA!L255 -> 0 | M27: =Volume_Assumptions_BA!M248-Volume_Assumptions_BA!M255 -> 0 | N27: =Volume_Assumptions_BA!N248-Volume_Assumptions_BA!N255 -> 0
D28: Culcairn | I28: =+Volume_Assumptions_BA!I249 -> 83.54850127 | J28: =+Volume_Assumptions_BA!J249 -> 82.05812927 | K28: =+Volume_Assumptions_BA!K249 -> 81.04993644 | L28: =+Volume_Assumptions_BA!L249 -> 80.56775726 | M28: =+Volume_Assumptions_BA!M249 -> 86.23270341 | N28: =+Volume_Assumptions_BA!N249 -> 84.20488558 | O28: Why would this be blanked out?
D29: Pakenham | I29: =Volume_Assumptions_BA!I250 -> 28.23413478 | J29: =Volume_Assumptions_BA!J250 -> 27.73048285 | K29: =Volume_Assumptions_BA!K250 -> 27.38977713 | L29: =Volume_Assumptions_BA!L250 -> 27.22683092 | M29: =Volume_Assumptions_BA!M250 -> 29.14122616 | N29: =Volume_Assumptions_BA!N250 -> 28.45595136
D30: Dandenong (LNG) | I30: =Volume_Assumptions_BA!I251 -> 3.509812258 | J30: =Volume_Assumptions_BA!J251 -> 3.447202805 | K30: =Volume_Assumptions_BA!K251 -> 3.404849352 | L30: =Volume_Assumptions_BA!L251 -> 3.384593352 | M30: =Volume_Assumptions_BA!M251 -> 3.622573653 | N30: =Volume_Assumptions_BA!N251 -> 3.537386489
D31: Total | I31: =SUM(I25:I30) -> 1143.6 | J31: 1123.2 | K31: 1109.4 | L31: 1102.8 | M31: 1180.340977 | N31: 1152.584495
... 27 more rows

Sheet Meter Calcs -->
C9: Withdrawal Volumes
C10: Section 3.
C11: =Model_Name -> VTS Tariff Model
C12: Go to Table of Contents
C13: ç | D13: è
C17: Section Cover Notes:
C18: Breakdown of Tariff-V and Tariff-D data imported from Settlement Data file.
C19: 2019 used to provide a base that was not impacted by COVID-19

Sheet Vencorp_Summary_BO
B1: Summary - Vencorp Forecasts
B2: =Model_Name -> VTS Tariff Model
B3: Go to Table of Contents
A4: é | B4: ç | C4: è
C8: VENCorp SWZ Forecast TJ
G10: =Working_Capital_BA!I4 -> 2022 | H10: =Working_Capital_BA!J4 -> 2023 | I10: =Working_Capital_BA!K4 -> 2024 | J10: =Working_Capital_BA!L4 -> 2025 | K10: =Working_Capital_BA!M4 -> 2026 | L10: =Working_Capital_BA!N4 -> 2027
C12: Ballarat | G12: =(INDEX(Volume_Assumptions_BA!I$188:I$193,MATCH($C12,Volume_Assumptions_BA!$D$188:$D$193,FALSE),1)) -> 10600 | H12: =(INDEX(Volume_Assumptions_BA!J$188:J$193,MATCH($C12,Volume_Assumptions_BA!$D$188:$D$193,FALSE),1)) -> 10600 | I12: =(INDEX(Volume_Assumptions_BA!K$188:K$193,MATCH($C12,Volume_Assumptions_BA!$D$188:$D$193,FALSE),1)) -> 10600 | J12: =(INDEX(Volume_Assumptions_BA!L$188:L$193,MATCH($C12,Volume_Assumptions_BA!$D$188:$D$193,FALSE),1)) -> 10800 | K12: =(INDEX(Volume_Assumptions_BA!M$188:M$193,MATCH($C12,Volume_Assumptions_BA!$D$188:$D$193,FALSE),1)) -> 10042.8949 | L12: =(INDEX(Volume_Assumptions_BA!N$188:N$193,MATCH($C12,Volume_Assumptions_BA!$D$188:$D$193,FALSE),1)) -> 10144.00696
C13: Geelong | G13: =(INDEX(Volume_Assumptions_BA!I$188:I$193,MATCH($C13,Volume_Assumptions_BA!$D$188:$D$193,FALSE),1)) -> 20182.4 | H13: =(INDEX(Volume_Assumptions_BA!J$188:J$193,MATCH($C13,Volume_Assumptions_BA!$D$188:$D$193,FALSE),1)) -> 19982.4 | I13: =(INDEX(Volume_Assumptions_BA!K$188:K$193,MATCH($C13,Volume_Assumptions_BA!$D$188:$D$193,FALSE),1)) -> 19878.93856 | J13: =(INDEX(Volume_Assumptions_BA!L$188:L$193,MATCH($C13,Volume_Assumptions_BA!$D$188:$D$193,FALSE),1)) -> 19780.0975 | K13: =(INDEX(Volume_Assumptions_BA!M$188:M$193,MATCH($C13,Volume_Assumptions_BA!$D$188:$D$193,FALSE),1)) -> 19091.04482 | L13: =(INDEX(Volume_Assumptions_BA!N$188:N$193,MATCH($C13,Volume_Assumptions_BA!$D$188:$D$193,FALSE),1)) -> 19198.85886
C14: Gippsland | G14: =(INDEX(Volume_Assumptions_BA!I$188:I$193,MATCH($C14,Volume_Assumptions_BA!$D$188:$D$193,FALSE),1)) -> 13533.55 | H14: =(INDEX(Volume_Assumptions_BA!J$188:J$193,MATCH($C14,Volume_Assumptions_BA!$D$188:$D$193,FALSE),1)) -> 13280.26 | I14: =(INDEX(Volume_Assumptions_BA!K$188:K$193,MATCH($C14,Volume_Assumptions_BA!$D$188:$D$193,FALSE),1)) -> 13078.12174 | J14: =(INDEX(Volume_Assumptions_BA!L$188:L$193,MATCH($C14,Volume_Assumptions_BA!$D$188:$D$193,FALSE),1)) -> 12778.83767 | K14: =(INDEX(Volume_Assumptions_BA!M$188:M$193,MATCH($C14,Volume_Assumptions_BA!$D$188:$D$193,FALSE),1)) -> 12747.99437 | L14: =(INDEX(Volume_Assumptions_BA!N$188:N$193,MATCH($C14,Volume_Assumptions_BA!$D$188:$D$193,FALSE),1)) -> 12793.15472
C15: Melbourne | G15: =(INDEX(Volume_Assumptions_BA!I$188:I$193,MATCH($C15,Volume_Assumptions_BA!$D$188:$D$193,FALSE),1)) -> 125732.1 | H15: =(INDEX(Volume_Assumptions_BA!J$188:J$193,MATCH($C15,Volume_Assumptions_BA!$D$188:$D$193,FALSE),1)) -> 123332.1 | I15: =(INDEX(Volume_Assumptions_BA!K$188:K$193,MATCH($C15,Volume_Assumptions_BA!$D$188:$D$193,FALSE),1)) -> 121131.6459 | J15: =(INDEX(Volume_Assumptions_BA!L$188:L$193,MATCH($C15,Volume_Assumptions_BA!$D$188:$D$193,FALSE),1)) -> 119431.798 | K15: =(INDEX(Volume_Assumptions_BA!M$188:M$193,MATCH($C15,Volume_Assumptions_BA!$D$188:$D$193,FALSE),1)) -> 117238.2302 | L15: =(INDEX(Volume_Assumptions_BA!N$188:N$193,MATCH($C15,Volume_Assumptions_BA!$D$188:$D$193,FALSE),1)) -> 118170.965
C16: Northern | G16: =(INDEX(Volume_Assumptions_BA!I$188:I$193,MATCH($C16,Volume_Assumptions_BA!$D$188:$D$193,FALSE),1)) -> 19956.33 | H16: =(INDEX(Volume_Assumptions_BA!J$188:J$193,MATCH($C16,Volume_Assumptions_BA!$D$188:$D$193,FALSE),1)) -> 19956.33 | I16: =(INDEX(Volume_Assumptions_BA!K$188:K$193,MATCH($C16,Volume_Assumptions_BA!$D$188:$D$193,FALSE),1)) -> 19853.90378 | J16: =(INDEX(Volume_Assumptions_BA!L$188:L$193,MATCH($C16,Volume_Assumptions_BA!$D$188:$D$193,FALSE),1)) -> 19851.87688 | K16: =(INDEX(Volume_Assumptions_BA!M$188:M$193,MATCH($C16,Volume_Assumptions_BA!$D$188:$D$193,FALSE),1)) -> 19019.19066 | L16: =(INDEX(Volume_Assumptions_BA!N$188:N$193,MATCH($C16,Volume_Assumptions_BA!$D$188:$D$193,FALSE),1)) -> 19124.61472
C17: Western | G17: =(INDEX(Volume_Assumptions_BA!I$188:I$193,MATCH($C17,Volume_Assumptions_BA!$D$188:$D$193,FALSE),1)) -> 4000 | H17: =(INDEX(Volume_Assumptions_BA!J$188:J$193,MATCH($C17,Volume_Assumptions_BA!$D$188:$D$193,FALSE),1)) -> 4000 | I17: =(INDEX(Volume_Assumptions_BA!K$188:K$193,MATCH($C17,Volume_Assumptions_BA!$D$188:$D$193,FALSE),1)) -> 4000 | J17: =(INDEX(Volume_Assumptions_BA!L$188:L$193,MATCH($C17,Volume_Assumptions_BA!$D$188:$D$193,FALSE),1)) -> 4000 | K17: =(INDEX(Volume_Assumptions_BA!M$188:M$193,MATCH($C17,Volume_Assumptions_BA!$D$188:$D$193,FALSE),1)) -> 3869.270332 | L17: =(INDEX(Volume_Assumptions_BA!N$188:N$193,MATCH($C17,Volume_Assumptions_BA!$D$188:$D$193,FALSE),1)) -> 3875.803258
C19: Total | G19: =SUM(G12:G17) -> 194004.38 | H19: 191151.09 | I19: 188542.61 | J19: 186642.61 | K19: 182008.6252 | L19: 183307.4036
D22: Above subtotals exclude : | G22: Storage re-fill
G23: Exports
G24: Power-Stations
G25: Compressors
C28: VENCorp Tariff V & D Annual Volumes - TJ | G28: =G10 -> 2022 | H28: 2023 | I28: 2024 | J28: 2025 | K28: 2026 | L28: 2027
C29: Excl GPG & Exports
C30: Ballarat | D30: Tariff V | G30: =Volume_Assumptions_BA!I201 -> 9000 | H30: =Volume_Assumptions_BA!J201 -> 9000 | I30: =Volume_Assumptions_BA!K201 -> 9000 | J30: =Volume_Assumptions_BA!L201 -> 9200 | K30: =Volume_Assumptions_BA!M201 -> 8452.235552 | L30: =Volume_Assumptions_BA!N201 -> 8558.628104
D31: Tariff D | G31: =Volume_Assumptions_BA!I212 -> 1600 | H31: =Volume_Assumptions_BA!J212 -> 1600 | I31: =Volume_Assumptions_BA!K212 -> 1600 | J31: =Volume_Assumptions_BA!L212 -> 1600 | K31: =Volume_Assumptions_BA!M212 -> 1590.659346 | L31: =Volume_Assumptions_BA!N212 -> 1585.378859
... 29 more rows

Sheet Power_Station_BO
B1: Withdrawal Volumes - Power Station
B2: =Model_Name -> VTS Tariff Model
B3: Go to Table of Contents
A4: é | B4: ç | C4: è
C6: 2019 Actuals | M6: 2006 Forecasts | W6: 2022 Forecasts | AG6: 2023 Forecasts | AQ6: 2024 Forecasts | BA6: 2025 Forecasts | BK6: 2026 Forecasts | BU6: 2027 Forecasts
C8: Day | D8: Date | E8: Total | F8: Loy Yang A | G8: Jeeralang | H8: Newport | I8: EMEAL (Loy Yang B) | J8: Snowy Hydro | K8: Somerton | M8: Day | N8: Date | O8: Total | P8: Loy Yang A | Q8: Jeeralang | R8: Newport | S8: EMEAL (Loy Yang B) | T8: Snowy Hydro | U8: Somerton | W8: Day | X8: Date | Y8: Total | Z8: Loy Yang A | AA8: Jeeralang | AB8: Newport | AC8: EMEAL (Loy Yang B) | AD8: Snowy Hydro | AE8: Somerton | AG8: Day | AH8: Date | AI8: Total | AJ8: Loy Yang A | AK8: Jeeralang | AL8: Newport | AM8: EMEAL (Loy Yang B) | AN8: Snowy Hydro | AO8: Somerton | AQ8: Day | AR8: Date | AS8: Total | AT8: Loy Yang A | AU8: Jeeralang | AV8: Newport | AW8: EMEAL (Loy Yang B) | AX8: Snowy Hydro | AY8: Somerton | BA8: Day | BB8: Date | BC8: Total | BD8: Loy Yang A | BE8: Jeeralang | BF8: Newport | BG8: EMEAL (Loy Yang B) | BH8: Snowy Hydro | BI8: Somerton | BK8: Day | BL8: Date | BM8: Total | BN8: Loy Yang A | BO8: Jeeralang | BP8: Newport | BQ8: EMEAL (Loy Yang B) | BR8: Snowy Hydro | BS8: Somerton | BU8: Day | BV8: Date | BW8: Total | BX8: Loy Yang A | BY8: Jeeralang | BZ8: Newport | CA8: EMEAL (Loy Yang B) | CB8: Snowy Hydro | CC8: Somerton
F10: 30000066PC | G10: 30000095PC | H10: 30000096PC | I10: 30000164PC | J10: 30000175PC | K10: 30000165PC | P10: 30000066PC | Q10: 30000095PC | R10: 30000096PC | S10: 30000164PC | T10: 30000175PC | U10: 30000165PC | Z10: 30000066PC | AA10: 30000095PC | AB10: 30000096PC | AC10: 30000164PC | AD10: 30000175PC | AE10: 30000165PC | AJ10: 30000066PC | AK10: 30000095PC | AL10: 30000096PC | AM10: 30000164PC | AN10: 30000175PC | AO10: 30000165PC | AT10: 30000066PC | AU10: 30000095PC | AV10: 30000096PC | AW10: 30000164PC | AX10: 30000175PC | AY10: 30000165PC | BD10: 30000066PC | BE10: 30000095PC | BF10: 30000096PC | BG10: 30000164PC | BH10: 30000175PC | BI10: 30000165PC | BN10: 30000066PC | BO10: 30000095PC | BP10: 30000096PC | BQ10: 30000164PC | BR10: 30000175PC | BS10: 30000165PC | BX10: 30000066PC | BY10: 30000095PC | BZ10: 30000096PC | CA10: 30000164PC | CB10: 30000175PC | CC10: 30000165PC
F11: M071 | G11: M102 | H11: M103 | I11: M134 | J11: M143 | K11: M135 | P11: M071 | Q11: M102 | R11: M103 | S11: M134 | T11: M143 | U11: M135 | Z11: M071 | AA11: M102 | AB11: M103 | AC11: M134 | AD11: M143 | AE11: M135 | AJ11: M071 | AK11: M102 | AL11: M103 | AM11: M134 | AN11: M143 | AO11: M135 | AT11: M071 | AU11: M102 | AV11: M103 | AW11: M134 | AX11: M143 | AY11: M135 | BD11: M071 | BE11: M102 | BF11: M103 | BG11: M134 | BH11: M143 | BI11: M135 | BN11: M071 | BO11: M102 | BP11: M103 | BQ11: M134 | BR11: M143 | BS11: M135 | BX11: M071 | BY11: M102 | BZ11: M103 | CA11: M134 | CB11: M143 | CC11: M135
C12: Total | E12: =SUM(F12:K12) -> 20233800.67 | F12: =[5]Reconciliation!$H$42 -> 40942.20568 | G12: =[5]Reconciliation!$H$43 -> 3462446.437 | H12: =[5]Reconciliation!$H$44 -> 13232830.84 | I12: =[5]Reconciliation!$H$45 -> 371572.8245 | J12: =[5]Reconciliation!$H$46 -> 1575305.878 | K12: =[5]Reconciliation!$H$47 -> 1550702.478 | M12: Total | O12: =SUM(O19:O383) -> 0 | P12: =SUM(P19:P383) -> 0 | Q12: 0 | R12: 0 | S12: 0 | T12: 0 | U12: 0 | W12: Total | Y12: =Volume_Assumptions_BA!$I$42*1000 -> 2190000 | Z12: =F12/E12*Y12 -> 4431.368674 | AA12: =G12/E12*Y12 -> 374756.9635 | AB12: =H12/E12*Y12 -> 1432251.905 | AC12: =I12/E12*Y12 -> 40217.08521 | AD12: =J12/E12*Y12 -> 170502.8102 | AE12: =K12/E12*Y12 -> 167839.8677 | AG12: Total | AI12: =Volume_Assumptions_BA!$J$42*1000 -> 1900000 | AJ12: =Z12/Y12*AI12 -> 3844.56643 | AK12: =AA12/Y12*AI12 -> 325131.6122 | AL12: =AB12/Y12*AI12 -> 1242592.977 | AM12: =AC12/Y12*AI12 -> 34891.53512 | AN12: =AD12/Y12*AI12 -> 147924.8125 | AO12: =AE12/Y12*AI12 -> 145614.4971 | AQ12: Total | AS12: =Volume_Assumptions_BA!$K$42*1000 -> 1770000 | AT12: =AJ12/AI12*AS12 -> 3581.517148 | AU12: =AK12/AI12*AS12 -> 302885.765 | AV12: =AL12/AI12*AS12 -> 1157573.457 | AW12: =AM12/AI12*AS12 -> 32504.21956 | AX12: =AN12/AI12*AS12 -> 137803.6411 | AY12: =AO12/AI12*AS12 -> 135651.3999 | BA12: Total | BC12: =Volume_Assumptions_BA!$L$42*1000 -> 920000 | BD12: =AT12/AS12*BC12 -> 1861.579534 | BE12: =AU12/AS12*BC12 -> 157432.149 | BF12: =AV12/AS12*BC12 -> 601676.5993 | BG12: =AW12/AS12*BC12 -> 16894.84858 | BH12: =AX12/AS12*BC12 -> 71626.7513 | BI12: =AY12/AS12*BC12 -> 70508.07228 | BK12: Total | BM12: =Volume_Assumptions_BA!$M$42*1000 -> 915501.6136 | BN12: =BD12/BC12*BM12 -> 1852.477247 | BO12: =BE12/BC12*BM12 -> 156662.3766 | BP12: =BF12/BC12*BM12 -> 598734.6712 | BQ12: =BG12/BC12*BM12 -> 16812.24037 | BR12: =BH12/BC12*BM12 -> 71276.52868 | BS12: =BI12/BC12*BM12 -> 70163.3195 | BU12: Total | BW12: =Volume_Assumptions_BA!$N$42*1000 -> 931686.2067 | BX12: =BN12/BM12*BW12 -> 1885.22606 | BY12: =BO12/BM12*BW12 -> 159431.9149 | BZ12: =BP12/BM12*BW12 -> 609319.3352 | CA12: =BQ12/BM12*BW12 -> 17109.45368 | CB12: =BR12/BM12*BW12 -> 72536.58284 | CC12: =BS12/BM12*BW12 -> 71403.69392

Sheet Annual_CTM_BO
B1: Annual CTM | G1: 25% to Anglesea | H1: M065
B2: =Model_Name -> VTS Tariff Model | G2: 75% to Geelong | U2: Check | V2: =SUM(V168:V173)+SUM(V127:V164)+SUM(V86:V123)+SUM(V63:V82)+SUM(V46:V59)+SUM(V32:V42)+V23+SUM(V12:V17)-Volume_Assumptions_BA!J280 -> 0 | AB2: Check | AC2: =SUM(AC168:AC173)+SUM(AC127:AC164)+SUM(AC86:AC123)+SUM(AC63:AC82)+SUM(AC46:AC59)+SUM(AC32:AC42)+AC23+SUM(AC12:AC17)-Volume_Assumptions_BA!K280 -> 47.15390721 | AI2: Check | AJ2: =SUM(AJ168:AJ173)+SUM(AJ127:AJ164)+SUM(AJ86:AJ123)+SUM(AJ63:AJ82)+SUM(AJ46:AJ59)+SUM(AJ32:AJ42)+AJ23+SUM(AJ12:AJ17)-Volume_Assumptions_BA!L280 -> 67.72144077 | AP2: Check | AQ2: =SUM(AQ168:AQ173)+SUM(AQ127:AQ164)+SUM(AQ86:AQ123)+SUM(AQ63:AQ82)+SUM(AQ46:AQ59)+SUM(AQ32:AQ42)+AQ23+SUM(AQ12:AQ17)-Volume_Assumptions_BA!M280 -> 104.8723893 | AW2: Check | AX2: =SUM(AX168:AX173)+SUM(AX127:AX164)+SUM(AX86:AX123)+SUM(AX63:AX82)+SUM(AX46:AX59)+SUM(AX32:AX42)+AX23+SUM(AX12:AX17)-Volume_Assumptions_BA!N280 -> 102.9003313
B3: Go to Table of Contents
A4: é | B4: ç | C4: è | U4: Check | V4: =Volume_Assumptions_BA!J280-V10 -> 0 | AB4: Check | AC4: =Volume_Assumptions_BA!K280-AC10 -> 0 | AI4: Check | AJ4: =Volume_Assumptions_BA!L280-AJ10 -> 0 | AP4: Check | AQ4: =Volume_Assumptions_BA!M280-AQ10 -> 0 | AW4: Check | AX4: =Volume_Assumptions_BA!T280-N10 -> 0
G6: 2019 Actual | I6: 2019 | J6: 2019 Norm | M6: 2019 Norm | O6: 2022 Forecast | V6: 2023 Forecast | AA6: 2023 | AC6: 2024 Forecast | AH6: 2024 | AJ6: 2025 Forecast | AO6: 2025 | AQ6: 2026 Forecast | AV6: 2026 | AX6: 2027 Forecast | BC6: 2027
C7: Meter | D7: Meter Name | E7: MIRN | F7: Tariff Zone | G7: Annual | H7: Coincident | I7: Load | J7: Annual | K7: Peak Day | L7: Peak Day | M7: Load | O7: Annual | P7: Old Peak | Q7: New | R7: New Peak | S7: Peak Day | T7: Load | V7: Annual | W7: Old Peak | X7: New | Y7: New Peak | Z7: Peak Day | AA7: Load | AC7: Annual | AD7: Old Peak | AE7: New | AF7: New Peak | AG7: Peak Day | AH7: Load | AJ7: Annual | AK7: Old Peak | AL7: New | AM7: New Peak | AN7: Peak Day | AO7: Load | AQ7: Annual | AR7: Old Peak | AS7: New | AT7: New Peak | AU7: Peak Day | AV7: Load | AX7: Annual | AY7: Old Peak | AZ7: New | BA7: New Peak | BB7: Peak Day | BC7: Load
H8: Peak Day | I8: Factor | K8: Raw Data | L8: Scaled to 100% | M8: Factor | Q8: Load Factor | T8: Factor | X8: Load Factor | AA8: Factor | AE8: Load Factor | AH8: Factor | AL8: Load Factor | AO8: Factor | AS8: Load Factor | AV8: Factor | AZ8: Load Factor | BC8: Factor
C10: Power Stations | G10: =G19+G28+G30 -> 251155.2065 | H10: =H19+H28+H30 -> 2102.450368 | J10: =J19+J28+J30 -> 246493.075 | K10: =K19+K28+K30 -> 2034.386071 | L10: =L19+L28+L30 -> 2019.878952 | O10: =O19+O28+O30 -> 210090.4375 | S10: =S19+S28+S30 -> 1342.980698 | V10: =V19+V28+V30 -> 206947.1475 | Z10: =Z19+Z28+Z30 -> 1150.036637 | AC10: =AC19+AC28+AC30 -> 204208.6675 | AG10: =AG19+AG28+AG30 -> 1143.058724 | AJ10: =AJ19+AJ28+AJ30 -> 201458.6675 | AN10: =AN19+AN28+AN30 -> 1116.367169 | AQ10: =AQ19+AQ28+AQ30 -> 196820.1843 | AU10: =AU19+AU28+AU30 -> 1123.910329 | AX10: =AX19+AX28+AX30 -> 198135.1473 | BB10: =BB19+BB28+BB30 -> 1133.854114
C12: M071 | D12: =(INDEX('[5]CTM Details'!$P$5:$P$411,MATCH(C12,'[5]CTM Details'!$B$5:$B$411,FALSE),1)) -> Morwell (Loy Yang) | E12: =(INDEX('[5]CTM Details'!$D$5:$D$411,MATCH(C12,'[5]CTM Details'!$B$5:$B$411,FALSE),1)) -> 30000066PC | F12: =(INDEX('[5]CTM Details'!$U$5:$U$411,MATCH(C12,'[5]CTM Details'!$B$5:$B$411,FALSE),1)) -> Tyers | G12: =(INDEX(Power_Station_BO!$F$12:$K$12,MATCH($C12,Power_Station_BO!$F$11:$K$11,FALSE)))/1000 -> 40.94220568 | H12: =(G12/$G$19)*$H$19 -> 1.635929991 | I12: =IF(H12=0,0,(G12/365)/H12) -> 0.06856676455 | J12: =G12 -> 40.94220568 | K12: 1.635929991 | L12: =K12 -> 1.635929991 | M12: =IF(L12=0,0,(J12/365)/L12) -> 0.06856676455 | O12: =(INDEX(Power_Station_BO!$Z$12:$AE$12,MATCH($C12,Power_Station_BO!$Z$11:$AE$11,FALSE)))/1000 -> 4.431368674 | P12: =IF(M12=0,0,(O12/365)/M12) -> 0.1770644448 | R12: =IF(Q12=0,P12,(O12/365)/Q12) -> 0.1770644448 | S12: =(S$19/R$19)*R12 -> 0.1770644448 | T12: =IF(S12=0,0,(O12/365)/S12) -> 0.06856676455 | V12: =(INDEX(Power_Station_BO!$AJ$12:$AO$12,MATCH($C12,Power_Station_BO!$AJ$11:$AO$11,FALSE)))/1000 -> 3.84456643 | W12: =IF(T12=0,0,(V12/365)/T12) -> 0.1536175548 | Y12: =IF(X12=0,W12,(V12/365)/X12) -> 0.1536175548 | Z12: =(Z$19/Y$19)*Y12 -> 0.1197633297 | AA12: =IF(Z12=0,0,(V12/365)/Z12) -> 0.08794894677 | AC12: =(INDEX(Power_Station_BO!$AS$12:$AY$12,MATCH($C12,Power_Station_BO!$AS$11:$AY$11,FALSE)))/1000 -> 3.581517148 | AD12: =IF(AA12=0,0,(AC12/365)/AA12) -> 0.1115689966 | AF12: =IF(AE12=0,AD12,(AC12/365)/AE12) -> 0.1115689966 | AG12: =(AG$19/AF$19)*AF12 -> 0.1269747229 | AH12: =IF(AG12=0,0,(AC12/365)/AG12) -> 0.07727818198 | AJ12: =(INDEX(Power_Station_BO!$BD$12:$BI$12,MATCH($C12,Power_Station_BO!$BD$11:$BI$11,FALSE)))/1000 -> 1.861579534 | AK12: =IF(AH12=0,0,(AJ12/365)/AH12) -> 0.06599816108 | AM12: =IF(AL12=0,AK12,(AJ12/365)/AL12) -> 0.06599816108 | AN12: =(AN$19/AM$19)*AM12 -> 0.08150045001 | AO12: =IF(AN12=0,0,(AJ12/365)/AN12) -> 0.06257901523 | AQ12: =(INDEX(Power_Station_BO!$BN$12:$BS$12,MATCH($C12,Power_Station_BO!$BN$11:$BS$11,FALSE)))/1000 -> 1.852477247 | AR12: =IF(AO12=0,0,(AQ12/365)/AO12) -> 0.08110194944 | AT12: =IF(AS12=0,AR12,(AQ12/365)/AS12) -> 0.08110194944 | AU12: =(AU$19/AT$19)*AT12 -> 0.09676370115 | AV12: =IF(AU12=0,0,(AQ12/365)/AU12) -> 0.05245024807 | AX12: =(INDEX(Power_Station_BO!$BX$12:$CC$12,MATCH($C12,Power_Station_BO!$BX$11:$CC$11,FALSE)))/1000 -> 1.88522606 | AY12: =IF(AV12=0,0,(AX12/365)/AV12) -> 0.09847432744 | BA12: =IF(AZ12=0,AY12,(AX12/365)/AZ12) -> 0.09847432744 | BB12: =(BB$19/BA$19)*BA12 -> 0.1166382102 | BC12: =IF(BB12=0,0,(AX12/365)/BB12) -> 0.04428225444
C13: M102 | D13: =(INDEX('[5]CTM Details'!$P$5:$P$411,MATCH(C13,'[5]CTM Details'!$B$5:$B$411,FALSE),1)) -> AES ECOGEN Jeeralang | E13: =(INDEX('[5]CTM Details'!$D$5:$D$411,MATCH(C13,'[5]CTM Details'!$B$5:$B$411,FALSE),1)) -> 30000095PC | F13: =(INDEX('[5]CTM Details'!$U$5:$U$411,MATCH(C13,'[5]CTM Details'!$B$5:$B$411,FALSE),1)) -> Tyers | G13: =(INDEX(Power_Station_BO!$F$12:$K$12,MATCH($C13,Power_Station_BO!$F$11:$K$11,FALSE)))/1000 -> 3462.446437 | H13: 138.349165 | I13: 0.06856676455 | J13: 3462.446437 | K13: 138.349165 | L13: 138.349165 | M13: 0.06856676455 | O13: =(INDEX(Power_Station_BO!$Z$12:$AE$12,MATCH($C13,Power_Station_BO!$Z$11:$AE$11,FALSE)))/1000 -> 374.7569635 | P13: 14.97418485 | R13: 14.97418485 | S13: 14.97418485 | T13: 0.06856676455 | V13: =(INDEX(Power_Station_BO!$AJ$12:$AO$12,MATCH($C13,Power_Station_BO!$AJ$11:$AO$11,FALSE)))/1000 -> 325.1316122 | W13: 12.99130192 | Y13: 12.99130192 | Z13: 10.12827979 | AA13: 0.08794894677 | AC13: =(INDEX(Power_Station_BO!$AS$12:$AY$12,MATCH($C13,Power_Station_BO!$AS$11:$AY$11,FALSE)))/1000 -> 302.885765 | AD13: 9.435292226 | AF13: 9.435292226 | AG13: 10.73814099 | AH13: 0.07727818198 | AJ13: =(INDEX(Power_Station_BO!$BD$12:$BI$12,MATCH($C13,Power_Station_BO!$BD$11:$BI$11,FALSE)))/1000 -> 157.432149 | AK13: 5.581406617 | AM13: 5.581406617 | AN13: 6.8924216 | AO13: 0.06257901523 | AQ13: =(INDEX(Power_Station_BO!$BN$12:$BS$12,MATCH($C13,Power_Station_BO!$BN$11:$BS$11,FALSE)))/1000 -> 156.6623766 | AR13: 6.858720757 | AT13: 6.858720757 | AU13: 8.183221367 | AV13: 0.05245024807 | AX13: =(INDEX(Power_Station_BO!$BX$12:$CC$12,MATCH($C13,Power_Station_BO!$BX$11:$CC$11,FALSE)))/1000 -> 159.4319149 | AY13: 8.327887533 | BA13: 8.327887533 | BB13: 9.863991174 | BC13: 0.04428225444
C14: M103 | D14: =(INDEX('[5]CTM Details'!$P$5:$P$411,MATCH(C14,'[5]CTM Details'!$B$5:$B$411,FALSE),1)) -> AES Yarra | E14: =(INDEX('[5]CTM Details'!$D$5:$D$411,MATCH(C14,'[5]CTM Details'!$B$5:$B$411,FALSE),1)) -> 30000096PC | F14: =(INDEX('[5]CTM Details'!$U$5:$U$411,MATCH(C14,'[5]CTM Details'!$B$5:$B$411,FALSE),1)) -> Metro North West | G14: =(INDEX(Power_Station_BO!$F$12:$K$12,MATCH($C14,Power_Station_BO!$F$11:$K$11,FALSE)))/1000 -> 13232.83084 | H14: 528.7449585 | I14: 0.06856676455 | J14: 13232.83084 | K14: 528.7449585 | L14: 528.7449585 | M14: 0.06856676455 | O14: =(INDEX(Power_Station_BO!$Z$12:$AE$12,MATCH($C14,Power_Station_BO!$Z$11:$AE$11,FALSE)))/1000 -> 1432.251905 | P14: 57.22856907 | R14: 57.22856907 | S14: 57.22856907 | T14: 0.06856676455 | V14: =(INDEX(Power_Station_BO!$AJ$12:$AO$12,MATCH($C14,Power_Station_BO!$AJ$11:$AO$11,FALSE)))/1000 -> 1242.592977 | W14: 49.65035673 | Y14: 49.65035673 | Z14: 38.70841488 | AA14: 0.08794894677 | AC14: =(INDEX(Power_Station_BO!$AS$12:$AY$12,MATCH($C14,Power_Station_BO!$AS$11:$AY$11,FALSE)))/1000 -> 1157.573457 | AD14: 36.05994439 | AF14: 36.05994439 | AG14: 41.03919176 | AH14: 0.07727818198 | AJ14: =(INDEX(Power_Station_BO!$BD$12:$BI$12,MATCH($C14,Power_Station_BO!$BD$11:$BI$11,FALSE)))/1000 -> 601.6765993 | AK14: 21.33110532 | AM14: 21.33110532 | AN14: 26.34156247 | AO14: 0.06257901523 | AQ14: =(INDEX(Power_Station_BO!$BN$12:$BS$12,MATCH($C14,Power_Station_BO!$BN$11:$BS$11,FALSE)))/1000 -> 598.7346712 | AR14: 26.21276407 | AT14: 26.21276407 | AU14: 31.2747608 | AV14: 0.05245024807 | AX14: =(INDEX(Power_Station_BO!$BX$12:$CC$12,MATCH($C14,Power_Station_BO!$BX$11:$CC$11,FALSE)))/1000 -> 609.3193352 | AY14: 31.82764816 | BA14: 31.82764816 | BB14: 37.6983526 | BC14: 0.04428225444
C15: M134 | D15: =(INDEX('[5]CTM Details'!$P$5:$P$411,MATCH(C15,'[5]CTM Details'!$B$5:$B$411,FALSE),1)) -> EMEAL Loy Yang | E15: =(INDEX('[5]CTM Details'!$D$5:$D$411,MATCH(C15,'[5]CTM Details'!$B$5:$B$411,FALSE),1)) -> 30000164PC | F15: =(INDEX('[5]CTM Details'!$U$5:$U$411,MATCH(C15,'[5]CTM Details'!$B$5:$B$411,FALSE),1)) -> LaTrobe | G15: =(INDEX(Power_Station_BO!$F$12:$K$12,MATCH($C15,Power_Station_BO!$F$11:$K$11,FALSE)))/1000 -> 371.5728245 | H15: 14.84695603 | I15: 0.06856676455 | J15: 371.5728245 | K15: 14.84695603 | L15: 14.84695603 | M15: 0.06856676455 | O15: =(INDEX(Power_Station_BO!$Z$12:$AE$12,MATCH($C15,Power_Station_BO!$Z$11:$AE$11,FALSE)))/1000 -> 40.21708521 | P15: 1.606956312 | R15: 1.606956312 | S15: 1.606956312 | T15: 0.06856676455 | V15: =(INDEX(Power_Station_BO!$AJ$12:$AO$12,MATCH($C15,Power_Station_BO!$AJ$11:$AO$11,FALSE)))/1000 -> 34.89153512 | W15: 1.394163011 | Y15: 1.394163011 | Z15: 1.086917472 | AA15: 0.08794894677 | AC15: =(INDEX(Power_Station_BO!$AS$12:$AY$12,MATCH($C15,Power_Station_BO!$AS$11:$AY$11,FALSE)))/1000 -> 32.50421956 | AD15: 1.012549435 | AF15: 1.012549435 | AG15: 1.152364795 | AH15: 0.07727818198 | AJ15: =(INDEX(Power_Station_BO!$BD$12:$BI$12,MATCH($C15,Power_Station_BO!$BD$11:$BI$11,FALSE)))/1000 -> 16.89484858 | AK15: 0.5989692718 | AM15: 0.5989692718 | AN15: 0.7396609905 | AO15: 0.06257901523 | AQ15: =(INDEX(Power_Station_BO!$BN$12:$BS$12,MATCH($C15,Power_Station_BO!$BN$11:$BS$11,FALSE)))/1000 -> 16.81224037 | AR15: 0.7360443807 | AT15: 0.7360443807 | AU15: 0.878183311 | AV15: 0.05245024807 | AX15: =(INDEX(Power_Station_BO!$BX$12:$CC$12,MATCH($C15,Power_Station_BO!$BX$11:$CC$11,FALSE)))/1000 -> 17.10945368 | AY15: 0.8937081767 | BA15: 0.8937081767 | BB15: 1.05855531 | BC15: 0.04428225444
C16: M143 | D16: =(INDEX('[5]CTM Details'!$P$5:$P$411,MATCH(C16,'[5]CTM Details'!$B$5:$B$411,FALSE),1)) -> Snowy Hydro | E16: =(INDEX('[5]CTM Details'!$D$5:$D$411,MATCH(C16,'[5]CTM Details'!$B$5:$B$411,FALSE),1)) -> 30000175PC | F16: =(INDEX('[5]CTM Details'!$U$5:$U$411,MATCH(C16,'[5]CTM Details'!$B$5:$B$411,FALSE),1)) -> Metro North West | G16: =(INDEX(Power_Station_BO!$F$12:$K$12,MATCH($C16,Power_Station_BO!$F$11:$K$11,FALSE)))/1000 -> 1575.305878 | H16: 62.94458466 | I16: 0.06856676455 | J16: 1575.305878 | K16: 62.94458466 | L16: 62.94458466 | M16: 0.06856676455 | O16: =(INDEX(Power_Station_BO!$Z$12:$AE$12,MATCH($C16,Power_Station_BO!$Z$11:$AE$11,FALSE)))/1000 -> 170.5028102 | P16: 6.812790275 | R16: 6.812790275 | S16: 6.812790275 | T16: 0.06856676455 | V16: =(INDEX(Power_Station_BO!$AJ$12:$AO$12,MATCH($C16,Power_Station_BO!$AJ$11:$AO$11,FALSE)))/1000 -> 147.9248125 | W16: 5.910639965 | Y16: 5.910639965 | Z16: 4.608053578 | AA16: 0.08794894677 | AC16: =(INDEX(Power_Station_BO!$AS$12:$AY$12,MATCH($C16,Power_Station_BO!$AS$11:$AY$11,FALSE)))/1000 -> 137.8036411 | AD16: 4.292765701 | AF16: 4.292765701 | AG16: 4.885521534 | AH16: 0.07727818198 | AJ16: =(INDEX(Power_Station_BO!$BD$12:$BI$12,MATCH($C16,Power_Station_BO!$BD$11:$BI$11,FALSE)))/1000 -> 71.6267513 | AK16: 2.539367125 | AM16: 2.539367125 | AN16: 3.135838333 | AO16: 0.06257901523 | AQ16: =(INDEX(Power_Station_BO!$BN$12:$BS$12,MATCH($C16,Power_Station_BO!$BN$11:$BS$11,FALSE)))/1000 -> 71.27652868 | AR16: 3.120505493 | AT16: 3.120505493 | AU16: 3.723112244 | AV16: 0.05245024807 | AX16: =(INDEX(Power_Station_BO!$BX$12:$CC$12,MATCH($C16,Power_Station_BO!$BX$11:$CC$11,FALSE)))/1000 -> 72.53658284 | AY16: 3.788930868 | BA16: 3.788930868 | BB16: 4.487810444 | BC16: 0.04428225444
C17: M135 | D17: =(INDEX('[5]CTM Details'!$P$5:$P$411,MATCH(C17,'[5]CTM Details'!$B$5:$B$411,FALSE),1)) -> AGL Somerton | E17: =(INDEX('[5]CTM Details'!$D$5:$D$411,MATCH(C17,'[5]CTM Details'!$B$5:$B$411,FALSE),1)) -> 30000165PC | F17: =(INDEX('[5]CTM Details'!$U$5:$U$411,MATCH(C17,'[5]CTM Details'!$B$5:$B$411,FALSE),1)) -> Metro North West | G17: =(INDEX(Power_Station_BO!$F$12:$K$12,MATCH($C17,Power_Station_BO!$F$11:$K$11,FALSE)))/1000 -> 1550.702478 | H17: 61.96150523 | I17: 0.06856676455 | J17: 1550.702478 | K17: 61.96150523 | L17: 61.96150523 | M17: 0.06856676455 | O17: =(INDEX(Power_Station_BO!$Z$12:$AE$12,MATCH($C17,Power_Station_BO!$Z$11:$AE$11,FALSE)))/1000 -> 167.8398677 | P17: 6.706386936 | R17: 6.706386936 | S17: 6.706386936 | T17: 0.06856676455 | V17: =(INDEX(Power_Station_BO!$AJ$12:$AO$12,MATCH($C17,Power_Station_BO!$AJ$11:$AO$11,FALSE)))/1000 -> 145.6144971 | W17: 5.818326565 | Y17: 5.818326565 | Z17: 4.536084198 | AA17: 0.08794894677 | AC17: =(INDEX(Power_Station_BO!$AS$12:$AY$12,MATCH($C17,Power_Station_BO!$AS$11:$AY$11,FALSE)))/1000 -> 135.6513999 | AD17: 4.225720543 | AF17: 4.225720543 | AG17: 4.809218611 | AH17: 0.07727818198 | AJ17: =(INDEX(Power_Station_BO!$BD$12:$BI$12,MATCH($C17,Power_Station_BO!$BD$11:$BI$11,FALSE)))/1000 -> 70.50807228 | AK17: 2.499706849 | AM17: 2.499706849 | AN17: 3.086862266 | AO17: 0.06257901523 | AQ17: =(INDEX(Power_Station_BO!$BN$12:$BS$12,MATCH($C17,Power_Station_BO!$BN$11:$BS$11,FALSE)))/1000 -> 70.1633195 | AR17: 3.071768897 | AT17: 3.071768897 | AU17: 3.664964031 | AV17: 0.05245024807 | AX17: =(INDEX(Power_Station_BO!$BX$12:$CC$12,MATCH($C17,Power_Station_BO!$BX$11:$CC$11,FALSE)))/1000 -> 71.40369392 | AY17: 3.729754689 | BA17: 3.729754689 | BB17: 4.417719042 | BC17: 0.04428225444
C19: Total | G19: =SUM(G12:G17) -> 20233.80067 | H19: =G19*(S19/O19) -> 808.4830994 | I19: =IF(H19=0,0,(G19/365)/H19) -> 0.06856676455 | J19: =SUM(J12:J17) -> 20233.80067 | K19: =SUM(K12:K17) -> 808.4830994 | L19: =SUM(L12:L17) -> 808.4830994 | M19: =IF(L19=0,0,(J19/365)/L19) -> 0.06856676455 | O19: =SUM(O12:O17) -> 2190 | P19: =SUM(P12:P17) -> 87.50595189 | R19: =SUM(R12:R17) -> 87.50595189 | S19: =Volume_Assumptions_BA!$I$60 -> 87.50595189 | T19: 0.06856676455 | V19: =SUM(V12:V17) -> 1900 | W19: =SUM(W12:W17) -> 75.91840575 | Y19: =SUM(Y12:Y17) -> 75.91840575 | Z19: =Volume_Assumptions_BA!$J$60 -> 59.18751325 | AA19: 0.08794894677 | AC19: =SUM(AC12:AC17) -> 1770 | AD19: =SUM(AD12:AD17) -> 55.13784129 | AF19: =SUM(AF12:AF17) -> 55.13784129 | AG19: =Volume_Assumptions_BA!$K$60 -> 62.75141242 | AH19: 0.07727818198 | AJ19: =SUM(AJ12:AJ17) -> 920 | AK19: =SUM(AK12:AK17) -> 32.61655335 | AM19: =SUM(AM12:AM17) -> 32.61655335 | AN19: =Volume_Assumptions_BA!$L$60 -> 40.27784611 | AO19: 0.06257901523 | AQ19: =SUM(AQ12:AQ17) -> 915.5016136 | AR19: =SUM(AR12:AR17) -> 40.08090555 | AT19: =SUM(AT12:AT17) -> 40.08090555 | AU19: =Volume_Assumptions_BA!$M$60 -> 47.82100545 | AV19: 0.05245024807 | AX19: =SUM(AX12:AX17) -> 931.6862067 | AY19: =SUM(AY12:AY17) -> 48.66640376 | BA19: =SUM(BA12:BA17) -> 48.66640376 | BB19: =Volume_Assumptions_BA!$N$60 -> 57.64306678 | BC19: 0.04428225444
C21: Exports
C23: M126 | D23: =(INDEX('[5]CTM Details'!$P$5:$P$411,MATCH(C23,'[5]CTM Details'!$B$5:$B$411,FALSE),1)) -> NSW Exports | E23: =(INDEX('[5]CTM Details'!$D$5:$D$411,MATCH(C23,'[5]CTM Details'!$B$5:$B$411,FALSE),1)) -> 20000002PC | F23: =(INDEX('[5]CTM Details'!$U$5:$U$411,MATCH(C23,'[5]CTM Details'!$B$5:$B$411,FALSE),1)) -> Barnawartha (Interconnect) | G23: =(INDEX(Exports_BO!$F$12:$I$12,MATCH($E23,Exports_BO!$F$10:$I$10,FALSE)))/1000 -> 14181.55712 | H23: =(G23/$G$28)*$H$28 -> 116.6774209 | I23: =IF(H23=0,0,(G23/365)/H23) -> 0.333 | J23: =G23 -> 14181.55712 | K23: =H23 -> 116.6774209 | L23: =K23 -> 116.6774209 | M23: =IF(L23=0,0,(J23/365)/L23) -> 0.333 | O23: =(INDEX(Exports_BO!$V$12:$Y$12,MATCH($E23,Exports_BO!$V$10:$Y$10,FALSE)))/1000 -> 13896.05748 | P23: =IF(M23=0,0,(O23/365)/M23) -> 114.3284996 | R23: =S28-1 -> 113.3284996 | S23: =(S$28/R$28)*R23 -> 56.91315163 | T23: =IF(S23=0,0,(O23/365)/S23) -> 0.6689383606 | V23: =(INDEX(Exports_BO!$AD$12:$AG$12,MATCH($E23,Exports_BO!$AD$10:$AG$10,FALSE)))/1000 -> 13896.05748 | W23: =IF(T23=0,0,(V23/365)/T23) -> 56.91315163 | Y23: 38 | Z23: =(Z$28/Y$28)*Y23 -> 114.3284996 | AA23: =IF(Z23=0,0,(V23/365)/Z23) -> 0.333 | AC23: =(INDEX(Exports_BO!$AL$12:$AO$12,MATCH($E23,Exports_BO!$AL$10:$AO$10,FALSE)))/1000 -> 13896.05748 | AD23: =IF(AA23=0,0,(AC23/365)/AA23) -> 114.3284996 | AF23: 38 | AG23: =(AG$28/AF$28)*AF23 -> 114.0161266 | AH23: =IF(AG23=0,0,(AC23/365)/AG23) -> 0.3339123288 | AJ23: =(INDEX(Exports_BO!$AT$12:$AW$12,MATCH($E23,Exports_BO!$AT$10:$AW$10,FALSE)))/1000 -> 13896.05748 | AK23: =IF(AH23=0,0,(AJ23/365)/AH23) -> 114.0161266 | AM23: 68 | AN23: =(AN$28/AM$28)*AM23 -> 114.3284996 | AO23: =IF(AN23=0,0,(AJ23/365)/AN23) -> 0.333 | AQ23: =(INDEX(Exports_BO!$BB$12:$BE$12,MATCH($E23,Exports_BO!$BB$10:$BE$10,FALSE)))/1000 -> 13896.05748 | AR23: =IF(AO23=0,0,(AQ23/365)/AO23) -> 114.3284996 | AT23: =IF(AS23=0,AR23,(AQ23/365)/AS23) -> 114.3284996 | AU23: =(AU$28/AT$28)*AT23 -> 114.3284996 | AV23: =IF(AU23=0,0,(AQ23/365)/AU23) -> 0.333 | AX23: =(INDEX(Exports_BO!$BB$12:$BE$12,MATCH($E23,Exports_BO!$BJ$10:$BM$10,FALSE)))/1000 -> 13896.05748 | AY23: =IF(AV23=0,0,(AX23/365)/AV23) -> 114.3284996 | BA23: =IF(AZ23=0,AY23,(AX23/365)/AZ23) -> 114.3284996 | BB23: =(BB$28/BA$28)*BA23 -> 114.3284996 | BC23: =IF(BB23=0,0,(AX23/365)/BB23) -> 0.333
C24: M137A | D24: =(INDEX('[5]CTM Details'!$P$5:$P$411,MATCH(C24,'[5]CTM Details'!$B$5:$B$411,FALSE),1)) -> VicHub - Withdrawal | E24: =(INDEX('[5]CTM Details'!$D$5:$D$411,MATCH(C24,'[5]CTM Details'!$B$5:$B$411,FALSE),1)) -> 30000166PC | F24: =(INDEX('[5]CTM Details'!$U$5:$U$411,MATCH(C24,'[5]CTM Details'!$B$5:$B$411,FALSE),1)) -> VicHub Withdrawal | G24: =(INDEX(Exports_BO!$F$12:$I$12,MATCH($E24,Exports_BO!$F$10:$I$10,FALSE)))/1000 -> 1911.887462 | H24: =(G24/$G$28)*$H$28 -> 15.7298734 | I24: =IF(H24=0,0,(G24/365)/H24) -> 0.333 | J24: 1911.887462 | K24: 15.7298734 | L24: =K24 -> 15.7298734 | M24: =IF(L24=0,0,(J24/365)/L24) -> 0.333 | O24: =(INDEX(Exports_BO!$V$12:$Y$12,MATCH($E24,Exports_BO!$V$10:$Y$10,FALSE)))/1000 -> 0 | P24: =IF(M24=0,0,(O24/365)/M24) -> 0 | R24: =S28 -> 114.3284996 | S24: =(S$28/R$28)*R24 -> 57.41534792 | T24: =IF(S24=0,0,(O24/365)/S24) -> 0 | V24: =(INDEX(Exports_BO!$AD$12:$AG$12,MATCH($E24,Exports_BO!$AD$10:$AG$10,FALSE)))/1000 -> 0 | W24: =IF(T24=0,0,(V24/365)/T24) -> 0 | Y24: =IF(X24=0,W24,(V24/365)/X24) -> 0 | Z24: =(Z$28/Y$28)*Y24 -> 0 | AA24: =IF(Z24=0,0,(V24/365)/Z24) -> 0 | AC24: =(INDEX(Exports_BO!$AL$12:$AO$12,MATCH($E24,Exports_BO!$AL$10:$AO$10,FALSE)))/1000 -> 0 | AD24: =IF(AA24=0,0,(AC24/365)/AA24) -> 0 | AF24: =IF(AE24=0,AD24,(AC24/365)/AE24) -> 0 | AG24: =(AG$28/AF$28)*AF24 -> 0 | AH24: =IF(AG24=0,0,(AC24/365)/AG24) -> 0 | AJ24: =(INDEX(Exports_BO!$AT$12:$AW$12,MATCH($E24,Exports_BO!$AT$10:$AW$10,FALSE)))/1000 -> 0 | AK24: =IF(AH24=0,0,(AJ24/365)/AH24) -> 0 | AM24: =IF(AL24=0,AK24,(AJ24/365)/AL24) -> 0 | AN24: =(AN$28/AM$28)*AM24 -> 0 | AO24: 0 | AQ24: =(INDEX(Exports_BO!$BB$12:$BE$12,MATCH($E24,Exports_BO!$BB$10:$BE$10,FALSE)))/1000 -> 0 | AR24: =IF(AO24=0,0,(AQ24/365)/AO24) -> 0 | AT24: =IF(AS24=0,AR24,(AQ24/365)/AS24) -> 0 | AU24: =(AU$28/AT$28)*AT24 -> 0 | AV24: 0 | AX24: =(INDEX(Exports_BO!$BB$12:$BE$12,MATCH($E24,Exports_BO!$BJ$10:$BM$10,FALSE)))/1000 -> 0 | AY24: =IF(AV24=0,0,(AX24/365)/AV24) -> 0 | BA24: =IF(AZ24=0,AY24,(AX24/365)/AZ24) -> 0 | BB24: =(BB$28/BA$28)*BA24 -> 0 | BC24: 0
D25: WUGS Exports | E25: 30000156PC | F25: WUGS | G25: =(INDEX(Exports_BO!$F$12:$I$12,MATCH($E25,Exports_BO!$F$10:$I$10,FALSE)))/1000 -> 14311.37068 | H25: =(G25/$G$28)*$H$28 -> 117.7454496 | I25: =IF(H25=0,0,(G25/365)/H25) -> 0.333 | J25: 14311.37068 | K25: 117.7454496 | L25: =K25 -> 117.7454496 | M25: =IF(L25=0,0,(J25/365)/L25) -> 0.333 | O25: =(INDEX(Exports_BO!$V$12:$Y$12,MATCH($E25,Exports_BO!$V$10:$Y$10,FALSE)))/1000 -> 0 | P25: =IF(M25=0,0,(O25/365)/M25) -> 0 | R25: =IF(Q25=0,P25,(O25/365)/Q25) -> 0 | S25: =(S$28/R$28)*R25 -> 0 | T25: =IF(S25=0,0,(O25/365)/S25) -> 0 | V25: =(INDEX(Exports_BO!$AD$12:$AG$12,MATCH($E25,Exports_BO!$AD$10:$AG$10,FALSE)))/1000 -> 0 | W25: =IF(T25=0,0,(V25/365)/T25) -> 0 | Y25: =IF(X25=0,W25,(V25/365)/X25) -> 0 | Z25: =(Z$28/Y$28)*Y25 -> 0 | AA25: 0 | AC25: =(INDEX(Exports_BO!$AL$12:$AO$12,MATCH($E25,Exports_BO!$AL$10:$AO$10,FALSE)))/1000 -> 0 | AD25: =IF(AA25=0,0,(AC25/365)/AA25) -> 0 | AF25: =IF(AE25=0,AD25,(AC25/365)/AE25) -> 0 | AG25: =(AG$28/AF$28)*AF25 -> 0 | AH25: =IF(AG25=0,0,(AC25/365)/AG25) -> 0 | AJ25: =(INDEX(Exports_BO!$AT$12:$AW$12,MATCH($E25,Exports_BO!$AT$10:$AW$10,FALSE)))/1000 -> 0 | AK25: =IF(AH25=0,0,(AJ25/365)/AH25) -> 0 | AM25: =IF(AL25=0,AK25,(AJ25/365)/AL25) -> 0 | AN25: =(AN$28/AM$28)*AM25 -> 0 | AO25: 0 | AQ25: =(INDEX(Exports_BO!$BB$12:$BE$12,MATCH($E25,Exports_BO!$BB$10:$BE$10,FALSE)))/1000 -> 0 | AR25: =IF(AO25=0,0,(AQ25/365)/AO25) -> 0 | AT25: =IF(AS25=0,AR25,(AQ25/365)/AS25) -> 0 | AU25: =(AU$28/AT$28)*AT25 -> 0 | AV25: 0 | AX25: =(INDEX(Exports_BO!$BB$12:$BE$12,MATCH($E25,Exports_BO!$BJ$10:$BM$10,FALSE)))/1000 -> 0 | AY25: =IF(AV25=0,0,(AX25/365)/AV25) -> 0 | BA25: =IF(AZ25=0,AY25,(AX25/365)/AZ25) -> 0 | BB25: =(BB$28/BA$28)*BA25 -> 0 | BC25: 0
D26: SEAGas Exports | E26: 30000169PC | F26: SEAGas | G26: =(INDEX(Exports_BO!$F$12:$I$12,MATCH($E26,Exports_BO!$F$10:$I$10,FALSE)))/1000 -> 724.9645797 | H26: =(G26/$G$28)*$H$28 -> 5.964577561 | I26: =IF(H26=0,0,(G26/365)/H26) -> 0.333 | J26: 724.9645797 | K26: 5.964577561 | L26: =K26 -> 5.964577561 | M26: =IF(L26=0,0,(J26/365)/L26) -> 0.333 | O26: =(INDEX(Exports_BO!$V$12:$Y$12,MATCH($E26,Exports_BO!$V$10:$Y$10,FALSE)))/1000 -> 0 | P26: =IF(M26=0,0,(O26/365)/M26) -> 0 | R26: =IF(Q26=0,P26,(O26/365)/Q26) -> 0 | S26: =(S$28/R$28)*R26 -> 0 | T26: =IF(S26=0,0,(O26/365)/S26) -> 0 | V26: =(INDEX(Exports_BO!$AD$12:$AG$12,MATCH($E26,Exports_BO!$AD$10:$AG$10,FALSE)))/1000 -> 0 | W26: =IF(T26=0,0,(V26/365)/T26) -> 0 | Y26: =IF(X26=0,W26,(V26/365)/X26) -> 0 | Z26: =(Z$28/Y$28)*Y26 -> 0 | AA26: 0 | AC26: =(INDEX(Exports_BO!$AL$12:$AO$12,MATCH($E26,Exports_BO!$AL$10:$AO$10,FALSE)))/1000 -> 0 | AD26: =IF(AA26=0,0,(AC26/365)/AA26) -> 0 | AF26: =IF(AE26=0,AD26,(AC26/365)/AE26) -> 0 | AG26: =(AG$28/AF$28)*AF26 -> 0 | AH26: =IF(AG26=0,0,(AC26/365)/AG26) -> 0 | AJ26: =(INDEX(Exports_BO!$AT$12:$AW$12,MATCH($E26,Exports_BO!$AT$10:$AW$10,FALSE)))/1000 -> 0 | AK26: =IF(AH26=0,0,(AJ26/365)/AH26) -> 0 | AM26: =IF(AL26=0,AK26,(AJ26/365)/AL26) -> 0 | AN26: =(AN$28/AM$28)*AM26 -> 0 | AO26: 0 | AQ26: =(INDEX(Exports_BO!$BB$12:$BE$12,MATCH($E26,Exports_BO!$BB$10:$BE$10,FALSE)))/1000 -> 0 | AR26: =IF(AO26=0,0,(AQ26/365)/AO26) -> 0 | AT26: =IF(AS26=0,AR26,(AQ26/365)/AS26) -> 0 | AU26: =(AU$28/AT$28)*AT26 -> 0 | AV26: 0 | AX26: =(INDEX(Exports_BO!$BB$12:$BE$12,MATCH($E26,Exports_BO!$BJ$10:$BM$10,FALSE)))/1000 -> 0 | AY26: =IF(AV26=0,0,(AX26/365)/AV26) -> 0 | BA26: =IF(AZ26=0,AY26,(AX26/365)/AZ26) -> 0 | BB26: =(BB$28/BA$28)*BA26 -> 0 | BC26: 0
C28: Total | G28: =SUM(G23:G26) -> 31129.77984 | H28: =G28*(S28/O28) -> 256.1173215 | I28: =IF(H28=0,0,(G28/365)/H28) -> 0.333 | J28: =SUM(J23:J26) -> 31129.77984 | K28: =SUM(K23:K26) -> 256.1173215 | L28: =SUM(L23:L26) -> 256.1173215 | M28: =IF(L28=0,0,(J28/365)/L28) -> 0.333 | O28: =SUM(O23:O26) -> 13896.05748 | P28: =IF(M28=0,0,(O28/365)/M28) -> 114.3284996 | R28: =SUM(R23:R26) -> 227.6569991 | S28: =Vencorp_Summary_BO!G62 -> 114.3284996 | T28: =IF(S28=0,0,(O28/365)/S28) -> 0.333 | V28: =SUM(V23:V26) -> 13896.05748 | W28: =SUM(W23:W26) -> 56.91315163 | Y28: =SUM(Y23:Y26) -> 38 | Z28: =Vencorp_Summary_BO!H62 -> 114.3284996 | AA28: 0.333 | AC28: =SUM(AC23:AC26) -> 13896.05748 | AD28: =SUM(AD23:AD26) -> 114.3284996 | AF28: =SUM(AF23:AF26) -> 38 | AG28: =Vencorp_Summary_BO!I62 -> 114.0161266 | AH28: =IF(AG28=0,0,(AC28/365)/AG28) -> 0.3339123288 | AJ28: =SUM(AJ23:AJ26) -> 13896.05748 | AK28: =SUM(AK23:AK26) -> 114.0161266 | AM28: =SUM(AM23:AM26) -> 68 | AN28: =Vencorp_Summary_BO!J62 -> 114.3284996 | AO28: 0.333 | AQ28: =SUM(AQ23:AQ26) -> 13896.05748 | AR28: =SUM(AR23:AR26) -> 114.3284996 | AT28: =SUM(AT23:AT26) -> 114.3284996 | AU28: =Vencorp_Summary_BO!K62 -> 114.3284996 | AV28: 0.333 | AX28: =SUM(AX23:AX26) -> 13896.05748 | AY28: =SUM(AY23:AY26) -> 114.3284996 | BA28: =SUM(BA23:BA26) -> 114.3284996 | BB28: =Vencorp_Summary_BO!L62 -> 114.3284996 | BC28: 0.333
C30: Tariff D/V | G30: =G44+G61+G84+G166+G175+G125 -> 199791.626 | H30: =H44+H61+H84+H166+H175+H125 -> 1037.849947 | J30: =J44+J61+J84+J166+J175+J125 -> 195129.4945 | K30: =K44+K61+K84+K166+K175+K125 -> 969.78565 | L30: =L44+L61+L84+L166+L175+L125 -> 955.2785311 | O30: =O44+O61+O84+O166+O175+O125 -> 194004.38 | S30: =S44+S61+S84+S166+S175+S125 -> 1141.146247 | V30: =V44+V61+V84+V166+V175+V125 -> 191151.09 | Z30: =Z44+Z61+Z84+Z166+Z175+Z125 -> 976.5206237 | AC30: =AC44+AC61+AC84+AC166+AC175+AC125 -> 188542.61 | AG30: =AG44+AG61+AG84+AG166+AG175+AG125 -> 966.2911848 | AJ30: =AJ44+AJ61+AJ84+AJ166+AJ175+AJ125 -> 186642.61 | AN30: =AN44+AN61+AN84+AN166+AN175+AN125 -> 961.7608236 | AQ30: =AQ44+AQ61+AQ84+AQ166+AQ175+AQ125 -> 182008.6252 | AU30: =AU44+AU61+AU84+AU166+AU175+AU125 -> 961.7608236 | AX30: =AX44+AX61+AX84+AX166+AX175+AX125 -> 183307.4036 | BB30: =BB44+BB61+BB84+BB166+BB175+BB125 -> 961.882548
... 36 more rows

Sheet Tariff_V_BO
B1: Withdrawal Volumes - Tariff V | BC1: =BC10 -> 852.1170137
B2: =Model_Name -> VTS Tariff Model | V2: Check | W2: =SUM(W12:W22,W26:W39,W43:W62,W66:W103,W107:W143,W147:W152)-W10 -> 0 | Z2: Check | AA2: =SUM(AA12:AA22,AA26:AA39,AA43:AA62,AA66:AA103,AA107:AA143,AA147:AA152)-AA10 -> 0 | AC2: Check | AD2: =SUM(AD12:AD22,AD26:AD39,AD43:AD62,AD66:AD103,AD107:AD143,AD147:AD152)-AD10 -> 47.15390721 | AG2: Check | AH2: =SUM(AH12:AH22,AH26:AH39,AH43:AH62,AH66:AH103,AH107:AH143,AH147:AH152)-AH10 -> 0 | AJ2: Check | AK2: =SUM(AK12:AK22,AK26:AK39,AK43:AK62,AK66:AK103,AK107:AK143,AK147:AK152)-AK10 -> 67.72144077 | AN2: Check | AO2: =SUM(AO12:AO22,AO26:AO39,AO43:AO62,AO66:AO103,AO107:AO143,AO147:AO152)-AO10 -> 0 | AQ2: Check | AR2: =SUM(AR12:AR22,AR26:AR39,AR43:AR62,AR66:AR103,AR107:AR143,AR147:AR152)-AR10 -> 104.8723893 | AU2: Check | AV2: =SUM(AV12:AV22,AV26:AV39,AV43:AV62,AV66:AV103,AV107:AV143,AV147:AV152)-AV10 -> 0 | AX2: Check | AY2: =SUM(AY12:AY22,AY26:AY39,AY43:AY62,AY66:AY103,AY107:AY143,AY147:AY152)-AY10 -> 104.9003313 | BB2: Check | BC2: =SUM(BC12:BC22,BC26:BC39,BC43:BC62,BC66:BC103,BC107:BC143,BC147:BC152)-BC10 -> 0
B3: Go to Table of Contents
A4: é | B4: ç | C4: è | H4: This 2019 colmn would come from Settlement data | V4: Highlighted cells below contain hard coded figures/formula changes that align the total to inputs provided.
C5: 1 | D5: =C5+1 -> 2 | E5: =D5+1 -> 3 | F5: 4 | G5: 5 | H5: 6 | I5: 7 | J5: 8 | K5: 9 | L5: 10 | M5: 11 | N5: 12 | O5: 13 | P5: 14 | Q5: 15 | R5: 16 | S5: 17 | T5: 18 | U5: 19 | V5: 20 | W5: 21 | X5: 22 | Y5: 23 | Z5: 24 | AA5: 25 | AB5: 26 | AC5: 27 | AD5: 28 | AE5: 29 | AF5: 30 | AG5: 31 | AH5: 32 | AI5: 33 | AJ5: 34 | AK5: 35 | AL5: 36 | AM5: 37 | AN5: 38 | AO5: 39 | AP5: 40 | AQ5: 41 | AR5: 42 | AS5: 43 | AT5: 44 | AU5: 45 | AV5: 46 | AW5: 47 | AX5: 48 | AY5: 49 | AZ5: 50 | BA5: 51 | BB5: 52 | BC5: 53 | BD5: 54
H6: 2019 Actual | K6: 2019 Norm | N6: 2019 Norm | O6: Adjustments | P6: 2022 Forecast | W6: 2023 Forecast | AB6: 2023 | AD6: 2024 Forecast | AI6: 2024 | AK6: 2025 Forecast | AP6: 2025 | AR6: 2026 Forecast | AW6: 2026 | AY6: 2027 Forecast | BD6: 2027
C7: Meter | D7: Meter Name | E7: MIRN | F7: Tariff Zone | H7: Annual | I7: Coincident | J7: Load | K7: Annual | L7: Peak Day | M7: Peak Day | N7: Load | P7: Annual | Q7: Old Peak | R7: New | S7: New Peak | T7: Peak Day | U7: Load | W7: Annual | X7: Peak Day | Y7: Difference | Z7: Allocation to | AA7: Peak Day | AB7: Load | AD7: Annual | AE7: Peak Day | AF7: Difference | AG7: Allocation to | AH7: Peak Day | AI7: Load | AK7: Annual | AL7: Old Peak | AM7: New | AN7: New Peak | AO7: Peak Day | AP7: Load | AR7: Annual | AS7: Old Peak | AT7: New | AU7: New Peak | AV7: Peak Day | AW7: Load | AY7: Annual | AZ7: Old Peak | BA7: New | BB7: New Peak | BC7: Peak Day
I8: Peak Day | J8: Factor | L8: Raw Data | M8: Scaled to 100% | N8: Factor | R8: Load Factor | U8: Factor | X8: Scaled | Y8: to be reallocated | Z8: Tariff V | AB8: Factor | AE8: Scaled | AF8: to be reallocated | AG8: Tariff V | AI8: Factor | AM8: Load Factor | AP8: Factor | AT8: Load Factor | AW8: Factor | BA8: Load Factor
C10: Total | H10: =H24+H41+H64+H105+H145+H154 -> 125473.7844 | I10: =I24+I41+I64+I105+I145+I154 -> 794.3758513 | K10: =K24+K41+K64+K105+K145+K154 -> 121154.8697 | L10: =L24+L41+L64+L105+L145+L154 -> 737.7819133 | M10: =M24+M41+M64+M105+M145+M154 -> 726.7453611 | P10: =P24+P41+P64+P105+P145+P154 -> 131541.8567 | Q10: =Q24+Q41+Q64+Q105+Q145+Q154 -> 791.3751514 | S10: =S24+S41+S64+S105+S145+S154 -> 791.3751514 | T10: =T24+T41+T64+T105+T145+T154 -> 912.2462466 | W10: =W24+W41+W64+W105+W145+W154 -> 127600 | X10: =X24+X41+X64+X105+X145+X154 -> 895.0002466 | AA10: =AA24+AA41+AA64+AA105+AA145+AA154 -> 895.0002466 | AD10: =AD24+AD41+AD64+AD105+AD145+AD154 -> 125900 | AE10: =AE24+AE41+AE64+AE105+AE145+AE154 -> 883.1944384 | AH10: =AH24+AH41+AH64+AH105+AH145+AH154 -> 883.1944384 | AK10: =AK24+AK41+AK64+AK105+AK145+AK154 -> 125200 | AL10: =AL24+AL41+AL64+AL105+AL145+AL154 -> 878.5886301 | AO10: =AO24+AO41+AO64+AO105+AO145+AO154 -> 878.5886301 | AR10: =AR24+AR41+AR64+AR105+AR145+AR154 -> 119830.5856 | AS10: =AS24+AS41+AS64+AS105+AS145+AS154 -> 863.6070137 | AV10: =AV24+AV41+AV64+AV105+AV145+AV154 -> 863.6070137 | AY10: =AY24+AY41+AY64+AY105+AY145+AY154 -> 121338.9536 | AZ10: =AZ24+AZ41+AZ64+AZ105+AZ145+AZ154 -> 852.1170137 | BC10: =BC24+BC41+BC64+BC105+BC145+BC154 -> 852.1170137
C12: M027 | D12: =(INDEX('[5]CTM Details'!P$5:P$408,MATCH($C12,'[5]CTM Details'!$B$5:$B$408,FALSE),1)) -> Melton South | E12: =(INDEX('[5]CTM Details'!D$5:D$408,MATCH($C12,'[5]CTM Details'!$B$5:$B$408,FALSE),1)) -> 30000027PC | F12: =(INDEX('[5]CTM Details'!U$5:U$408,MATCH($C12,'[5]CTM Details'!$B$5:$B$408,FALSE),1)) -> Metro North West | H12: =(INDEX('[5]Tariff-V 2015'!$H$8:$FB$8,MATCH(C12,'[5]Tariff-V 2015'!$H$6:$FB$6,FALSE)))/1000 -> 985.3507287 | I12: =(INDEX('[5]Tariff-V 2015'!$H$10:$FB$10,MATCH(C12,'[5]Tariff-V 2015'!$H$6:$FB$6,FALSE)))/1000 -> 5.098691493 | J12: =IF(I12=0,0,(H12/365)/I12) -> 0.5294674215 | K12: =(INDEX('[5]Tariff-V Norm'!$H$10:$FB$10,MATCH(C12,'[5]Tariff-V Norm'!$H$6:$FB$6,FALSE)))/1000 -> 936.411712 | L12: =(INDEX('[5]Tariff-V Norm'!$H$11:$FB$11,MATCH(C12,'[5]Tariff-V Norm'!$H$6:$FB$6,FALSE)))/1000 -> 6.828460513 | M12: =L12*(1/(('[5]Tariff-D Norm'!$D$11+'[5]Tariff-V Norm'!$D$11)/'[5]Tariff-V&D Norm'!$D$11)) -> 6.7263129 | N12: =IF(M12=0,0,(K12/365)/M12) -> 0.3814142425 | P12: =(K12/$K$24)*(Vencorp_Summary_BO!$G$30) -> 1484.838061 | Q12: =IF(N12=0,0,(P12/365)/N12) -> 10.66569894 | S12: =IF(R12=0,Q12,(P12/365)/R12) -> 10.66569894 | T12: =(M12/M$24)*(T$24) -> 10.72009321 | U12: =IF(T12=0,0,(P12/365)/T12) -> 0.3794789284 | W12: =(P12/P$24)*W$24 -> 1484.838061 | X12: =(T12/$T$24)*$X$24 -> 10.72009321 | Y12: =-(X12+Tariff_D_BO!X12)+INDEX(Annual_CTM_BO!$Z:$Z,MATCH($C12,Annual_CTM_BO!$C:$C,FALSE)) -> 0.5349109049 | Z12: =IF((X12+Tariff_D_BO!X12)=0,0,X12/(X12+Tariff_D_BO!X12)*Y12) -> 0.4932363343 | AA12: =(Z12+X12)/(X$24+Z$24)*X$24 -> 12.50921696 | AB12: =IF(AA12=0,0,(W12/365)/AA12) -> 0.325204167 | AD12: =(W12/W$24)*AD$24 -> 1484.838061 | AE12: =(AA12/AA$24)*AE$24 -> 12.59331254 | AF12: =-(AE12+Tariff_D_BO!AE12)+INDEX(Annual_CTM_BO!$AG:$AG,MATCH($C12,Annual_CTM_BO!$C:$C,FALSE)) -> -1.391835065 | AG12: =IF((AE12+Tariff_D_BO!AE12)=0,0,AE12/(AE12+Tariff_D_BO!AE12)*AF12) -> -1.285564297 | AH12: =(AG12+AE12)/(AE$24+AG$24)*AE$24 -> 12.80151809 | AI12: =IF(AH12=0,0,(AD12/365)/AH12) -> 0.317778677 | AK12: =(AD12/AD$24)*AK$24 -> 1517.834463 | AL12: =(AH12/AH$24)*AL$24 -> 12.99386144 | AM12: =-(AL12+Tariff_D_BO!AL12)+INDEX(Annual_CTM_BO!$AN:$AN,MATCH($C12,Annual_CTM_BO!$C:$C,FALSE)) -> -1.637136871 | AN12: =IF((AL12+Tariff_D_BO!AL12)=0,0,AL12/(AL12+Tariff_D_BO!AL12)*AM12) -> -1.51381143 | AO12: =(AN12+AL12)/(AL$24+AN$24)*AL$24 -> 13.2009423 | AP12: =IF(AO12=0,0,(AK12/365)/AO12) -> 0.3150116475 | AR12: =(AK12/AK$24)*AR$24 -> 1394.466783 | AS12: =(AO12/AO$24)*AS$24 -> 13.2313392 | AT12: =-(AS12+Tariff_D_BO!AS12)+INDEX(Annual_CTM_BO!$AU:$AU,MATCH($C12,Annual_CTM_BO!$C:$C,FALSE)) -> -1.860792174 | AU12: =IF((AS12+Tariff_D_BO!AS12)=0,0,AS12/(AS12+Tariff_D_BO!AS12)*AT12) -> -1.724616472 | AV12: =(AU12+AS12)/(AS$24+AU$24)*AS$24 -> 13.22994268 | AW12: =IF(AV12=0,0,(AR12/365)/AV12) -> 0.2887735067 | AY12: =(AR12/AR$24)*AY$24 -> 1412.01964 | AZ12: =(AV12/AV$24)*AZ$24 -> 13.31678181 | BA12: =-(AZ12+Tariff_D_BO!AZ12)+INDEX(Annual_CTM_BO!$BB:$BB,MATCH($C12,Annual_CTM_BO!$C:$C,FALSE)) -> -1.92750188 | BB12: =IF((AZ12+Tariff_D_BO!AZ12)=0,0,AZ12/(AZ12+Tariff_D_BO!AZ12)*BA12) -> -1.78961781 | BC12: =(BB12+AZ12)/(AZ$24+BB$24)*AZ$24 -> 13.31570432 | BD12: =IF(BC12=0,0,(AY12/365)/BC12) -> 0.2905251474
C13: M045 | D13: =(INDEX('[5]CTM Details'!P$5:P$408,MATCH($C13,'[5]CTM Details'!$B$5:$B$408,FALSE),1)) -> Sunbury | E13: =(INDEX('[5]CTM Details'!D$5:D$408,MATCH($C13,'[5]CTM Details'!$B$5:$B$408,FALSE),1)) -> 30000043PC | F13: =(INDEX('[5]CTM Details'!U$5:U$408,MATCH($C13,'[5]CTM Details'!$B$5:$B$408,FALSE),1)) -> Metro North West | H13: =(INDEX('[5]Tariff-V 2015'!$H$8:$FB$8,MATCH(C13,'[5]Tariff-V 2015'!$H$6:$FB$6,FALSE)))/1000 -> 571.6799153 | I13: =(INDEX('[5]Tariff-V 2015'!$H$10:$FB$10,MATCH(C13,'[5]Tariff-V 2015'!$H$6:$FB$6,FALSE)))/1000 -> 4.750884774 | J13: 0.3296746644 | K13: =(INDEX('[5]Tariff-V Norm'!$H$10:$FB$10,MATCH(C13,'[5]Tariff-V Norm'!$H$6:$FB$6,FALSE)))/1000 -> 541.9324257 | L13: =(INDEX('[5]Tariff-V Norm'!$H$11:$FB$11,MATCH(C13,'[5]Tariff-V Norm'!$H$6:$FB$6,FALSE)))/1000 -> 4.136762804 | M13: =L13*(1/(('[5]Tariff-D Norm'!$D$11+'[5]Tariff-V Norm'!$D$11)/'[5]Tariff-V&D Norm'!$D$11)) -> 4.074880562 | N13: =IF(M13=0,0,(K13/365)/M13) -> 0.3643656174 | P13: =(K13/$K$24)*(Vencorp_Summary_BO!$G$30) -> 859.3248909 | Q13: =IF(N13=0,0,(P13/365)/N13) -> 6.461407601 | S13: =IF(R13=0,Q13,(P13/365)/R13) -> 6.461407601 | T13: 6.494360295 | U13: 0.3625168088 | W13: =(P13/P$24)*W$24 -> 859.3248909 | X13: 6.494360295 | Y13: =-(X13+Tariff_D_BO!X13)+INDEX(Annual_CTM_BO!$Z:$Z,MATCH($C13,Annual_CTM_BO!$C:$C,FALSE)) -> -0.7899304103 | Z13: =IF((X13+Tariff_D_BO!X13)=0,0,X13/(X13+Tariff_D_BO!X13)*Y13) -> -0.728364665 | AA13: 6.432352683 | AB13: 0.3660114558 | AD13: 859.3248909 | AE13: 6.47559539 | AF13: =-(AE13+Tariff_D_BO!AE13)+INDEX(Annual_CTM_BO!$AG:$AG,MATCH($C13,Annual_CTM_BO!$C:$C,FALSE)) -> -0.8254035904 | AG13: =IF((AE13+Tariff_D_BO!AE13)=0,0,AE13/(AE13+Tariff_D_BO!AE13)*AF13) -> -0.7623582061 | AH13: 6.467964054 | AI13: 0.3639962668 | AK13: 878.4209996 | AL13: 6.565145484 | AM13: =-(AL13+Tariff_D_BO!AL13)+INDEX(Annual_CTM_BO!$AN:$AN,MATCH($C13,Annual_CTM_BO!$C:$C,FALSE)) -> -0.933127612 | AN13: =IF((AL13+Tariff_D_BO!AL13)=0,0,AL13/(AL13+Tariff_D_BO!AL13)*AM13) -> -0.8628090787 | AO13: 6.557132922 | AP13: 0.3670251776 | AR13: 807.0240437 | AS13: 6.572231583 | AT13: =-(AS13+Tariff_D_BO!AS13)+INDEX(Annual_CTM_BO!$AU:$AU,MATCH($C13,Annual_CTM_BO!$C:$C,FALSE)) -> -0.9243089938 | AU13: =IF((AS13+Tariff_D_BO!AS13)=0,0,AS13/(AS13+Tariff_D_BO!AS13)*AT13) -> -0.8566414551 | AV13: 6.571543568 | AW13: 0.3364544044 | AY13: 817.1824624 | AZ13: 6.614678085 | BA13: =-(AZ13+Tariff_D_BO!AZ13)+INDEX(Annual_CTM_BO!$BB:$BB,MATCH($C13,Annual_CTM_BO!$C:$C,FALSE)) -> -0.9574472487 | BB13: =IF((AZ13+Tariff_D_BO!AZ13)=0,0,AZ13/(AZ13+Tariff_D_BO!AZ13)*BA13) -> -0.8889306372 | BC13: 6.614147242 | BD13: 0.338495044
C14: M048 | D14: =(INDEX('[5]CTM Details'!P$5:P$408,MATCH($C14,'[5]CTM Details'!$B$5:$B$408,FALSE),1)) -> Diggers Rest | E14: =(INDEX('[5]CTM Details'!D$5:D$408,MATCH($C14,'[5]CTM Details'!$B$5:$B$408,FALSE),1)) -> 30000044PC | F14: =(INDEX('[5]CTM Details'!U$5:U$408,MATCH($C14,'[5]CTM Details'!$B$5:$B$408,FALSE),1)) -> Metro North West | H14: =(INDEX('[5]Tariff-V 2015'!$H$8:$FB$8,MATCH(C14,'[5]Tariff-V 2015'!$H$6:$FB$6,FALSE)))/1000 -> 49.61877268 | I14: =(INDEX('[5]Tariff-V 2015'!$H$10:$FB$10,MATCH(C14,'[5]Tariff-V 2015'!$H$6:$FB$6,FALSE)))/1000 -> 0.4321114065 | J14: 0.3145990615 | K14: =(INDEX('[5]Tariff-V Norm'!$H$10:$FB$10,MATCH(C14,'[5]Tariff-V Norm'!$H$6:$FB$6,FALSE)))/1000 -> 46.80911624 | L14: =(INDEX('[5]Tariff-V Norm'!$H$11:$FB$11,MATCH(C14,'[5]Tariff-V Norm'!$H$6:$FB$6,FALSE)))/1000 -> 0.3707938253 | M14: =L14*(1/(('[5]Tariff-D Norm'!$D$11+'[5]Tariff-V Norm'!$D$11)/'[5]Tariff-V&D Norm'!$D$11)) -> 0.365247084 | N14: 0.3511161613 | P14: =(K14/$K$24)*(Vencorp_Summary_BO!$G$30) -> 74.22371646 | Q14: 0.5791606033 | S14: 0.5791606033 | T14: 0.5821142789 | U14: 0.3493345812 | W14: 74.22371646 | X14: 0.5821142789 | Y14: =-(X14+Tariff_D_BO!X14)+INDEX(Annual_CTM_BO!$Z:$Z,MATCH($C14,Annual_CTM_BO!$C:$C,FALSE)) -> 0.1412125419 | Z14: =IF((X14+Tariff_D_BO!X14)=0,0,X14/(X14+Tariff_D_BO!X14)*Y14) -> 0.1301581249 | AA14: 0.7945873707 | AB14: 0.2559223256 | AD14: 74.22371646 | AE14: 0.7999291346 | AF14: =-(AE14+Tariff_D_BO!AE14)+INDEX(Annual_CTM_BO!$AG:$AG,MATCH($C14,Annual_CTM_BO!$C:$C,FALSE)) -> -0.04529294871 | AG14: =IF((AE14+Tariff_D_BO!AE14)=0,0,AE14/(AE14+Tariff_D_BO!AE14)*AF14) -> -0.04181812288 | AH14: 0.8582585695 | AI14: 0.2369363442 | AK14: 75.87313238 | AL14: 0.8711539404 | AM14: =-(AL14+Tariff_D_BO!AL14)+INDEX(Annual_CTM_BO!$AN:$AN,MATCH($C14,Annual_CTM_BO!$C:$C,FALSE)) -> -0.06812720153 | AN14: =IF((AL14+Tariff_D_BO!AL14)=0,0,AL14/(AL14+Tariff_D_BO!AL14)*AM14) -> -0.06297056001 | AO14: 0.9293323778 | AP14: 0.2236784175 | AR14: 69.70625945 | AS14: 0.9314722878 | AT14: =-(AS14+Tariff_D_BO!AS14)+INDEX(Annual_CTM_BO!$AU:$AU,MATCH($C14,Annual_CTM_BO!$C:$C,FALSE)) -> -0.1310378163 | AU14: =IF((AS14+Tariff_D_BO!AS14)=0,0,AS14/(AS14+Tariff_D_BO!AS14)*AT14) -> -0.1214021457 | AV14: 0.9313843563 | AW14: 0.2050453736 | AY14: 70.5836873 | AZ14: 0.9374978079 | BA14: =-(AZ14+Tariff_D_BO!AZ14)+INDEX(Annual_CTM_BO!$BB:$BB,MATCH($C14,Annual_CTM_BO!$C:$C,FALSE)) -> -0.1357385236 | BB14: =IF((AZ14+Tariff_D_BO!AZ14)=0,0,AZ14/(AZ14+Tariff_D_BO!AZ14)*BA14) -> -0.1259816729 | BC14: 0.937429961 | BD14: 0.2062873743
C15: M049 | D15: =(INDEX('[5]CTM Details'!P$5:P$408,MATCH($C15,'[5]CTM Details'!$B$5:$B$408,FALSE),1)) -> Sydenham | E15: =(INDEX('[5]CTM Details'!D$5:D$408,MATCH($C15,'[5]CTM Details'!$B$5:$B$408,FALSE),1)) -> 30000045PC | F15: =(INDEX('[5]CTM Details'!U$5:U$408,MATCH($C15,'[5]CTM Details'!$B$5:$B$408,FALSE),1)) -> Metro North West | H15: =(INDEX('[5]Tariff-V 2015'!$H$8:$FB$8,MATCH(C15,'[5]Tariff-V 2015'!$H$6:$FB$6,FALSE)))/1000 -> 635.5548735 | I15: =(INDEX('[5]Tariff-V 2015'!$H$10:$FB$10,MATCH(C15,'[5]Tariff-V 2015'!$H$6:$FB$6,FALSE)))/1000 -> 5.69880242 | J15: 0.3055459903 | K15: =(INDEX('[5]Tariff-V Norm'!$H$10:$FB$10,MATCH(C15,'[5]Tariff-V Norm'!$H$6:$FB$6,FALSE)))/1000 -> 597.5984238 | L15: =(INDEX('[5]Tariff-V Norm'!$H$11:$FB$11,MATCH(C15,'[5]Tariff-V Norm'!$H$6:$FB$6,FALSE)))/1000 -> 4.738560866 | M15: =L15*(1/(('[5]Tariff-D Norm'!$D$11+'[5]Tariff-V Norm'!$D$11)/'[5]Tariff-V&D Norm'!$D$11)) -> 4.667676268 | N15: 0.3507646764 | P15: =(K15/$K$24)*(Vencorp_Summary_BO!$G$30) -> 947.5926813 | Q15: 7.401384767 | S15: 7.401384767 | T15: 7.439131273 | U15: 0.3489848797 | W15: 947.5926813 | X15: 7.439131273 | Y15: =-(X15+Tariff_D_BO!X15)+INDEX(Annual_CTM_BO!$Z:$Z,MATCH($C15,Annual_CTM_BO!$C:$C,FALSE)) -> -1.210143371 | Z15: =IF((X15+Tariff_D_BO!X15)=0,0,X15/(X15+Tariff_D_BO!X15)*Y15) -> -1.115429384 | AA15: 7.054511211 | AB15: 0.3680119366 | AD15: 947.5926813 | AE15: 7.101936496 | AF15: =-(AE15+Tariff_D_BO!AE15)+INDEX(Annual_CTM_BO!$AG:$AG,MATCH($C15,Annual_CTM_BO!$C:$C,FALSE)) -> -1.075215236 | AG15: =IF((AE15+Tariff_D_BO!AE15)=0,0,AE15/(AE15+Tariff_D_BO!AE15)*AF15) -> -0.9927421153 | AH15: 6.916227768 | AI15: 0.3753699877 | AK15: 968.6502964 | AL15: 7.020144379 | AM15: =-(AL15+Tariff_D_BO!AL15)+INDEX(Annual_CTM_BO!$AN:$AN,MATCH($C15,Annual_CTM_BO!$C:$C,FALSE)) -> -1.155066926 | AN15: =IF((AL15+Tariff_D_BO!AL15)=0,0,AL15/(AL15+Tariff_D_BO!AL15)*AM15) -> -1.067655538 | AO15: 6.844783922 | AP15: 0.3877166115 | AR15: 889.9196166 | AS15: 6.860544938 | AT15: =-(AS15+Tariff_D_BO!AS15)+INDEX(Annual_CTM_BO!$AU:$AU,MATCH($C15,Annual_CTM_BO!$C:$C,FALSE)) -> -0.9651167454 | AU15: =IF((AS15+Tariff_D_BO!AS15)=0,0,AS15/(AS15+Tariff_D_BO!AS15)*AT15) -> -0.8941623298 | AV15: 6.859894145 | AW15: 0.3554188861 | AY15: 901.1214837 | AZ15: 6.904921346 | BA15: =-(AZ15+Tariff_D_BO!AZ15)+INDEX(Annual_CTM_BO!$BB:$BB,MATCH($C15,Annual_CTM_BO!$C:$C,FALSE)) -> -0.9997373827 | BB15: =IF((AZ15+Tariff_D_BO!AZ15)=0,0,AZ15/(AZ15+Tariff_D_BO!AZ15)*BA15) -> -0.9278907203 | BC15: 6.904419203 | BD15: 0.3575718551
C16: M052 | D16: =(INDEX('[5]CTM Details'!P$5:P$408,MATCH($C16,'[5]CTM Details'!$B$5:$B$408,FALSE),1)) -> Bacchus Marsh | E16: =(INDEX('[5]CTM Details'!D$5:D$408,MATCH($C16,'[5]CTM Details'!$B$5:$B$408,FALSE),1)) -> 30000047PC | F16: =(INDEX('[5]CTM Details'!U$5:U$408,MATCH($C16,'[5]CTM Details'!$B$5:$B$408,FALSE),1)) -> Calder | H16: =(INDEX('[5]Tariff-V 2015'!$H$8:$FB$8,MATCH(C16,'[5]Tariff-V 2015'!$H$6:$FB$6,FALSE)))/1000 -> 303.9751788 | I16: =(INDEX('[5]Tariff-V 2015'!$H$10:$FB$10,MATCH(C16,'[5]Tariff-V 2015'!$H$6:$FB$6,FALSE)))/1000 -> 2.304636642 | J16: 0.3613622615 | K16: =(INDEX('[5]Tariff-V Norm'!$H$10:$FB$10,MATCH(C16,'[5]Tariff-V Norm'!$H$6:$FB$6,FALSE)))/1000 -> 288.8176454 | L16: =(INDEX('[5]Tariff-V Norm'!$H$11:$FB$11,MATCH(C16,'[5]Tariff-V Norm'!$H$6:$FB$6,FALSE)))/1000 -> 2.162847301 | M16: =L16*(1/(('[5]Tariff-D Norm'!$D$11+'[5]Tariff-V Norm'!$D$11)/'[5]Tariff-V&D Norm'!$D$11)) -> 2.130493055 | N16: 0.3714075568 | P16: =(K16/$K$24)*(Vencorp_Summary_BO!$G$30) -> 457.9688903 | Q16: 3.378254604 | S16: 3.378254604 | T16: 3.395483449 | U16: 0.3695230171 | W16: 457.9688903 | X16: 3.395483449 | Y16: =-(X16+Tariff_D_BO!X16)+INDEX(Annual_CTM_BO!$Z:$Z,MATCH($C16,Annual_CTM_BO!$C:$C,FALSE)) -> -0.05197772819 | Z16: =IF((X16+Tariff_D_BO!X16)=0,0,X16/(X16+Tariff_D_BO!X16)*Y16) -> -0.0475206572 | AA16: 3.734875783 | AB16: 0.3359440478 | AD16: 457.9688903 | AE16: 3.759984192 | AF16: =-(AE16+Tariff_D_BO!AE16)+INDEX(Annual_CTM_BO!$AG:$AG,MATCH($C16,Annual_CTM_BO!$C:$C,FALSE)) -> -0.4601201471 | AG16: =IF((AE16+Tariff_D_BO!AE16)=0,0,AE16/(AE16+Tariff_D_BO!AE16)*AF16) -> -0.4214466323 | AH16: 3.779563185 | AI16: 0.3319720367 | AK16: 468.1459768 | AL16: 3.83635128 | AM16: =-(AL16+Tariff_D_BO!AL16)+INDEX(Annual_CTM_BO!$AN:$AN,MATCH($C16,Annual_CTM_BO!$C:$C,FALSE)) -> -0.5272175313 | AN16: =IF((AL16+Tariff_D_BO!AL16)=0,0,AL16/(AL16+Tariff_D_BO!AL16)*AM16) -> -0.4834932802 | AO16: 3.855460992 | AP16: 0.3326688352 | AR16: 430.0956596 | AS16: 3.864338698 | AT16: =-(AS16+Tariff_D_BO!AS16)+INDEX(Annual_CTM_BO!$AU:$AU,MATCH($C16,Annual_CTM_BO!$C:$C,FALSE)) -> -0.5469823328 | AU16: =IF((AS16+Tariff_D_BO!AS16)=0,0,AS16/(AS16+Tariff_D_BO!AS16)*AT16) -> -0.5029023144 | AV16: 3.864837252 | AW16: 0.3048884587 | AY16: 435.5094906 | AZ16: 3.8902054 | BA16: =-(AZ16+Tariff_D_BO!AZ16)+INDEX(Annual_CTM_BO!$BB:$BB,MATCH($C16,Annual_CTM_BO!$C:$C,FALSE)) -> -0.5668537281 | BB16: =IF((AZ16+Tariff_D_BO!AZ16)=0,0,AZ16/(AZ16+Tariff_D_BO!AZ16)*BA16) -> -0.5221920443 | BC16: 3.890590085 | BD16: 0.3066827038
C17: M053 | D17: =(INDEX('[5]CTM Details'!P$5:P$408,MATCH($C17,'[5]CTM Details'!$B$5:$B$408,FALSE),1)) -> Ballan | E17: =(INDEX('[5]CTM Details'!D$5:D$408,MATCH($C17,'[5]CTM Details'!$B$5:$B$408,FALSE),1)) -> 30000048PC | F17: =(INDEX('[5]CTM Details'!U$5:U$408,MATCH($C17,'[5]CTM Details'!$B$5:$B$408,FALSE),1)) -> Calder | H17: =(INDEX('[5]Tariff-V 2015'!$H$8:$FB$8,MATCH(C17,'[5]Tariff-V 2015'!$H$6:$FB$6,FALSE)))/1000 -> 46.37446402 | I17: =(INDEX('[5]Tariff-V 2015'!$H$10:$FB$10,MATCH(C17,'[5]Tariff-V 2015'!$H$6:$FB$6,FALSE)))/1000 -> 0.3240244986 | J17: 0.3921102467 | K17: =(INDEX('[5]Tariff-V Norm'!$H$10:$FB$10,MATCH(C17,'[5]Tariff-V Norm'!$H$6:$FB$6,FALSE)))/1000 -> 44.57516007 | L17: =(INDEX('[5]Tariff-V Norm'!$H$11:$FB$11,MATCH(C17,'[5]Tariff-V Norm'!$H$6:$FB$6,FALSE)))/1000 -> 0.3013734124 | M17: =L17*(1/(('[5]Tariff-D Norm'!$D$11+'[5]Tariff-V Norm'!$D$11)/'[5]Tariff-V&D Norm'!$D$11)) -> 0.2968651379 | N17: 0.4113777963 | P17: =(K17/$K$24)*(Vencorp_Summary_BO!$G$30) -> 70.6814037 | Q17: 0.4707295414 | S17: 0.4707295414 | T17: 0.4731302268 | U17: 0.4092904457 | W17: 70.6814037 | X17: 0.4731302268 | Y17: =-(X17+Tariff_D_BO!X17)+INDEX(Annual_CTM_BO!$Z:$Z,MATCH($C17,Annual_CTM_BO!$C:$C,FALSE)) -> -0.06684564554 | Z17: =IF((X17+Tariff_D_BO!X17)=0,0,X17/(X17+Tariff_D_BO!X17)*Y17) -> -0.06114153089 | AA17: 0.4596008674 | AB17: 0.4213388075 | AD17: 70.6814037 | AE17: 0.4626906211 | AF17: =-(AE17+Tariff_D_BO!AE17)+INDEX(Annual_CTM_BO!$AG:$AG,MATCH($C17,Annual_CTM_BO!$C:$C,FALSE)) -> -0.0575171659 | AG17: =IF((AE17+Tariff_D_BO!AE17)=0,0,AE17/(AE17+Tariff_D_BO!AE17)*AF17) -> -0.05270634914 | AH17: 0.4641437855 | AI17: 0.4172148533 | AK17: 72.25210156 | AL17: 0.4711175653 | AM17: =-(AL17+Tariff_D_BO!AL17)+INDEX(Annual_CTM_BO!$AN:$AN,MATCH($C17,Annual_CTM_BO!$C:$C,FALSE)) -> -0.06561470441 | AN17: =IF((AL17+Tariff_D_BO!AL17)=0,0,AL17/(AL17+Tariff_D_BO!AL17)*AM17) -> -0.06019955959 | AO17: 0.4725157886 | AP17: 0.4189298389 | AR17: 66.37954147 | AS17: 0.4736038184 | AT17: =-(AS17+Tariff_D_BO!AS17)+INDEX(Annual_CTM_BO!$AU:$AU,MATCH($C17,Annual_CTM_BO!$C:$C,FALSE)) -> -0.06701367248 | AU17: =IF((AS17+Tariff_D_BO!AS17)=0,0,AS17/(AS17+Tariff_D_BO!AS17)*AT17) -> -0.06163960854 | AV17: 0.4736590086 | AW17: 0.3839508046 | AY17: 67.21509424 | AZ17: 0.4767680273 | BA17: =-(AZ17+Tariff_D_BO!AZ17)+INDEX(Annual_CTM_BO!$BB:$BB,MATCH($C17,Annual_CTM_BO!$C:$C,FALSE)) -> -0.06944651182 | BB17: =IF((AZ17+Tariff_D_BO!AZ17)=0,0,AZ17/(AZ17+Tariff_D_BO!AZ17)*BA17) -> -0.06400171962 | BC17: 0.4768106104 | BD17: 0.386214021
C18: M054 | D18: =(INDEX('[5]CTM Details'!P$5:P$408,MATCH($C18,'[5]CTM Details'!$B$5:$B$408,FALSE),1)) -> Ballarat | E18: =(INDEX('[5]CTM Details'!D$5:D$408,MATCH($C18,'[5]CTM Details'!$B$5:$B$408,FALSE),1)) -> 30000049PC | F18: =(INDEX('[5]CTM Details'!U$5:U$408,MATCH($C18,'[5]CTM Details'!$B$5:$B$408,FALSE),1)) -> Calder | H18: =(INDEX('[5]Tariff-V 2015'!$H$8:$FB$8,MATCH(C18,'[5]Tariff-V 2015'!$H$6:$FB$6,FALSE)))/1000 -> 3057.771615 | I18: =(INDEX('[5]Tariff-V 2015'!$H$10:$FB$10,MATCH(C18,'[5]Tariff-V 2015'!$H$6:$FB$6,FALSE)))/1000 -> 17.18659777 | J18: 0.487441237 | K18: =(INDEX('[5]Tariff-V Norm'!$H$10:$FB$10,MATCH(C18,'[5]Tariff-V Norm'!$H$6:$FB$6,FALSE)))/1000 -> 2968.633828 | L18: =(INDEX('[5]Tariff-V Norm'!$H$11:$FB$11,MATCH(C18,'[5]Tariff-V Norm'!$H$6:$FB$6,FALSE)))/1000 -> 17.73607256 | M18: =L18*(1/(('[5]Tariff-D Norm'!$D$11+'[5]Tariff-V Norm'!$D$11)/'[5]Tariff-V&D Norm'!$D$11)) -> 17.47075691 | N18: 0.4655346879 | P18: =(K18/$K$24)*(Vencorp_Summary_BO!$G$30) -> 4707.267584 | Q18: 27.70281969 | S18: 27.70281969 | T18: 27.84410199 | U18: 0.4631725426 | W18: 4707.267584 | X18: 27.84410199 | Y18: =-(X18+Tariff_D_BO!X18)+INDEX(Annual_CTM_BO!$Z:$Z,MATCH($C18,Annual_CTM_BO!$C:$C,FALSE)) -> -5.79740906 | Z18: =IF((X18+Tariff_D_BO!X18)=0,0,X18/(X18+Tariff_D_BO!X18)*Y18) -> -5.304428854 | AA18: 25.14450865 | AB18: 0.5129002001 | AD18: 4707.267584 | AE18: 25.31354736 | AF18: =-(AE18+Tariff_D_BO!AE18)+INDEX(Annual_CTM_BO!$AG:$AG,MATCH($C18,Annual_CTM_BO!$C:$C,FALSE)) -> -3.420137582 | AG18: =IF((AE18+Tariff_D_BO!AE18)=0,0,AE18/(AE18+Tariff_D_BO!AE18)*AF18) -> -3.135073486 | AH18: 25.10828226 | AI18: 0.5136402159 | AK18: 4811.87353 | AL18: 25.48553525 | AM18: =-(AL18+Tariff_D_BO!AL18)+INDEX(Annual_CTM_BO!$AN:$AN,MATCH($C18,Annual_CTM_BO!$C:$C,FALSE)) -> -3.816929521 | AN18: =IF((AL18+Tariff_D_BO!AL18)=0,0,AL18/(AL18+Tariff_D_BO!AL18)*AM18) -> -3.503024109 | AO18: 25.27775235 | AP18: 0.5215343108 | AR18: 4420.770492 | AS18: 25.3359577 | AT18: =-(AS18+Tariff_D_BO!AS18)+INDEX(Annual_CTM_BO!$AU:$AU,MATCH($C18,Annual_CTM_BO!$C:$C,FALSE)) -> -3.584086354 | AU18: =IF((AS18+Tariff_D_BO!AS18)=0,0,AS18/(AS18+Tariff_D_BO!AS18)*AT18) -> -3.297675307 | AV18: 25.33868414 | AW18: 0.4779924605 | AY18: 4476.41696 | AZ18: 25.50500304 | BA18: =-(AZ18+Tariff_D_BO!AZ18)+INDEX(Annual_CTM_BO!$BB:$BB,MATCH($C18,Annual_CTM_BO!$C:$C,FALSE)) -> -3.714136347 | BB18: =IF((AZ18+Tariff_D_BO!AZ18)=0,0,AZ18/(AZ18+Tariff_D_BO!AZ18)*BA18) -> -3.423962923 | BC18: 25.50710661 | BD18: 0.4808132981
C19: M086 | D19: =(INDEX('[5]CTM Details'!P$5:P$408,MATCH($C19,'[5]CTM Details'!$B$5:$B$408,FALSE),1)) -> Wallace | E19: =(INDEX('[5]CTM Details'!D$5:D$408,MATCH($C19,'[5]CTM Details'!$B$5:$B$408,FALSE),1)) -> 30000080PC | F19: =(INDEX('[5]CTM Details'!U$5:U$408,MATCH($C19,'[5]CTM Details'!$B$5:$B$408,FALSE),1)) -> Calder | H19: =(INDEX('[5]Tariff-V 2015'!$H$8:$FB$8,MATCH(C19,'[5]Tariff-V 2015'!$H$6:$FB$6,FALSE)))/1000 -> 3.506839547 | I19: =(INDEX('[5]Tariff-V 2015'!$H$10:$FB$10,MATCH(C19,'[5]Tariff-V 2015'!$H$6:$FB$6,FALSE)))/1000 -> 0.02381345013 | J19: 0.4034602096 | K19: =(INDEX('[5]Tariff-V Norm'!$H$10:$FB$10,MATCH(C19,'[5]Tariff-V Norm'!$H$6:$FB$6,FALSE)))/1000 -> 3.376016491 | L19: =(INDEX('[5]Tariff-V Norm'!$H$11:$FB$11,MATCH(C19,'[5]Tariff-V Norm'!$H$6:$FB$6,FALSE)))/1000 -> 0.02202290306 | M19: =L19*(1/(('[5]Tariff-D Norm'!$D$11+'[5]Tariff-V Norm'!$D$11)/'[5]Tariff-V&D Norm'!$D$11)) -> 0.02169346029 | N19: 0.4263662931 | P19: =(K19/$K$24)*(Vencorp_Summary_BO!$G$30) -> 5.353241225 | Q19: 0.0343986252 | S19: 0.0343986252 | T19: 0.03457405561 | U19: 0.4242028902 | W19: 5.353241225 | X19: 0.03457405561 | Y19: =-(X19+Tariff_D_BO!X19)+INDEX(Annual_CTM_BO!$Z:$Z,MATCH($C19,Annual_CTM_BO!$C:$C,FALSE)) -> -0.008092762161 | Z19: =IF((X19+Tariff_D_BO!X19)=0,0,X19/(X19+Tariff_D_BO!X19)*Y19) -> -0.007407387437 | AA19: 0.0303062302 | AB19: 0.4839405699 | AD19: 5.353241225 | AE19: 0.03050996957 | AF19: =-(AE19+Tariff_D_BO!AE19)+INDEX(Annual_CTM_BO!$AG:$AG,MATCH($C19,Annual_CTM_BO!$C:$C,FALSE)) -> -0.004094767016 | AG19: =IF((AE19+Tariff_D_BO!AE19)=0,0,AE19/(AE19+Tariff_D_BO!AE19)*AF19) -> -0.003754859578 | AH19: 0.0302894986 | AI19: 0.4842078937 | AK19: 5.472202141 | AL19: 0.03074459958 | AM19: =-(AL19+Tariff_D_BO!AL19)+INDEX(Annual_CTM_BO!$AN:$AN,MATCH($C19,Annual_CTM_BO!$C:$C,FALSE)) -> -0.004577138491 | AN19: =IF((AL19+Tariff_D_BO!AL19)=0,0,AL19/(AL19+Tariff_D_BO!AL19)*AM19) -> -0.004202243957 | AO19: 0.03052113055 | AP19: 0.4912116414 | AR19: 5.027428423 | AS19: 0.03059140947 | AT19: =-(AS19+Tariff_D_BO!AS19)+INDEX(Annual_CTM_BO!$AU:$AU,MATCH($C19,Annual_CTM_BO!$C:$C,FALSE)) -> -0.004326301938 | AU19: =IF((AS19+Tariff_D_BO!AS19)=0,0,AS19/(AS19+Tariff_D_BO!AS19)*AT19) -> -0.003981988447 | AV19: 0.03059438582 | AW19: 0.4502060143 | AY19: 5.0907112 | AZ19: 0.03079520227 | BA19: =-(AZ19+Tariff_D_BO!AZ19)+INDEX(Annual_CTM_BO!$BB:$BB,MATCH($C19,Annual_CTM_BO!$C:$C,FALSE)) -> -0.004483192306 | BB19: =IF((AZ19+Tariff_D_BO!AZ19)=0,0,AZ19/(AZ19+Tariff_D_BO!AZ19)*BA19) -> -0.004134365671 | BC19: 0.03079749857 | BD19: 0.452866454
C20: M121 | D20: =(INDEX('[5]CTM Details'!P$5:P$408,MATCH($C20,'[5]CTM Details'!$B$5:$B$408,FALSE),1)) -> Rockbank | E20: =(INDEX('[5]CTM Details'!D$5:D$408,MATCH($C20,'[5]CTM Details'!$B$5:$B$408,FALSE),1)) -> 30000117PC | F20: =(INDEX('[5]CTM Details'!U$5:U$408,MATCH($C20,'[5]CTM Details'!$B$5:$B$408,FALSE),1)) -> Metro North West | H20: =(INDEX('[5]Tariff-V 2015'!$H$8:$FB$8,MATCH(C20,'[5]Tariff-V 2015'!$H$6:$FB$6,FALSE)))/1000 -> 258.5857367 | I20: =(INDEX('[5]Tariff-V 2015'!$H$10:$FB$10,MATCH(C20,'[5]Tariff-V 2015'!$H$6:$FB$6,FALSE)))/1000 -> 1.477999315 | J20: 0.4793331539 | K20: =(INDEX('[5]Tariff-V Norm'!$H$10:$FB$10,MATCH(C20,'[5]Tariff-V Norm'!$H$6:$FB$6,FALSE)))/1000 -> 247.6871184 | L20: =(INDEX('[5]Tariff-V Norm'!$H$11:$FB$11,MATCH(C20,'[5]Tariff-V Norm'!$H$6:$FB$6,FALSE)))/1000 -> 1.603280066 | M20: =L20*(1/(('[5]Tariff-D Norm'!$D$11+'[5]Tariff-V Norm'!$D$11)/'[5]Tariff-V&D Norm'!$D$11)) -> 1.579296441 | N20: 0.4296817412 | P20: =(K20/$K$24)*(Vencorp_Summary_BO!$G$30) -> 392.7495309 | Q20: 2.504239787 | S20: 2.504239787 | T20: 2.517011222 | U20: 0.4275015155 | W20: 392.7495309 | X20: 2.517011222 | Y20: =-(X20+Tariff_D_BO!X20)+INDEX(Annual_CTM_BO!$Z:$Z,MATCH($C20,Annual_CTM_BO!$C:$C,FALSE)) -> 0.5169332127 | Z20: =IF((X20+Tariff_D_BO!X20)=0,0,X20/(X20+Tariff_D_BO!X20)*Y20) -> 0.4770188627 | AA20: 3.340040243 | AB20: 0.3221596249 | AD20: 392.7495309 | AE20: 3.362494295 | AF20: =-(AE20+Tariff_D_BO!AE20)+INDEX(Annual_CTM_BO!$AG:$AG,MATCH($C20,Annual_CTM_BO!$C:$C,FALSE)) -> -0.3181581192 | AG20: =IF((AE20+Tariff_D_BO!AE20)=0,0,AE20/(AE20+Tariff_D_BO!AE20)*AF20) -> -0.2940830551 | AH20: 3.47375279 | AI20: 0.3097589774 | AK20: 401.4772982 | AL20: 3.52594607 | AM20: =-(AL20+Tariff_D_BO!AL20)+INDEX(Annual_CTM_BO!$AN:$AN,MATCH($C20,Annual_CTM_BO!$C:$C,FALSE)) -> -0.3974763793 | AN20: =IF((AL20+Tariff_D_BO!AL20)=0,0,AL20/(AL20+Tariff_D_BO!AL20)*AM20) -> -0.3678025833 | AO20: 3.631558218 | AP20: 0.302883153 | AR20: 368.8457275 | AS20: 3.639920358 | AT20: =-(AS20+Tariff_D_BO!AS20)+INDEX(Annual_CTM_BO!$AU:$AU,MATCH($C20,Annual_CTM_BO!$C:$C,FALSE)) -> -0.5116094941 | AU20: =IF((AS20+Tariff_D_BO!AS20)=0,0,AS20/(AS20+Tariff_D_BO!AS20)*AT20) -> -0.4745050946 | AV20: 3.639460467 | AW20: 0.277661002 | AY20: 373.4885747 | AZ20: 3.663349279 | BA20: =-(AZ20+Tariff_D_BO!AZ20)+INDEX(Annual_CTM_BO!$BB:$BB,MATCH($C20,Annual_CTM_BO!$C:$C,FALSE)) -> -0.5299290704 | BB20: =IF((AZ20+Tariff_D_BO!AZ20)=0,0,AZ20/(AZ20+Tariff_D_BO!AZ20)*BA20) -> -0.492361322 | BC20: 3.662994472 | BD20: 0.2793496897
C21: M169 | D21: =(INDEX('[5]CTM Details'!P$5:P$408,MATCH($C21,'[5]CTM Details'!$B$5:$B$408,FALSE),1)) -> Mount Cottrell | E21: =(INDEX('[5]CTM Details'!D$5:D$408,MATCH($C21,'[5]CTM Details'!$B$5:$B$408,FALSE),1)) -> 30000208PC | F21: =(INDEX('[5]CTM Details'!U$5:U$408,MATCH($C21,'[5]CTM Details'!$B$5:$B$408,FALSE),1)) -> Metro North West | P21: =(K21/$K$24)*(Vencorp_Summary_BO!$G$30) -> 0 | Q21: =IF(N21=0,0,(P21/365)/N21) -> 0 | T21: 0 | U21: =IF(T21=0,0,(P21/365)/T21) -> 0 | W21: 0 | X21: 0 | Y21: =-(X21+Tariff_D_BO!X21)+INDEX(Annual_CTM_BO!$Z:$Z,MATCH($C21,Annual_CTM_BO!$C:$C,FALSE)) -> 3.935769842 | Z21: =IF((X21+Tariff_D_BO!X21)=0,0,X21/(X21+Tariff_D_BO!X21)*Y21) -> 0 | AA21: 0 | AB21: =IF(AA21=0,0,(W21/365)/AA21) -> 0 | AD21: 0 | AE21: 0 | AF21: =-(AE21+Tariff_D_BO!AE21)+INDEX(Annual_CTM_BO!$AG:$AG,MATCH($C21,Annual_CTM_BO!$C:$C,FALSE)) -> 4.262485343 | AG21: =IF((AE21+Tariff_D_BO!AE21)=0,0,AE21/(AE21+Tariff_D_BO!AE21)*AF21) -> 0 | AH21: 0 | AI21: =IF(AH21=0,0,(AD21/365)/AH21) -> 0 | AK21: 0 | AL21: 0 | AM21: =-(AL21+Tariff_D_BO!AL21)+INDEX(Annual_CTM_BO!$AN:$AN,MATCH($C21,Annual_CTM_BO!$C:$C,FALSE)) -> 4.647041922 | AN21: =IF((AL21+Tariff_D_BO!AL21)=0,0,AL21/(AL21+Tariff_D_BO!AL21)*AM21) -> 0 | AO21: 0 | AP21: =IF(AO21=0,0,(AK21/365)/AO21) -> 0 | AR21: 0 | AS21: 0 | AT21: =-(AS21+Tariff_D_BO!AS21)+INDEX(Annual_CTM_BO!$AU:$AU,MATCH($C21,Annual_CTM_BO!$C:$C,FALSE)) -> 4.647041922 | AU21: =IF((AS21+Tariff_D_BO!AS21)=0,0,AS21/(AS21+Tariff_D_BO!AS21)*AT21) -> 0 | AV21: 0 | AW21: =IF(AV21=0,0,(AR21/365)/AV21) -> 0 | AY21: 0 | AZ21: 0 | BA21: =-(AZ21+Tariff_D_BO!AZ21)+INDEX(Annual_CTM_BO!$BB:$BB,MATCH($C21,Annual_CTM_BO!$C:$C,FALSE)) -> 4.647041922 | BB21: =IF((AZ21+Tariff_D_BO!AZ21)=0,0,AZ21/(AZ21+Tariff_D_BO!AZ21)*BA21) -> 0 | BC21: 0 | BD21: =IF(BC21=0,0,(AY21/365)/BC21) -> 0
C22: M154 | D22: =(INDEX('[5]CTM Details'!P$5:P$408,MATCH($C22,'[5]CTM Details'!$B$5:$B$408,FALSE),1)) -> Plumpton | E22: =(INDEX('[5]CTM Details'!D$5:D$408,MATCH($C22,'[5]CTM Details'!$B$5:$B$408,FALSE),1)) -> 30000192PC | F22: =(INDEX('[5]CTM Details'!U$5:U$408,MATCH($C22,'[5]CTM Details'!$B$5:$B$408,FALSE),1)) -> Metro North West | P22: =(K22/$K$24)*(Vencorp_Summary_BO!$G$30) -> 0 | Q22: 0 | T22: 0 | U22: 0 | W22: 0 | X22: 0 | Y22: =-(X22+Tariff_D_BO!X22)+INDEX(Annual_CTM_BO!$Z:$Z,MATCH($C22,Annual_CTM_BO!$C:$C,FALSE)) -> 8.369580042 | Z22: =IF((X22+Tariff_D_BO!X22)=0,0,X22/(X22+Tariff_D_BO!X22)*Y22) -> 0 | AA22: 0 | AB22: 0 | AD22: 0 | AE22: 0 | AF22: =-(AE22+Tariff_D_BO!AE22)+INDEX(Annual_CTM_BO!$AG:$AG,MATCH($C22,Annual_CTM_BO!$C:$C,FALSE)) -> 8.497979736 | AG22: =IF((AE22+Tariff_D_BO!AE22)=0,0,AE22/(AE22+Tariff_D_BO!AE22)*AF22) -> 0 | AH22: 0 | AI22: 0 | AK22: 0 | AL22: 0 | AM22: =-(AL22+Tariff_D_BO!AL22)+INDEX(Annual_CTM_BO!$AN:$AN,MATCH($C22,Annual_CTM_BO!$C:$C,FALSE)) -> 8.682693299 | AN22: =IF((AL22+Tariff_D_BO!AL22)=0,0,AL22/(AL22+Tariff_D_BO!AL22)*AM22) -> 0 | AO22: 0 | AP22: 0 | AR22: 0 | AS22: 0 | AT22: =-(AS22+Tariff_D_BO!AS22)+INDEX(Annual_CTM_BO!$AU:$AU,MATCH($C22,Annual_CTM_BO!$C:$C,FALSE)) -> 8.682693299 | AU22: =IF((AS22+Tariff_D_BO!AS22)=0,0,AS22/(AS22+Tariff_D_BO!AS22)*AT22) -> 0 | AV22: 0 | AW22: 0 | AY22: 0 | AZ22: 0 | BA22: =-(AZ22+Tariff_D_BO!AZ22)+INDEX(Annual_CTM_BO!$BB:$BB,MATCH($C22,Annual_CTM_BO!$C:$C,FALSE)) -> 8.682693299 | BB22: =IF((AZ22+Tariff_D_BO!AZ22)=0,0,AZ22/(AZ22+Tariff_D_BO!AZ22)*BA22) -> 0 | BC22: 0 | BD22: 0
C24: Ballarat | H24: =SUM(H12:H22) -> 5912.418124 | I24: =SUM(I12:I22) -> 37.29756177 | J24: =IF(I24=0,0,(H24/365)/I24) -> 0.4343020039 | K24: 5675.841446 | L24: 37.90017425 | M24: 37.33322182 | N24: =IF(M24=0,0,(K24/365)/M24) -> 0.4165258121 | P24: 9000 | Q24: 59.19809416 | R24: 0 | S24: 59.19809416 | T24: =(INDEX(Volume_Assumptions_BA!I$130:I$135,MATCH($C24,Volume_Assumptions_BA!$D$130:$D$135,FALSE),1)) -> 59.5 | U24: =IF(T24=0,0,(P24/365)/T24) -> 0.4144123403 | W24: =Vencorp_Summary_BO!H30 -> 9000 | X24: =(INDEX(Volume_Assumptions_BA!J$130:J$135,MATCH($C24,Volume_Assumptions_BA!$D$130:$D$135,FALSE),1)) -> 59.5 | Z24: =SUM(Z12:Z22) -> -6.163879157 | AA24: =SUM(AA12:AA22) -> 59.5 | AB24: 0.4144123403 | AD24: =Vencorp_Summary_BO!I30 -> 9000 | AE24: =(INDEX(Volume_Assumptions_BA!K$130:K$135,MATCH($C24,Volume_Assumptions_BA!$D$130:$D$135,FALSE),1)) -> 59.9 | AG24: =SUM(AG12:AG22) -> -6.989547123 | AH24: =SUM(AH12:AH22) -> 59.9 | AI24: =IF(AH24=0,0,(AD24/365)/AH24) -> 0.4116449791 | AK24: =Vencorp_Summary_BO!J30 -> 9200 | AL24: =(INDEX(Volume_Assumptions_BA!L$130:L$135,MATCH($C24,Volume_Assumptions_BA!$D$130:$D$135,FALSE),1)) -> 60.8 | AN24: =SUM(AN12:AN22) -> -7.925968382 | AO24: =SUM(AO12:AO22) -> 60.8 | AP24: =IF(AO24=0,0,(AK24/365)/AO24) -> 0.4145638068 | AR24: =Vencorp_Summary_BO!K30 -> 8452.235552 | AS24: =(INDEX(Volume_Assumptions_BA!M$130:M$135,MATCH($C24,Volume_Assumptions_BA!$D$130:$D$135,FALSE),1)) -> 60.94 | AU24: =SUM(AU12:AU22) -> -7.937526716 | AV24: =SUM(AV12:AV22) -> 60.94 | AW24: =IF(AV24=0,0,(AR24/365)/AV24) -> 0.3799935959 | AY24: =Vencorp_Summary_BO!L30 -> 8558.628104 | AZ24: =(INDEX(Volume_Assumptions_BA!N$130:N$135,MATCH($C24,Volume_Assumptions_BA!$D$130:$D$135,FALSE),1)) -> 61.34 | BB24: =SUM(BB12:BB22) -> -8.239073215 | BC24: =SUM(BC12:BC22) -> 61.34 | BD24: =IF(BC24=0,0,(AY24/365)/BC24) -> 0.3822676259
C26: M028 | D26: =(INDEX('[5]CTM Details'!P$5:P$408,MATCH($C26,'[5]CTM Details'!$B$5:$B$408,FALSE),1)) -> Laverton North (Fitzgerald Rd) | E26: =(INDEX('[5]CTM Details'!D$5:D$408,MATCH($C26,'[5]CTM Details'!$B$5:$B$408,FALSE),1)) -> 30000028PC | F26: =(INDEX('[5]CTM Details'!U$5:U$408,MATCH($C26,'[5]CTM Details'!$B$5:$B$408,FALSE),1)) -> Metro North West | H26: =(INDEX('[5]Tariff-V 2015'!$H$8:$FB$8,MATCH(C26,'[5]Tariff-V 2015'!$H$6:$FB$6,FALSE)))/1000 -> 1729.847804 | I26: =(INDEX('[5]Tariff-V 2015'!$H$10:$FB$10,MATCH(C26,'[5]Tariff-V 2015'!$H$6:$FB$6,FALSE)))/1000 -> 6.401599716 | J26: =IF(I26=0,0,(H26/365)/I26) -> 0.7403319893 | K26: =(INDEX('[5]Tariff-V Norm'!$H$10:$FB$10,MATCH(C26,'[5]Tariff-V Norm'!$H$6:$FB$6,FALSE)))/1000 -> 1701.338496 | L26: =(INDEX('[5]Tariff-V Norm'!$H$11:$FB$11,MATCH(C26,'[5]Tariff-V Norm'!$H$6:$FB$6,FALSE)))/1000 -> 7.845608442 | M26: =L26*(1/(('[5]Tariff-D Norm'!$D$11+'[5]Tariff-V Norm'!$D$11)/'[5]Tariff-V&D Norm'!$D$11)) -> 7.728245214 | N26: =IF(M26=0,0,(K26/365)/M26) -> 0.6031383878 | P26: =(K26/$K$41)*(Vencorp_Summary_BO!$G$32) -> 2035.103824 | Q26: =IF(N26=0,0,(P26/365)/N26) -> 9.24435756 | S26: =IF(R26=0,Q26,(P26/365)/R26) -> 9.24435756 | T26: =(M26/M$41)*(T$41) -> 10.83496641 | U26: =IF(T26=0,0,(P26/365)/T26) -> 0.5145956805 | W26: =(P26/P$41)*W$41 -> 1743.276786 | X26: =(T26/$T$41)*$X$41 -> 10.80729715 | Y26: =-(X26+Tariff_D_BO!X26)+INDEX(Annual_CTM_BO!$Z:$Z,MATCH($C26,Annual_CTM_BO!$C:$C,FALSE)) -> -3.797454137 | Z26: =IF((X26+Tariff_D_BO!X26)=0,0,X26/(X26+Tariff_D_BO!X26)*Y26) -> -2.815136493 | AA26: =(Z26+X26)/(X$41+Z$41)*X$41 -> 8.16414487 | AB26: =IF(AA26=0,0,(W26/365)/AA26) -> 0.5850093132 | AD26: =(W26/W$41)*AD$41 -> 1743.276786 | AE26: =(AA26/AA$41)*AE$41 -> 8.184972177 | AF26: =-(AE26+Tariff_D_BO!AE26)+INDEX(Annual_CTM_BO!$AG:$AG,MATCH($C26,Annual_CTM_BO!$C:$C,FALSE)) -> -0.3343816478 | AG26: =IF((AE26+Tariff_D_BO!AE26)=0,0,AE26/(AE26+Tariff_D_BO!AE26)*AF26) -> -0.2496299166 | AH26: =(AG26+AE26)/(AE$41+AG$41)*AE$41 -> 7.994345559 | AI26: =IF(AH26=0,0,(AD26/365)/AH26) -> 0.5974348679 | AK26: =(AD26/AD$41)*AK$41 -> 1758.305034 | AL26: =(AH26/AH$41)*AL$41 -> 8.075722918 | AM26: =-(AL26+Tariff_D_BO!AL26)+INDEX(Annual_CTM_BO!$AN:$AN,MATCH($C26,Annual_CTM_BO!$C:$C,FALSE)) -> -0.2136271407 | AN26: =IF((AL26+Tariff_D_BO!AL26)=0,0,AL26/(AL26+Tariff_D_BO!AL26)*AM26) -> -0.1602820528 | AO26: =(AN26+AL26)/(AL$41+AN$41)*AL$41 -> 7.895094368 | AP26: =IF(AO26=0,0,(AK26/365)/AO26) -> 0.6101604163 | AR26: =(AK26/AK$41)*AR$41 -> 1633.546123 | AS26: =(AO26/AO$41)*AS$41 -> 7.895088899 | AT26: =-(AS26+Tariff_D_BO!AS26)+INDEX(Annual_CTM_BO!$AU:$AU,MATCH($C26,Annual_CTM_BO!$C:$C,FALSE)) -> 0.06915155279 | AU26: =IF((AS26+Tariff_D_BO!AS26)=0,0,AS26/(AS26+Tariff_D_BO!AS26)*AT26) -> 0.05209168162 | AV26: =(AU26+AS26)/(AS$41+AU$41)*AS$41 -> 7.876174085 | AW26: =IF(AV26=0,0,(AR26/365)/AV26) -> 0.5682287848 | AY26: =(AR26/AR$41)*AY$41 -> 1654.108392 | AZ26: =(AV26/AV$41)*AZ$41 -> 7.901969117 | BA26: =-(AZ26+Tariff_D_BO!AZ26)+INDEX(Annual_CTM_BO!$BB:$BB,MATCH($C26,Annual_CTM_BO!$C:$C,FALSE)) -> 0.09115864613 | BB26: =IF((AZ26+Tariff_D_BO!AZ26)=0,0,AZ26/(AZ26+Tariff_D_BO!AZ26)*BA26) -> 0.06887402898 | BC26: =(BB26+AZ26)/(AZ$41+BB$41)*AZ$41 -> 7.882742898 | BD26: =IF(BC26=0,0,(AY26/365)/BC26) -> 0.5749018928
C27: M029 | D27: =(INDEX('[5]CTM Details'!P$5:P$408,MATCH($C27,'[5]CTM Details'!$B$5:$B$408,FALSE),1)) -> Hoppers Crossing (Forsyth Rd) | E27: =(INDEX('[5]CTM Details'!D$5:D$408,MATCH($C27,'[5]CTM Details'!$B$5:$B$408,FALSE),1)) -> 30000029PC | F27: =(INDEX('[5]CTM Details'!U$5:U$408,MATCH($C27,'[5]CTM Details'!$B$5:$B$408,FALSE),1)) -> Metro North West | H27: =(INDEX('[5]Tariff-V 2015'!$H$8:$FB$8,MATCH(C27,'[5]Tariff-V 2015'!$H$6:$FB$6,FALSE)))/1000 -> 815.4505828 | I27: =(INDEX('[5]Tariff-V 2015'!$H$10:$FB$10,MATCH(C27,'[5]Tariff-V 2015'!$H$6:$FB$6,FALSE)))/1000 -> 6.339465511 | J27: 0.3524131777 | K27: =(INDEX('[5]Tariff-V Norm'!$H$10:$FB$10,MATCH(C27,'[5]Tariff-V Norm'!$H$6:$FB$6,FALSE)))/1000 -> 777.2533518 | L27: =(INDEX('[5]Tariff-V Norm'!$H$11:$FB$11,MATCH(C27,'[5]Tariff-V Norm'!$H$6:$FB$6,FALSE)))/1000 -> 5.514802594 | M27: =L27*(1/(('[5]Tariff-D Norm'!$D$11+'[5]Tariff-V Norm'!$D$11)/'[5]Tariff-V&D Norm'!$D$11)) -> 5.43230612 | N27: 0.3919994917 | P27: =(K27/$K$41)*(Vencorp_Summary_BO!$G$32) -> 929.7334259 | Q27: 6.498005531 | S27: =IF(R27=0,Q27,(P27/365)/R27) -> 6.498005531 | T27: 7.616069718 | U27: 0.3344526717 | W27: =(P27/P$41)*W$41 -> 796.4127821 | X27: 7.596620558 | Y27: =-(X27+Tariff_D_BO!X27)+INDEX(Annual_CTM_BO!$Z:$Z,MATCH($C27,Annual_CTM_BO!$C:$C,FALSE)) -> 0.4416300847 | Z27: =IF((X27+Tariff_D_BO!X27)=0,0,X27/(X27+Tariff_D_BO!X27)*Y27) -> 0.3490528306 | AA27: 8.116657233 | AB27: =IF(AA27=0,0,(W27/365)/AA27) -> 0.2688240695 | AD27: 796.4127821 | AE27: 8.137363395 | AF27: =-(AE27+Tariff_D_BO!AE27)+INDEX(Annual_CTM_BO!$AG:$AG,MATCH($C27,Annual_CTM_BO!$C:$C,FALSE)) -> -0.01164757314 | AG27: =IF((AE27+Tariff_D_BO!AE27)=0,0,AE27/(AE27+Tariff_D_BO!AE27)*AF27) -> -0.009258396042 | AH27: 8.188541586 | AI27: 0.2664641566 | AK27: 803.2784096 | AL27: 8.271895738 | AM27: =-(AL27+Tariff_D_BO!AL27)+INDEX(Annual_CTM_BO!$AN:$AN,MATCH($C27,Annual_CTM_BO!$C:$C,FALSE)) -> 0.09584728597 | AN27: =IF((AL27+Tariff_D_BO!AL27)=0,0,AL27/(AL27+Tariff_D_BO!AL27)*AM27) -> 0.07649603282 | AO27: 8.32693238 | AP27: 0.2642945403 | AR27: 746.2825312 | AS27: 8.326926612 | AT27: =-(AS27+Tariff_D_BO!AS27)+INDEX(Annual_CTM_BO!$AU:$AU,MATCH($C27,Annual_CTM_BO!$C:$C,FALSE)) -> 0.06058566702 | AU27: =IF((AS27+Tariff_D_BO!AS27)=0,0,AS27/(AS27+Tariff_D_BO!AS27)*AT27) -> 0.04851026365 | AV27: 8.300603995 | AW27: 0.2463205901 | AY27: 755.6763658 | AZ27: 8.327789065 | BA27: =-(AZ27+Tariff_D_BO!AZ27)+INDEX(Annual_CTM_BO!$BB:$BB,MATCH($C27,Annual_CTM_BO!$C:$C,FALSE)) -> 0.08445341224 | BB27: =IF((AZ27+Tariff_D_BO!AZ27)=0,0,AZ27/(AZ27+Tariff_D_BO!AZ27)*BA27) -> 0.06778346898 | BC27: 8.302777831 | BD27: =IF(BC27=0,0,(AY27/365)/BC27) -> 0.2493558481
C28: M030 | D28: =(INDEX('[5]CTM Details'!P$5:P$408,MATCH($C28,'[5]CTM Details'!$B$5:$B$408,FALSE),1)) -> Hoppers Crossing (Heaths Rd) | E28: =(INDEX('[5]CTM Details'!D$5:D$408,MATCH($C28,'[5]CTM Details'!$B$5:$B$408,FALSE),1)) -> 30000030PC | F28: =(INDEX('[5]CTM Details'!U$5:U$408,MATCH($C28,'[5]CTM Details'!$B$5:$B$408,FALSE),1)) -> Metro North West | H28: =(INDEX('[5]Tariff-V 2015'!$H$8:$FB$8,MATCH(C28,'[5]Tariff-V 2015'!$H$6:$FB$6,FALSE)))/1000 -> 772.7235325 | I28: =(INDEX('[5]Tariff-V 2015'!$H$10:$FB$10,MATCH(C28,'[5]Tariff-V 2015'!$H$6:$FB$6,FALSE)))/1000 -> 7.845318395 | J28: 0.2698489299 | K28: =(INDEX('[5]Tariff-V Norm'!$H$10:$FB$10,MATCH(C28,'[5]Tariff-V Norm'!$H$6:$FB$6,FALSE)))/1000 -> 720.8015767 | L28: =(INDEX('[5]Tariff-V Norm'!$H$11:$FB$11,MATCH(C28,'[5]Tariff-V Norm'!$H$6:$FB$6,FALSE)))/1000 -> 6.218065147 | M28: =L28*(1/(('[5]Tariff-D Norm'!$D$11+'[5]Tariff-V Norm'!$D$11)/'[5]Tariff-V&D Norm'!$D$11)) -> 6.125048499 | N28: 0.3224135842 | P28: =(K28/$K$41)*(Vencorp_Summary_BO!$G$32) -> 862.2070496 | Q28: 7.326648784 | S28: 7.326648784 | T28: 8.587291543 | U28: 0.2750822053 | W28: =(P28/P$41)*W$41 -> 738.5694609 | X28: 8.565362173 | Y28: =-(X28+Tariff_D_BO!X28)+INDEX(Annual_CTM_BO!$Z:$Z,MATCH($C28,Annual_CTM_BO!$C:$C,FALSE)) -> -2.578864525 | Z28: =IF((X28+Tariff_D_BO!X28)=0,0,X28/(X28+Tariff_D_BO!X28)*Y28) -> -2.034311897 | AA28: 6.671592685 | AB28: 0.3032975888 | AD28: 738.5694609 | AE28: 6.688612386 | AF28: =-(AE28+Tariff_D_BO!AE28)+INDEX(Annual_CTM_BO!$AG:$AG,MATCH($C28,Annual_CTM_BO!$C:$C,FALSE)) -> -0.5977348795 | AG28: =IF((AE28+Tariff_D_BO!AE28)=0,0,AE28/(AE28+Tariff_D_BO!AE28)*AF28) -> -0.474223979 | AH28: 6.260595541 | AI28: 0.3232085449 | AK28: =(AD28/AD$41)*AK$41-25.0816 -> 719.8548391 | AL28: 6.324324426 | AM28: =-(AL28+Tariff_D_BO!AL28)+INDEX(Annual_CTM_BO!$AN:$AN,MATCH($C28,Annual_CTM_BO!$C:$C,FALSE)) -> -0.4569758413 | AN28: =IF((AL28+Tariff_D_BO!AL28)=0,0,AL28/(AL28+Tariff_D_BO!AL28)*AM28) -> -0.3640322872 | AO28: 5.944971316 | AP28: 0.331743407 | AR28: =(AK28/AK$41)*AR$41-8.8919 -> 659.8863031 | AS28: 5.944967197 | AT28: =-(AS28+Tariff_D_BO!AS28)+INDEX(Annual_CTM_BO!$AU:$AU,MATCH($C28,Annual_CTM_BO!$C:$C,FALSE)) -> 0.04351385951 | AU28: =IF((AS28+Tariff_D_BO!AS28)=0,0,AS28/(AS28+Tariff_D_BO!AS28)*AT28) -> 0.03477677547 | AV28: 5.926316137 | AW28: 0.3050643331 | AY28: =(AR28/AR$41)*AY$41-24.84672 -> 643.3459049 | AZ28: 5.945725245 | BA28: =-(AZ28+Tariff_D_BO!AZ28)+INDEX(Annual_CTM_BO!$BB:$BB,MATCH($C28,Annual_CTM_BO!$C:$C,FALSE)) -> 0.06054023692 | BB28: =IF((AZ28+Tariff_D_BO!AZ28)=0,0,AZ28/(AZ28+Tariff_D_BO!AZ28)*BA28) -> 0.04850163844 | BC28: 5.927973808 | BD28: 0.2973345661
C29: M031 | D29: =(INDEX('[5]CTM Details'!P$5:P$408,MATCH($C29,'[5]CTM Details'!$B$5:$B$408,FALSE),1)) -> Werribee (Old Sneydes Rd) | E29: =(INDEX('[5]CTM Details'!D$5:D$408,MATCH($C29,'[5]CTM Details'!$B$5:$B$408,FALSE),1)) -> 30000031PC | F29: =(INDEX('[5]CTM Details'!U$5:U$408,MATCH($C29,'[5]CTM Details'!$B$5:$B$408,FALSE),1)) -> Metro North West | H29: =(INDEX('[5]Tariff-V 2015'!$H$8:$FB$8,MATCH(C29,'[5]Tariff-V 2015'!$H$6:$FB$6,FALSE)))/1000 -> 482.7927861 | I29: =(INDEX('[5]Tariff-V 2015'!$H$10:$FB$10,MATCH(C29,'[5]Tariff-V 2015'!$H$6:$FB$6,FALSE)))/1000 -> 4.346894075 | J29: 0.3042908199 | K29: =(INDEX('[5]Tariff-V Norm'!$H$10:$FB$10,MATCH(C29,'[5]Tariff-V Norm'!$H$6:$FB$6,FALSE)))/1000 -> 456.5853272 | L29: =(INDEX('[5]Tariff-V Norm'!$H$11:$FB$11,MATCH(C29,'[5]Tariff-V Norm'!$H$6:$FB$6,FALSE)))/1000 -> 3.499625982 | M29: =L29*(1/(('[5]Tariff-D Norm'!$D$11+'[5]Tariff-V Norm'!$D$11)/'[5]Tariff-V&D Norm'!$D$11)) -> 3.447274733 | N29: 0.362871776 | P29: =(K29/$K$41)*(Vencorp_Summary_BO!$G$32) -> 546.1573622 | Q29: 4.123554488 | S29: 4.123554488 | T29: 4.833064287 | U29: 0.3096010008 | W29: 467.8402349 | X29: 4.820722089 | Y29: =-(X29+Tariff_D_BO!X29)+INDEX(Annual_CTM_BO!$Z:$Z,MATCH($C29,Annual_CTM_BO!$C:$C,FALSE)) -> 0.3290309171 | Z29: =IF((X29+Tariff_D_BO!X29)=0,0,X29/(X29+Tariff_D_BO!X29)*Y29) -> 0.2597363882 | AA29: 5.189785437 | AB29: 0.2469763122 | AD29: =(W29/W$41)*AD$41-3 -> 464.8402349 | AE29: 5.203024944 | AF29: =-(AE29+Tariff_D_BO!AE29)+INDEX(Annual_CTM_BO!$AG:$AG,MATCH($C29,Annual_CTM_BO!$C:$C,FALSE)) -> -0.1556000748 | AG29: =IF((AE29+Tariff_D_BO!AE29)=0,0,AE29/(AE29+Tariff_D_BO!AE29)*AF29) -> -0.1235336301 | AH29: 5.117259911 | AI29: 0.2488704721 | AK29: 468.8474783 | AL29: 5.169350366 | AM29: =-(AL29+Tariff_D_BO!AL29)+INDEX(Annual_CTM_BO!$AN:$AN,MATCH($C29,Annual_CTM_BO!$C:$C,FALSE)) -> -0.08250873103 | AN29: =IF((AL29+Tariff_D_BO!AL29)=0,0,AL29/(AL29+Tariff_D_BO!AL29)*AM29) -> -0.06577219625 | AO29: 5.090459514 | AP29: 0.252337463 | AR29: 435.5808381 | AS29: 5.090455988 | AT29: =-(AS29+Tariff_D_BO!AS29)+INDEX(Annual_CTM_BO!$AU:$AU,MATCH($C29,Annual_CTM_BO!$C:$C,FALSE)) -> 0.03717851661 | AU29: =IF((AS29+Tariff_D_BO!AS29)=0,0,AS29/(AS29+Tariff_D_BO!AS29)*AT29) -> 0.02973348089 | AV29: 5.074441583 | AW29: 0.2351731002 | AY29: 441.0637138 | AZ29: 5.091060741 | BA29: =-(AZ29+Tariff_D_BO!AZ29)+INDEX(Annual_CTM_BO!$BB:$BB,MATCH($C29,Annual_CTM_BO!$C:$C,FALSE)) -> 0.05176190354 | BB29: =IF((AZ29+Tariff_D_BO!AZ29)=0,0,AZ29/(AZ29+Tariff_D_BO!AZ29)*BA29) -> 0.04149652291 | BC29: 5.075828063 | BD29: 0.2380682957
C30: M032 | D30: =(INDEX('[5]CTM Details'!P$5:P$408,MATCH($C30,'[5]CTM Details'!$B$5:$B$408,FALSE),1)) -> Werribee (Lock Ave) | E30: =(INDEX('[5]CTM Details'!D$5:D$408,MATCH($C30,'[5]CTM Details'!$B$5:$B$408,FALSE),1)) -> 30000032PC | F30: =(INDEX('[5]CTM Details'!U$5:U$408,MATCH($C30,'[5]CTM Details'!$B$5:$B$408,FALSE),1)) -> Metro North West | H30: =(INDEX('[5]Tariff-V 2015'!$H$8:$FB$8,MATCH(C30,'[5]Tariff-V 2015'!$H$6:$FB$6,FALSE)))/1000 -> 511.0891004 | I30: =(INDEX('[5]Tariff-V 2015'!$H$10:$FB$10,MATCH(C30,'[5]Tariff-V 2015'!$H$6:$FB$6,FALSE)))/1000 -> 3.288526677 | J30: 0.4257967923 | K30: =(INDEX('[5]Tariff-V Norm'!$H$10:$FB$10,MATCH(C30,'[5]Tariff-V Norm'!$H$6:$FB$6,FALSE)))/1000 -> 490.2513428 | L30: =(INDEX('[5]Tariff-V Norm'!$H$11:$FB$11,MATCH(C30,'[5]Tariff-V Norm'!$H$6:$FB$6,FALSE)))/1000 -> 3.301643126 | M30: =L30*(1/(('[5]Tariff-D Norm'!$D$11+'[5]Tariff-V Norm'!$D$11)/'[5]Tariff-V&D Norm'!$D$11)) -> 3.252253522 | N30: 0.4129919008 | P30: =(K30/$K$41)*(Vencorp_Summary_BO!$G$32) -> 586.4279124 | Q30: 3.890274389 | S30: 3.890274389 | T30: 4.559645391 | U30: 0.3523633259 | W30: 502.3361237 | X30: 4.548001423 | Y30: =-(X30+Tariff_D_BO!X30)+INDEX(Annual_CTM_BO!$Z:$Z,MATCH($C30,Annual_CTM_BO!$C:$C,FALSE)) -> 1.645582286 | Z30: =IF((X30+Tariff_D_BO!X30)=0,0,X30/(X30+Tariff_D_BO!X30)*Y30) -> 1.303170232 | AA30: 5.977083679 | AB30: 0.2302566647 | AD30: 502.3361237 | AE30: 5.992331639 | AF30: =-(AE30+Tariff_D_BO!AE30)+INDEX(Annual_CTM_BO!$AG:$AG,MATCH($C30,Annual_CTM_BO!$C:$C,FALSE)) -> 0.2232450957 | AG30: =IF((AE30+Tariff_D_BO!AE30)=0,0,AE30/(AE30+Tariff_D_BO!AE30)*AF30) -> 0.177792325 | AH30: 6.216001968 | AI30: 0.2214065182 | AK30: 506.6666075 | AL30: 6.27927692 | AM30: =-(AL30+Tariff_D_BO!AL30)+INDEX(Annual_CTM_BO!$AN:$AN,MATCH($C30,Annual_CTM_BO!$C:$C,FALSE)) -> 0.2769034365 | AN30: =IF((AL30+Tariff_D_BO!AL30)=0,0,AL30/(AL30+Tariff_D_BO!AL30)*AM30) -> 0.2214140298 | AO30: 6.483981041 | AP30: 0.2140857111 | AR30: 470.7165459 | AS30: 6.483976549 | AT30: =-(AS30+Tariff_D_BO!AS30)+INDEX(Annual_CTM_BO!$AU:$AU,MATCH($C30,Annual_CTM_BO!$C:$C,FALSE)) -> 0.0468927824 | AU30: =IF((AS30+Tariff_D_BO!AS30)=0,0,AS30/(AS30+Tariff_D_BO!AS30)*AT30) -> 0.03761637666 | AV30: 6.463323776 | AW30: 0.1995311417 | AY30: 476.6416925 | AZ30: 6.484491623 | BA30: =-(AZ30+Tariff_D_BO!AZ30)+INDEX(Annual_CTM_BO!$BB:$BB,MATCH($C30,Annual_CTM_BO!$C:$C,FALSE)) -> 0.06549323251 | BB30: =IF((AZ30+Tariff_D_BO!AZ30)=0,0,AZ30/(AZ30+Tariff_D_BO!AZ30)*BA30) -> 0.05266261604 | BC30: 6.464900288 | BD30: 0.2019934713
C31: M051 | D31: =(INDEX('[5]CTM Details'!P$5:P$408,MATCH($C31,'[5]CTM Details'!$B$5:$B$408,FALSE),1)) -> Avalon | E31: =(INDEX('[5]CTM Details'!D$5:D$408,MATCH($C31,'[5]CTM Details'!$B$5:$B$408,FALSE),1)) -> 30000046PC | F31: =(INDEX('[5]CTM Details'!U$5:U$408,MATCH($C31,'[5]CTM Details'!$B$5:$B$408,FALSE),1)) -> Geelong | H31: =(INDEX('[5]Tariff-V 2015'!$H$8:$FB$8,MATCH(C31,'[5]Tariff-V 2015'!$H$6:$FB$6,FALSE)))/1000 -> 3.258618069 | I31: =(INDEX('[5]Tariff-V 2015'!$H$10:$FB$10,MATCH(C31,'[5]Tariff-V 2015'!$H$6:$FB$6,FALSE)))/1000 -> 0.01165410692 | J31: 0.7660579052 | K31: =(INDEX('[5]Tariff-V Norm'!$H$10:$FB$10,MATCH(C31,'[5]Tariff-V Norm'!$H$6:$FB$6,FALSE)))/1000 -> 3.157689191 | L31: =(INDEX('[5]Tariff-V Norm'!$H$11:$FB$11,MATCH(C31,'[5]Tariff-V Norm'!$H$6:$FB$6,FALSE)))/1000 -> 0.01452396703 | M31: =L31*(1/(('[5]Tariff-D Norm'!$D$11+'[5]Tariff-V Norm'!$D$11)/'[5]Tariff-V&D Norm'!$D$11)) -> 0.01430670158 | N31: 0.6046958634 | P31: =(K31/$K$41)*(Vencorp_Summary_BO!$G$32) -> 3.777158609 | Q31: 0.01711336289 | S31: 0.01711336289 | T31: 0.02005793382 | U31: 0.5159245136 | W31: 3.235526779 | X31: 0.02000671187 | Y31: =-(X31+Tariff_D_BO!X31)+INDEX(Annual_CTM_BO!$Z:$Z,MATCH($C31,Annual_CTM_BO!$C:$C,FALSE)) -> -0.002627001309 | Z31: =IF((X31+Tariff_D_BO!X31)=0,0,X31/(X31+Tariff_D_BO!X31)*Y31) -> -0.001562388526 | AA31: 0.01884122882 | AB31: 0.4704818891 | AD31: 3.235526779 | AE31: 0.01888929412 | AF31: =-(AE31+Tariff_D_BO!AE31)+INDEX(Annual_CTM_BO!$AG:$AG,MATCH($C31,Annual_CTM_BO!$C:$C,FALSE)) -> -0.0009533619443 | AG31: =IF((AE31+Tariff_D_BO!AE31)=0,0,AE31/(AE31+Tariff_D_BO!AE31)*AF31) -> -0.0005732843967 | AH31: 0.01845219855 | AI31: 0.4804011242 | AK31: 3.263419251 | AL31: 0.01864003021 | AM31: =-(AL31+Tariff_D_BO!AL31)+INDEX(Annual_CTM_BO!$AN:$AN,MATCH($C31,Annual_CTM_BO!$C:$C,FALSE)) -> -0.0006009392764 | AN31: =IF((AL31+Tariff_D_BO!AL31)=0,0,AL31/(AL31+Tariff_D_BO!AL31)*AM31) -> -0.0003642233526 | AO31: 0.01822882923 | AP31: 0.4904799177 | AR31: 3.031866349 | AS31: 0.0182288166 | AT31: =-(AS31+Tariff_D_BO!AS31)+INDEX(Annual_CTM_BO!$AU:$AU,MATCH($C31,Annual_CTM_BO!$C:$C,FALSE)) -> 0.0002670130834 | AU31: =IF((AS31+Tariff_D_BO!AS31)=0,0,AS31/(AS31+Tariff_D_BO!AS31)*AT31) -> 0.000162860027 | AV31: 0.01822735061 | AW31: 0.4557153326 | AY31: 3.07002998 | AZ31: 0.01828704649 | BA31: =-(AZ31+Tariff_D_BO!AZ31)+INDEX(Annual_CTM_BO!$BB:$BB,MATCH($C31,Annual_CTM_BO!$C:$C,FALSE)) -> 0.0003122731313 | BB31: =IF((AZ31+Tariff_D_BO!AZ31)=0,0,AZ31/(AZ31+Tariff_D_BO!AZ31)*BA31) -> 0.0001913638337 | BC31: 0.01827417189 | BD31: 0.4602693404
... 35 more rows

Sheet Tariff_D_BO
B1: Withdrawal Volumes - Tariff D | BC1: =BC24+BC41+BC64+BC105+BC146+BC155 -> 217.12
B2: =Model_Name -> VTS Tariff Model | V2: Check | W2: =SUM(W12:W22,W26:W39,W43:W62,W66:W103,W107:W144,W148:W153)-(W24+W41+W64+W105+W146+W155) -> 0 | Z2: Check | AA2: =SUM(AA12:AA22,AA26:AA39,AA43:AA62,AA66:AA103,AA107:AA144,AA148:AA153)-(AA24+AA41+AA64+AA105+AA146+AA155) -> 0 | AC2: Check | AD2: =SUM(AD12:AD22,AD26:AD39,AD43:AD62,AD66:AD103,AD107:AD144,AD148:AD153)-(AD24+AD41+AD64+AD105+AD146+AD155) -> 0 | AG2: Check | AH2: =SUM(AH12:AH22,AH26:AH39,AH43:AH62,AH66:AH103,AH107:AH144,AH148:AH153)-(AH24+AH41+AH64+AH105+AH146+AH155) -> 0 | AJ2: Check | AK2: =SUM(AK12:AK22,AK26:AK39,AK43:AK62,AK66:AK103,AK107:AK144,AK148:AK153)-(AK24+AK41+AK64+AK105+AK146+AK155) -> 0 | AN2: Check | AO2: =SUM(AO12:AO22,AO26:AO39,AO43:AO62,AO66:AO103,AO107:AO144,AO148:AO153)-(AO24+AO41+AO64+AO105+AO146+AO155) -> 0 | AQ2: Check | AR2: =SUM(AR12:AR22,AR26:AR39,AR43:AR62,AR66:AR103,AR107:AR144,AR148:AR153)-(AR24+AR41+AR64+AR105+AR146+AR155) -> 0 | AU2: Check | AV2: =SUM(AV12:AV22,AV26:AV39,AV43:AV62,AV66:AV103,AV107:AV144,AV148:AV153)-(AV24+AV41+AV64+AV105+AV146+AV155) -> 0 | AX2: Check | AY2: =SUM(AY12:AY22,AY26:AY39,AY43:AY62,AY66:AY103,AY107:AY144,AY148:AY153)-(AY24+AY41+AY64+AY105+AY146+AY155) -> 0 | BB2: Check | BC2: =SUM(BC12:BC22,BC26:BC39,BC43:BC62,BC66:BC103,BC107:BC144,BC148:BC153)-(BC24+BC41+BC64+BC105+BC146+BC155) -> 0
B3: Go to Table of Contents
A4: é | B4: ç | C4: è | H4: =Tariff_V_BO!H4 -> This 2019 colmn would come from Settlement data | Z4: Highlighted cells below contain hard coded figures/formula changes that align the total to inputs provided.
H6: 2019 Actual | K6: 2019 Norm | N6: 2019 Norm | P6: 2022 Forecast | W6: 2023 Forecast | AB6: 2023 | AD6: 2024 Forecast | AI6: 2024 | AK6: 2025 Forecast | AP6: 2025 | AR6: 2026 Forecast | AW6: 2026 | AY6: 2027 Forecast | BD6: 2027
C7: Meter | D7: Meter Name | E7: MIRN | F7: Tariff Zone | H7: Annual | I7: Coincident | J7: Load | K7: Annual | L7: Peak Day | M7: Peak Day | N7: Load | O7: Adjustment | P7: Annual | Q7: Old Peak | R7: New | S7: New Peak | T7: Peak Day | U7: Load | W7: Annual | X7: Peak Day | Y7: Difference | Z7: Allocation to | AA7: Peak Day | AB7: Load | AD7: Annual | AE7: Old Peak | AF7: New | AG7: New Peak | AH7: Peak Day | AI7: Load | AK7: Annual | AL7: Old Peak | AM7: New | AN7: New Peak | AO7: Peak Day | AP7: Load | AR7: Annual | AS7: Old Peak | AT7: New | AU7: New Peak | AV7: Peak Day | AW7: Load | AY7: Annual | AZ7: Old Peak | BA7: New | BB7: New Peak | BC7: Peak Day | BD7: Load
I8: Peak Day | J8: Factor | L8: Raw Data | M8: Scaled to 100% | N8: Factor | R8: Load Factor | U8: Factor | X8: Scaled | Y8: to be reallocated | Z8: Tariff V | AB8: Factor | AF8: Load Factor | AI8: Factor | AM8: Load Factor | AP8: Factor | AT8: Load Factor | AW8: Factor | BA8: Load Factor | BD8: Factor
C9: 1 | D9: =C9+1 -> 2 | E9: =D9+1 -> 3 | F9: 4 | G9: 5 | H9: 6 | I9: 7 | J9: 8 | K9: 9 | L9: 10 | M9: 11 | N9: 12 | O9: 13 | P9: 14 | Q9: 15 | R9: 16 | S9: 17 | T9: 18 | U9: 19 | V9: 20 | W9: 21 | X9: 22 | Y9: 23 | Z9: 24 | AA9: 25 | AB9: 26 | AC9: 27 | AD9: 28 | AE9: 29 | AF9: 30 | AG9: 31 | AH9: 32 | AI9: 33 | AJ9: 34 | AK9: 35 | AL9: 36 | AM9: 37 | AN9: 38 | AO9: 39 | AP9: 40 | AQ9: 41 | AR9: 42 | AS9: 43 | AT9: 44 | AU9: 45 | AV9: 46 | AW9: 47 | AX9: 48 | AY9: 49 | AZ9: 50 | BA9: 51 | BB9: 52 | BC9: 53 | BD9: 54
C10: Total | H10: =H24+H41+H64+H105+H146+H155 -> 74317.84164 | I10: =I24+I41+I64+I105+I146+I155 -> 243.474096 | K10: =K24+K41+K64+K105+K146+K155 -> 73974.62483 | L10: =L24+L41+L64+L105+L146+L155 -> 232.0037367 | M10: =M24+M41+M64+M105+M146+M155 -> 228.53317 | P10: =P24+P41+P64+P105+P146+P155 -> 66520.00695 | Q10: =Q24+Q41+Q64+Q105+Q146+Q155 -> 204.3285 | S10: =S24+S41+S64+S105+S146+S155 -> 204.3285 | T10: =T24+T41+T64+T105+T146+T155 -> 272.5086301 | W10: =W24+W41+W64+W105+W146+W155 -> 63551.09 | X10: =X24+X41+X64+X105+X146+X155 -> 225.6 | AA10: =AA24+AA41+AA64+AA105+AA146+AA155 -> 225.6 | AD10: =AD24+AD41+AD64+AD105+AD146+AD155 -> 62642.61 | AE10: =AE24+AE41+AE64+AE105+AE146+AE155 -> 223.6 | AH10: =AH24+AH41+AH64+AH105+AH146+AH155 -> 223.6 | AK10: =AK24+AK41+AK64+AK105+AK146+AK155 -> 61442.61 | AL10: =AL24+AL41+AL64+AL105+AL146+AL155 -> 221.8 | AO10: =AO24+AO41+AO64+AO105+AO146+AO155 -> 221.8 | AR10: =AR24+AR41+AR64+AR105+AR146+AR155 -> 62178.03961 | AS10: =AS24+AS41+AS64+AS105+AS146+AS155 -> 219.35 | AV10: =AV24+AV41+AV64+AV105+AV146+AV155 -> 219.35 | AY10: =AY24+AY41+AY64+AY105+AY146+AY155 -> 61968.44992 | AZ10: =AZ24+AZ41+AZ64+AZ105+AZ146+AZ155 -> 217.12 | BC10: =BC24+BC41+BC64+BC105+BC146+BC155 -> 217.12
C12: M027 | D12: =(INDEX('[5]CTM Details'!P$5:P$408,MATCH($C12,'[5]CTM Details'!$B$5:$B$408,FALSE),1)) -> Melton South | E12: =(INDEX('[5]CTM Details'!D$5:D$408,MATCH($C12,'[5]CTM Details'!$B$5:$B$408,FALSE),1)) -> 30000027PC | F12: =(INDEX('[5]CTM Details'!U$5:U$408,MATCH($C12,'[5]CTM Details'!$B$5:$B$408,FALSE),1)) -> Metro North West | H12: =(INDEX('[5]Tariff-D 2015'!$H$8:$FB$8,MATCH(C12,'[5]Tariff-D 2015'!$H$6:$FB$6,FALSE)))/1000 -> 551.4978094 | I12: =(INDEX('[5]Tariff-D 2015'!$H$10:$FB$10,MATCH(C12,'[5]Tariff-D 2015'!$H$6:$FB$6,FALSE)))/1000 -> 1.746651662 | J12: =IF(I12=0,0,(H12/365)/I12) -> 0.8650568029 | K12: =(INDEX('[5]Tariff-D Norm'!$H$10:$FB$10,MATCH(C12,'[5]Tariff-D Norm'!$H$6:$FB$6,FALSE)))/1000 -> 546.8288564 | L12: =(INDEX('[5]Tariff-D Norm'!$H$11:$FB$11,MATCH(C12,'[5]Tariff-D Norm'!$H$6:$FB$6,FALSE)))/1000 -> 2.052692955 | M12: =L12*(1/(('[5]Tariff-D Norm'!$D$11+'[5]Tariff-V Norm'!$D$11)/'[5]Tariff-V&D Norm'!$D$11)) -> 2.021986519 | N12: =IF(M12=0,0,(K12/365)/M12) -> 0.7409353307 | P12: =(K12/$K$24)*(Vencorp_Summary_BO!$G$31) -> 264.406579 | Q12: =IF(N12=0,0,(P12/365)/N12) -> 0.977685307 | S12: =IF(R12=0,Q12,(P12/365)/R12) -> 0.977685307 | T12: =(M12/M$24)*(T$24) -> 0.9057631214 | U12: =IF(T12=0,0,(P12/365)/T12) -> 0.7997693538 | W12: =(P12/P$24)*W$24 -> 264.406579 | X12: =(T12/$T$24)*$X$24 -> 0.9057631214 | Y12: =-(X12+Tariff_V_BO!X12)+INDEX(Annual_CTM_BO!$Z:$Z,MATCH(Tariff_D_BO!$C12,Annual_CTM_BO!$C:$C,FALSE)) -> 0.5349109049 | Z12: =IF((X12+Tariff_V_BO!X12)=0,0,X12/(X12+Tariff_V_BO!X12)*Y12) -> 0.04167457066 | AA12: =(Z12+X12)/(X$24+Z$24)*X$24 -> 1.061041876 | AB12: =IF(AA12=0,0,(W12/365)/AA12) -> 0.6827266694 | AD12: =(W12/W$24)*AD$24 -> 264.406579 | AE12: =(AA12/AA$24)*AE$24 -> 1.041022218 | AF12: =-(AE12+Tariff_V_BO!AE12)+INDEX(Annual_CTM_BO!$AG:$AG,MATCH(Tariff_D_BO!$C12,Annual_CTM_BO!$C:$C,FALSE)) -> -1.391835065 | AG12: =IF((AE12+Tariff_V_BO!AE12)=0,0,AE12/(AE12+Tariff_V_BO!AE12)*AF12) -> -0.106270768 | AH12: =(AG12+AE12)/(AE$24+AG$24)*AE$24 -> 1.058568895 | AI12: =IF(AH12=0,0,(AD12/365)/AH12) -> 0.6843216251 | AK12: =(AD12/AD$24)*AK$24 -> 264.406579 | AL12: =(AH12/AH$24)*AL$24 -> 1.058568895 | AM12: =-(AL12+Tariff_V_BO!AL12)+INDEX(Annual_CTM_BO!$AN:$AN,MATCH(Tariff_D_BO!$C12,Annual_CTM_BO!$C:$C,FALSE)) -> -1.637136871 | AN12: =IF((AL12+Tariff_V_BO!AL12)=0,0,AL12/(AL12+Tariff_V_BO!AL12)*AM12) -> -0.123325441 | AO12: =(AN12+AL12)/(AL$24+AN$24)*AL$24 -> 1.075778503 | AP12: =IF(AO12=0,0,(AK12/365)/AO12) -> 0.6733742906 | AR12: =(AK12/AK$24)*AR$24 -> 262.8629976 | AS12: =(AO12/AO$24)*AS$24 -> 1.044746431 | AT12: =-(AS12+Tariff_V_BO!AS12)+INDEX(Annual_CTM_BO!$AU:$AU,MATCH(Tariff_D_BO!$C12,Annual_CTM_BO!$C:$C,FALSE)) -> -1.860792174 | AU12: =IF((AS12+Tariff_V_BO!AS12)=0,0,AS12/(AS12+Tariff_V_BO!AS12)*AT12) -> -0.136175702 | AV12: =(AU12+AS12)/(AS$24+AU$24)*AS$24 -> 1.044630707 | AW12: =IF(AV12=0,0,(AR12/365)/AV12) -> 0.6894040077 | AY12: =(AR12/AR$24)*AY$24 -> 261.9903754 | AZ12: =(AV12/AV$24)*AZ$24 -> 1.026013526 | BA12: =-(AZ12+Tariff_V_BO!AZ12)+INDEX(Annual_CTM_BO!$BB:$BB,MATCH(Tariff_D_BO!$C12,Annual_CTM_BO!$C:$C,FALSE)) -> -1.92750188 | BB12: =IF((AZ12+Tariff_V_BO!AZ12)=0,0,AZ12/(AZ12+Tariff_V_BO!AZ12)*BA12) -> -0.1378840703 | BC12: =(BB12+AZ12)/(AZ$24+BB$24)*AZ$24 -> 1.025926403 | BD12: =IF(BC12=0,0,(AY12/365)/BC12) -> 0.6996426335
C13: M045 | D13: =(INDEX('[5]CTM Details'!P$5:P$408,MATCH($C13,'[5]CTM Details'!$B$5:$B$408,FALSE),1)) -> Sunbury | E13: =(INDEX('[5]CTM Details'!D$5:D$408,MATCH($C13,'[5]CTM Details'!$B$5:$B$408,FALSE),1)) -> 30000043PC | F13: =(INDEX('[5]CTM Details'!U$5:U$408,MATCH($C13,'[5]CTM Details'!$B$5:$B$408,FALSE),1)) -> Metro North West | H13: =(INDEX('[5]Tariff-D 2015'!$H$8:$FB$8,MATCH(C13,'[5]Tariff-D 2015'!$H$6:$FB$6,FALSE)))/1000 -> 307.0708916 | I13: =(INDEX('[5]Tariff-D 2015'!$H$10:$FB$10,MATCH(C13,'[5]Tariff-D 2015'!$H$6:$FB$6,FALSE)))/1000 -> 1.627503997 | J13: 0.5169204594 | K13: =(INDEX('[5]Tariff-D Norm'!$H$10:$FB$10,MATCH(C13,'[5]Tariff-D Norm'!$H$6:$FB$6,FALSE)))/1000 -> 304.2976519 | L13: =(INDEX('[5]Tariff-D Norm'!$H$11:$FB$11,MATCH(C13,'[5]Tariff-D Norm'!$H$6:$FB$6,FALSE)))/1000 -> 1.244044768 | M13: =L13*(1/(('[5]Tariff-D Norm'!$D$11+'[5]Tariff-V Norm'!$D$11)/'[5]Tariff-V&D Norm'!$D$11)) -> 1.22543498 | N13: 0.6803234855 | P13: =(K13/$K$24)*(Vencorp_Summary_BO!$G$31) -> 147.1361655 | Q13: =IF(N13=0,0,(P13/365)/N13) -> 0.5925310398 | S13: =IF(R13=0,Q13,(P13/365)/R13) -> 0.5925310398 | T13: 0.5489422418 | U13: 0.7343446206 | W13: =(P13/P$24)*W$24 -> 147.1361655 | X13: 0.5489422418 | Y13: =-(X13+Tariff_V_BO!X13)+INDEX(Annual_CTM_BO!$Z:$Z,MATCH(Tariff_D_BO!$C13,Annual_CTM_BO!$C:$C,FALSE)) -> -0.7899304103 | Z13: =IF((X13+Tariff_V_BO!X13)=0,0,X13/(X13+Tariff_V_BO!X13)*Y13) -> -0.06156574533 | AA13: 0.5458162332 | AB13: 0.7385503724 | AD13: 147.1361655 | AE13: 0.5355178137 | AF13: =-(AE13+Tariff_V_BO!AE13)+INDEX(Annual_CTM_BO!$AG:$AG,MATCH(Tariff_D_BO!$C13,Annual_CTM_BO!$C:$C,FALSE)) -> -0.8254035904 | AG13: =IF((AE13+Tariff_V_BO!AE13)=0,0,AE13/(AE13+Tariff_V_BO!AE13)*AF13) -> -0.06304538428 | AH13: 0.5350562625 | AI13: 0.7534026055 | AK13: 147.1361655 | AL13: 0.5350562625 | AM13: =-(AL13+Tariff_V_BO!AL13)+INDEX(Annual_CTM_BO!$AN:$AN,MATCH(Tariff_D_BO!$C13,Annual_CTM_BO!$C:$C,FALSE)) -> -0.933127612 | AN13: =IF((AL13+Tariff_V_BO!AL13)=0,0,AL13/(AL13+Tariff_V_BO!AL13)*AM13) -> -0.07031853323 | AO13: 0.5345718879 | AP13: 0.7540852622 | AR13: 146.277198 | AS13: 0.519151545 | AT13: =-(AS13+Tariff_V_BO!AS13)+INDEX(Annual_CTM_BO!$AU:$AU,MATCH(Tariff_D_BO!$C13,Annual_CTM_BO!$C:$C,FALSE)) -> -0.9243089938 | AU13: =IF((AS13+Tariff_V_BO!AS13)=0,0,AS13/(AS13+Tariff_V_BO!AS13)*AT13) -> -0.06766753869 | AV13: 0.5190944874 | AW13: 0.7720356436 | AY13: 145.7916039 | AZ13: 0.5098432985 | BA13: =-(AZ13+Tariff_V_BO!AZ13)+INDEX(Annual_CTM_BO!$BB:$BB,MATCH(Tariff_D_BO!$C13,Annual_CTM_BO!$C:$C,FALSE)) -> -0.9574472487 | BB13: =IF((AZ13+Tariff_V_BO!AZ13)=0,0,AZ13/(AZ13+Tariff_V_BO!AZ13)*BA13) -> -0.06851661146 | BC13: 0.5098003423 | BD13: 0.7835009488
C14: M048 | D14: =(INDEX('[5]CTM Details'!P$5:P$408,MATCH($C14,'[5]CTM Details'!$B$5:$B$408,FALSE),1)) -> Diggers Rest | E14: =(INDEX('[5]CTM Details'!D$5:D$408,MATCH($C14,'[5]CTM Details'!$B$5:$B$408,FALSE),1)) -> 30000044PC | F14: =(INDEX('[5]CTM Details'!U$5:U$408,MATCH($C14,'[5]CTM Details'!$B$5:$B$408,FALSE),1)) -> Metro North West | H14: =(INDEX('[5]Tariff-D 2015'!$H$8:$FB$8,MATCH(C14,'[5]Tariff-D 2015'!$H$6:$FB$6,FALSE)))/1000 -> 26.09238926 | I14: =(INDEX('[5]Tariff-D 2015'!$H$10:$FB$10,MATCH(C14,'[5]Tariff-D 2015'!$H$6:$FB$6,FALSE)))/1000 -> 0.1480278042 | J14: 0.4829227748 | K14: =(INDEX('[5]Tariff-D Norm'!$H$10:$FB$10,MATCH(C14,'[5]Tariff-D Norm'!$H$6:$FB$6,FALSE)))/1000 -> 25.76785558 | L14: =(INDEX('[5]Tariff-D Norm'!$H$11:$FB$11,MATCH(C14,'[5]Tariff-D Norm'!$H$6:$FB$6,FALSE)))/1000 -> 0.1120423403 | M14: =L14*(1/(('[5]Tariff-D Norm'!$D$11+'[5]Tariff-V Norm'!$D$11)/'[5]Tariff-V&D Norm'!$D$11)) -> 0.1103662879 | N14: 0.6396596815 | P14: =(K14/$K$24)*(Vencorp_Summary_BO!$G$31) -> 12.45945685 | Q14: 0.05336509274 | S14: =IF(R14=0,Q14,(P14/365)/R14) -> 0.05336509274 | T14: 0.04943935705 | U14: 0.6904519044 | W14: =(P14/P$24)*W$24 -> 12.45945685 | X14: 0.04943935705 | Y14: =-(X14+Tariff_V_BO!X14)+INDEX(Annual_CTM_BO!$Z:$Z,MATCH(Tariff_D_BO!$C14,Annual_CTM_BO!$C:$C,FALSE)) -> 0.1412125419 | Z14: =IF((X14+Tariff_V_BO!X14)=0,0,X14/(X14+Tariff_V_BO!X14)*Y14) -> 0.01105441705 | AA14: 0.06774738657 | AB14: 0.5038644287 | AD14: 12.45945685 | AE14: 0.06646913399 | AF14: =-(AE14+Tariff_V_BO!AE14)+INDEX(Annual_CTM_BO!$AG:$AG,MATCH(Tariff_D_BO!$C14,Annual_CTM_BO!$C:$C,FALSE)) -> -0.04529294871 | AG14: =IF((AE14+Tariff_V_BO!AE14)=0,0,AE14/(AE14+Tariff_V_BO!AE14)*AF14) -> -0.003474825823 | AH14: 0.07133855224 | AI14: 0.4785000138 | AK14: 12.45945685 | AL14: 0.07133855224 | AM14: =-(AL14+Tariff_V_BO!AL14)+INDEX(Annual_CTM_BO!$AN:$AN,MATCH(Tariff_D_BO!$C14,Annual_CTM_BO!$C:$C,FALSE)) -> -0.06812720153 | AN14: =IF((AL14+Tariff_V_BO!AL14)=0,0,AL14/(AL14+Tariff_V_BO!AL14)*AM14) -> -0.005156641526 | AO14: 0.07612678448 | AP14: 0.4484032586 | AR14: 12.38671968 | AS14: 0.07393081955 | AT14: =-(AS14+Tariff_V_BO!AS14)+INDEX(Annual_CTM_BO!$AU:$AU,MATCH(Tariff_D_BO!$C14,Annual_CTM_BO!$C:$C,FALSE)) -> -0.1310378163 | AU14: =IF((AS14+Tariff_V_BO!AS14)=0,0,AS14/(AS14+Tariff_V_BO!AS14)*AT14) -> -0.00963567059 | AV14: 0.07392345448 | AW14: 0.4590724087 | AY14: 12.34559968 | AZ14: 0.07260600678 | BA14: =-(AZ14+Tariff_V_BO!AZ14)+INDEX(Annual_CTM_BO!$BB:$BB,MATCH(Tariff_D_BO!$C14,Annual_CTM_BO!$C:$C,FALSE)) -> -0.1357385236 | BB14: =IF((AZ14+Tariff_V_BO!AZ14)=0,0,AZ14/(AZ14+Tariff_V_BO!AZ14)*BA14) -> -0.009756850754 | BC14: 0.07260046173 | BD14: 0.465886304
C15: M049 | D15: =(INDEX('[5]CTM Details'!P$5:P$408,MATCH($C15,'[5]CTM Details'!$B$5:$B$408,FALSE),1)) -> Sydenham | E15: =(INDEX('[5]CTM Details'!D$5:D$408,MATCH($C15,'[5]CTM Details'!$B$5:$B$408,FALSE),1)) -> 30000045PC | F15: =(INDEX('[5]CTM Details'!U$5:U$408,MATCH($C15,'[5]CTM Details'!$B$5:$B$408,FALSE),1)) -> Metro North West | H15: =(INDEX('[5]Tariff-D 2015'!$H$8:$FB$8,MATCH(C15,'[5]Tariff-D 2015'!$H$6:$FB$6,FALSE)))/1000 -> 338.9134694 | I15: =(INDEX('[5]Tariff-D 2015'!$H$10:$FB$10,MATCH(C15,'[5]Tariff-D 2015'!$H$6:$FB$6,FALSE)))/1000 -> 1.952230829 | J15: 0.4756251359 | K15: =(INDEX('[5]Tariff-D Norm'!$H$10:$FB$10,MATCH(C15,'[5]Tariff-D Norm'!$H$6:$FB$6,FALSE)))/1000 -> 333.7536791 | L15: =(INDEX('[5]Tariff-D Norm'!$H$11:$FB$11,MATCH(C15,'[5]Tariff-D Norm'!$H$6:$FB$6,FALSE)))/1000 -> 1.43154043 | M15: =L15*(1/(('[5]Tariff-D Norm'!$D$11+'[5]Tariff-V Norm'!$D$11)/'[5]Tariff-V&D Norm'!$D$11)) -> 1.410125876 | N15: 0.6484482393 | P15: =(K15/$K$24)*(Vencorp_Summary_BO!$G$31) -> 161.3789534 | Q15: 0.6818340957 | S15: 0.6818340957 | T15: =(M15/M$24)*(T$24) -> 0.6316758311 | U15: 0.6999383182 | W15: =(P15/P$24)*W$24 -> 161.3789534 | X15: 0.6316758311 | Y15: =-(X15+Tariff_V_BO!X15)+INDEX(Annual_CTM_BO!$Z:$Z,MATCH(Tariff_D_BO!$C15,Annual_CTM_BO!$C:$C,FALSE)) -> -1.210143371 | Z15: =IF((X15+Tariff_V_BO!X15)=0,0,X15/(X15+Tariff_V_BO!X15)*Y15) -> -0.09471398707 | AA15: 0.6013471991 | AB15: 0.7352393418 | AD15: 161.3789534 | AE15: 0.5900010255 | AF15: =-(AE15+Tariff_V_BO!AE15)+INDEX(Annual_CTM_BO!$AG:$AG,MATCH(Tariff_D_BO!$C15,Annual_CTM_BO!$C:$C,FALSE)) -> -1.075215236 | AG15: =IF((AE15+Tariff_V_BO!AE15)=0,0,AE15/(AE15+Tariff_V_BO!AE15)*AF15) -> -0.08247312074 | AH15: 0.5747551962 | AI15: 0.76925641 | AK15: 161.3789534 | AL15: 0.5747551962 | AM15: =-(AL15+Tariff_V_BO!AL15)+INDEX(Annual_CTM_BO!$AN:$AN,MATCH(Tariff_D_BO!$C15,Annual_CTM_BO!$C:$C,FALSE)) -> -1.155066926 | AN15: =IF((AL15+Tariff_V_BO!AL15)=0,0,AL15/(AL15+Tariff_V_BO!AL15)*AM15) -> -0.08741138857 | AO15: 0.5605748854 | AP15: 0.7887155318 | AR15: 160.4368378 | AS15: 0.544404456 | AT15: =-(AS15+Tariff_V_BO!AS15)+INDEX(Annual_CTM_BO!$AU:$AU,MATCH(Tariff_D_BO!$C15,Annual_CTM_BO!$C:$C,FALSE)) -> -0.9651167454 | AU15: =IF((AS15+Tariff_V_BO!AS15)=0,0,AS15/(AS15+Tariff_V_BO!AS15)*AT15) -> -0.07095441559 | AV15: 0.5443499716 | AW15: 0.8074823242 | AY15: 159.9042382 | AZ15: 0.534648685 | BA15: =-(AZ15+Tariff_V_BO!AZ15)+INDEX(Annual_CTM_BO!$BB:$BB,MATCH(Tariff_D_BO!$C15,Annual_CTM_BO!$C:$C,FALSE)) -> -0.9997373827 | BB15: =IF((AZ15+Tariff_V_BO!AZ15)=0,0,AZ15/(AZ15+Tariff_V_BO!AZ15)*BA15) -> -0.07184666248 | BC15: 0.5346076646 | BD15: 0.8194678681
C16: M052 | D16: =(INDEX('[5]CTM Details'!P$5:P$408,MATCH($C16,'[5]CTM Details'!$B$5:$B$408,FALSE),1)) -> Bacchus Marsh | E16: =(INDEX('[5]CTM Details'!D$5:D$408,MATCH($C16,'[5]CTM Details'!$B$5:$B$408,FALSE),1)) -> 30000047PC | F16: =(INDEX('[5]CTM Details'!U$5:U$408,MATCH($C16,'[5]CTM Details'!$B$5:$B$408,FALSE),1)) -> Calder | H16: =(INDEX('[5]Tariff-D 2015'!$H$8:$FB$8,MATCH(C16,'[5]Tariff-D 2015'!$H$6:$FB$6,FALSE)))/1000 -> 160.4948539 | I16: =(INDEX('[5]Tariff-D 2015'!$H$10:$FB$10,MATCH(C16,'[5]Tariff-D 2015'!$H$6:$FB$6,FALSE)))/1000 -> 0.977623112 | J16: 0.4497765274 | K16: =(INDEX('[5]Tariff-D Norm'!$H$10:$FB$10,MATCH(C16,'[5]Tariff-D Norm'!$H$6:$FB$6,FALSE)))/1000 -> 157.1119302 | L16: =(INDEX('[5]Tariff-D Norm'!$H$11:$FB$11,MATCH(C16,'[5]Tariff-D Norm'!$H$6:$FB$6,FALSE)))/1000 -> 0.7217355349 | M16: =L16*(1/(('[5]Tariff-D Norm'!$D$11+'[5]Tariff-V Norm'!$D$11)/'[5]Tariff-V&D Norm'!$D$11)) -> 0.7109390221 | N16: 0.605457896 | P16: =(K16/$K$24)*(Vencorp_Summary_BO!$G$31) -> 75.96787827 | Q16: 0.3437582939 | S16: 0.3437582939 | T16: 0.3184701489 | U16: =IF(T16=0,0,(P16/365)/T16) -> 0.6535343236 | W16: 75.96787827 | X16: =(T16/$T$24)*$X$24 -> 0.3184701489 | Y16: =-(X16+Tariff_V_BO!X16)+INDEX(Annual_CTM_BO!$Z:$Z,MATCH(Tariff_D_BO!$C16,Annual_CTM_BO!$C:$C,FALSE)) -> -0.05197772819 | Z16: =IF((X16+Tariff_V_BO!X16)=0,0,X16/(X16+Tariff_V_BO!X16)*Y16) -> -0.004457070989 | AA16: 0.3516653687 | AB16: 0.5918443834 | AD16: 75.96787827 | AE16: 0.3450301731 | AF16: =-(AE16+Tariff_V_BO!AE16)+INDEX(Annual_CTM_BO!$AG:$AG,MATCH(Tariff_D_BO!$C16,Annual_CTM_BO!$C:$C,FALSE)) -> -0.4601201471 | AG16: =IF((AE16+Tariff_V_BO!AE16)=0,0,AE16/(AE16+Tariff_V_BO!AE16)*AF16) -> -0.03867351485 | AH16: 0.3469367488 | AI16: 0.5999110041 | AK16: 75.96787827 | AL16: 0.3469367488 | AM16: =-(AL16+Tariff_V_BO!AL16)+INDEX(Annual_CTM_BO!$AN:$AN,MATCH(Tariff_D_BO!$C16,Annual_CTM_BO!$C:$C,FALSE)) -> -0.5272175313 | AN16: =IF((AL16+Tariff_V_BO!AL16)=0,0,AL16/(AL16+Tariff_V_BO!AL16)*AM16) -> -0.04372425111 | AO16: 0.348774948 | AP16: 0.5967492062 | AR16: 75.52438474 | AS16: 0.3387141322 | AT16: =-(AS16+Tariff_V_BO!AS16)+INDEX(Annual_CTM_BO!$AU:$AU,MATCH(Tariff_D_BO!$C16,Annual_CTM_BO!$C:$C,FALSE)) -> -0.5469823328 | AU16: =IF((AS16+Tariff_V_BO!AS16)=0,0,AS16/(AS16+Tariff_V_BO!AS16)*AT16) -> -0.04408001841 | AV16: 0.3387560625 | AW16: 0.6108115707 | AY16: 75.27366763 | AZ16: 0.3327188257 | BA16: =-(AZ16+Tariff_V_BO!AZ16)+INDEX(Annual_CTM_BO!$BB:$BB,MATCH(Tariff_D_BO!$C16,Annual_CTM_BO!$C:$C,FALSE)) -> -0.5668537281 | BB16: =IF((AZ16+Tariff_V_BO!AZ16)=0,0,AZ16/(AZ16+Tariff_V_BO!AZ16)*BA16) -> -0.04466168387 | BC16: 0.3327503951 | BD16: 0.6197715447
C17: M053 | D17: =(INDEX('[5]CTM Details'!P$5:P$408,MATCH($C17,'[5]CTM Details'!$B$5:$B$408,FALSE),1)) -> Ballan | E17: =(INDEX('[5]CTM Details'!D$5:D$408,MATCH($C17,'[5]CTM Details'!$B$5:$B$408,FALSE),1)) -> 30000048PC | F17: =(INDEX('[5]CTM Details'!U$5:U$408,MATCH($C17,'[5]CTM Details'!$B$5:$B$408,FALSE),1)) -> Calder | H17: =(INDEX('[5]Tariff-D 2015'!$H$8:$FB$8,MATCH(C17,'[5]Tariff-D 2015'!$H$6:$FB$6,FALSE)))/1000 -> 24.93133562 | I17: =(INDEX('[5]Tariff-D 2015'!$H$10:$FB$10,MATCH(C17,'[5]Tariff-D 2015'!$H$6:$FB$6,FALSE)))/1000 -> 0.1374506649 | J17: 0.4969421513 | K17: =(INDEX('[5]Tariff-D Norm'!$H$10:$FB$10,MATCH(C17,'[5]Tariff-D Norm'!$H$6:$FB$6,FALSE)))/1000 -> 24.60478671 | L17: =(INDEX('[5]Tariff-D Norm'!$H$11:$FB$11,MATCH(C17,'[5]Tariff-D Norm'!$H$6:$FB$6,FALSE)))/1000 -> 0.1000326996 | M17: =L17*(1/(('[5]Tariff-D Norm'!$D$11+'[5]Tariff-V Norm'!$D$11)/'[5]Tariff-V&D Norm'!$D$11)) -> 0.09853630066 | N17: 0.6841171639 | P17: =(K17/$K$24)*(Vencorp_Summary_BO!$G$31) -> 11.89708152 | Q17: 0.04764497312 | S17: 0.04764497312 | T17: 0.04414003081 | U17: 0.7384395363 | W17: 11.89708152 | X17: 0.04414003081 | Y17: =-(X17+Tariff_V_BO!X17)+INDEX(Annual_CTM_BO!$Z:$Z,MATCH(Tariff_D_BO!$C17,Annual_CTM_BO!$C:$C,FALSE)) -> -0.06684564554 | Z17: =IF((X17+Tariff_V_BO!X17)=0,0,X17/(X17+Tariff_V_BO!X17)*Y17) -> -0.005704114649 | AA17: 0.04304464235 | AB17: 0.7572311467 | AD17: 11.89708152 | AE17: 0.04223247929 | AF17: =-(AE17+Tariff_V_BO!AE17)+INDEX(Annual_CTM_BO!$AG:$AG,MATCH(Tariff_D_BO!$C17,Annual_CTM_BO!$C:$C,FALSE)) -> -0.0575171659 | AG17: =IF((AE17+Tariff_V_BO!AE17)=0,0,AE17/(AE17+Tariff_V_BO!AE17)*AF17) -> -0.004810816767 | AH17: 0.04237854664 | AI17: 0.7691331222 | AK17: 11.89708152 | AL17: 0.04237854664 | AM17: =-(AL17+Tariff_V_BO!AL17)+INDEX(Annual_CTM_BO!$AN:$AN,MATCH(Tariff_D_BO!$C17,Annual_CTM_BO!$C:$C,FALSE)) -> -0.06561470441 | AN17: =IF((AL17+Tariff_V_BO!AL17)=0,0,AL17/(AL17+Tariff_V_BO!AL17)*AM17) -> -0.00541514482 | AO17: 0.04251773473 | AP17: 0.7666152511 | AR17: 11.82762744 | AS17: 0.04129126161 | AT17: =-(AS17+Tariff_V_BO!AS17)+INDEX(Annual_CTM_BO!$AU:$AU,MATCH(Tariff_D_BO!$C17,Annual_CTM_BO!$C:$C,FALSE)) -> -0.06701367248 | AU17: =IF((AS17+Tariff_V_BO!AS17)=0,0,AS17/(AS17+Tariff_V_BO!AS17)*AT17) -> -0.00537406394 | AV17: 0.04129585778 | AW17: 0.7846902932 | AY17: 11.78836346 | AZ17: 0.040559892 | BA17: =-(AZ17+Tariff_V_BO!AZ17)+INDEX(Annual_CTM_BO!$BB:$BB,MATCH(Tariff_D_BO!$C17,Annual_CTM_BO!$C:$C,FALSE)) -> -0.06944651182 | BB17: =IF((AZ17+Tariff_V_BO!AZ17)=0,0,AZ17/(AZ17+Tariff_V_BO!AZ17)*BA17) -> -0.005444792199 | BC17: 0.04056335233 | BD17: 0.7962085066
C18: M054 | D18: =(INDEX('[5]CTM Details'!P$5:P$408,MATCH($C18,'[5]CTM Details'!$B$5:$B$408,FALSE),1)) -> Ballarat | E18: =(INDEX('[5]CTM Details'!D$5:D$408,MATCH($C18,'[5]CTM Details'!$B$5:$B$408,FALSE),1)) -> 30000049PC | F18: =(INDEX('[5]CTM Details'!U$5:U$408,MATCH($C18,'[5]CTM Details'!$B$5:$B$408,FALSE),1)) -> Calder | H18: =(INDEX('[5]Tariff-D 2015'!$H$8:$FB$8,MATCH(C18,'[5]Tariff-D 2015'!$H$6:$FB$6,FALSE)))/1000 -> 1766.399673 | I18: =(INDEX('[5]Tariff-D 2015'!$H$10:$FB$10,MATCH(C18,'[5]Tariff-D 2015'!$H$6:$FB$6,FALSE)))/1000 -> 7.290526799 | J18: 0.6637999273 | K18: =(INDEX('[5]Tariff-D Norm'!$H$10:$FB$10,MATCH(C18,'[5]Tariff-D Norm'!$H$6:$FB$6,FALSE)))/1000 -> 1754.260613 | L18: =(INDEX('[5]Tariff-D Norm'!$H$11:$FB$11,MATCH(C18,'[5]Tariff-D Norm'!$H$6:$FB$6,FALSE)))/1000 -> 5.864532887 | M18: =L18*(1/(('[5]Tariff-D Norm'!$D$11+'[5]Tariff-V Norm'!$D$11)/'[5]Tariff-V&D Norm'!$D$11)) -> 5.776804763 | N18: 0.831981287 | P18: =(K18/$K$24)*(Vencorp_Summary_BO!$G$31) -> 848.2325723 | Q18: 2.793241738 | S18: 2.793241738 | T18: 2.587760435 | U18: 0.8980448207 | W18: =(P18/P$24)*W$24 -> 848.2325723 | X18: 2.587760435 | Y18: =-(X18+Tariff_V_BO!X18)+INDEX(Annual_CTM_BO!$Z:$Z,MATCH(Tariff_D_BO!$C18,Annual_CTM_BO!$C:$C,FALSE)) -> -5.79740906 | Z18: =IF((X18+Tariff_V_BO!X18)=0,0,X18/(X18+Tariff_V_BO!X18)*Y18) -> -0.4929802054 | AA18: 2.34595854 | AB18: 0.9906078116 | AD18: 848.2325723 | AE18: 2.301695172 | AF18: =-(AE18+Tariff_V_BO!AE18)+INDEX(Annual_CTM_BO!$AG:$AG,MATCH(Tariff_D_BO!$C18,Annual_CTM_BO!$C:$C,FALSE)) -> -3.420137582 | AG18: =IF((AE18+Tariff_V_BO!AE18)=0,0,AE18/(AE18+Tariff_V_BO!AE18)*AF18) -> -0.2850640964 | AH18: 2.283754604 | AI18: 1.017589566 | AK18: 848.2325723 | AL18: 2.283754604 | AM18: =-(AL18+Tariff_V_BO!AL18)+INDEX(Annual_CTM_BO!$AN:$AN,MATCH(Tariff_D_BO!$C18,Annual_CTM_BO!$C:$C,FALSE)) -> -3.816929521 | AN18: =IF((AL18+Tariff_V_BO!AL18)=0,0,AL18/(AL18+Tariff_V_BO!AL18)*AM18) -> -0.3139054119 | AO18: 2.265850038 | AP18: 1.025630477 | AR18: 843.2806681 | AS18: 2.200488979 | AT18: =-(AS18+Tariff_V_BO!AS18)+INDEX(Annual_CTM_BO!$AU:$AU,MATCH(Tariff_D_BO!$C18,Annual_CTM_BO!$C:$C,FALSE)) -> -3.584086354 | AU18: =IF((AS18+Tariff_V_BO!AS18)=0,0,AS18/(AS18+Tariff_V_BO!AS18)*AT18) -> -0.2864110469 | AV18: 2.200714288 | AW18: 1.049821873 | AY18: 840.4812425 | AZ18: 2.161493637 | BA18: =-(AZ18+Tariff_V_BO!AZ18)+INDEX(Annual_CTM_BO!$BB:$BB,MATCH(Tariff_D_BO!$C18,Annual_CTM_BO!$C:$C,FALSE)) -> -3.714136347 | BB18: =IF((AZ18+Tariff_V_BO!AZ18)=0,0,AZ18/(AZ18+Tariff_V_BO!AZ18)*BA18) -> -0.2901734244 | BC18: 2.161663259 | BD18: 1.065239151
C19: M086 | D19: =(INDEX('[5]CTM Details'!P$5:P$408,MATCH($C19,'[5]CTM Details'!$B$5:$B$408,FALSE),1)) -> Wallace | E19: =(INDEX('[5]CTM Details'!D$5:D$408,MATCH($C19,'[5]CTM Details'!$B$5:$B$408,FALSE),1)) -> 30000080PC | F19: =(INDEX('[5]CTM Details'!U$5:U$408,MATCH($C19,'[5]CTM Details'!$B$5:$B$408,FALSE),1)) -> Calder | H19: =(INDEX('[5]Tariff-D 2015'!$H$8:$FB$8,MATCH(C19,'[5]Tariff-D 2015'!$H$6:$FB$6,FALSE)))/1000 -> 1.909405951 | I19: =(INDEX('[5]Tariff-D 2015'!$H$10:$FB$10,MATCH(C19,'[5]Tariff-D 2015'!$H$6:$FB$6,FALSE)))/1000 -> 0.01010162678 | J19: 0.5178620526 | K19: =(INDEX('[5]Tariff-D Norm'!$H$10:$FB$10,MATCH(C19,'[5]Tariff-D Norm'!$H$6:$FB$6,FALSE)))/1000 -> 1.886713445 | L19: =(INDEX('[5]Tariff-D Norm'!$H$11:$FB$11,MATCH(C19,'[5]Tariff-D Norm'!$H$6:$FB$6,FALSE)))/1000 -> 0.007249744598 | M19: =L19*(1/(('[5]Tariff-D Norm'!$D$11+'[5]Tariff-V Norm'!$D$11)/'[5]Tariff-V&D Norm'!$D$11)) -> 0.007141294956 | N19: 0.7238292163 | P19: =(K19/$K$24)*(Vencorp_Summary_BO!$G$31) -> 0.9122771078 | Q19: 0.003453009743 | S19: 0.003453009743 | T19: 0.00319899344 | U19: 0.7813049271 | W19: 0.9122771078 | X19: 0.00319899344 | Y19: =-(X19+Tariff_V_BO!X19)+INDEX(Annual_CTM_BO!$Z:$Z,MATCH(Tariff_D_BO!$C19,Annual_CTM_BO!$C:$C,FALSE)) -> -0.008092762161 | Z19: =IF((X19+Tariff_V_BO!X19)=0,0,X19/(X19+Tariff_V_BO!X19)*Y19) -> -0.0006853747238 | AA19: 0.002815018593 | AB19: 0.8878766708 | AD19: 0.9122771078 | AE19: 0.002761905034 | AF19: =-(AE19+Tariff_V_BO!AE19)+INDEX(Annual_CTM_BO!$AG:$AG,MATCH(Tariff_D_BO!$C19,Annual_CTM_BO!$C:$C,FALSE)) -> -0.004094767016 | AG19: =IF((AE19+Tariff_V_BO!AE19)=0,0,AE19/(AE19+Tariff_V_BO!AE19)*AF19) -> -0.0003399074375 | AH19: 0.002742816091 | AI19: 0.911249334 | AK19: 0.9122771078 | AL19: 0.002742816091 | AM19: =-(AL19+Tariff_V_BO!AL19)+INDEX(Annual_CTM_BO!$AN:$AN,MATCH(Tariff_D_BO!$C19,Annual_CTM_BO!$C:$C,FALSE)) -> -0.004577138491 | AN19: =IF((AL19+Tariff_V_BO!AL19)=0,0,AL19/(AL19+Tariff_V_BO!AL19)*AM19) -> -0.0003748945344 | AO19: 0.002723739041 | AP19: 0.9176317183 | AR19: 0.9069513175 | AS19: 0.002645169646 | AT19: =-(AS19+Tariff_V_BO!AS19)+INDEX(Annual_CTM_BO!$AU:$AU,MATCH(Tariff_D_BO!$C19,Annual_CTM_BO!$C:$C,FALSE)) -> -0.004326301938 | AU19: =IF((AS19+Tariff_V_BO!AS19)=0,0,AS19/(AS19+Tariff_V_BO!AS19)*AT19) -> -0.0003443134904 | AV19: 0.002645413193 | AW19: 0.9392854534 | AY19: 0.9039405254 | AZ19: 0.002598267215 | BA19: =-(AZ19+Tariff_V_BO!AZ19)+INDEX(Annual_CTM_BO!$BB:$BB,MATCH(Tariff_D_BO!$C19,Annual_CTM_BO!$C:$C,FALSE)) -> -0.004483192306 | BB19: =IF((AZ19+Tariff_V_BO!AZ19)=0,0,AZ19/(AZ19+Tariff_V_BO!AZ19)*BA19) -> -0.0003488266349 | BC19: 0.002598450561 | BD19: 0.9530869749
C20: M121 | D20: =(INDEX('[5]CTM Details'!P$5:P$408,MATCH($C20,'[5]CTM Details'!$B$5:$B$408,FALSE),1)) -> Rockbank | E20: =(INDEX('[5]CTM Details'!D$5:D$408,MATCH($C20,'[5]CTM Details'!$B$5:$B$408,FALSE),1)) -> 30000117PC | F20: =(INDEX('[5]CTM Details'!U$5:U$408,MATCH($C20,'[5]CTM Details'!$B$5:$B$408,FALSE),1)) -> Metro North West | H20: =(INDEX('[5]Tariff-D 2015'!$H$8:$FB$8,MATCH(C20,'[5]Tariff-D 2015'!$H$6:$FB$6,FALSE)))/1000 -> 161.2865604 | I20: =(INDEX('[5]Tariff-D 2015'!$H$10:$FB$10,MATCH(C20,'[5]Tariff-D 2015'!$H$6:$FB$6,FALSE)))/1000 -> 0.5063161721 | J20: 0.8727372574 | K20: =(INDEX('[5]Tariff-D Norm'!$H$10:$FB$10,MATCH(C20,'[5]Tariff-D Norm'!$H$6:$FB$6,FALSE)))/1000 -> 160.5060683 | L20: =(INDEX('[5]Tariff-D Norm'!$H$11:$FB$11,MATCH(C20,'[5]Tariff-D Norm'!$H$6:$FB$6,FALSE)))/1000 -> 0.4772962447 | M20: =L20*(1/(('[5]Tariff-D Norm'!$D$11+'[5]Tariff-V Norm'!$D$11)/'[5]Tariff-V&D Norm'!$D$11)) -> 0.4701563232 | N20: 0.9353115786 | P20: =(K20/$K$24)*(Vencorp_Summary_BO!$G$31) -> 77.60903605 | Q20: 0.2273333303 | S20: 0.2273333303 | T20: 0.2106098408 | U20: 1.009580062 | W20: 77.60903605 | X20: 0.2106098408 | Y20: =-(X20+Tariff_V_BO!X20)+INDEX(Annual_CTM_BO!$Z:$Z,MATCH(Tariff_D_BO!$C20,Annual_CTM_BO!$C:$C,FALSE)) -> 0.5169332127 | Z20: =IF((X20+Tariff_V_BO!X20)=0,0,X20/(X20+Tariff_V_BO!X20)*Y20) -> 0.03991434995 | AA20: 0.2805637348 | AB20: 0.7578580894 | AD20: 77.60903605 | AE20: 0.2752700795 | AF20: =-(AE20+Tariff_V_BO!AE20)+INDEX(Annual_CTM_BO!$AG:$AG,MATCH(Tariff_D_BO!$C20,Annual_CTM_BO!$C:$C,FALSE)) -> -0.3181581192 | AG20: =IF((AE20+Tariff_V_BO!AE20)=0,0,AE20/(AE20+Tariff_V_BO!AE20)*AF20) -> -0.02407506417 | AH20: 0.2844683788 | AI20: 0.7474556465 | AK20: 77.60903605 | AL20: 0.2844683788 | AM20: =-(AL20+Tariff_V_BO!AL20)+INDEX(Annual_CTM_BO!$AN:$AN,MATCH(Tariff_D_BO!$C20,Annual_CTM_BO!$C:$C,FALSE)) -> -0.3974763793 | AN20: =IF((AL20+Tariff_V_BO!AL20)=0,0,AL20/(AL20+Tariff_V_BO!AL20)*AM20) -> -0.02967379606 | AO20: 0.2930814792 | AP20: 0.7254893642 | AR20: 77.15596159 | AS20: 0.2846272058 | AT20: =-(AS20+Tariff_V_BO!AS20)+INDEX(Annual_CTM_BO!$AU:$AU,MATCH(Tariff_D_BO!$C20,Annual_CTM_BO!$C:$C,FALSE)) -> -0.5116094941 | AU20: =IF((AS20+Tariff_V_BO!AS20)=0,0,AS20/(AS20+Tariff_V_BO!AS20)*AT20) -> -0.03710439952 | AV20: 0.2845897583 | AW20: 0.7427751349 | AY20: 76.89982816 | AZ20: 0.2795178617 | BA20: =-(AZ20+Tariff_V_BO!AZ20)+INDEX(Annual_CTM_BO!$BB:$BB,MATCH(Tariff_D_BO!$C20,Annual_CTM_BO!$C:$C,FALSE)) -> -0.5299290704 | BB20: =IF((AZ20+Tariff_V_BO!AZ20)=0,0,AZ20/(AZ20+Tariff_V_BO!AZ20)*BA20) -> -0.03756774837 | BC20: 0.279489671 | BD20: 0.7538184147
C21: M169 | D21: =(INDEX('[5]CTM Details'!P$5:P$408,MATCH($C21,'[5]CTM Details'!$B$5:$B$408,FALSE),1)) -> Mount Cottrell | E21: =(INDEX('[5]CTM Details'!D$5:D$408,MATCH($C21,'[5]CTM Details'!$B$5:$B$408,FALSE),1)) -> 30000208PC | F21: =(INDEX('[5]CTM Details'!U$5:U$408,MATCH($C21,'[5]CTM Details'!$B$5:$B$408,FALSE),1)) -> Metro North West | P21: =(K21/$K$24)*(Vencorp_Summary_BO!$G$31) -> 0 | Q21: =IF(N21=0,0,(P21/365)/N21) -> 0 | T21: 0 | U21: =IF(T21=0,0,(P21/365)/T21) -> 0 | W21: 0 | X21: 0 | Y21: =-(X21+Tariff_V_BO!X21)+INDEX(Annual_CTM_BO!$Z:$Z,MATCH(Tariff_D_BO!$C21,Annual_CTM_BO!$C:$C,FALSE)) -> 3.935769842 | Z21: =IF((X21+Tariff_V_BO!X21)=0,0,X21/(X21+Tariff_V_BO!X21)*Y21) -> 0 | AA21: 0 | AB21: =IF(AA21=0,0,(W21/365)/AA21) -> 0 | AD21: 0 | AE21: 0 | AF21: =-(AE21+Tariff_V_BO!AE21)+INDEX(Annual_CTM_BO!$AG:$AG,MATCH(Tariff_D_BO!$C21,Annual_CTM_BO!$C:$C,FALSE)) -> 4.262485343 | AG21: =IF((AE21+Tariff_V_BO!AE21)=0,0,AE21/(AE21+Tariff_V_BO!AE21)*AF21) -> 0 | AH21: 0 | AI21: =IF(AH21=0,0,(AD21/365)/AH21) -> 0 | AK21: 0 | AL21: 0 | AM21: =-(AL21+Tariff_V_BO!AL21)+INDEX(Annual_CTM_BO!$AN:$AN,MATCH(Tariff_D_BO!$C21,Annual_CTM_BO!$C:$C,FALSE)) -> 4.647041922 | AN21: =IF((AL21+Tariff_V_BO!AL21)=0,0,AL21/(AL21+Tariff_V_BO!AL21)*AM21) -> 0 | AO21: 0 | AP21: =IF(AO21=0,0,(AK21/365)/AO21) -> 0 | AR21: 0 | AS21: 0 | AT21: =-(AS21+Tariff_V_BO!AS21)+INDEX(Annual_CTM_BO!$AU:$AU,MATCH(Tariff_D_BO!$C21,Annual_CTM_BO!$C:$C,FALSE)) -> 4.647041922 | AU21: =IF((AS21+Tariff_V_BO!AS21)=0,0,AS21/(AS21+Tariff_V_BO!AS21)*AT21) -> 0 | AV21: 0 | AW21: =IF(AV21=0,0,(AR21/365)/AV21) -> 0 | AY21: 0 | AZ21: 0 | BA21: =-(AZ21+Tariff_V_BO!AZ21)+INDEX(Annual_CTM_BO!$BB:$BB,MATCH(Tariff_D_BO!$C21,Annual_CTM_BO!$C:$C,FALSE)) -> 4.647041922 | BB21: =IF((AZ21+Tariff_V_BO!AZ21)=0,0,AZ21/(AZ21+Tariff_V_BO!AZ21)*BA21) -> 0 | BC21: 0 | BD21: =IF(BC21=0,0,(AY21/365)/BC21) -> 0
C22: M154 | D22: =(INDEX('[5]CTM Details'!P$5:P$408,MATCH($C22,'[5]CTM Details'!$B$5:$B$408,FALSE),1)) -> Plumpton | E22: =(INDEX('[5]CTM Details'!D$5:D$408,MATCH($C22,'[5]CTM Details'!$B$5:$B$408,FALSE),1)) -> 30000192PC | F22: =(INDEX('[5]CTM Details'!U$5:U$408,MATCH($C22,'[5]CTM Details'!$B$5:$B$408,FALSE),1)) -> Metro North West | P22: =(K22/$K$24)*(Vencorp_Summary_BO!$G$31) -> 0 | Q22: 0 | T22: 0 | U22: 0 | W22: 0 | X22: 0 | Y22: =-(X22+Tariff_V_BO!X22)+INDEX(Annual_CTM_BO!$Z:$Z,MATCH(Tariff_D_BO!$C22,Annual_CTM_BO!$C:$C,FALSE)) -> 8.369580042 | Z22: =IF((X22+Tariff_V_BO!X22)=0,0,X22/(X22+Tariff_V_BO!X22)*Y22) -> 0 | AA22: 0 | AB22: 0 | AD22: 0 | AE22: 0 | AF22: =-(AE22+Tariff_V_BO!AE22)+INDEX(Annual_CTM_BO!$AG:$AG,MATCH(Tariff_D_BO!$C22,Annual_CTM_BO!$C:$C,FALSE)) -> 8.497979736 | AG22: =IF((AE22+Tariff_V_BO!AE22)=0,0,AE22/(AE22+Tariff_V_BO!AE22)*AF22) -> 0 | AH22: 0 | AI22: 0 | AK22: 0 | AL22: 0 | AM22: =-(AL22+Tariff_V_BO!AL22)+INDEX(Annual_CTM_BO!$AN:$AN,MATCH(Tariff_D_BO!$C22,Annual_CTM_BO!$C:$C,FALSE)) -> 8.682693299 | AN22: =IF((AL22+Tariff_V_BO!AL22)=0,0,AL22/(AL22+Tariff_V_BO!AL22)*AM22) -> 0 | AO22: 0 | AP22: 0 | AR22: 0 | AS22: 0 | AT22: =-(AS22+Tariff_V_BO!AS22)+INDEX(Annual_CTM_BO!$AU:$AU,MATCH(Tariff_D_BO!$C22,Annual_CTM_BO!$C:$C,FALSE)) -> 8.682693299 | AU22: =IF((AS22+Tariff_V_BO!AS22)=0,0,AS22/(AS22+Tariff_V_BO!AS22)*AT22) -> 0 | AV22: 0 | AW22: 0 | AY22: 0 | AZ22: 0 | BA22: =-(AZ22+Tariff_V_BO!AZ22)+INDEX(Annual_CTM_BO!$BB:$BB,MATCH(Tariff_D_BO!$C22,Annual_CTM_BO!$C:$C,FALSE)) -> 8.682693299 | BB22: =IF((AZ22+Tariff_V_BO!AZ22)=0,0,AZ22/(AZ22+Tariff_V_BO!AZ22)*BA22) -> 0 | BC22: 0 | BD22: 0
C24: Ballarat | H24: =SUM(H12:H22) -> 3338.596389 | I24: =SUM(I12:I22) -> 14.39643267 | J24: =IF(I24=0,0,(H24/365)/I24) -> 0.6353545793 | K24: =SUM(K12:K22) -> 3309.018155 | L24: =SUM(L12:L22) -> 12.0111676 | M24: =SUM(M12:M22) -> 11.83149137 | N24: =IF(M24=0,0,(K24/365)/M24) -> 0.7662434839 | P24: =SUM(P12:P22) -> 1600 | Q24: =SUM(Q12:Q22) -> 5.72084688 | R24: =SUM(R12:R22) -> 0 | S24: =SUM(S12:S22) -> 5.72084688 | T24: =(INDEX(Volume_Assumptions_BA!I$141:I$146,MATCH($C24,Volume_Assumptions_BA!$D$141:$D$146,FALSE),1)) -> 5.3 | U24: =IF(T24=0,0,(P24/365)/T24) -> 0.8270871026 | W24: =Vencorp_Summary_BO!H31 -> 1600 | X24: =(INDEX(Volume_Assumptions_BA!J$141:J$146,MATCH($C24,Volume_Assumptions_BA!$D$141:$D$146,FALSE),1)) -> 5.3 | Z24: =SUM(Z12:Z22) -> -0.5674631605 | AA24: =SUM(AA12:AA22) -> 5.3 | AB24: 0.8270871026 | AD24: =Vencorp_Summary_BO!I31 -> 1600 | AE24: =(INDEX(Volume_Assumptions_BA!K$141:K$146,MATCH($C24,Volume_Assumptions_BA!$D$141:$D$146,FALSE),1)) -> 5.2 | AG24: =SUM(AG12:AG22) -> -0.6082274985 | AH24: =SUM(AH12:AH22) -> 5.2 | AI24: =IF(AH24=0,0,(AD24/365)/AH24) -> 0.8429926238 | AK24: =Vencorp_Summary_BO!J31 -> 1600 | AL24: =(INDEX(Volume_Assumptions_BA!L$141:L$146,MATCH($C24,Volume_Assumptions_BA!$D$141:$D$146,FALSE),1)) -> 5.2 | AN24: =SUM(AN12:AN22) -> -0.6793055027 | AO24: =SUM(AO12:AO22) -> 5.2 | AP24: =IF(AO24=0,0,(AK24/365)/AO24) -> 0.8429926238 | AR24: =Vencorp_Summary_BO!K31 -> 1590.659346 | AS24: =(INDEX(Volume_Assumptions_BA!M$141:M$146,MATCH($C24,Volume_Assumptions_BA!$D$141:$D$146,FALSE),1)) -> 5.05 | AU24: =SUM(AU12:AU22) -> -0.6577471691 | AV24: =SUM(AV12:AV22) -> 5.05 | AW24: =IF(AV24=0,0,(AR24/365)/AV24) -> 0.8629645172 | AY24: =Vencorp_Summary_BO!L31 -> 1585.378859 | AZ24: =(INDEX(Volume_Assumptions_BA!N$141:N$146,MATCH($C24,Volume_Assumptions_BA!$D$141:$D$146,FALSE),1)) -> 4.96 | BB24: =SUM(BB12:BB22) -> -0.6662006704 | BC24: =SUM(BC12:BC22) -> 4.96 | BD24: =IF(BC24=0,0,(AY24/365)/BC24) -> 0.8757063961
C26: M028 | D26: =(INDEX('[5]CTM Details'!P$5:P$408,MATCH($C26,'[5]CTM Details'!$B$5:$B$408,FALSE),1)) -> Laverton North (Fitzgerald Rd) | E26: =(INDEX('[5]CTM Details'!D$5:D$408,MATCH($C26,'[5]CTM Details'!$B$5:$B$408,FALSE),1)) -> 30000028PC | F26: =(INDEX('[5]CTM Details'!U$5:U$408,MATCH($C26,'[5]CTM Details'!$B$5:$B$408,FALSE),1)) -> Metro North West | H26: =(INDEX('[5]Tariff-D 2015'!$H$8:$FB$8,MATCH(C26,'[5]Tariff-D 2015'!$H$6:$FB$6,FALSE)))/1000 -> 1233.259001 | I26: =(INDEX('[5]Tariff-D 2015'!$H$10:$FB$10,MATCH(C26,'[5]Tariff-D 2015'!$H$6:$FB$6,FALSE)))/1000 -> 2.192987122 | J26: =IF(I26=0,0,(H26/365)/I26) -> 1.540725775 | K26: =(INDEX('[5]Tariff-D Norm'!$H$10:$FB$10,MATCH(C26,'[5]Tariff-D Norm'!$H$6:$FB$6,FALSE)))/1000 -> 1233.259001 | L26: =(INDEX('[5]Tariff-D Norm'!$H$11:$FB$11,MATCH(C26,'[5]Tariff-D Norm'!$H$6:$FB$6,FALSE)))/1000 -> 3.104646386 | M26: =L26*(1/(('[5]Tariff-D Norm'!$D$11+'[5]Tariff-V Norm'!$D$11)/'[5]Tariff-V&D Norm'!$D$11)) -> 3.058203675 | N26: =IF(M26=0,0,(K26/365)/M26) -> 1.104828894 | P26: =(K26/$K$41)*(Vencorp_Summary_BO!$G$33) -> 1136.177815 | Q26: =IF(N26=0,0,(P26/365)/N26) -> 2.817464269 | S26: =IF(R26=0,Q26,(P26/365)/R26) -> 2.817464269 | T26: =(M26/M$41)*(T$41) -> 3.874149188 | U26: =IF(T26=0,0,(P26/365)/T26) -> 0.8034837535 | W26: =(P26/P$41)*W$41 -> 901.4883889 | X26: =(T26/$T$41)*$X$41 -> 3.771113305 | Y26: =-(X26+Tariff_V_BO!X26)+INDEX(Annual_CTM_BO!$Z:$Z,MATCH(Tariff_D_BO!$C26,Annual_CTM_BO!$C:$C,FALSE)) -> -3.797454137 | Z26: =IF((X26+Tariff_V_BO!X26)=0,0,X26/(X26+Tariff_V_BO!X26)*Y26) -> -0.9823176445 | AA26: =(Z26+X26)/(X$41+Z$41)*X$41 -> 2.786489268 | AB26: =IF(AA26=0,0,(W26/365)/AA26) -> 0.8863594885 | AD26: =(W26/W$41)*AD$41 -> 891.1335241 | AE26: =(AA26/AA$41)*AE$41 -> 2.77887591 | AF26: =-(AE26+Tariff_V_BO!AE26)+INDEX(Annual_CTM_BO!$AG:$AG,MATCH(Tariff_D_BO!$C26,Annual_CTM_BO!$C:$C,FALSE)) -> -0.3343816478 | AG26: =IF((AE26+Tariff_V_BO!AE26)=0,0,AE26/(AE26+Tariff_V_BO!AE26)*AF26) -> -0.08475173119 | AH26: =(AG26+AE26)/(AE$41+AG$41)*AE$41 -> 2.702571473 | AI26: =IF(AH26=0,0,(AD26/365)/AH26) -> 0.9033846965 | AK26: =(AD26/AD$41)*AK$41 -> 870.6493166 | AL26: =(AH26/AH$41)*AL$41 -> 2.687762862 | AM26: =-(AL26+Tariff_V_BO!AL26)+INDEX(Annual_CTM_BO!$AN:$AN,MATCH(Tariff_D_BO!$C26,Annual_CTM_BO!$C:$C,FALSE)) -> -0.2136271407 | AN26: =IF((AL26+Tariff_V_BO!AL26)=0,0,AL26/(AL26+Tariff_V_BO!AL26)*AM26) -> -0.0533450879 | AO26: =(AN26+AL26)/(AL$41+AN$41)*AL$41 -> 2.618073647 | AP26: 0.9111052305 | AR26: =(AK26/AK$41)*AR$41 -> 884.2920366 | AS26: =(AO26/AO$41)*AS$41 -> 2.585618188 | AT26: =-(AS26+Tariff_V_BO!AS26)+INDEX(Annual_CTM_BO!$AU:$AU,MATCH(Tariff_D_BO!$C26,Annual_CTM_BO!$C:$C,FALSE)) -> 0.06915155279 | AU26: =IF((AS26+Tariff_V_BO!AS26)=0,0,AS26/(AS26+Tariff_V_BO!AS26)*AT26) -> 0.01705987117 | AV26: =(AU26+AS26)/(AS$41+AU$41)*AS$41 -> 2.581938082 | AW26: =IF(AV26=0,0,(AR26/365)/AV26) -> 0.9383330783 | AY26: =(AR26/AR$41)*AY$41 -> 881.3518569 | AZ26: =(AV26/AV$41)*AZ$41 -> 2.556730876 | BA26: =-(AZ26+Tariff_V_BO!AZ26)+INDEX(Annual_CTM_BO!$BB:$BB,MATCH(Tariff_D_BO!$C26,Annual_CTM_BO!$C:$C,FALSE)) -> 0.09115864613 | BB26: =IF((AZ26+Tariff_V_BO!AZ26)=0,0,AZ26/(AZ26+Tariff_V_BO!AZ26)*BA26) -> 0.02228461715 | BC26: =(BB26+AZ26)/(AZ$41+BB$41)*AZ$41 -> 2.547772134 | BD26: =IF(BC26=0,0,(AY26/365)/BC26) -> 0.9477545457
C27: M029 | D27: =(INDEX('[5]CTM Details'!P$5:P$408,MATCH($C27,'[5]CTM Details'!$B$5:$B$408,FALSE),1)) -> Hoppers Crossing (Forsyth Rd) | E27: =(INDEX('[5]CTM Details'!D$5:D$408,MATCH($C27,'[5]CTM Details'!$B$5:$B$408,FALSE),1)) -> 30000029PC | F27: =(INDEX('[5]CTM Details'!U$5:U$408,MATCH($C27,'[5]CTM Details'!$B$5:$B$408,FALSE),1)) -> Metro North West | H27: =(INDEX('[5]Tariff-D 2015'!$H$8:$FB$8,MATCH(C27,'[5]Tariff-D 2015'!$H$6:$FB$6,FALSE)))/1000 -> 473.7383291 | I27: =(INDEX('[5]Tariff-D 2015'!$H$10:$FB$10,MATCH(C27,'[5]Tariff-D 2015'!$H$6:$FB$6,FALSE)))/1000 -> 2.171701894 | J27: 0.5976479711 | K27: =(INDEX('[5]Tariff-D Norm'!$H$10:$FB$10,MATCH(C27,'[5]Tariff-D Norm'!$H$6:$FB$6,FALSE)))/1000 -> 470.6733807 | L27: =(INDEX('[5]Tariff-D Norm'!$H$11:$FB$11,MATCH(C27,'[5]Tariff-D Norm'!$H$6:$FB$6,FALSE)))/1000 -> 1.658731629 | M27: =L27*(1/(('[5]Tariff-D Norm'!$D$11+'[5]Tariff-V Norm'!$D$11)/'[5]Tariff-V&D Norm'!$D$11)) -> 1.633918499 | N27: 0.7892169115 | P27: =(K27/$K$41)*(Vencorp_Summary_BO!$G$33) -> 433.6223395 | Q27: 1.50529771 | S27: 1.50529771 | T27: 2.069856916 | U27: 0.5739558134 | W27: =(P27/P$41)*W$41 -> 344.0531043 | X27: 2.01480753 | Y27: =-(X27+Tariff_V_BO!X27)+INDEX(Annual_CTM_BO!$Z:$Z,MATCH(Tariff_D_BO!$C27,Annual_CTM_BO!$C:$C,FALSE)) -> 0.4416300847 | Z27: =IF((X27+Tariff_V_BO!X27)=0,0,X27/(X27+Tariff_V_BO!X27)*Y27) -> 0.09257725405 | AA27: =(Z27+X27)/(X$41+Z$41)*X$41 -> 2.105641932 | AB27: =IF(AA27=0,0,(W27/365)/AA27) -> 0.4476597992 | AD27: 340.1011694 | AE27: 2.099888812 | AF27: =-(AE27+Tariff_V_BO!AE27)+INDEX(Annual_CTM_BO!$AG:$AG,MATCH(Tariff_D_BO!$C27,Annual_CTM_BO!$C:$C,FALSE)) -> -0.01164757314 | AG27: =IF((AE27+Tariff_V_BO!AE27)=0,0,AE27/(AE27+Tariff_V_BO!AE27)*AF27) -> -0.002389177099 | AH27: =(AG27+AE27)/(AE$41+AG$41)*AE$41 -> 2.104076243 | AI27: =IF(AH27=0,0,(AD27/365)/AH27) -> 0.4428470827 | AK27: 332.2833703 | AL27: 2.092547058 | AM27: =-(AL27+Tariff_V_BO!AL27)+INDEX(Annual_CTM_BO!$AN:$AN,MATCH(Tariff_D_BO!$C27,Annual_CTM_BO!$C:$C,FALSE)) -> 0.09584728597 | AN27: =IF((AL27+Tariff_V_BO!AL27)=0,0,AL27/(AL27+Tariff_V_BO!AL27)*AM27) -> 0.01935125314 | AO27: 2.098795934 | AP27: 0.4337560329 | AR27: 337.4901153 | AS27: 2.072777802 | AT27: =-(AS27+Tariff_V_BO!AS27)+INDEX(Annual_CTM_BO!$AU:$AU,MATCH(Tariff_D_BO!$C27,Annual_CTM_BO!$C:$C,FALSE)) -> 0.06058566702 | AU27: =IF((AS27+Tariff_V_BO!AS27)=0,0,AS27/(AS27+Tariff_V_BO!AS27)*AT27) -> 0.01207540337 | AV27: 2.068239622 | AW27: 0.44706157 | AY27: 336.3679955 | AZ27: 2.048047604 | BA27: =-(AZ27+Tariff_V_BO!AZ27)+INDEX(Annual_CTM_BO!$BB:$BB,MATCH(Tariff_D_BO!$C27,Annual_CTM_BO!$C:$C,FALSE)) -> 0.08445341224 | BB27: =IF((AZ27+Tariff_V_BO!AZ27)=0,0,AZ27/(AZ27+Tariff_V_BO!AZ27)*BA27) -> 0.01666994326 | BC27: 2.039704626 | BD27: =IF(BC27=0,0,(AY27/365)/BC27) -> 0.4518086298
C28: M030 | D28: =(INDEX('[5]CTM Details'!P$5:P$408,MATCH($C28,'[5]CTM Details'!$B$5:$B$408,FALSE),1)) -> Hoppers Crossing (Heaths Rd) | E28: =(INDEX('[5]CTM Details'!D$5:D$408,MATCH($C28,'[5]CTM Details'!$B$5:$B$408,FALSE),1)) -> 30000030PC | F28: =(INDEX('[5]CTM Details'!U$5:U$408,MATCH($C28,'[5]CTM Details'!$B$5:$B$408,FALSE),1)) -> Metro North West | H28: =(INDEX('[5]Tariff-D 2015'!$H$8:$FB$8,MATCH(C28,'[5]Tariff-D 2015'!$H$6:$FB$6,FALSE)))/1000 -> 400.7812264 | I28: =(INDEX('[5]Tariff-D 2015'!$H$10:$FB$10,MATCH(C28,'[5]Tariff-D 2015'!$H$6:$FB$6,FALSE)))/1000 -> 2.687559824 | J28: 0.4085604895 | K28: =(INDEX('[5]Tariff-D Norm'!$H$10:$FB$10,MATCH(C28,'[5]Tariff-D Norm'!$H$6:$FB$6,FALSE)))/1000 -> 392.9249363 | L28: =(INDEX('[5]Tariff-D Norm'!$H$11:$FB$11,MATCH(C28,'[5]Tariff-D Norm'!$H$6:$FB$6,FALSE)))/1000 -> 1.887602796 | M28: =L28*(1/(('[5]Tariff-D Norm'!$D$11+'[5]Tariff-V Norm'!$D$11)/'[5]Tariff-V&D Norm'!$D$11)) -> 1.85936596 | N28: 0.5789643879 | P28: =(K28/$K$41)*(Vencorp_Summary_BO!$G$33) -> 361.994192 | Q28: 1.712998123 | S28: 1.712998123 | T28: 2.355454996 | U28: 0.4210502478 | W28: 287.2205008 | X28: 2.292809916 | Y28: =-(X28+Tariff_V_BO!X28)+INDEX(Annual_CTM_BO!$Z:$Z,MATCH(Tariff_D_BO!$C28,Annual_CTM_BO!$C:$C,FALSE)) -> -2.578864525 | Z28: =IF((X28+Tariff_V_BO!X28)=0,0,X28/(X28+Tariff_V_BO!X28)*Y28) -> -0.5445526289 | AA28: 1.746811442 | AB28: 0.4504810667 | AD28: 283.9213685 | AE28: 1.742038733 | AF28: =-(AE28+Tariff_V_BO!AE28)+INDEX(Annual_CTM_BO!$AG:$AG,MATCH(Tariff_D_BO!$C28,Annual_CTM_BO!$C:$C,FALSE)) -> -0.5977348795 | AG28: =IF((AE28+Tariff_V_BO!AE28)=0,0,AE28/(AE28+Tariff_V_BO!AE28)*AF28) -> -0.1235109006 | AH28: 1.623602647 | AI28: 0.4790992207 | AK28: 277.3949568 | AL28: 1.614706194 | AM28: =-(AL28+Tariff_V_BO!AL28)+INDEX(Annual_CTM_BO!$AN:$AN,MATCH(Tariff_D_BO!$C28,Annual_CTM_BO!$C:$C,FALSE)) -> -0.4569758413 | AN28: =IF((AL28+Tariff_V_BO!AL28)=0,0,AL28/(AL28+Tariff_V_BO!AL28)*AM28) -> -0.09294355404 | AO28: 1.512321509 | AP28: 0.5025295074 | AR28: 281.7416228 | AS28: 1.493573722 | AT28: =-(AS28+Tariff_V_BO!AS28)+INDEX(Annual_CTM_BO!$AU:$AU,MATCH(Tariff_D_BO!$C28,Annual_CTM_BO!$C:$C,FALSE)) -> 0.04351385951 | AU28: =IF((AS28+Tariff_V_BO!AS28)=0,0,AS28/(AS28+Tariff_V_BO!AS28)*AT28) -> 0.008737084034 | AV28: 1.490339332 | AW28: 0.5179322857 | AY28: 280.8048609 | AZ28: 1.475789297 | BA28: =-(AZ28+Tariff_V_BO!AZ28)+INDEX(Annual_CTM_BO!$BB:$BB,MATCH(Tariff_D_BO!$C28,Annual_CTM_BO!$C:$C,FALSE)) -> 0.06054023692 | BB28: =IF((AZ28+Tariff_V_BO!AZ28)=0,0,AZ28/(AZ28+Tariff_V_BO!AZ28)*BA28) -> 0.01203859848 | BC28: 1.469803676 | BD28: 0.5234225487
C29: M031 | D29: =(INDEX('[5]CTM Details'!P$5:P$408,MATCH($C29,'[5]CTM Details'!$B$5:$B$408,FALSE),1)) -> Werribee (Old Sneydes Rd) | E29: =(INDEX('[5]CTM Details'!D$5:D$408,MATCH($C29,'[5]CTM Details'!$B$5:$B$408,FALSE),1)) -> 30000031PC | F29: =(INDEX('[5]CTM Details'!U$5:U$408,MATCH($C29,'[5]CTM Details'!$B$5:$B$408,FALSE),1)) -> Metro North West | H29: =(INDEX('[5]Tariff-D 2015'!$H$8:$FB$8,MATCH(C29,'[5]Tariff-D 2015'!$H$6:$FB$6,FALSE)))/1000 -> 266.9728586 | I29: =(INDEX('[5]Tariff-D 2015'!$H$10:$FB$10,MATCH(C29,'[5]Tariff-D 2015'!$H$6:$FB$6,FALSE)))/1000 -> 1.489109465 | J29: 0.4911878587 | K29: =(INDEX('[5]Tariff-D Norm'!$H$10:$FB$10,MATCH(C29,'[5]Tariff-D Norm'!$H$6:$FB$6,FALSE)))/1000 -> 263.9954051 | L29: =(INDEX('[5]Tariff-D Norm'!$H$11:$FB$11,MATCH(C29,'[5]Tariff-D Norm'!$H$6:$FB$6,FALSE)))/1000 -> 1.058816756 | M29: =L29*(1/(('[5]Tariff-D Norm'!$D$11+'[5]Tariff-V Norm'!$D$11)/'[5]Tariff-V&D Norm'!$D$11)) -> 1.042977812 | N29: 0.6934712071 | P29: =(K29/$K$41)*(Vencorp_Summary_BO!$G$33) -> 243.2138928 | Q29: 0.9608754128 | S29: 0.9608754128 | T29: 1.321250013 | U29: 0.504325015 | W29: 192.9755163 | X29: 1.286110385 | Y29: =-(X29+Tariff_V_BO!X29)+INDEX(Annual_CTM_BO!$Z:$Z,MATCH(Tariff_D_BO!$C29,Annual_CTM_BO!$C:$C,FALSE)) -> 0.3290309171 | Z29: =IF((X29+Tariff_V_BO!X29)=0,0,X29/(X29+Tariff_V_BO!X29)*Y29) -> 0.06929452889 | AA29: 1.354283965 | AB29: 0.3903908325 | AD29: 190.7589205 | AE29: 1.350583736 | AF29: =-(AE29+Tariff_V_BO!AE29)+INDEX(Annual_CTM_BO!$AG:$AG,MATCH(Tariff_D_BO!$C29,Annual_CTM_BO!$C:$C,FALSE)) -> -0.1556000748 | AG29: =IF((AE29+Tariff_V_BO!AE29)=0,0,AE29/(AE29+Tariff_V_BO!AE29)*AF29) -> -0.03206644469 | AH29: 1.322651437 | AI29: 0.3951359856 | AK29: 186.3740049 | AL29: 1.315404032 | AM29: =-(AL29+Tariff_V_BO!AL29)+INDEX(Annual_CTM_BO!$AN:$AN,MATCH(Tariff_D_BO!$C29,Annual_CTM_BO!$C:$C,FALSE)) -> -0.08250873103 | AN29: =IF((AL29+Tariff_V_BO!AL29)=0,0,AL29/(AL29+Tariff_V_BO!AL29)*AM29) -> -0.01673653478 | AO29: 1.290610466 | AP29: 0.3956373557 | AR29: 189.2944096 | AS29: 1.274611163 | AT29: =-(AS29+Tariff_V_BO!AS29)+INDEX(Annual_CTM_BO!$AU:$AU,MATCH(Tariff_D_BO!$C29,Annual_CTM_BO!$C:$C,FALSE)) -> 0.03717851661 | AU29: =IF((AS29+Tariff_V_BO!AS29)=0,0,AS29/(AS29+Tariff_V_BO!AS29)*AT29) -> 0.007445035718 | AV29: 1.271839869 | AW29: 0.4077673876 | AY29: 188.6650252 | AZ29: 1.259423022 | BA29: =-(AZ29+Tariff_V_BO!AZ29)+INDEX(Annual_CTM_BO!$BB:$BB,MATCH(Tariff_D_BO!$C29,Annual_CTM_BO!$C:$C,FALSE)) -> 0.05176190354 | BB29: =IF((AZ29+Tariff_V_BO!AZ29)=0,0,AZ29/(AZ29+Tariff_V_BO!AZ29)*BA29) -> 0.01026538063 | BC29: 1.254306824 | BD29: 0.4120925361
C30: M032 | D30: =(INDEX('[5]CTM Details'!P$5:P$408,MATCH($C30,'[5]CTM Details'!$B$5:$B$408,FALSE),1)) -> Werribee (Lock Ave) | E30: =(INDEX('[5]CTM Details'!D$5:D$408,MATCH($C30,'[5]CTM Details'!$B$5:$B$408,FALSE),1)) -> 30000032PC | F30: =(INDEX('[5]CTM Details'!U$5:U$408,MATCH($C30,'[5]CTM Details'!$B$5:$B$408,FALSE),1)) -> Metro North West | H30: =(INDEX('[5]Tariff-D 2015'!$H$8:$FB$8,MATCH(C30,'[5]Tariff-D 2015'!$H$6:$FB$6,FALSE)))/1000 -> 295.2218726 | I30: =(INDEX('[5]Tariff-D 2015'!$H$10:$FB$10,MATCH(C30,'[5]Tariff-D 2015'!$H$6:$FB$6,FALSE)))/1000 -> 1.126546016 | J30: 0.7179707149 | K30: =(INDEX('[5]Tariff-D Norm'!$H$10:$FB$10,MATCH(C30,'[5]Tariff-D Norm'!$H$6:$FB$6,FALSE)))/1000 -> 294.5049105 | L30: =(INDEX('[5]Tariff-D Norm'!$H$11:$FB$11,MATCH(C30,'[5]Tariff-D Norm'!$H$6:$FB$6,FALSE)))/1000 -> 0.9838095795 | M30: =L30*(1/(('[5]Tariff-D Norm'!$D$11+'[5]Tariff-V Norm'!$D$11)/'[5]Tariff-V&D Norm'!$D$11)) -> 0.9690926752 | N30: 0.8325960862 | P30: =(K30/$K$41)*(Vencorp_Summary_BO!$G$33) -> 271.3217138 | Q30: 0.8928064562 | S30: 0.8928064562 | T30: 1.227651916 | U30: 0.6055031981 | W30: 215.2773725 | X30: 1.195001599 | Y30: =-(X30+Tariff_V_BO!X30)+INDEX(Annual_CTM_BO!$Z:$Z,MATCH(Tariff_D_BO!$C30,Annual_CTM_BO!$C:$C,FALSE)) -> 1.645582286 | Z30: =IF((X30+Tariff_V_BO!X30)=0,0,X30/(X30+Tariff_V_BO!X30)*Y30) -> 0.3424120544 | AA30: 1.53614218 | AB30: 0.3839494991 | AD30: 212.8046084 | AE30: 1.53194507 | AF30: =-(AE30+Tariff_V_BO!AE30)+INDEX(Annual_CTM_BO!$AG:$AG,MATCH(Tariff_D_BO!$C30,Annual_CTM_BO!$C:$C,FALSE)) -> 0.2232450957 | AG30: =IF((AE30+Tariff_V_BO!AE30)=0,0,AE30/(AE30+Tariff_V_BO!AE30)*AF30) -> 0.04545277069 | AH30: 1.582343695 | AI30: 0.3684574511 | AK30: 207.9129355 | AL30: 1.573673318 | AM30: =-(AL30+Tariff_V_BO!AL30)+INDEX(Annual_CTM_BO!$AN:$AN,MATCH(Tariff_D_BO!$C30,Annual_CTM_BO!$C:$C,FALSE)) -> 0.2769034365 | AN30: =IF((AL30+Tariff_V_BO!AL30)=0,0,AL30/(AL30+Tariff_V_BO!AL30)*AM30) -> 0.05548940673 | AO30: 1.619055276 | AP30: 0.3518252214 | AR30: 211.1708465 | AS30: 1.598984343 | AT30: =-(AS30+Tariff_V_BO!AS30)+INDEX(Annual_CTM_BO!$AU:$AU,MATCH(Tariff_D_BO!$C30,Annual_CTM_BO!$C:$C,FALSE)) -> 0.0468927824 | AU30: =IF((AS30+Tariff_V_BO!AS30)=0,0,AS30/(AS30+Tariff_V_BO!AS30)*AT30) -> 0.009276405744 | AV30: 1.595444991 | AW30: 0.362626269 | AY30: 210.4687252 | AZ30: 1.579868819 | BA30: =-(AZ30+Tariff_V_BO!AZ30)+INDEX(Annual_CTM_BO!$BB:$BB,MATCH(Tariff_D_BO!$C30,Annual_CTM_BO!$C:$C,FALSE)) -> 0.06549323251 | BB30: =IF((AZ30+Tariff_V_BO!AZ30)=0,0,AZ30/(AZ30+Tariff_V_BO!AZ30)*BA30) -> 0.01283061647 | BC30: 1.573404755 | BD30: 0.3664833493
C31: M051 | D31: =(INDEX('[5]CTM Details'!P$5:P$408,MATCH($C31,'[5]CTM Details'!$B$5:$B$408,FALSE),1)) -> Avalon | E31: =(INDEX('[5]CTM Details'!D$5:D$408,MATCH($C31,'[5]CTM Details'!$B$5:$B$408,FALSE),1)) -> 30000046PC | F31: =(INDEX('[5]CTM Details'!U$5:U$408,MATCH($C31,'[5]CTM Details'!$B$5:$B$408,FALSE),1)) -> Geelong | H31: =(INDEX('[5]Tariff-D 2015'!$H$8:$FB$8,MATCH(C31,'[5]Tariff-D 2015'!$H$6:$FB$6,FALSE)))/1000 -> 4.010572281 | I31: =(INDEX('[5]Tariff-D 2015'!$H$10:$FB$10,MATCH(C31,'[5]Tariff-D 2015'!$H$6:$FB$6,FALSE)))/1000 -> 0.008977390453 | J31: 1.223949133 | K31: =(INDEX('[5]Tariff-D Norm'!$H$10:$FB$10,MATCH(C31,'[5]Tariff-D Norm'!$H$6:$FB$6,FALSE)))/1000 -> 3.987474019 | L31: =(INDEX('[5]Tariff-D Norm'!$H$11:$FB$11,MATCH(C31,'[5]Tariff-D Norm'!$H$6:$FB$6,FALSE)))/1000 -> 0.01122330884 | M31: =L31*(1/(('[5]Tariff-D Norm'!$D$11+'[5]Tariff-V Norm'!$D$11)/'[5]Tariff-V&D Norm'!$D$11)) -> 0.01105541826 | N31: 0.9881658116 | P31: =(K31/$K$41)*(Vencorp_Summary_BO!$G$33) -> 3.673583176 | Q31: 0.01018514436 | S31: 0.01018514436 | T31: 0.01400506448 | U31: 0.7186408501 | W31: 2.914766101 | X31: 0.01363258936 | Y31: =-(X31+Tariff_V_BO!X31)+INDEX(Annual_CTM_BO!$Z:$Z,MATCH(Tariff_D_BO!$C31,Annual_CTM_BO!$C:$C,FALSE)) -> -0.002627001309 | Z31: =IF((X31+Tariff_V_BO!X31)=0,0,X31/(X31+Tariff_V_BO!X31)*Y31) -> -0.001064612783 | AA31: 0.0125575826 | AB31: 0.6359233944 | AD31: 2.881285904 | AE31: 0.01252327226 | AF31: =-(AE31+Tariff_V_BO!AE31)+INDEX(Annual_CTM_BO!$AG:$AG,MATCH(Tariff_D_BO!$C31,Annual_CTM_BO!$C:$C,FALSE)) -> -0.0009533619443 | AG31: =IF((AE31+Tariff_V_BO!AE31)=0,0,AE31/(AE31+Tariff_V_BO!AE31)*AF31) -> -0.0003800775476 | AH31: 0.01218126911 | AI31: 0.6480387153 | AK31: 2.815054686 | AL31: 0.01211452243 | AM31: =-(AL31+Tariff_V_BO!AL31)+INDEX(Annual_CTM_BO!$AN:$AN,MATCH(Tariff_D_BO!$C31,Annual_CTM_BO!$C:$C,FALSE)) -> -0.0006009392764 | AN31: =IF((AL31+Tariff_V_BO!AL31)=0,0,AL31/(AL31+Tariff_V_BO!AL31)*AM31) -> -0.0002367159239 | AO31: 0.01180411569 | AP31: 0.6533719928 | AR31: 2.859165446 | AS31: 0.01165778368 | AT31: =-(AS31+Tariff_V_BO!AS31)+INDEX(Annual_CTM_BO!$AU:$AU,MATCH(Tariff_D_BO!$C31,Annual_CTM_BO!$C:$C,FALSE)) -> 0.0002670130834 | AU31: =IF((AS31+Tariff_V_BO!AS31)=0,0,AS31/(AS31+Tariff_V_BO!AS31)*AT31) -> 0.0001041530564 | AV31: 0.01166820931 | AW31: 0.6713395156 | AY31: 2.849659016 | AZ31: 0.01155429374 | BA31: =-(AZ31+Tariff_V_BO!AZ31)+INDEX(Annual_CTM_BO!$BB:$BB,MATCH(Tariff_D_BO!$C31,Annual_CTM_BO!$C:$C,FALSE)) -> 0.0003122731313 | BB31: =IF((AZ31+Tariff_V_BO!AZ31)=0,0,AZ31/(AZ31+Tariff_V_BO!AZ31)*BA31) -> 0.0001209092976 | BC31: 0.01153376435 | BD31: 0.6769069262
... 34 more rows

Sheet Exports_BO
B1: Withdrawal Volume - Exports
B2: =Model_Name -> VTS Tariff Model
B3: Go to Table of Contents
A4: é | B4: ç | C4: è | K4: Can include 2021 data if required
C6: 2019 Actuals | S6: 2022 Forecasts | AA6: 2023 Forecasts | AI6: 2024 Forecasts | AQ6: 2025 Forecasts | AY6: 2026 Forecasts | BG6: 2027 Forecasts
C8: Day | D8: Date | E8: Total | F8: NSW Exports | G8: VicHub Exports | H8: WUGS Exports | I8: SEAGas Exports | K8: Day | L8: Date | M8: Total | N8: NSW Exports | O8: VicHub Exports | P8: WUGS Exports | Q8: SEAGas Exports | S8: Day | T8: Date | U8: Total | V8: NSW Exports | W8: VicHub Exports | X8: WUGS Exports | Y8: SEAGas Exports | AA8: Day | AB8: Date | AC8: Total | AD8: NSW Exports | AE8: VicHub Exports | AF8: WUGS Exports | AG8: SEAGas Exports | AI8: Day | AJ8: Date | AK8: Total | AL8: NSW Exports | AM8: VicHub Exports | AN8: WUGS Exports | AO8: SEAGas Exports | AQ8: Day | AR8: Date | AS8: Total | AT8: NSW Exports | AU8: VicHub Exports | AV8: WUGS Exports | AW8: SEAGas Exports | AY8: Day | AZ8: Date | BA8: Total | BB8: NSW Exports | BC8: VicHub Exports | BD8: WUGS Exports | BE8: SEAGas Exports | BG8: Day | BH8: Date | BI8: Total | BJ8: NSW Exports | BK8: VicHub Exports | BL8: WUGS Exports | BM8: SEAGas Exports
F10: 20000002PC | G10: 30000166PC | H10: 30000156PC | I10: 30000169PC | N10: 20000002PC | O10: 30000166PC | P10: 30000156PC | Q10: 30000169PC | V10: 20000002PC | W10: 30000166PC | X10: 30000156PC | Y10: 30000169PC | AD10: 20000002PC | AE10: 30000166PC | AF10: 30000156PC | AG10: 30000169PC | AL10: 20000002PC | AM10: 30000166PC | AN10: 30000156PC | AO10: 30000169PC | AT10: 20000002PC | AU10: 30000166PC | AV10: 30000156PC | AW10: 30000169PC | BB10: 20000002PC | BC10: 30000166PC | BD10: 30000156PC | BE10: 30000169PC | BJ10: 20000002PC | BK10: 30000166PC | BL10: 30000156PC | BM10: 30000169PC
F11: M126 | G11: M137A | N11: M126 | O11: M137A | V11: M126 | W11: M137A | AD11: M126 | AE11: M137A | AL11: M126 | AM11: M137A | AT11: M126 | AU11: M137A | BB11: M126 | BC11: M137A | BJ11: M126 | BK11: M137A
C12: Total | E12: =SUM(E19:E383) -> 31129779.84 | F12: =SUM(F19:F383) -> 14181557.12 | G12: =SUM(G19:G383) -> 1911887.462 | H12: =SUM(H19:H383) -> 14311370.68 | I12: =SUM(I19:I383) -> 724964.5797 | K12: Total | M12: =SUM(M19:M383) -> 0 | N12: =SUM(N19:N383) -> 0 | O12: =SUM(O19:O383) -> 0 | P12: =SUM(P19:P383) -> 0 | Q12: =SUM(Q19:Q383) -> 0 | S12: Total | U12: =SUM(Withdrawal_Volumes_Forecasts_BO!I19:I20)*1000 -> 13896057.48 | V12: =Withdrawal_Volumes_Forecasts_BO!$I$20*1000 -> 13896057.48 | W12: =Withdrawal_Volumes_Forecasts_BO!I19*1000 -> 0 | X12: =IF($M$12=0,0,(H12/$M$12)*$U$12) -> 0 | Y12: =IF($M$12=0,0,(I12/$M$12)*$U$12) -> 0 | AA12: Total | AC12: =(Withdrawal_Volumes_Forecasts_BO!$J$19+Withdrawal_Volumes_Forecasts_BO!$J$20)*1000 -> 13896057.48 | AD12: =Withdrawal_Volumes_Forecasts_BO!$J$20*1000 -> 13896057.48 | AE12: =+AC12-AD12 -> 0 | AF12: =IF($M$12=0,0,(X12/$M$12)*$U$12) -> 0 | AG12: =IF($M$12=0,0,(Y12/$M$12)*$U$12) -> 0 | AI12: Total | AK12: =(Withdrawal_Volumes_Forecasts_BO!$K$19+Withdrawal_Volumes_Forecasts_BO!$K$20)*1000 -> 13896057.48 | AL12: =Withdrawal_Volumes_Forecasts_BO!$K$20*1000 -> 13896057.48 | AM12: =+AK12-AL12 -> 0 | AN12: =IF($M$12=0,0,(AF12/$M$12)*$U$12) -> 0 | AO12: =IF($M$12=0,0,(AG12/$M$12)*$U$12) -> 0 | AQ12: Total | AS12: =(Withdrawal_Volumes_Forecasts_BO!$L$19+Withdrawal_Volumes_Forecasts_BO!$L$20)*1000 -> 13896057.48 | AT12: =Withdrawal_Volumes_Forecasts_BO!$L$20*1000 -> 13896057.48 | AU12: =+AS12-AT12 -> 0 | AV12: =IF($M$12=0,0,(AN12/$M$12)*$U$12) -> 0 | AW12: =IF($M$12=0,0,(AO12/$M$12)*$U$12) -> 0 | AY12: Total | BA12: =(Withdrawal_Volumes_Forecasts_BO!$M$19+Withdrawal_Volumes_Forecasts_BO!$M$20)*1000 -> 13896057.48 | BB12: =Withdrawal_Volumes_Forecasts_BO!$M$20*1000 -> 13896057.48 | BC12: =+BA12-BB12 -> 0 | BD12: =IF($M$12=0,0,(AV12/$M$12)*$U$12) -> 0 | BE12: =IF($M$12=0,0,(AW12/$M$12)*$U$12) -> 0 | BG12: Total | BI12: =(Withdrawal_Volumes_Forecasts_BO!$N$19+Withdrawal_Volumes_Forecasts_BO!$N$20)*1000 -> 13896057.48 | BJ12: =Withdrawal_Volumes_Forecasts_BO!$N$20*1000 -> 13896057.48 | BK12: =+BI12-BJ12 -> 0 | BL12: =IF($M$12=0,0,(BD12/$M$12)*$U$12) -> 0 | BM12: =IF($M$12=0,0,(BE12/$M$12)*$U$12) -> 0
C15: Raw Data
A17: 1 | C17: Date
A18: =A17+1 -> 2
A19: =A18+1 -> 3 | C19: 2019-01-01 | E19: =SUM(F19:I19) -> 85613.30106 | F19: =(INDEX('[5]Adjusted Data 2019'!$D$14:$D$380,MATCH(C19,'[5]Adjusted Data 2019'!$B$14:$B$380,FALSE))) -> 42318.29502 | G19: =(INDEX('[5]Adjusted Data 2019'!$E$14:$E$380,MATCH(C19,'[5]Adjusted Data 2019'!$B$14:$B$380,FALSE))) -> 8000 | H19: =(INDEX('[5]Adjusted Data 2019'!$F$14:$F$380,MATCH(C19,'[5]Adjusted Data 2019'!$B$14:$B$380,FALSE))) -> 35295.00604 | I19: =(INDEX('[5]Adjusted Data 2019'!$G$14:$G$380,MATCH(C19,'[5]Adjusted Data 2019'!$B$14:$B$380,FALSE))) -> 0
A20: =A19+1 -> 4 | C20: 2019-01-02 | E20: =SUM(F20:I20) -> 126217.9808 | F20: =(INDEX('[5]Adjusted Data 2019'!$D$14:$D$380,MATCH(C20,'[5]Adjusted Data 2019'!$B$14:$B$380,FALSE))) -> 68243.463 | G20: =(INDEX('[5]Adjusted Data 2019'!$E$14:$E$380,MATCH(C20,'[5]Adjusted Data 2019'!$B$14:$B$380,FALSE))) -> 12443.97802 | H20: =(INDEX('[5]Adjusted Data 2019'!$F$14:$F$380,MATCH(C20,'[5]Adjusted Data 2019'!$B$14:$B$380,FALSE))) -> 45530.53979 | I20: =(INDEX('[5]Adjusted Data 2019'!$G$14:$G$380,MATCH(C20,'[5]Adjusted Data 2019'!$B$14:$B$380,FALSE))) -> 0
A21: 5 | C21: 2019-01-03 | E21: =SUM(F21:I21) -> 137785.1554 | F21: =(INDEX('[5]Adjusted Data 2019'!$D$14:$D$380,MATCH(C21,'[5]Adjusted Data 2019'!$B$14:$B$380,FALSE))) -> 85728.2505 | G21: =(INDEX('[5]Adjusted Data 2019'!$E$14:$E$380,MATCH(C21,'[5]Adjusted Data 2019'!$B$14:$B$380,FALSE))) -> 5750.445447 | H21: =(INDEX('[5]Adjusted Data 2019'!$F$14:$F$380,MATCH(C21,'[5]Adjusted Data 2019'!$B$14:$B$380,FALSE))) -> 46306.45948 | I21: =(INDEX('[5]Adjusted Data 2019'!$G$14:$G$380,MATCH(C21,'[5]Adjusted Data 2019'!$B$14:$B$380,FALSE))) -> 0
A22: 6 | C22: 2019-01-04 | E22: 100602.6103 | F22: =(INDEX('[5]Adjusted Data 2019'!$D$14:$D$380,MATCH(C22,'[5]Adjusted Data 2019'!$B$14:$B$380,FALSE))) -> 85716.0315 | G22: =(INDEX('[5]Adjusted Data 2019'!$E$14:$E$380,MATCH(C22,'[5]Adjusted Data 2019'!$B$14:$B$380,FALSE))) -> 7483.956522 | H22: =(INDEX('[5]Adjusted Data 2019'!$F$14:$F$380,MATCH(C22,'[5]Adjusted Data 2019'!$B$14:$B$380,FALSE))) -> 7402.622281 | I22: =(INDEX('[5]Adjusted Data 2019'!$G$14:$G$380,MATCH(C22,'[5]Adjusted Data 2019'!$B$14:$B$380,FALSE))) -> 0
A23: 7 | C23: 2019-01-05 | E23: 115928.4084 | F23: =(INDEX('[5]Adjusted Data 2019'!$D$14:$D$380,MATCH(C23,'[5]Adjusted Data 2019'!$B$14:$B$380,FALSE))) -> 85060.1159 | G23: =(INDEX('[5]Adjusted Data 2019'!$E$14:$E$380,MATCH(C23,'[5]Adjusted Data 2019'!$B$14:$B$380,FALSE))) -> 4934.448424 | H23: =(INDEX('[5]Adjusted Data 2019'!$F$14:$F$380,MATCH(C23,'[5]Adjusted Data 2019'!$B$14:$B$380,FALSE))) -> 25933.84406 | I23: =(INDEX('[5]Adjusted Data 2019'!$G$14:$G$380,MATCH(C23,'[5]Adjusted Data 2019'!$B$14:$B$380,FALSE))) -> 0
A24: 8 | C24: 2019-01-06 | E24: 185826.819 | F24: =(INDEX('[5]Adjusted Data 2019'!$D$14:$D$380,MATCH(C24,'[5]Adjusted Data 2019'!$B$14:$B$380,FALSE))) -> 74180.8229 | G24: =(INDEX('[5]Adjusted Data 2019'!$E$14:$E$380,MATCH(C24,'[5]Adjusted Data 2019'!$B$14:$B$380,FALSE))) -> 16802.95605 | H24: =(INDEX('[5]Adjusted Data 2019'!$F$14:$F$380,MATCH(C24,'[5]Adjusted Data 2019'!$B$14:$B$380,FALSE))) -> 94843.04004 | I24: =(INDEX('[5]Adjusted Data 2019'!$G$14:$G$380,MATCH(C24,'[5]Adjusted Data 2019'!$B$14:$B$380,FALSE))) -> 0
A25: 9 | C25: 2019-01-07 | E25: 170345.7819 | F25: =(INDEX('[5]Adjusted Data 2019'!$D$14:$D$380,MATCH(C25,'[5]Adjusted Data 2019'!$B$14:$B$380,FALSE))) -> 83298.5456 | G25: =(INDEX('[5]Adjusted Data 2019'!$E$14:$E$380,MATCH(C25,'[5]Adjusted Data 2019'!$B$14:$B$380,FALSE))) -> 14245.60566 | H25: =(INDEX('[5]Adjusted Data 2019'!$F$14:$F$380,MATCH(C25,'[5]Adjusted Data 2019'!$B$14:$B$380,FALSE))) -> 72801.63062 | I25: =(INDEX('[5]Adjusted Data 2019'!$G$14:$G$380,MATCH(C25,'[5]Adjusted Data 2019'!$B$14:$B$380,FALSE))) -> 0
A26: 10 | C26: 2019-01-08 | E26: 145101.5897 | F26: =(INDEX('[5]Adjusted Data 2019'!$D$14:$D$380,MATCH(C26,'[5]Adjusted Data 2019'!$B$14:$B$380,FALSE))) -> 85899.5709 | G26: =(INDEX('[5]Adjusted Data 2019'!$E$14:$E$380,MATCH(C26,'[5]Adjusted Data 2019'!$B$14:$B$380,FALSE))) -> 9806.818203 | H26: =(INDEX('[5]Adjusted Data 2019'!$F$14:$F$380,MATCH(C26,'[5]Adjusted Data 2019'!$B$14:$B$380,FALSE))) -> 49395.20056 | I26: =(INDEX('[5]Adjusted Data 2019'!$G$14:$G$380,MATCH(C26,'[5]Adjusted Data 2019'!$B$14:$B$380,FALSE))) -> 0
A27: 11 | C27: 2019-01-09 | E27: 138801.2473 | F27: =(INDEX('[5]Adjusted Data 2019'!$D$14:$D$380,MATCH(C27,'[5]Adjusted Data 2019'!$B$14:$B$380,FALSE))) -> 76919.9471 | G27: =(INDEX('[5]Adjusted Data 2019'!$E$14:$E$380,MATCH(C27,'[5]Adjusted Data 2019'!$B$14:$B$380,FALSE))) -> 6000 | H27: =(INDEX('[5]Adjusted Data 2019'!$F$14:$F$380,MATCH(C27,'[5]Adjusted Data 2019'!$B$14:$B$380,FALSE))) -> 55881.30017 | I27: =(INDEX('[5]Adjusted Data 2019'!$G$14:$G$380,MATCH(C27,'[5]Adjusted Data 2019'!$B$14:$B$380,FALSE))) -> 0
A28: 12 | C28: 2019-01-10 | E28: 119823.7082 | F28: =(INDEX('[5]Adjusted Data 2019'!$D$14:$D$380,MATCH(C28,'[5]Adjusted Data 2019'!$B$14:$B$380,FALSE))) -> 70973.8493 | G28: =(INDEX('[5]Adjusted Data 2019'!$E$14:$E$380,MATCH(C28,'[5]Adjusted Data 2019'!$B$14:$B$380,FALSE))) -> 15442.99022 | H28: =(INDEX('[5]Adjusted Data 2019'!$F$14:$F$380,MATCH(C28,'[5]Adjusted Data 2019'!$B$14:$B$380,FALSE))) -> 33406.86873 | I28: =(INDEX('[5]Adjusted Data 2019'!$G$14:$G$380,MATCH(C28,'[5]Adjusted Data 2019'!$B$14:$B$380,FALSE))) -> 0
A29: 13 | C29: 2019-01-11 | E29: 73181.37991 | F29: =(INDEX('[5]Adjusted Data 2019'!$D$14:$D$380,MATCH(C29,'[5]Adjusted Data 2019'!$B$14:$B$380,FALSE))) -> 49400.7411 | G29: =(INDEX('[5]Adjusted Data 2019'!$E$14:$E$380,MATCH(C29,'[5]Adjusted Data 2019'!$B$14:$B$380,FALSE))) -> 8615.620831 | H29: =(INDEX('[5]Adjusted Data 2019'!$F$14:$F$380,MATCH(C29,'[5]Adjusted Data 2019'!$B$14:$B$380,FALSE))) -> 15165.01797 | I29: =(INDEX('[5]Adjusted Data 2019'!$G$14:$G$380,MATCH(C29,'[5]Adjusted Data 2019'!$B$14:$B$380,FALSE))) -> 0
A30: 14 | C30: 2019-01-12 | E30: 130205.3007 | F30: =(INDEX('[5]Adjusted Data 2019'!$D$14:$D$380,MATCH(C30,'[5]Adjusted Data 2019'!$B$14:$B$380,FALSE))) -> 75069.6481 | G30: =(INDEX('[5]Adjusted Data 2019'!$E$14:$E$380,MATCH(C30,'[5]Adjusted Data 2019'!$B$14:$B$380,FALSE))) -> 11683.22268 | H30: =(INDEX('[5]Adjusted Data 2019'!$F$14:$F$380,MATCH(C30,'[5]Adjusted Data 2019'!$B$14:$B$380,FALSE))) -> 43452.42993 | I30: =(INDEX('[5]Adjusted Data 2019'!$G$14:$G$380,MATCH(C30,'[5]Adjusted Data 2019'!$B$14:$B$380,FALSE))) -> 0
A31: 15 | C31: 2019-01-13 | E31: 123485.3754 | F31: =(INDEX('[5]Adjusted Data 2019'!$D$14:$D$380,MATCH(C31,'[5]Adjusted Data 2019'!$B$14:$B$380,FALSE))) -> 85904.2146 | G31: =(INDEX('[5]Adjusted Data 2019'!$E$14:$E$380,MATCH(C31,'[5]Adjusted Data 2019'!$B$14:$B$380,FALSE))) -> 12000.00944 | H31: =(INDEX('[5]Adjusted Data 2019'!$F$14:$F$380,MATCH(C31,'[5]Adjusted Data 2019'!$B$14:$B$380,FALSE))) -> 25581.15137 | I31: =(INDEX('[5]Adjusted Data 2019'!$G$14:$G$380,MATCH(C31,'[5]Adjusted Data 2019'!$B$14:$B$380,FALSE))) -> 0
... 37 more rows

Sheet WithdrawalVol_Summary_BO
B1: Withdrawal Volume - Summary Output
B2: =Model_Name -> VTS Tariff Model
B3: Go to Table of Contents
A4: é | B4: ç | C4: è
H5: 2019 Actual | T5: 2019 Norm | AF5: 2022 Forecast | AR5: 2023 Forecast | BD5: 2024 Forecast | BP5: 2025 Forecast | CB5: 2026 Forecast | CN5: 2027 Forecast
C6: Meter | D6: Meter | E6: MIRN | F6: TUoS Zones | H6: Annual | I6: Peak-Day | J6: Load | L6: Tariff-V | N6: Load | P6: Tariff-D | R6: Load | T6: Annual | U6: Peak-Day | V6: Load | X6: Tariff-V | Z6: Load | AB6: Tariff-D | AD6: Load | AF6: Annual | AG6: Peak-Day | AH6: Load | AJ6: Tariff-V | AL6: Load | AN6: Tariff-D | AP6: Load | AR6: Annual | AS6: Peak-Day | AT6: Load | AV6: Tariff-V | AX6: Load | AZ6: Tariff-D | BB6: Load | BD6: Annual | BE6: Peak-Day | BF6: Load | BH6: Tariff-V | BJ6: Load | BL6: Tariff-D | BN6: Load | BP6: Annual | BQ6: Peak-Day | BR6: Load | BT6: Tariff-V | BV6: Load | BX6: Tariff-D | BZ6: Load | CB6: Annual | CC6: Peak-Day | CD6: Load | CF6: Tariff-V | CH6: Load | CJ6: Tariff-D | CL6: Load | CN6: Annual | CO6: Peak-Day | CP6: Load | CR6: Tariff-V | CT6: Load | CV6: Tariff-D | CX6: Load
D7: Name | H7: Total | I7: Total | J7: Factor | L7: Annual | M7: Peak-Day | N7: Factor | P7: Annual | Q7: Peak-Day | R7: Factor | T7: Total | U7: Total | V7: Factor | X7: Annual | Y7: Peak-Day | Z7: Factor | AB7: Annual | AC7: Peak-Day | AD7: Factor | AF7: Total | AG7: Total | AH7: Factor | AJ7: Annual | AK7: Peak-Day | AL7: Factor | AN7: Annual | AO7: Peak-Day | AP7: Factor | AR7: Total | AS7: Total | AT7: Factor | AV7: Annual | AW7: Peak-Day | AX7: Factor | AZ7: Annual | BA7: Peak-Day | BB7: Factor | BD7: Total | BE7: Total | BF7: Factor | BH7: Annual | BI7: Peak-Day | BJ7: Factor | BL7: Annual | BM7: Peak-Day | BN7: Factor | BP7: Total | BQ7: Total | BR7: Factor | BT7: Annual | BU7: Peak-Day | BV7: Factor | BX7: Annual | BY7: Peak-Day | BZ7: Factor | CB7: Total | CC7: Total | CD7: Factor | CF7: Annual | CG7: Peak-Day | CH7: Factor | CJ7: Annual | CK7: Peak-Day | CL7: Factor | CN7: Total | CO7: Total | CP7: Factor | CR7: Annual | CS7: Peak-Day | CT7: Factor | CV7: Annual | CW7: Peak-Day | CX7: Factor
C8: 1 | D8: =C8+1 -> 2 | E8: =D8+1 -> 3 | F8: 4 | G8: 5 | H8: 6 | I8: 7 | J8: 8 | K8: 9 | L8: 10 | M8: 11 | N8: 12 | O8: 13 | P8: 14 | Q8: 15 | R8: 16 | S8: 17 | T8: 18 | U8: 19 | V8: 20 | W8: 21 | X8: 22 | Y8: 23 | Z8: 24 | AA8: 25 | AB8: 26 | AC8: 27 | AD8: 28 | AE8: 29 | AF8: 30 | AG8: 31 | AH8: 32 | AI8: 33 | AJ8: 34 | AK8: 35 | AL8: 36 | AM8: 37 | AN8: 38 | AO8: 39 | AP8: 40 | AQ8: 41 | AR8: 42 | AS8: 43 | AT8: 44 | AU8: 45 | AV8: 46 | AW8: 47 | AX8: 48 | AY8: 49 | AZ8: 50 | BA8: 51 | BB8: 52 | BC8: 53 | BD8: 54 | BE8: 55 | BF8: 56 | BG8: 57 | BH8: 58 | BI8: 59 | BJ8: 60 | BK8: 61 | BL8: 62 | BM8: 63 | BN8: 64 | BO8: 65 | BP8: 66 | BQ8: =BP8+1 -> 67 | BR8: 68 | BS8: 69 | BT8: 70 | BU8: 71 | BV8: 72 | BW8: 73 | BX8: 74 | BY8: 75 | BZ8: 76 | CA8: 77 | CB8: 78 | CC8: 79 | CD8: 80 | CE8: 81 | CF8: 82 | CG8: 83 | CH8: 84 | CI8: 85 | CJ8: 86 | CK8: 87 | CL8: 88 | CM8: 89 | CN8: 90 | CO8: 91 | CP8: 92 | CQ8: 93 | CR8: 94 | CS8: 95 | CT8: 96 | CU8: 97 | CV8: 98 | CW8: 99 | CX8: 100
C9: Total Demand
C11: M126 | D11: =(INDEX('[5]CTM Details'!P$5:P$408,MATCH($C11,'[5]CTM Details'!$B$5:$B$408,FALSE),1)) -> NSW Exports | E11: =(INDEX('[5]CTM Details'!D$5:D$408,MATCH($C11,'[5]CTM Details'!$B$5:$B$408,FALSE),1)) -> 20000002PC | F11: =(INDEX('[5]CTM Details'!U$5:U$408,MATCH($C11,'[5]CTM Details'!$B$5:$B$408,FALSE),1)) -> Barnawartha (Interconnect) | H11: =L11+P11 -> 14181.55712 | I11: 116.6774209 | J11: =IF(I11=0,0,(H11/365)/I11) -> 0.333 | P11: =INDEX(Annual_CTM_BO!G:G,MATCH(WithdrawalVol_Summary_BO!$E11,Annual_CTM_BO!$E:$E,FALSE),0) -> 14181.55712 | Q11: =INDEX(Annual_CTM_BO!H:H,MATCH(WithdrawalVol_Summary_BO!$E11,Annual_CTM_BO!$E:$E,FALSE),0) -> 116.6774209 | R11: =IF(Q11=0,0,(P11/365)/Q11) -> 0.333 | T11: =X11+AB11 -> 14181.55712 | U11: 116.6774209 | V11: =IF(U11=0,0,(T11/365)/U11) -> 0.333 | AB11: =INDEX(Annual_CTM_BO!J:J,MATCH(WithdrawalVol_Summary_BO!$E11,Annual_CTM_BO!$E:$E,FALSE),0) -> 14181.55712 | AC11: =INDEX(Annual_CTM_BO!L:L,MATCH(WithdrawalVol_Summary_BO!$E11,Annual_CTM_BO!$E:$E,FALSE),0) -> 116.6774209 | AD11: =IF(AC11=0,0,(AB11/365)/AC11) -> 0.333 | AF11: =AJ11+AN11 -> 13896.05748 | AG11: 56.91315163 | AH11: =IF(AG11=0,0,(AF11/365)/AG11) -> 0.6689383606 | AN11: =INDEX(Annual_CTM_BO!O:O,MATCH(WithdrawalVol_Summary_BO!$E11,Annual_CTM_BO!$E:$E,FALSE),0) -> 13896.05748 | AO11: =INDEX(Annual_CTM_BO!S:S,MATCH(WithdrawalVol_Summary_BO!$E11,Annual_CTM_BO!$E:$E,FALSE),0) -> 56.91315163 | AP11: =IF(AO11=0,0,(AN11/365)/AO11) -> 0.6689383606 | AR11: =AV11+AZ11 -> 13896.05748 | AS11: 114.3284996 | AT11: =IF(AS11=0,0,(AR11/365)/AS11) -> 0.333 | AZ11: =INDEX(Annual_CTM_BO!V:V,MATCH(WithdrawalVol_Summary_BO!$E11,Annual_CTM_BO!$E:$E,FALSE),0) -> 13896.05748 | BA11: =INDEX(Annual_CTM_BO!Z:Z,MATCH(WithdrawalVol_Summary_BO!$E11,Annual_CTM_BO!$E:$E,FALSE),0) -> 114.3284996 | BB11: =IF(BA11=0,0,(AZ11/365)/BA11) -> 0.333 | BD11: =BH11+BL11 -> 13896.05748 | BE11: 114.0161266 | BF11: =IF(BE11=0,0,(BD11/365)/BE11) -> 0.3339123288 | BL11: =INDEX(Annual_CTM_BO!AC:AC,MATCH(WithdrawalVol_Summary_BO!$E11,Annual_CTM_BO!$E:$E,FALSE),0) -> 13896.05748 | BM11: =INDEX(Annual_CTM_BO!AG:AG,MATCH(WithdrawalVol_Summary_BO!$E11,Annual_CTM_BO!$E:$E,FALSE),0) -> 114.0161266 | BN11: =IF(BM11=0,0,(BL11/365)/BM11) -> 0.3339123288 | BP11: =BT11+BX11 -> 13896.05748 | BQ11: 114.3284996 | BR11: =IF(BQ11=0,0,(BP11/365)/BQ11) -> 0.333 | BX11: =INDEX(Annual_CTM_BO!AJ:AJ,MATCH(WithdrawalVol_Summary_BO!$E11,Annual_CTM_BO!$E:$E,FALSE),0) -> 13896.05748 | BY11: =INDEX(Annual_CTM_BO!AN:AN,MATCH(WithdrawalVol_Summary_BO!$E11,Annual_CTM_BO!$E:$E,FALSE),0) -> 114.3284996 | BZ11: =IF(BY11=0,0,(BX11/365)/BY11) -> 0.333 | CB11: =CF11+CJ11 -> 13896.05748 | CC11: 114.3284996 | CD11: =IF(CC11=0,0,(CB11/365)/CC11) -> 0.333 | CJ11: =INDEX(Annual_CTM_BO!AQ:AQ,MATCH(WithdrawalVol_Summary_BO!$E11,Annual_CTM_BO!$E:$E,FALSE),0) -> 13896.05748 | CK11: =INDEX(Annual_CTM_BO!AU:AU,MATCH(WithdrawalVol_Summary_BO!$E11,Annual_CTM_BO!$E:$E,FALSE),0) -> 114.3284996 | CL11: =IF(CK11=0,0,(CJ11/365)/CK11) -> 0.333 | CN11: =CR11+CV11 -> 13896.05748 | CO11: =CS11+CW11 -> 114.3284996 | CP11: =IF(CO11=0,0,(CN11/365)/CO11) -> 0.333 | CV11: =INDEX(Annual_CTM_BO!AX:AX,MATCH(WithdrawalVol_Summary_BO!$E11,Annual_CTM_BO!$E:$E,FALSE),0) -> 13896.05748 | CW11: =INDEX(Annual_CTM_BO!BB:BB,MATCH(WithdrawalVol_Summary_BO!$E11,Annual_CTM_BO!$E:$E,FALSE),0) -> 114.3284996 | CX11: =IF(CW11=0,0,(CV11/365)/CW11) -> 0.333
C12: M137A | D12: =(INDEX('[5]CTM Details'!P$5:P$408,MATCH($C12,'[5]CTM Details'!$B$5:$B$408,FALSE),1)) -> VicHub - Withdrawal | E12: =(INDEX('[5]CTM Details'!D$5:D$408,MATCH($C12,'[5]CTM Details'!$B$5:$B$408,FALSE),1)) -> 30000166PC | F12: =(INDEX('[5]CTM Details'!U$5:U$408,MATCH($C12,'[5]CTM Details'!$B$5:$B$408,FALSE),1)) -> VicHub Withdrawal | H12: 1911.887462 | I12: 15.7298734 | J12: =IF(I12=0,0,(H12/365)/I12) -> 0.333 | P12: =INDEX(Annual_CTM_BO!G:G,MATCH(WithdrawalVol_Summary_BO!$E12,Annual_CTM_BO!$E:$E,FALSE),0) -> 1911.887462 | Q12: =INDEX(Annual_CTM_BO!H:H,MATCH(WithdrawalVol_Summary_BO!$E12,Annual_CTM_BO!$E:$E,FALSE),0) -> 15.7298734 | R12: =IF(Q12=0,0,(P12/365)/Q12) -> 0.333 | T12: 1911.887462 | U12: 15.7298734 | V12: =IF(U12=0,0,(T12/365)/U12) -> 0.333 | AB12: =INDEX(Annual_CTM_BO!J:J,MATCH(WithdrawalVol_Summary_BO!$E12,Annual_CTM_BO!$E:$E,FALSE),0) -> 1911.887462 | AC12: =INDEX(Annual_CTM_BO!L:L,MATCH(WithdrawalVol_Summary_BO!$E12,Annual_CTM_BO!$E:$E,FALSE),0) -> 15.7298734 | AD12: =IF(AC12=0,0,(AB12/365)/AC12) -> 0.333 | AF12: 0 | AG12: 57.41534792 | AH12: =IF(AG12=0,0,(AF12/365)/AG12) -> 0 | AN12: =INDEX(Annual_CTM_BO!O:O,MATCH(WithdrawalVol_Summary_BO!$E12,Annual_CTM_BO!$E:$E,FALSE),0) -> 0 | AO12: =INDEX(Annual_CTM_BO!S:S,MATCH(WithdrawalVol_Summary_BO!$E12,Annual_CTM_BO!$E:$E,FALSE),0) -> 57.41534792 | AP12: =IF(AO12=0,0,(AN12/365)/AO12) -> 0 | AR12: 0 | AS12: 0 | AT12: =IF(AS12=0,0,(AR12/365)/AS12) -> 0 | AZ12: =INDEX(Annual_CTM_BO!V:V,MATCH(WithdrawalVol_Summary_BO!$E12,Annual_CTM_BO!$E:$E,FALSE),0) -> 0 | BA12: =INDEX(Annual_CTM_BO!Z:Z,MATCH(WithdrawalVol_Summary_BO!$E12,Annual_CTM_BO!$E:$E,FALSE),0) -> 0 | BB12: =IF(BA12=0,0,(AZ12/365)/BA12) -> 0 | BD12: 0 | BE12: 0 | BF12: =IF(BE12=0,0,(BD12/365)/BE12) -> 0 | BL12: =INDEX(Annual_CTM_BO!AC:AC,MATCH(WithdrawalVol_Summary_BO!$E12,Annual_CTM_BO!$E:$E,FALSE),0) -> 0 | BM12: =INDEX(Annual_CTM_BO!AG:AG,MATCH(WithdrawalVol_Summary_BO!$E12,Annual_CTM_BO!$E:$E,FALSE),0) -> 0 | BN12: =IF(BM12=0,0,(BL12/365)/BM12) -> 0 | BP12: 0 | BQ12: 0 | BR12: =IF(BQ12=0,0,(BP12/365)/BQ12) -> 0 | BX12: =INDEX(Annual_CTM_BO!AJ:AJ,MATCH(WithdrawalVol_Summary_BO!$E12,Annual_CTM_BO!$E:$E,FALSE),0) -> 0 | BY12: =INDEX(Annual_CTM_BO!AN:AN,MATCH(WithdrawalVol_Summary_BO!$E12,Annual_CTM_BO!$E:$E,FALSE),0) -> 0 | BZ12: =IF(BY12=0,0,(BX12/365)/BY12) -> 0 | CB12: 0 | CC12: 0 | CD12: =IF(CC12=0,0,(CB12/365)/CC12) -> 0 | CJ12: =INDEX(Annual_CTM_BO!AQ:AQ,MATCH(WithdrawalVol_Summary_BO!$E12,Annual_CTM_BO!$E:$E,FALSE),0) -> 0 | CK12: =INDEX(Annual_CTM_BO!AU:AU,MATCH(WithdrawalVol_Summary_BO!$E12,Annual_CTM_BO!$E:$E,FALSE),0) -> 0 | CL12: =IF(CK12=0,0,(CJ12/365)/CK12) -> 0 | CN12: 0 | CO12: 0 | CP12: =IF(CO12=0,0,(CN12/365)/CO12) -> 0 | CV12: =INDEX(Annual_CTM_BO!AX:AX,MATCH(WithdrawalVol_Summary_BO!$E12,Annual_CTM_BO!$E:$E,FALSE),0) -> 0 | CW12: =INDEX(Annual_CTM_BO!BB:BB,MATCH(WithdrawalVol_Summary_BO!$E12,Annual_CTM_BO!$E:$E,FALSE),0) -> 0 | CX12: =IF(CW12=0,0,(CV12/365)/CW12) -> 0
D13: WUGS Exports | E13: 30000156PC | F13: WUGS | H13: 14311.37068 | I13: 117.7454496 | J13: =IF(I13=0,0,(H13/365)/I13) -> 0.333 | P13: =INDEX(Annual_CTM_BO!G:G,MATCH(WithdrawalVol_Summary_BO!$E13,Annual_CTM_BO!$E:$E,FALSE),0) -> 14311.37068 | Q13: =INDEX(Annual_CTM_BO!H:H,MATCH(WithdrawalVol_Summary_BO!$E13,Annual_CTM_BO!$E:$E,FALSE),0) -> 117.7454496 | R13: =IF(Q13=0,0,(P13/365)/Q13) -> 0.333 | T13: 14311.37068 | U13: 117.7454496 | V13: =IF(U13=0,0,(T13/365)/U13) -> 0.333 | AB13: =INDEX(Annual_CTM_BO!J:J,MATCH(WithdrawalVol_Summary_BO!$E13,Annual_CTM_BO!$E:$E,FALSE),0) -> 14311.37068 | AC13: =INDEX(Annual_CTM_BO!L:L,MATCH(WithdrawalVol_Summary_BO!$E13,Annual_CTM_BO!$E:$E,FALSE),0) -> 117.7454496 | AD13: =IF(AC13=0,0,(AB13/365)/AC13) -> 0.333 | AF13: 0 | AG13: 0 | AH13: =IF(AG13=0,0,(AF13/365)/AG13) -> 0 | AN13: =INDEX(Annual_CTM_BO!O:O,MATCH(WithdrawalVol_Summary_BO!$E13,Annual_CTM_BO!$E:$E,FALSE),0) -> 0 | AO13: =INDEX(Annual_CTM_BO!S:S,MATCH(WithdrawalVol_Summary_BO!$E13,Annual_CTM_BO!$E:$E,FALSE),0) -> 0 | AP13: =IF(AO13=0,0,(AN13/365)/AO13) -> 0 | AR13: 0 | AS13: 0 | AT13: =IF(AS13=0,0,(AR13/365)/AS13) -> 0 | AZ13: =INDEX(Annual_CTM_BO!V:V,MATCH(WithdrawalVol_Summary_BO!$E13,Annual_CTM_BO!$E:$E,FALSE),0) -> 0 | BA13: =INDEX(Annual_CTM_BO!Z:Z,MATCH(WithdrawalVol_Summary_BO!$E13,Annual_CTM_BO!$E:$E,FALSE),0) -> 0 | BB13: =IF(BA13=0,0,(AZ13/365)/BA13) -> 0 | BD13: 0 | BE13: 0 | BF13: =IF(BE13=0,0,(BD13/365)/BE13) -> 0 | BL13: =INDEX(Annual_CTM_BO!AC:AC,MATCH(WithdrawalVol_Summary_BO!$E13,Annual_CTM_BO!$E:$E,FALSE),0) -> 0 | BM13: =INDEX(Annual_CTM_BO!AG:AG,MATCH(WithdrawalVol_Summary_BO!$E13,Annual_CTM_BO!$E:$E,FALSE),0) -> 0 | BN13: =IF(BM13=0,0,(BL13/365)/BM13) -> 0 | BP13: 0 | BQ13: 0 | BR13: =IF(BQ13=0,0,(BP13/365)/BQ13) -> 0 | BX13: =INDEX(Annual_CTM_BO!AJ:AJ,MATCH(WithdrawalVol_Summary_BO!$E13,Annual_CTM_BO!$E:$E,FALSE),0) -> 0 | BY13: =INDEX(Annual_CTM_BO!AN:AN,MATCH(WithdrawalVol_Summary_BO!$E13,Annual_CTM_BO!$E:$E,FALSE),0) -> 0 | BZ13: =IF(BY13=0,0,(BX13/365)/BY13) -> 0 | CB13: 0 | CC13: 0 | CD13: =IF(CC13=0,0,(CB13/365)/CC13) -> 0 | CJ13: =INDEX(Annual_CTM_BO!AQ:AQ,MATCH(WithdrawalVol_Summary_BO!$E13,Annual_CTM_BO!$E:$E,FALSE),0) -> 0 | CK13: =INDEX(Annual_CTM_BO!AU:AU,MATCH(WithdrawalVol_Summary_BO!$E13,Annual_CTM_BO!$E:$E,FALSE),0) -> 0 | CL13: =IF(CK13=0,0,(CJ13/365)/CK13) -> 0 | CN13: 0 | CO13: 0 | CP13: =IF(CO13=0,0,(CN13/365)/CO13) -> 0 | CV13: =INDEX(Annual_CTM_BO!AX:AX,MATCH(WithdrawalVol_Summary_BO!$E13,Annual_CTM_BO!$E:$E,FALSE),0) -> 0 | CW13: =INDEX(Annual_CTM_BO!BB:BB,MATCH(WithdrawalVol_Summary_BO!$E13,Annual_CTM_BO!$E:$E,FALSE),0) -> 0 | CX13: =IF(CW13=0,0,(CV13/365)/CW13) -> 0
D14: SEAGas Exports | E14: 30000169PC | F14: SEAGas | H14: 724.9645797 | I14: 5.964577561 | J14: =IF(I14=0,0,(H14/365)/I14) -> 0.333 | P14: =INDEX(Annual_CTM_BO!G:G,MATCH(WithdrawalVol_Summary_BO!$E14,Annual_CTM_BO!$E:$E,FALSE),0) -> 724.9645797 | Q14: =INDEX(Annual_CTM_BO!H:H,MATCH(WithdrawalVol_Summary_BO!$E14,Annual_CTM_BO!$E:$E,FALSE),0) -> 5.964577561 | R14: =IF(Q14=0,0,(P14/365)/Q14) -> 0.333 | T14: 724.9645797 | U14: 5.964577561 | V14: =IF(U14=0,0,(T14/365)/U14) -> 0.333 | AB14: =INDEX(Annual_CTM_BO!J:J,MATCH(WithdrawalVol_Summary_BO!$E14,Annual_CTM_BO!$E:$E,FALSE),0) -> 724.9645797 | AC14: =INDEX(Annual_CTM_BO!L:L,MATCH(WithdrawalVol_Summary_BO!$E14,Annual_CTM_BO!$E:$E,FALSE),0) -> 5.964577561 | AD14: =IF(AC14=0,0,(AB14/365)/AC14) -> 0.333 | AF14: 0 | AG14: 0 | AH14: =IF(AG14=0,0,(AF14/365)/AG14) -> 0 | AN14: =INDEX(Annual_CTM_BO!O:O,MATCH(WithdrawalVol_Summary_BO!$E14,Annual_CTM_BO!$E:$E,FALSE),0) -> 0 | AO14: =INDEX(Annual_CTM_BO!S:S,MATCH(WithdrawalVol_Summary_BO!$E14,Annual_CTM_BO!$E:$E,FALSE),0) -> 0 | AP14: =IF(AO14=0,0,(AN14/365)/AO14) -> 0 | AR14: 0 | AS14: 0 | AT14: =IF(AS14=0,0,(AR14/365)/AS14) -> 0 | AZ14: =INDEX(Annual_CTM_BO!V:V,MATCH(WithdrawalVol_Summary_BO!$E14,Annual_CTM_BO!$E:$E,FALSE),0) -> 0 | BA14: =INDEX(Annual_CTM_BO!Z:Z,MATCH(WithdrawalVol_Summary_BO!$E14,Annual_CTM_BO!$E:$E,FALSE),0) -> 0 | BB14: =IF(BA14=0,0,(AZ14/365)/BA14) -> 0 | BD14: 0 | BE14: 0 | BF14: =IF(BE14=0,0,(BD14/365)/BE14) -> 0 | BL14: =INDEX(Annual_CTM_BO!AC:AC,MATCH(WithdrawalVol_Summary_BO!$E14,Annual_CTM_BO!$E:$E,FALSE),0) -> 0 | BM14: =INDEX(Annual_CTM_BO!AG:AG,MATCH(WithdrawalVol_Summary_BO!$E14,Annual_CTM_BO!$E:$E,FALSE),0) -> 0 | BN14: =IF(BM14=0,0,(BL14/365)/BM14) -> 0 | BP14: 0 | BQ14: 0 | BR14: =IF(BQ14=0,0,(BP14/365)/BQ14) -> 0 | BX14: =INDEX(Annual_CTM_BO!AJ:AJ,MATCH(WithdrawalVol_Summary_BO!$E14,Annual_CTM_BO!$E:$E,FALSE),0) -> 0 | BY14: =INDEX(Annual_CTM_BO!AN:AN,MATCH(WithdrawalVol_Summary_BO!$E14,Annual_CTM_BO!$E:$E,FALSE),0) -> 0 | BZ14: =IF(BY14=0,0,(BX14/365)/BY14) -> 0 | CB14: 0 | CC14: 0 | CD14: =IF(CC14=0,0,(CB14/365)/CC14) -> 0 | CJ14: =INDEX(Annual_CTM_BO!AQ:AQ,MATCH(WithdrawalVol_Summary_BO!$E14,Annual_CTM_BO!$E:$E,FALSE),0) -> 0 | CK14: =INDEX(Annual_CTM_BO!AU:AU,MATCH(WithdrawalVol_Summary_BO!$E14,Annual_CTM_BO!$E:$E,FALSE),0) -> 0 | CL14: =IF(CK14=0,0,(CJ14/365)/CK14) -> 0 | CN14: 0 | CO14: 0 | CP14: =IF(CO14=0,0,(CN14/365)/CO14) -> 0 | CV14: =INDEX(Annual_CTM_BO!AX:AX,MATCH(WithdrawalVol_Summary_BO!$E14,Annual_CTM_BO!$E:$E,FALSE),0) -> 0 | CW14: =INDEX(Annual_CTM_BO!BB:BB,MATCH(WithdrawalVol_Summary_BO!$E14,Annual_CTM_BO!$E:$E,FALSE),0) -> 0 | CX14: =IF(CW14=0,0,(CV14/365)/CW14) -> 0
C16: Exports | AR16: =SUM(AR11:AR14) -> 13896.05748 | AS16: =SUM(AS11:AS14) -> 114.3284996 | AT16: =IF(AS16=0,0,(AR16/365)/AS16) -> 0.333 | BD16: =SUM(BD11:BD14) -> 13896.05748 | BE16: =SUM(BE11:BE14) -> 114.0161266 | BF16: =IF(BE16=0,0,(BD16/365)/BE16) -> 0.3339123288 | BP16: =SUM(BP11:BP14) -> 13896.05748 | BQ16: =SUM(BQ11:BQ14) -> 114.3284996 | BR16: =IF(BQ16=0,0,(BP16/365)/BQ16) -> 0.333 | CB16: =SUM(CB11:CB14) -> 13896.05748 | CC16: =SUM(CC11:CC14) -> 114.3284996 | CD16: =IF(CC16=0,0,(CB16/365)/CC16) -> 0.333 | CN16: =SUM(CN11:CN14) -> 13896.05748 | CO16: =SUM(CO11:CO14) -> 114.3284996 | CP16: =IF(CO16=0,0,(CN16/365)/CO16) -> 0.333
C18: M078 | D18: =(INDEX('[5]CTM Details'!P$5:P$408,MATCH($C18,'[5]CTM Details'!$B$5:$B$408,FALSE),1)) -> Rosedale | E18: =(INDEX('[5]CTM Details'!D$5:D$408,MATCH($C18,'[5]CTM Details'!$B$5:$B$408,FALSE),1)) -> 30000072PC | F18: =(INDEX('[5]CTM Details'!U$5:U$408,MATCH($C18,'[5]CTM Details'!$B$5:$B$408,FALSE),1)) -> LaTrobe | H18: =L18+P18 -> 28.72022711 | I18: 0.1796069064 | J18: =IF(I18=0,0,(H18/365)/I18) -> 0.4380987085 | L18: =INDEX(Tariff_V_BO!H:H,MATCH(WithdrawalVol_Summary_BO!$C18,Tariff_V_BO!$C:$C,FALSE),0) -> 17.25730957 | M18: =INDEX(Tariff_V_BO!I:I,MATCH(WithdrawalVol_Summary_BO!$C18,Tariff_V_BO!$C:$C,FALSE),0) -> 0.1382859588 | N18: =IF(M18=0,0,(L18/365)/M18) -> 0.3419023929 | P18: =INDEX(Tariff_D_BO!H:H,MATCH(WithdrawalVol_Summary_BO!$C18,Tariff_D_BO!$C:$C,FALSE),0) -> 11.46291754 | Q18: =INDEX(Tariff_D_BO!I:I,MATCH(WithdrawalVol_Summary_BO!$C18,Tariff_D_BO!$C:$C,FALSE),0) -> 0.04132094765 | R18: =IF(Q18=0,0,(P18/365)/Q18) -> 0.7600322673 | T18: =X18+AB18 -> 27.92566689 | U18: 0.1519219967 | V18: =IF(U18=0,0,(T18/365)/U18) -> 0.5036049952 | X18: =INDEX(Tariff_V_BO!K:K,MATCH(WithdrawalVol_Summary_BO!$C18,Tariff_V_BO!$C:$C,FALSE),0) -> 16.46274935 | Y18: =INDEX(Tariff_V_BO!M:M,MATCH(WithdrawalVol_Summary_BO!$C18,Tariff_V_BO!$C:$C,FALSE),0) -> 0.1225727199 | Z18: =IF(Y18=0,0,(X18/365)/Y18) -> 0.3679727667 | AB18: =INDEX(Tariff_D_BO!K:K,MATCH(WithdrawalVol_Summary_BO!$C18,Tariff_D_BO!$C:$C,FALSE),0) -> 11.46291754 | AC18: =INDEX(Tariff_D_BO!L:L,MATCH(WithdrawalVol_Summary_BO!$C18,Tariff_D_BO!$C:$C,FALSE),0) -> 0.02934927674 | AD18: =IF(AC18=0,0,(AB18/365)/AC18) -> 1.070052043 | AF18: =AJ18+AN18 -> 29.24731735 | AG18: 0.1904984628 | AH18: =IF(AG18=0,0,(AF18/365)/AG18) -> 0.4206314077 | AJ18: =INDEX(Tariff_V_BO!P:P,MATCH(WithdrawalVol_Summary_BO!$C18,Tariff_V_BO!$C:$C,FALSE),0) -> 19.07733772 | AK18: =INDEX(Tariff_V_BO!T:T,MATCH(WithdrawalVol_Summary_BO!$C18,Tariff_V_BO!$C:$C,FALSE),0) -> 0.1598988952 | AL18: =IF(AK18=0,0,(AJ18/365)/AK18) -> 0.3268732946 | AN18: =INDEX(Tariff_D_BO!P:P,MATCH(WithdrawalVol_Summary_BO!$C18,Tariff_D_BO!$C:$C,FALSE),0) -> 10.16997963 | AO18: =INDEX(Tariff_D_BO!T:T,MATCH(WithdrawalVol_Summary_BO!$C18,Tariff_D_BO!$C:$C,FALSE),0) -> 0.03059956756 | AP18: =IF(AO18=0,0,(AN18/365)/AO18) -> 0.9105670473 | AR18: =AV18+AZ18 -> 28.98621121 | AS18: 0.1582069526 | AT18: =IF(AS18=0,0,(AR18/365)/AS18) -> 0.5019645217 | AV18: =INDEX(Tariff_V_BO!W:W,MATCH(WithdrawalVol_Summary_BO!$C18,Tariff_V_BO!$C:$C,FALSE),0) -> 19.07733772 | AW18: =INDEX(Tariff_V_BO!AA:AA,MATCH(WithdrawalVol_Summary_BO!$C18,Tariff_V_BO!$C:$C,FALSE),0) -> 0.1311002086 | AX18: =IF(AW18=0,0,(AV18/365)/AW18) -> 0.3986773114 | AZ18: =INDEX(Tariff_D_BO!W:W,MATCH(WithdrawalVol_Summary_BO!$C18,Tariff_D_BO!$C:$C,FALSE),0) -> 9.90887349 | BA18: =INDEX(Tariff_D_BO!AA:AA,MATCH(WithdrawalVol_Summary_BO!$C18,Tariff_D_BO!$C:$C,FALSE),0) -> 0.02710674401 | BB18: =IF(BA18=0,0,(AZ18/365)/BA18) -> 1.001507174 | BD18: =BH18+BL18 -> 28.91693563 | BE18: 0.1506829969 | BF18: =IF(BE18=0,0,(BD18/365)/BE18) -> 0.5257692162 | BH18: =INDEX(Tariff_V_BO!AD:AD,MATCH(WithdrawalVol_Summary_BO!$C18,Tariff_V_BO!$C:$C,FALSE),0) -> 19.40068243 | BI18: =INDEX(Tariff_V_BO!AH:AH,MATCH(WithdrawalVol_Summary_BO!$C18,Tariff_V_BO!$C:$C,FALSE),0) -> 0.1238346237 | BJ18: =IF(BI18=0,0,(BH18/365)/BI18) -> 0.4292220786 | BL18: =INDEX(Tariff_D_BO!AD:AD,MATCH(WithdrawalVol_Summary_BO!$C18,Tariff_D_BO!$C:$C,FALSE),0) -> 9.516253205 | BM18: =INDEX(Tariff_D_BO!AH:AH,MATCH(WithdrawalVol_Summary_BO!$C18,Tariff_D_BO!$C:$C,FALSE),0) -> 0.02684837319 | BN18: =IF(BM18=0,0,(BL18/365)/BM18) -> 0.9710803112 | BP18: =BT18+BX18 -> 28.52559821 | BQ18: 0.1490546667 | BR18: =IF(BQ18=0,0,(BP18/365)/BQ18) -> 0.5243198727 | BT18: =INDEX(Tariff_V_BO!AK:AK,MATCH(WithdrawalVol_Summary_BO!$C18,Tariff_V_BO!$C:$C,FALSE),0) -> 19.40068243 | BU18: =INDEX(Tariff_V_BO!AO:AO,MATCH(WithdrawalVol_Summary_BO!$C18,Tariff_V_BO!$C:$C,FALSE),0) -> 0.1226499397 | BV18: =IF(BU18=0,0,(BT18/365)/BU18) -> 0.4333679634 | BX18: =INDEX(Tariff_D_BO!AK:AK,MATCH(WithdrawalVol_Summary_BO!$C18,Tariff_D_BO!$C:$C,FALSE),0) -> 9.124915783 | BY18: =INDEX(Tariff_D_BO!AO:AO,MATCH(WithdrawalVol_Summary_BO!$C18,Tariff_D_BO!$C:$C,FALSE),0) -> 0.02640472693 | BZ18: =IF(BY18=0,0,(BX18/365)/BY18) -> 0.9467914339 | CB18: =CF18+CJ18 -> 27.64760303 | CC18: 0.1485094678 | CD18: =IF(CC18=0,0,(CB18/365)/CC18) -> 0.5100473306 | CF18: =INDEX(Tariff_V_BO!AR:AR,MATCH(WithdrawalVol_Summary_BO!$C18,Tariff_V_BO!$C:$C,FALSE),0) -> 17.99771024 | CG18: =INDEX(Tariff_V_BO!AV:AV,MATCH(WithdrawalVol_Summary_BO!$C18,Tariff_V_BO!$C:$C,FALSE),0) -> 0.1229376981 | CH18: =IF(CG18=0,0,(CF18/365)/CG18) -> 0.4010876723 | CJ18: =INDEX(Tariff_D_BO!AR:AR,MATCH(WithdrawalVol_Summary_BO!$C18,Tariff_D_BO!$C:$C,FALSE),0) -> 9.649892793 | CK18: =INDEX(Tariff_D_BO!AV:AV,MATCH(WithdrawalVol_Summary_BO!$C18,Tariff_D_BO!$C:$C,FALSE),0) -> 0.02557176968 | CL18: =IF(CK18=0,0,(CJ18/365)/CK18) -> 1.033876919 | CN18: =CR18+CV18 -> 27.84163761 | CO18: 0.1479799441 | CP18: =IF(CO18=0,0,(CN18/365)/CO18) -> 0.5154648468 | CR18: =INDEX(Tariff_V_BO!AY:AY,MATCH(WithdrawalVol_Summary_BO!$C18,Tariff_V_BO!$C:$C,FALSE),0) -> 18.2242565 | CS18: =INDEX(Tariff_V_BO!BC:BC,MATCH(WithdrawalVol_Summary_BO!$C18,Tariff_V_BO!$C:$C,FALSE),0) -> 0.1237421612 | CT18: =IF(CS18=0,0,(CR18/365)/CS18) -> 0.4034960223 | CV18: =INDEX(Tariff_D_BO!AY:AY,MATCH(WithdrawalVol_Summary_BO!$C18,Tariff_D_BO!$C:$C,FALSE),0) -> 9.617381114 | CW18: =INDEX(Tariff_D_BO!BC:BC,MATCH(WithdrawalVol_Summary_BO!$C18,Tariff_D_BO!$C:$C,FALSE),0) -> 0.02423778284 | CX18: =IF(CW18=0,0,(CV18/365)/CW18) -> 1.087103945
C19: M079 | D19: =(INDEX('[5]CTM Details'!P$5:P$408,MATCH($C19,'[5]CTM Details'!$B$5:$B$408,FALSE),1)) -> Sale | E19: =(INDEX('[5]CTM Details'!D$5:D$408,MATCH($C19,'[5]CTM Details'!$B$5:$B$408,FALSE),1)) -> 30000073PC | F19: =(INDEX('[5]CTM Details'!U$5:U$408,MATCH($C19,'[5]CTM Details'!$B$5:$B$408,FALSE),1)) -> LaTrobe | H19: 906.8949812 | I19: 3.462133595 | J19: =IF(I19=0,0,(H19/365)/I19) -> 0.7176625963 | L19: =INDEX(Tariff_V_BO!H:H,MATCH(WithdrawalVol_Summary_BO!$C19,Tariff_V_BO!$C:$C,FALSE),0) -> 490.5915577 | M19: =INDEX(Tariff_V_BO!I:I,MATCH(WithdrawalVol_Summary_BO!$C19,Tariff_V_BO!$C:$C,FALSE),0) -> 2.665623906 | N19: =IF(M19=0,0,(L19/365)/M19) -> 0.5042295938 | P19: =INDEX(Tariff_D_BO!H:H,MATCH(WithdrawalVol_Summary_BO!$C19,Tariff_D_BO!$C:$C,FALSE),0) -> 416.3034234 | Q19: =INDEX(Tariff_D_BO!I:I,MATCH(WithdrawalVol_Summary_BO!$C19,Tariff_D_BO!$C:$C,FALSE),0) -> 0.7965096882 | R19: =IF(Q19=0,0,(P19/365)/Q19) -> 1.43194407 | T19: 903.2317049 | U19: 3.193860865 | V19: =IF(U19=0,0,(T19/365)/U19) -> 0.7748012562 | X19: =INDEX(Tariff_V_BO!K:K,MATCH(WithdrawalVol_Summary_BO!$C19,Tariff_V_BO!$C:$C,FALSE),0) -> 486.9282814 | Y19: =INDEX(Tariff_V_BO!M:M,MATCH(WithdrawalVol_Summary_BO!$C19,Tariff_V_BO!$C:$C,FALSE),0) -> 2.196752939 | Z19: =IF(Y19=0,0,(X19/365)/Y19) -> 0.6072827137 | AB19: =INDEX(Tariff_D_BO!K:K,MATCH(WithdrawalVol_Summary_BO!$C19,Tariff_D_BO!$C:$C,FALSE),0) -> 416.3034234 | AC19: =INDEX(Tariff_D_BO!L:L,MATCH(WithdrawalVol_Summary_BO!$C19,Tariff_D_BO!$C:$C,FALSE),0) -> 0.9971079265 | AD19: =IF(AC19=0,0,(AB19/365)/AC19) -> 1.143865468 | AF19: 933.6087506 | AG19: 3.905299189 | AH19: =IF(AG19=0,0,(AF19/365)/AG19) -> 0.6549644649 | AJ19: =INDEX(Tariff_V_BO!P:P,MATCH(WithdrawalVol_Summary_BO!$C19,Tariff_V_BO!$C:$C,FALSE),0) -> 564.2614774 | AK19: =INDEX(Tariff_V_BO!T:T,MATCH(WithdrawalVol_Summary_BO!$C19,Tariff_V_BO!$C:$C,FALSE),0) -> 2.865714069 | AL19: =IF(AK19=0,0,(AJ19/365)/AK19) -> 0.5394543274 | AN19: =INDEX(Tariff_D_BO!P:P,MATCH(WithdrawalVol_Summary_BO!$C19,Tariff_D_BO!$C:$C,FALSE),0) -> 369.3472732 | AO19: =INDEX(Tariff_D_BO!T:T,MATCH(WithdrawalVol_Summary_BO!$C19,Tariff_D_BO!$C:$C,FALSE),0) -> 1.039585119 | AP19: =IF(AO19=0,0,(AN19/365)/AO19) -> 0.973379013 | AR19: 924.1260531 | AS19: 3.886952872 | AT19: =IF(AS19=0,0,(AR19/365)/AS19) -> 0.6513719832 | AV19: =INDEX(Tariff_V_BO!W:W,MATCH(WithdrawalVol_Summary_BO!$C19,Tariff_V_BO!$C:$C,FALSE),0) -> 564.2614774 | AW19: =INDEX(Tariff_V_BO!AA:AA,MATCH(WithdrawalVol_Summary_BO!$C19,Tariff_V_BO!$C:$C,FALSE),0) -> 2.792450281 | AX19: =IF(AW19=0,0,(AV19/365)/AW19) -> 0.5536076564 | AZ19: =INDEX(Tariff_D_BO!W:W,MATCH(WithdrawalVol_Summary_BO!$C19,Tariff_D_BO!$C:$C,FALSE),0) -> 359.8645757 | BA19: =INDEX(Tariff_D_BO!AA:AA,MATCH(WithdrawalVol_Summary_BO!$C19,Tariff_D_BO!$C:$C,FALSE),0) -> 1.09450259 | BB19: =IF(BA19=0,0,(AZ19/365)/BA19) -> 0.9008022029 | BD19: 919.430857 | BE19: 3.64762609 | BF19: =IF(BE19=0,0,(BD19/365)/BE19) -> 0.6905830223 | BH19: =INDEX(Tariff_V_BO!AD:AD,MATCH(WithdrawalVol_Summary_BO!$C19,Tariff_V_BO!$C:$C,FALSE),0) -> 573.8252313 | BI19: =INDEX(Tariff_V_BO!AH:AH,MATCH(WithdrawalVol_Summary_BO!$C19,Tariff_V_BO!$C:$C,FALSE),0) -> 2.585150274 | BJ19: =IF(BI19=0,0,(BH19/365)/BI19) -> 0.6081363768 | BL19: =INDEX(Tariff_D_BO!AD:AD,MATCH(WithdrawalVol_Summary_BO!$C19,Tariff_D_BO!$C:$C,FALSE),0) -> 345.6056257 | BM19: =INDEX(Tariff_D_BO!AH:AH,MATCH(WithdrawalVol_Summary_BO!$C19,Tariff_D_BO!$C:$C,FALSE),0) -> 1.062475815 | BN19: =IF(BM19=0,0,(BL19/365)/BM19) -> 0.8911870879 | BP19: 905.2184971 | BQ19: 3.543250757 | BR19: =IF(BQ19=0,0,(BP19/365)/BQ19) -> 0.6999365405 | BT19: =INDEX(Tariff_V_BO!AK:AK,MATCH(WithdrawalVol_Summary_BO!$C19,Tariff_V_BO!$C:$C,FALSE),0) -> 573.8252313 | BU19: =INDEX(Tariff_V_BO!AO:AO,MATCH(WithdrawalVol_Summary_BO!$C19,Tariff_V_BO!$C:$C,FALSE),0) -> 2.516326009 | BV19: =IF(BU19=0,0,(BT19/365)/BU19) -> 0.6247695711 | BX19: =INDEX(Tariff_D_BO!AK:AK,MATCH(WithdrawalVol_Summary_BO!$C19,Tariff_D_BO!$C:$C,FALSE),0) -> 331.3932658 | BY19: =INDEX(Tariff_D_BO!AO:AO,MATCH(WithdrawalVol_Summary_BO!$C19,Tariff_D_BO!$C:$C,FALSE),0) -> 1.026924749 | BZ19: =IF(BY19=0,0,(BX19/365)/BY19) -> 0.8841219933 | CB19: 882.7877783 | CC19: 3.51644514 | CD19: =IF(CC19=0,0,(CB19/365)/CC19) -> 0.6877959292 | CF19: =INDEX(Tariff_V_BO!AR:AR,MATCH(WithdrawalVol_Summary_BO!$C19,Tariff_V_BO!$C:$C,FALSE),0) -> 532.3287096 | CG19: =INDEX(Tariff_V_BO!AV:AV,MATCH(WithdrawalVol_Summary_BO!$C19,Tariff_V_BO!$C:$C,FALSE),0) -> 2.522004382 | CH19: =IF(CG19=0,0,(CF19/365)/CG19) -> 0.5782840155 | CJ19: =INDEX(Tariff_D_BO!AR:AR,MATCH(WithdrawalVol_Summary_BO!$C19,Tariff_D_BO!$C:$C,FALSE),0) -> 350.4590687 | CK19: =INDEX(Tariff_D_BO!AV:AV,MATCH(WithdrawalVol_Summary_BO!$C19,Tariff_D_BO!$C:$C,FALSE),0) -> 0.994440759 | CL19: =IF(CK19=0,0,(CJ19/365)/CK19) -> 0.9655294431 | CN19: 888.3077284 | CO19: 3.495743524 | CP19: =IF(CO19=0,0,(CN19/365)/CO19) -> 0.6961951835 | CR19: =INDEX(Tariff_V_BO!AY:AY,MATCH(WithdrawalVol_Summary_BO!$C19,Tariff_V_BO!$C:$C,FALSE),0) -> 539.0293995 | CS19: =INDEX(Tariff_V_BO!BC:BC,MATCH(WithdrawalVol_Summary_BO!$C19,Tariff_V_BO!$C:$C,FALSE),0) -> 2.549206537 | CT19: =IF(CS19=0,0,(CR19/365)/CS19) -> 0.5793147217 | CV19: =INDEX(Tariff_D_BO!AY:AY,MATCH(WithdrawalVol_Summary_BO!$C19,Tariff_D_BO!$C:$C,FALSE),0) -> 349.2783289 | CW19: =INDEX(Tariff_D_BO!BC:BC,MATCH(WithdrawalVol_Summary_BO!$C19,Tariff_D_BO!$C:$C,FALSE),0) -> 0.946536987 | CX19: =IF(CW19=0,0,(CV19/365)/CW19) -> 1.010976794
C20: M085 | D20: =(INDEX('[5]CTM Details'!P$5:P$408,MATCH($C20,'[5]CTM Details'!$B$5:$B$408,FALSE),1)) -> Traralgon | E20: =(INDEX('[5]CTM Details'!D$5:D$408,MATCH($C20,'[5]CTM Details'!$B$5:$B$408,FALSE),1)) -> 30000079PC | F20: =(INDEX('[5]CTM Details'!U$5:U$408,MATCH($C20,'[5]CTM Details'!$B$5:$B$408,FALSE),1)) -> LaTrobe | H20: 823.7321136 | I20: 5.142735199 | J20: =IF(I20=0,0,(H20/365)/I20) -> 0.438832688 | L20: =INDEX(Tariff_V_BO!H:H,MATCH(WithdrawalVol_Summary_BO!$C20,Tariff_V_BO!$C:$C,FALSE),0) -> 490.0812621 | M20: =INDEX(Tariff_V_BO!I:I,MATCH(WithdrawalVol_Summary_BO!$C20,Tariff_V_BO!$C:$C,FALSE),0) -> 3.959580853 | N20: =IF(M20=0,0,(L20/365)/M20) -> 0.3390986165 | P20: =INDEX(Tariff_D_BO!H:H,MATCH(WithdrawalVol_Summary_BO!$C20,Tariff_D_BO!$C:$C,FALSE),0) -> 333.6508515 | Q20: =INDEX(Tariff_D_BO!I:I,MATCH(WithdrawalVol_Summary_BO!$C20,Tariff_D_BO!$C:$C,FALSE),0) -> 1.183154346 | R20: =IF(Q20=0,0,(P20/365)/Q20) -> 0.77260581 | T20: 802.9076773 | U20: 4.235769265 | V20: =IF(U20=0,0,(T20/365)/U20) -> 0.5193264608 | X20: =INDEX(Tariff_V_BO!K:K,MATCH(WithdrawalVol_Summary_BO!$C20,Tariff_V_BO!$C:$C,FALSE),0) -> 469.2568258 | Y20: =INDEX(Tariff_V_BO!M:M,MATCH(WithdrawalVol_Summary_BO!$C20,Tariff_V_BO!$C:$C,FALSE),0) -> 3.370007761 | Z20: =IF(Y20=0,0,(X20/365)/Y20) -> 0.381493228 | AB20: =INDEX(Tariff_D_BO!K:K,MATCH(WithdrawalVol_Summary_BO!$C20,Tariff_D_BO!$C:$C,FALSE),0) -> 333.6508515 | AC20: =INDEX(Tariff_D_BO!L:L,MATCH(WithdrawalVol_Summary_BO!$C20,Tariff_D_BO!$C:$C,FALSE),0) -> 0.8657615037 | AD20: =IF(AC20=0,0,(AB20/365)/AC20) -> 1.055847272 | AF20: 839.800809 | AG20: 5.298894902 | AH20: =IF(AG20=0,0,(AF20/365)/AG20) -> 0.4342082975 | AJ20: =INDEX(Tariff_V_BO!P:P,MATCH(WithdrawalVol_Summary_BO!$C20,Tariff_V_BO!$C:$C,FALSE),0) -> 543.7834686 | AK20: =INDEX(Tariff_V_BO!T:T,MATCH(WithdrawalVol_Summary_BO!$C20,Tariff_V_BO!$C:$C,FALSE),0) -> 4.396251615 | AL20: =IF(AK20=0,0,(AJ20/365)/AK20) -> 0.3388836338 | AN20: =INDEX(Tariff_D_BO!P:P,MATCH(WithdrawalVol_Summary_BO!$C20,Tariff_D_BO!$C:$C,FALSE),0) -> 296.0173404 | AO20: =INDEX(Tariff_D_BO!T:T,MATCH(WithdrawalVol_Summary_BO!$C20,Tariff_D_BO!$C:$C,FALSE),0) -> 0.902643287 | AP20: =IF(AO20=0,0,(AN20/365)/AO20) -> 0.8984794145 | AR20: 832.2007992 | AS20: 4.717822089 | AT20: =IF(AS20=0,0,(AR20/365)/AS20) -> 0.4832743047 | AV20: =INDEX(Tariff_V_BO!W:W,MATCH(WithdrawalVol_Summary_BO!$C20,Tariff_V_BO!$C:$C,FALSE),0) -> 543.7834686 | AW20: =INDEX(Tariff_V_BO!AA:AA,MATCH(WithdrawalVol_Summary_BO!$C20,Tariff_V_BO!$C:$C,FALSE),0) -> 3.861247152 | AX20: =IF(AW20=0,0,(AV20/365)/AW20) -> 0.3858384774 | AZ20: =INDEX(Tariff_D_BO!W:W,MATCH(WithdrawalVol_Summary_BO!$C20,Tariff_D_BO!$C:$C,FALSE),0) -> 288.4173306 | BA20: =INDEX(Tariff_D_BO!AA:AA,MATCH(WithdrawalVol_Summary_BO!$C20,Tariff_D_BO!$C:$C,FALSE),0) -> 0.8565749363 | BB20: =IF(BA20=0,0,(AZ20/365)/BA20) -> 0.922493099 | BD20: 829.9894795 | BE20: 4.495378121 | BF20: =IF(BE20=0,0,(BD20/365)/BE20) -> 0.5058403805 | BH20: =INDEX(Tariff_V_BO!AD:AD,MATCH(WithdrawalVol_Summary_BO!$C20,Tariff_V_BO!$C:$C,FALSE),0) -> 553.0001376 | BI20: =INDEX(Tariff_V_BO!AH:AH,MATCH(WithdrawalVol_Summary_BO!$C20,Tariff_V_BO!$C:$C,FALSE),0) -> 3.647022219 | BJ20: =IF(BI20=0,0,(BH20/365)/BI20) -> 0.4154262791 | BL20: =INDEX(Tariff_D_BO!AD:AD,MATCH(WithdrawalVol_Summary_BO!$C20,Tariff_D_BO!$C:$C,FALSE),0) -> 276.9893419 | BM20: =INDEX(Tariff_D_BO!AH:AH,MATCH(WithdrawalVol_Summary_BO!$C20,Tariff_D_BO!$C:$C,FALSE),0) -> 0.8483559027 | BN20: =IF(BM20=0,0,(BL20/365)/BM20) -> 0.8945242284 | BP20: 818.598831 | BQ20: 4.447457541 | BR20: =IF(BQ20=0,0,(BP20/365)/BQ20) -> 0.504273847 | BT20: =INDEX(Tariff_V_BO!AK:AK,MATCH(WithdrawalVol_Summary_BO!$C20,Tariff_V_BO!$C:$C,FALSE),0) -> 553.0001376 | BU20: =INDEX(Tariff_V_BO!AO:AO,MATCH(WithdrawalVol_Summary_BO!$C20,Tariff_V_BO!$C:$C,FALSE),0) -> 3.612934675 | BV20: =IF(BU20=0,0,(BT20/365)/BU20) -> 0.4193457691 | BX20: =INDEX(Tariff_D_BO!AK:AK,MATCH(WithdrawalVol_Summary_BO!$C20,Tariff_D_BO!$C:$C,FALSE),0) -> 265.5986934 | BY20: =INDEX(Tariff_D_BO!AO:AO,MATCH(WithdrawalVol_Summary_BO!$C20,Tariff_D_BO!$C:$C,FALSE),0) -> 0.8345228651 | BZ20: =IF(BY20=0,0,(BX20/365)/BY20) -> 0.8719565199 | CB20: 793.8887812 | CC20: 4.429571735 | CD20: =IF(CC20=0,0,(CB20/365)/CC20) -> 0.4910266471 | CF20: =INDEX(Tariff_V_BO!AR:AR,MATCH(WithdrawalVol_Summary_BO!$C20,Tariff_V_BO!$C:$C,FALSE),0) -> 513.0095952 | CG20: =INDEX(Tariff_V_BO!AV:AV,MATCH(WithdrawalVol_Summary_BO!$C20,Tariff_V_BO!$C:$C,FALSE),0) -> 3.621381231 | CH20: =IF(CG20=0,0,(CF20/365)/CG20) -> 0.3881131675 | CJ20: =INDEX(Tariff_D_BO!AR:AR,MATCH(WithdrawalVol_Summary_BO!$C20,Tariff_D_BO!$C:$C,FALSE),0) -> 280.879186 | CK20: =INDEX(Tariff_D_BO!AV:AV,MATCH(WithdrawalVol_Summary_BO!$C20,Tariff_D_BO!$C:$C,FALSE),0) -> 0.8081905039 | CL20: =IF(CK20=0,0,(CJ20/365)/CK20) -> 0.9521666152 | CN20: 799.3999751 | CO20: 4.412827019 | CP20: =IF(CO20=0,0,(CN20/365)/CO20) -> 0.4963115274 | CR20: =INDEX(Tariff_V_BO!AY:AY,MATCH(WithdrawalVol_Summary_BO!$C20,Tariff_V_BO!$C:$C,FALSE),0) -> 519.4671057 | CS20: =INDEX(Tariff_V_BO!BC:BC,MATCH(WithdrawalVol_Summary_BO!$C20,Tariff_V_BO!$C:$C,FALSE),0) -> 3.646498451 | CT20: =IF(CS20=0,0,(CR20/365)/CS20) -> 0.3902915548 | CV20: =INDEX(Tariff_D_BO!AY:AY,MATCH(WithdrawalVol_Summary_BO!$C20,Tariff_D_BO!$C:$C,FALSE),0) -> 279.9328694 | CW20: =INDEX(Tariff_D_BO!BC:BC,MATCH(WithdrawalVol_Summary_BO!$C20,Tariff_D_BO!$C:$C,FALSE),0) -> 0.7663285687 | CX20: =IF(CW20=0,0,(CV20/365)/CW20) -> 1.000797046
C21: M167 | D21: =(INDEX('[5]CTM Details'!P$5:P$408,MATCH($C21,'[5]CTM Details'!$B$5:$B$408,FALSE),1)) -> Traralgon North | E21: =(INDEX('[5]CTM Details'!D$5:D$408,MATCH($C21,'[5]CTM Details'!$B$5:$B$408,FALSE),1)) -> 30000204PC | F21: =(INDEX('[5]CTM Details'!U$5:U$408,MATCH($C21,'[5]CTM Details'!$B$5:$B$408,FALSE),1)) -> Latrobe | H21: =L21+P21 -> 0 | I21: =M21+Q21 -> 0 | J21: =IF(I21=0,0,(H21/365)/I21) -> 0 | L21: =INDEX(Tariff_V_BO!H:H,MATCH(WithdrawalVol_Summary_BO!$C21,Tariff_V_BO!$C:$C,FALSE),0) -> 0 | M21: =INDEX(Tariff_V_BO!I:I,MATCH(WithdrawalVol_Summary_BO!$C21,Tariff_V_BO!$C:$C,FALSE),0) -> 0 | N21: =IF(M21=0,0,(L21/365)/M21) -> 0 | P21: =INDEX(Tariff_D_BO!H:H,MATCH(WithdrawalVol_Summary_BO!$C21,Tariff_D_BO!$C:$C,FALSE),0) -> 0 | Q21: =INDEX(Tariff_D_BO!I:I,MATCH(WithdrawalVol_Summary_BO!$C21,Tariff_D_BO!$C:$C,FALSE),0) -> 0 | R21: =IF(Q21=0,0,(P21/365)/Q21) -> 0 | T21: =X21+AB21 -> 0 | U21: =Y21+AC21 -> 0 | V21: =IF(U21=0,0,(T21/365)/U21) -> 0 | X21: =INDEX(Tariff_V_BO!K:K,MATCH(WithdrawalVol_Summary_BO!$C21,Tariff_V_BO!$C:$C,FALSE),0) -> 0 | Y21: =INDEX(Tariff_V_BO!M:M,MATCH(WithdrawalVol_Summary_BO!$C21,Tariff_V_BO!$C:$C,FALSE),0) -> 0 | Z21: =IF(Y21=0,0,(X21/365)/Y21) -> 0 | AB21: =INDEX(Tariff_D_BO!K:K,MATCH(WithdrawalVol_Summary_BO!$C21,Tariff_D_BO!$C:$C,FALSE),0) -> 0 | AC21: =INDEX(Tariff_D_BO!L:L,MATCH(WithdrawalVol_Summary_BO!$C21,Tariff_D_BO!$C:$C,FALSE),0) -> 0 | AD21: =IF(AC21=0,0,(AB21/365)/AC21) -> 0 | AF21: =AJ21+AN21 -> 0 | AG21: =AK21+AO21 -> 0 | AH21: =IF(AG21=0,0,(AF21/365)/AG21) -> 0 | AJ21: =INDEX(Tariff_V_BO!P:P,MATCH(WithdrawalVol_Summary_BO!$C21,Tariff_V_BO!$C:$C,FALSE),0) -> 0 | AK21: =INDEX(Tariff_V_BO!T:T,MATCH(WithdrawalVol_Summary_BO!$C21,Tariff_V_BO!$C:$C,FALSE),0) -> 0 | AL21: =IF(AK21=0,0,(AJ21/365)/AK21) -> 0 | AN21: =INDEX(Tariff_D_BO!P:P,MATCH(WithdrawalVol_Summary_BO!$C21,Tariff_D_BO!$C:$C,FALSE),0) -> 0 | AO21: =INDEX(Tariff_D_BO!T:T,MATCH(WithdrawalVol_Summary_BO!$C21,Tariff_D_BO!$C:$C,FALSE),0) -> 0 | AP21: =IF(AO21=0,0,(AN21/365)/AO21) -> 0 | AR21: =AV21+AZ21 -> 0 | AS21: =AW21+BA21 -> 0 | AT21: =IF(AS21=0,0,(AR21/365)/AS21) -> 0 | AV21: =INDEX(Tariff_V_BO!W:W,MATCH(WithdrawalVol_Summary_BO!$C21,Tariff_V_BO!$C:$C,FALSE),0) -> 0 | AW21: =INDEX(Tariff_V_BO!AA:AA,MATCH(WithdrawalVol_Summary_BO!$C21,Tariff_V_BO!$C:$C,FALSE),0) -> 0 | AX21: =IF(AW21=0,0,(AV21/365)/AW21) -> 0 | AZ21: =INDEX(Tariff_D_BO!W:W,MATCH(WithdrawalVol_Summary_BO!$C21,Tariff_D_BO!$C:$C,FALSE),0) -> 0 | BA21: =INDEX(Tariff_D_BO!AA:AA,MATCH(WithdrawalVol_Summary_BO!$C21,Tariff_D_BO!$C:$C,FALSE),0) -> 0 | BB21: =IF(BA21=0,0,(AZ21/365)/BA21) -> 0 | BD21: =BH21+BL21 -> 0 | BE21: =BI21+BM21 -> 0 | BF21: =IF(BE21=0,0,(BD21/365)/BE21) -> 0 | BH21: =INDEX(Tariff_V_BO!AD:AD,MATCH(WithdrawalVol_Summary_BO!$C21,Tariff_V_BO!$C:$C,FALSE),0) -> 0 | BI21: =INDEX(Tariff_V_BO!AH:AH,MATCH(WithdrawalVol_Summary_BO!$C21,Tariff_V_BO!$C:$C,FALSE),0) -> 0 | BJ21: =IF(BI21=0,0,(BH21/365)/BI21) -> 0 | BL21: =INDEX(Tariff_D_BO!AD:AD,MATCH(WithdrawalVol_Summary_BO!$C21,Tariff_D_BO!$C:$C,FALSE),0) -> 0 | BM21: =INDEX(Tariff_D_BO!AH:AH,MATCH(WithdrawalVol_Summary_BO!$C21,Tariff_D_BO!$C:$C,FALSE),0) -> 0 | BN21: =IF(BM21=0,0,(BL21/365)/BM21) -> 0 | BP21: =BT21+BX21 -> 0 | BQ21: =BU21+BY21 -> 0 | BR21: =IF(BQ21=0,0,(BP21/365)/BQ21) -> 0 | BT21: =INDEX(Tariff_V_BO!AK:AK,MATCH(WithdrawalVol_Summary_BO!$C21,Tariff_V_BO!$C:$C,FALSE),0) -> 0 | BU21: =INDEX(Tariff_V_BO!AO:AO,MATCH(WithdrawalVol_Summary_BO!$C21,Tariff_V_BO!$C:$C,FALSE),0) -> 0 | BV21: =IF(BU21=0,0,(BT21/365)/BU21) -> 0 | BX21: =INDEX(Tariff_D_BO!AK:AK,MATCH(WithdrawalVol_Summary_BO!$C21,Tariff_D_BO!$C:$C,FALSE),0) -> 0 | BY21: =INDEX(Tariff_D_BO!AO:AO,MATCH(WithdrawalVol_Summary_BO!$C21,Tariff_D_BO!$C:$C,FALSE),0) -> 0 | BZ21: =IF(BY21=0,0,(BX21/365)/BY21) -> 0 | CB21: =CF21+CJ21 -> 0 | CC21: =CG21+CK21 -> 0 | CD21: =IF(CC21=0,0,(CB21/365)/CC21) -> 0 | CF21: =INDEX(Tariff_V_BO!AR:AR,MATCH(WithdrawalVol_Summary_BO!$C21,Tariff_V_BO!$C:$C,FALSE),0) -> 0 | CG21: =INDEX(Tariff_V_BO!AV:AV,MATCH(WithdrawalVol_Summary_BO!$C21,Tariff_V_BO!$C:$C,FALSE),0) -> 0 | CH21: =IF(CG21=0,0,(CF21/365)/CG21) -> 0 | CJ21: =INDEX(Tariff_D_BO!AR:AR,MATCH(WithdrawalVol_Summary_BO!$C21,Tariff_D_BO!$C:$C,FALSE),0) -> 0 | CK21: =INDEX(Tariff_D_BO!AV:AV,MATCH(WithdrawalVol_Summary_BO!$C21,Tariff_D_BO!$C:$C,FALSE),0) -> 0 | CL21: =IF(CK21=0,0,(CJ21/365)/CK21) -> 0 | CN21: =CR21+CV21 -> 0 | CO21: =CS21+CW21 -> 0 | CP21: =IF(CO21=0,0,(CN21/365)/CO21) -> 0 | CR21: =INDEX(Tariff_V_BO!AY:AY,MATCH(WithdrawalVol_Summary_BO!$C21,Tariff_V_BO!$C:$C,FALSE),0) -> 0 | CS21: =INDEX(Tariff_V_BO!BC:BC,MATCH(WithdrawalVol_Summary_BO!$C21,Tariff_V_BO!$C:$C,FALSE),0) -> 0 | CT21: =IF(CS21=0,0,(CR21/365)/CS21) -> 0 | CV21: =INDEX(Tariff_D_BO!AY:AY,MATCH(WithdrawalVol_Summary_BO!$C21,Tariff_D_BO!$C:$C,FALSE),0) -> 0 | CW21: =INDEX(Tariff_D_BO!BC:BC,MATCH(WithdrawalVol_Summary_BO!$C21,Tariff_D_BO!$C:$C,FALSE),0) -> 0 | CX21: =IF(CW21=0,0,(CV21/365)/CW21) -> 0
C22: M134 | D22: =(INDEX('[5]CTM Details'!P$5:P$408,MATCH($C22,'[5]CTM Details'!$B$5:$B$408,FALSE),1)) -> EMEAL Loy Yang | E22: =(INDEX('[5]CTM Details'!D$5:D$408,MATCH($C22,'[5]CTM Details'!$B$5:$B$408,FALSE),1)) -> 30000164PC | F22: =(INDEX('[5]CTM Details'!U$5:U$408,MATCH($C22,'[5]CTM Details'!$B$5:$B$408,FALSE),1)) -> LaTrobe | H22: 371.5728245 | I22: 14.84695603 | J22: =IF(I22=0,0,(H22/365)/I22) -> 0.06856676455 | P22: =INDEX(Annual_CTM_BO!G:G,MATCH(WithdrawalVol_Summary_BO!$E22,Annual_CTM_BO!$E:$E,FALSE),0) -> 371.5728245 | Q22: =INDEX(Annual_CTM_BO!H:H,MATCH(WithdrawalVol_Summary_BO!$E22,Annual_CTM_BO!$E:$E,FALSE),0) -> 14.84695603 | R22: =IF(Q22=0,0,(P22/365)/Q22) -> 0.06856676455 | T22: 371.5728245 | U22: 14.84695603 | V22: =IF(U22=0,0,(T22/365)/U22) -> 0.06856676455 | AB22: =INDEX(Annual_CTM_BO!J:J,MATCH(WithdrawalVol_Summary_BO!$E22,Annual_CTM_BO!$E:$E,FALSE),0) -> 371.5728245 | AC22: =INDEX(Annual_CTM_BO!L:L,MATCH(WithdrawalVol_Summary_BO!$E22,Annual_CTM_BO!$E:$E,FALSE),0) -> 14.84695603 | AD22: =IF(AC22=0,0,(AB22/365)/AC22) -> 0.06856676455 | AF22: 40.21708521 | AG22: 1.606956312 | AH22: =IF(AG22=0,0,(AF22/365)/AG22) -> 0.06856676455 | AN22: =INDEX(Annual_CTM_BO!O:O,MATCH(WithdrawalVol_Summary_BO!$E22,Annual_CTM_BO!$E:$E,FALSE),0) -> 40.21708521 | AO22: =INDEX(Annual_CTM_BO!S:S,MATCH(WithdrawalVol_Summary_BO!$E22,Annual_CTM_BO!$E:$E,FALSE),0) -> 1.606956312 | AP22: =IF(AO22=0,0,(AN22/365)/AO22) -> 0.06856676455 | AR22: 34.89153512 | AS22: 1.086917472 | AT22: =IF(AS22=0,0,(AR22/365)/AS22) -> 0.08794894677 | AZ22: =INDEX(Annual_CTM_BO!V:V,MATCH(WithdrawalVol_Summary_BO!$E22,Annual_CTM_BO!$E:$E,FALSE),0) -> 34.89153512 | BA22: =INDEX(Annual_CTM_BO!Z:Z,MATCH(WithdrawalVol_Summary_BO!$E22,Annual_CTM_BO!$E:$E,FALSE),0) -> 1.086917472 | BB22: =IF(BA22=0,0,(AZ22/365)/BA22) -> 0.08794894677 | BD22: 32.50421956 | BE22: 1.152364795 | BF22: =IF(BE22=0,0,(BD22/365)/BE22) -> 0.07727818198 | BL22: =INDEX(Annual_CTM_BO!AC:AC,MATCH(WithdrawalVol_Summary_BO!$E22,Annual_CTM_BO!$E:$E,FALSE),0) -> 32.50421956 | BM22: =INDEX(Annual_CTM_BO!AG:AG,MATCH(WithdrawalVol_Summary_BO!$E22,Annual_CTM_BO!$E:$E,FALSE),0) -> 1.152364795 | BN22: =IF(BM22=0,0,(BL22/365)/BM22) -> 0.07727818198 | BP22: 16.89484858 | BQ22: 0.7396609905 | BR22: =IF(BQ22=0,0,(BP22/365)/BQ22) -> 0.06257901523 | BX22: =INDEX(Annual_CTM_BO!AJ:AJ,MATCH(WithdrawalVol_Summary_BO!$E22,Annual_CTM_BO!$E:$E,FALSE),0) -> 16.89484858 | BY22: =INDEX(Annual_CTM_BO!AN:AN,MATCH(WithdrawalVol_Summary_BO!$E22,Annual_CTM_BO!$E:$E,FALSE),0) -> 0.7396609905 | BZ22: =IF(BY22=0,0,(BX22/365)/BY22) -> 0.06257901523 | CB22: 16.81224037 | CC22: 0.878183311 | CD22: =IF(CC22=0,0,(CB22/365)/CC22) -> 0.05245024807 | CJ22: =INDEX(Annual_CTM_BO!AQ:AQ,MATCH(WithdrawalVol_Summary_BO!$E22,Annual_CTM_BO!$E:$E,FALSE),0) -> 16.81224037 | CK22: =INDEX(Annual_CTM_BO!AU:AU,MATCH(WithdrawalVol_Summary_BO!$E22,Annual_CTM_BO!$E:$E,FALSE),0) -> 0.878183311 | CL22: =IF(CK22=0,0,(CJ22/365)/CK22) -> 0.05245024807 | CN22: 17.10945368 | CO22: 1.05855531 | CP22: =IF(CO22=0,0,(CN22/365)/CO22) -> 0.04428225444 | CV22: =INDEX(Annual_CTM_BO!AX:AX,MATCH(WithdrawalVol_Summary_BO!$E22,Annual_CTM_BO!$E:$E,FALSE),0) -> 17.10945368 | CW22: =INDEX(Annual_CTM_BO!BB:BB,MATCH(WithdrawalVol_Summary_BO!$E22,Annual_CTM_BO!$E:$E,FALSE),0) -> 1.05855531 | CX22: =IF(CW22=0,0,(CV22/365)/CW22) -> 0.04428225444
C24: La Trobe | AR24: =SUM(AR18:AR22) -> 1820.204599 | AS24: =SUM(AS18:AS22) -> 9.849899385 | AT24: =IF(AS24=0,0,(AR24/365)/AS24) -> 0.506285569 | BD24: =SUM(BD18:BD22) -> 1810.841492 | BE24: =SUM(BE18:BE22) -> 9.446052003 | BF24: =IF(BE24=0,0,(BD24/365)/BE24) -> 0.5252151443 | BP24: =SUM(BP18:BP22) -> 1769.237775 | BQ24: =SUM(BQ18:BQ22) -> 8.879423955 | BR24: =IF(BQ24=0,0,(BP24/365)/BQ24) -> 0.5458942838 | CB24: =SUM(CB18:CB22) -> 1721.136403 | CC24: =SUM(CC18:CC22) -> 8.972709654 | CD24: =IF(CC24=0,0,(CB24/365)/CC24) -> 0.5255315709 | CN24: =SUM(CN18:CN22) -> 1732.658795 | CO24: =SUM(CO18:CO22) -> 9.115105797 | CP24: =IF(CO24=0,0,(CN24/365)/CO24) -> 0.5207850027
C26: M104 | D26: =(INDEX('[5]CTM Details'!P$5:P$408,MATCH($C26,'[5]CTM Details'!$B$5:$B$408,FALSE),1)) -> PaperlinX Ltd | E26: =(INDEX('[5]CTM Details'!D$5:D$408,MATCH($C26,'[5]CTM Details'!$B$5:$B$408,FALSE),1)) -> 30000097PC | F26: =(INDEX('[5]CTM Details'!U$5:U$408,MATCH($C26,'[5]CTM Details'!$B$5:$B$408,FALSE),1)) -> Maryvale | AR26: =AV26+AZ26 -> 5294.358197 | AS26: =AW26+BA26 -> 17.38784823 | AT26: =IF(AS26=0,0,(AR26/365)/AS26) -> 0.8342085092 | AV26: =INDEX(Tariff_V_BO!W:W,MATCH(WithdrawalVol_Summary_BO!$C26,Tariff_V_BO!$C:$C,FALSE),0) -> 0 | AW26: =INDEX(Tariff_V_BO!AA:AA,MATCH(WithdrawalVol_Summary_BO!$C26,Tariff_V_BO!$C:$C,FALSE),0) -> 0 | AX26: =IF(AW26=0,0,(AV26/365)/AW26) -> 0 | AZ26: =INDEX(Tariff_D_BO!W:W,MATCH(WithdrawalVol_Summary_BO!$C26,Tariff_D_BO!$C:$C,FALSE),0) -> 5294.358197 | BA26: =INDEX(Tariff_D_BO!AA:AA,MATCH(WithdrawalVol_Summary_BO!$C26,Tariff_D_BO!$C:$C,FALSE),0) -> 17.38784823 | BB26: =IF(BA26=0,0,(AZ26/365)/BA26) -> 0.8342085092 | BD26: =BH26+BL26 -> 5084.579313 | BE26: =BI26+BM26 -> 16.31802045 | BF26: =IF(BE26=0,0,(BD26/365)/BE26) -> 0.8536791778 | BH26: =INDEX(Tariff_V_BO!AD:AD,MATCH(WithdrawalVol_Summary_BO!$C26,Tariff_V_BO!$C:$C,FALSE),0) -> 0 | BI26: =INDEX(Tariff_V_BO!AH:AH,MATCH(WithdrawalVol_Summary_BO!$C26,Tariff_V_BO!$C:$C,FALSE),0) -> 0 | BJ26: =IF(BI26=0,0,(BH26/365)/BI26) -> 0 | BL26: =INDEX(Tariff_D_BO!AD:AD,MATCH(WithdrawalVol_Summary_BO!$C26,Tariff_D_BO!$C:$C,FALSE),0) -> 5084.579313 | BM26: =INDEX(Tariff_D_BO!AH:AH,MATCH(WithdrawalVol_Summary_BO!$C26,Tariff_D_BO!$C:$C,FALSE),0) -> 16.31802045 | BN26: =IF(BM26=0,0,(BL26/365)/BM26) -> 0.8536791778 | BP26: =BT26+BX26 -> 4875.485868 | BQ26: =BU26+BY26 -> 15.60125597 | BR26: =IF(BQ26=0,0,(BP26/365)/BQ26) -> 0.8561807818 | BT26: =INDEX(Tariff_V_BO!AK:AK,MATCH(WithdrawalVol_Summary_BO!$C26,Tariff_V_BO!$C:$C,FALSE),0) -> 0 | BU26: =INDEX(Tariff_V_BO!AO:AO,MATCH(WithdrawalVol_Summary_BO!$C26,Tariff_V_BO!$C:$C,FALSE),0) -> 0 | BV26: =IF(BU26=0,0,(BT26/365)/BU26) -> 0 | BX26: =INDEX(Tariff_D_BO!AK:AK,MATCH(WithdrawalVol_Summary_BO!$C26,Tariff_D_BO!$C:$C,FALSE),0) -> 4875.485868 | BY26: =INDEX(Tariff_D_BO!AO:AO,MATCH(WithdrawalVol_Summary_BO!$C26,Tariff_D_BO!$C:$C,FALSE),0) -> 15.60125597 | BZ26: =IF(BY26=0,0,(BX26/365)/BY26) -> 0.8561807818 | CB26: =CF26+CJ26 -> 5155.98358 | CC26: =CG26+CK26 -> 15.09899511 | CD26: =IF(CC26=0,0,(CB26/365)/CC26) -> 0.9355577842 | CF26: =INDEX(Tariff_V_BO!AR:AR,MATCH(WithdrawalVol_Summary_BO!$C26,Tariff_V_BO!$C:$C,FALSE),0) -> 0 | CG26: =INDEX(Tariff_V_BO!AV:AV,MATCH(WithdrawalVol_Summary_BO!$C26,Tariff_V_BO!$C:$C,FALSE),0) -> 0 | CH26: =IF(CG26=0,0,(CF26/365)/CG26) -> 0 | CJ26: =INDEX(Tariff_D_BO!AR:AR,MATCH(WithdrawalVol_Summary_BO!$C26,Tariff_D_BO!$C:$C,FALSE),0) -> 5155.98358 | CK26: =INDEX(Tariff_D_BO!AV:AV,MATCH(WithdrawalVol_Summary_BO!$C26,Tariff_D_BO!$C:$C,FALSE),0) -> 15.09899511 | CL26: =IF(CK26=0,0,(CJ26/365)/CK26) -> 0.9355577842 | CN26: =CR26+CV26 -> 5138.612435 | CO26: =CS26+CW26 -> 14.77560125 | CP26: =IF(CO26=0,0,(CN26/365)/CO26) -> 0.9528133571 | CR26: =INDEX(Tariff_V_BO!AY:AY,MATCH(WithdrawalVol_Summary_BO!$C26,Tariff_V_BO!$C:$C,FALSE),0) -> 0 | CS26: =INDEX(Tariff_V_BO!BC:BC,MATCH(WithdrawalVol_Summary_BO!$C26,Tariff_V_BO!$C:$C,FALSE),0) -> 0 | CT26: =IF(CS26=0,0,(CR26/365)/CS26) -> 0 | CV26: =INDEX(Tariff_D_BO!AY:AY,MATCH(WithdrawalVol_Summary_BO!$C26,Tariff_D_BO!$C:$C,FALSE),0) -> 5138.612435 | CW26: =INDEX(Tariff_D_BO!BC:BC,MATCH(WithdrawalVol_Summary_BO!$C26,Tariff_D_BO!$C:$C,FALSE),0) -> 14.77560125 | CX26: =IF(CW26=0,0,(CV26/365)/CW26) -> 0.9528133571
C28: Maryvale | AR28: =AR26 -> 5294.358197 | AS28: =AS26 -> 17.38784823 | AT28: =AT26 -> 0.8342085092 | BD28: =BD26 -> 5084.579313 | BE28: =BE26 -> 16.31802045 | BF28: =BF26 -> 0.8536791778 | BP28: =BP26 -> 4875.485868 | BQ28: =BQ26 -> 15.60125597 | BR28: =BR26 -> 0.8561807818 | CB28: =CB26 -> 5155.98358 | CC28: =CC26 -> 15.09899511 | CD28: =CD26 -> 0.9355577842 | CN28: =CN26 -> 5138.612435 | CO28: =CO26 -> 14.77560125 | CP28: =CP26 -> 0.9528133571
C30: M060 | D30: =(INDEX('[5]CTM Details'!P$5:P$408,MATCH($C30,'[5]CTM Details'!$B$5:$B$408,FALSE),1)) -> Churchill | E30: =(INDEX('[5]CTM Details'!D$5:D$408,MATCH($C30,'[5]CTM Details'!$B$5:$B$408,FALSE),1)) -> 30000055PC | F30: =(INDEX('[5]CTM Details'!U$5:U$408,MATCH($C30,'[5]CTM Details'!$B$5:$B$408,FALSE),1)) -> Tyers | L30: =INDEX(Tariff_V_BO!H:H,MATCH(WithdrawalVol_Summary_BO!$C30,Tariff_V_BO!$C:$C,FALSE),0) -> 105.9098403 | M30: =INDEX(Tariff_V_BO!I:I,MATCH(WithdrawalVol_Summary_BO!$C30,Tariff_V_BO!$C:$C,FALSE),0) -> 0.7136003947 | N30: =IF(M30=0,0,(L30/365)/M30) -> 0.4066196544 | P30: =INDEX(Tariff_D_BO!H:H,MATCH(WithdrawalVol_Summary_BO!$C30,Tariff_D_BO!$C:$C,FALSE),0) -> 22.17691936 | Q30: =INDEX(Tariff_D_BO!I:I,MATCH(WithdrawalVol_Summary_BO!$C30,Tariff_D_BO!$C:$C,FALSE),0) -> 0.1027065797 | R30: =IF(Q30=0,0,(P30/365)/Q30) -> 0.5915753727 | T30: =X30+AB30 -> 124.5378997 | U30: 0.6837272512 | V30: =IF(U30=0,0,(T30/365)/U30) -> 0.4990289981 | X30: =INDEX(Tariff_V_BO!K:K,MATCH(WithdrawalVol_Summary_BO!$C30,Tariff_V_BO!$C:$C,FALSE),0) -> 102.7709783 | Y30: =INDEX(Tariff_V_BO!M:M,MATCH(WithdrawalVol_Summary_BO!$C30,Tariff_V_BO!$C:$C,FALSE),0) -> 0.5877859236 | Z30: =IF(Y30=0,0,(X30/365)/Y30) -> 0.4790252926 | AB30: =INDEX(Tariff_D_BO!K:K,MATCH(WithdrawalVol_Summary_BO!$C30,Tariff_D_BO!$C:$C,FALSE),0) -> 21.76692141 | AC30: =INDEX(Tariff_D_BO!L:L,MATCH(WithdrawalVol_Summary_BO!$C30,Tariff_D_BO!$C:$C,FALSE),0) -> 0.09594132761 | AD30: =IF(AC30=0,0,(AB30/365)/AC30) -> 0.6215819879 | AF30: =AJ30+AN30 -> 138.404669 | AG30: 0.8668085448 | AH30: =IF(AG30=0,0,(AF30/365)/AG30) -> 0.4374563175 | AJ30: =INDEX(Tariff_V_BO!P:P,MATCH(WithdrawalVol_Summary_BO!$C30,Tariff_V_BO!$C:$C,FALSE),0) -> 119.092906 | AK30: =INDEX(Tariff_V_BO!T:T,MATCH(WithdrawalVol_Summary_BO!$C30,Tariff_V_BO!$C:$C,FALSE),0) -> 0.7667800786 | AL30: =IF(AK30=0,0,(AJ30/365)/AK30) -> 0.4255221846 | AN30: =INDEX(Tariff_D_BO!P:P,MATCH(WithdrawalVol_Summary_BO!$C30,Tariff_D_BO!$C:$C,FALSE),0) -> 19.31176305 | AO30: =INDEX(Tariff_D_BO!T:T,MATCH(WithdrawalVol_Summary_BO!$C30,Tariff_D_BO!$C:$C,FALSE),0) -> 0.1000284662 | AP30: =IF(AO30=0,0,(AN30/365)/AO30) -> 0.5289388298 | AR30: =AV30+AZ30 -> 137.9088549 | AS30: 0.7023258765 | AT30: =IF(AS30=0,0,(AR30/365)/AS30) -> 0.5379731713 | AV30: =INDEX(Tariff_V_BO!W:W,MATCH(WithdrawalVol_Summary_BO!$C30,Tariff_V_BO!$C:$C,FALSE),0) -> 119.092906 | AW30: =INDEX(Tariff_V_BO!AA:AA,MATCH(WithdrawalVol_Summary_BO!$C30,Tariff_V_BO!$C:$C,FALSE),0) -> 0.615563788 | AX30: =IF(AW30=0,0,(AV30/365)/AW30) -> 0.5300538149 | AZ30: =INDEX(Tariff_D_BO!W:W,MATCH(WithdrawalVol_Summary_BO!$C30,Tariff_D_BO!$C:$C,FALSE),0) -> 18.81594889 | BA30: =INDEX(Tariff_D_BO!AA:AA,MATCH(WithdrawalVol_Summary_BO!$C30,Tariff_D_BO!$C:$C,FALSE),0) -> 0.08676208853 | BB30: =IF(BA30=0,0,(AZ30/365)/BA30) -> 0.594159797 | BD30: =BH30+BL30 -> 139.1818325 | BE30: 0.6665285175 | BF30: =IF(BE30=0,0,(BD30/365)/BE30) -> 0.5720986858 | BH30: =INDEX(Tariff_V_BO!AD:AD,MATCH(WithdrawalVol_Summary_BO!$C30,Tariff_V_BO!$C:$C,FALSE),0) -> 121.1114298 | BI30: =INDEX(Tariff_V_BO!AH:AH,MATCH(WithdrawalVol_Summary_BO!$C30,Tariff_V_BO!$C:$C,FALSE),0) -> 0.5807036046 | BJ30: =IF(BI30=0,0,(BH30/365)/BI30) -> 0.5713967225 | BL30: =INDEX(Tariff_D_BO!AD:AD,MATCH(WithdrawalVol_Summary_BO!$C30,Tariff_D_BO!$C:$C,FALSE),0) -> 18.07040267 | BM30: =INDEX(Tariff_D_BO!AH:AH,MATCH(WithdrawalVol_Summary_BO!$C30,Tariff_D_BO!$C:$C,FALSE),0) -> 0.08582491289 | BN30: =IF(BM30=0,0,(BL30/365)/BM30) -> 0.5768482699 | BP30: =BT30+BX30 -> 138.4387223 | BQ30: 0.6578085636 | BR30: =IF(BQ30=0,0,(BP30/365)/BQ30) -> 0.5765874626 | BT30: =INDEX(Tariff_V_BO!AK:AK,MATCH(WithdrawalVol_Summary_BO!$C30,Tariff_V_BO!$C:$C,FALSE),0) -> 121.1114298 | BU30: =INDEX(Tariff_V_BO!AO:AO,MATCH(WithdrawalVol_Summary_BO!$C30,Tariff_V_BO!$C:$C,FALSE),0) -> 0.5736253265 | BV30: =IF(BU30=0,0,(BT30/365)/BU30) -> 0.5784475006 | BX30: =INDEX(Tariff_D_BO!AK:AK,MATCH(WithdrawalVol_Summary_BO!$C30,Tariff_D_BO!$C:$C,FALSE),0) -> 17.32729247 | BY30: =INDEX(Tariff_D_BO!AO:AO,MATCH(WithdrawalVol_Summary_BO!$C30,Tariff_D_BO!$C:$C,FALSE),0) -> 0.08418323711 | BZ30: =IF(BY30=0,0,(BX30/365)/BY30) -> 0.563913147 | CB30: =CF30+CJ30 -> 130.6773536 | CC30: 0.6565242225 | CD30: =IF(CC30=0,0,(CB30/365)/CC30) -> 0.5453266377 | CF30: =INDEX(Tariff_V_BO!AR:AR,MATCH(WithdrawalVol_Summary_BO!$C30,Tariff_V_BO!$C:$C,FALSE),0) -> 112.3531829 | CG30: =INDEX(Tariff_V_BO!AV:AV,MATCH(WithdrawalVol_Summary_BO!$C30,Tariff_V_BO!$C:$C,FALSE),0) -> 0.5749934484 | CH30: =IF(CG30=0,0,(CF30/365)/CG30) -> 0.5353399072 | CJ30: =INDEX(Tariff_D_BO!AR:AR,MATCH(WithdrawalVol_Summary_BO!$C30,Tariff_D_BO!$C:$C,FALSE),0) -> 18.32417073 | CK30: =INDEX(Tariff_D_BO!AV:AV,MATCH(WithdrawalVol_Summary_BO!$C30,Tariff_D_BO!$C:$C,FALSE),0) -> 0.08153077411 | CL30: =IF(CK30=0,0,(CJ30/365)/CK30) -> 0.615757768 | CN30: =CR30+CV30 -> 132.0298634 | CO30: 0.6548409084 | CP30: =IF(CO30=0,0,(CN30/365)/CO30) -> 0.5523870737 | CR30: =INDEX(Tariff_V_BO!AY:AY,MATCH(WithdrawalVol_Summary_BO!$C30,Tariff_V_BO!$C:$C,FALSE),0) -> 113.767429 | CS30: =INDEX(Tariff_V_BO!BC:BC,MATCH(WithdrawalVol_Summary_BO!$C30,Tariff_V_BO!$C:$C,FALSE),0) -> 0.577703796 | CT30: =IF(CS30=0,0,(CR30/365)/CS30) -> 0.5395352922 | CV30: =INDEX(Tariff_D_BO!AY:AY,MATCH(WithdrawalVol_Summary_BO!$C30,Tariff_D_BO!$C:$C,FALSE),0) -> 18.26243434 | CW30: =INDEX(Tariff_D_BO!BC:BC,MATCH(WithdrawalVol_Summary_BO!$C30,Tariff_D_BO!$C:$C,FALSE),0) -> 0.07713711235 | CX30: =IF(CW30=0,0,(CV30/365)/CW30) -> 0.6486380572
C31: M071 | D31: =(INDEX('[5]CTM Details'!P$5:P$408,MATCH($C31,'[5]CTM Details'!$B$5:$B$408,FALSE),1)) -> Morwell (Loy Yang) | E31: =(INDEX('[5]CTM Details'!D$5:D$408,MATCH($C31,'[5]CTM Details'!$B$5:$B$408,FALSE),1)) -> 30000066PC | F31: =(INDEX('[5]CTM Details'!U$5:U$408,MATCH($C31,'[5]CTM Details'!$B$5:$B$408,FALSE),1)) -> Tyers | H31: =L31+P31 -> 40.94220568 | I31: =M31+Q31 -> 1.635929991 | J31: =IF(I31=0,0,(H31/365)/I31) -> 0.06856676455 | P31: =INDEX(Annual_CTM_BO!G:G,MATCH(WithdrawalVol_Summary_BO!$E31,Annual_CTM_BO!$E:$E,FALSE),0) -> 40.94220568 | Q31: =INDEX(Annual_CTM_BO!H:H,MATCH(WithdrawalVol_Summary_BO!$E31,Annual_CTM_BO!$E:$E,FALSE),0) -> 1.635929991 | R31: =IF(Q31=0,0,(P31/365)/Q31) -> 0.06856676455 | T31: 40.94220568 | U31: 1.635929991 | V31: =IF(U31=0,0,(T31/365)/U31) -> 0.06856676455 | AB31: =INDEX(Annual_CTM_BO!J:J,MATCH(WithdrawalVol_Summary_BO!$E31,Annual_CTM_BO!$E:$E,FALSE),0) -> 40.94220568 | AC31: =INDEX(Annual_CTM_BO!L:L,MATCH(WithdrawalVol_Summary_BO!$E31,Annual_CTM_BO!$E:$E,FALSE),0) -> 1.635929991 | AD31: =IF(AC31=0,0,(AB31/365)/AC31) -> 0.06856676455 | AF31: 4.431368674 | AG31: 0.1770644448 | AH31: =IF(AG31=0,0,(AF31/365)/AG31) -> 0.06856676455 | AN31: =INDEX(Annual_CTM_BO!O:O,MATCH(WithdrawalVol_Summary_BO!$E31,Annual_CTM_BO!$E:$E,FALSE),0) -> 4.431368674 | AO31: =INDEX(Annual_CTM_BO!S:S,MATCH(WithdrawalVol_Summary_BO!$E31,Annual_CTM_BO!$E:$E,FALSE),0) -> 0.1770644448 | AP31: =IF(AO31=0,0,(AN31/365)/AO31) -> 0.06856676455 | AR31: 3.84456643 | AS31: 0.1197633297 | AT31: =IF(AS31=0,0,(AR31/365)/AS31) -> 0.08794894677 | AZ31: =INDEX(Annual_CTM_BO!V:V,MATCH(WithdrawalVol_Summary_BO!$E31,Annual_CTM_BO!$E:$E,FALSE),0) -> 3.84456643 | BA31: =INDEX(Annual_CTM_BO!Z:Z,MATCH(WithdrawalVol_Summary_BO!$E31,Annual_CTM_BO!$E:$E,FALSE),0) -> 0.1197633297 | BB31: =IF(BA31=0,0,(AZ31/365)/BA31) -> 0.08794894677 | BD31: 3.581517148 | BE31: 0.1269747229 | BF31: =IF(BE31=0,0,(BD31/365)/BE31) -> 0.07727818198 | BL31: =INDEX(Annual_CTM_BO!AC:AC,MATCH(WithdrawalVol_Summary_BO!$E31,Annual_CTM_BO!$E:$E,FALSE),0) -> 3.581517148 | BM31: =INDEX(Annual_CTM_BO!AG:AG,MATCH(WithdrawalVol_Summary_BO!$E31,Annual_CTM_BO!$E:$E,FALSE),0) -> 0.1269747229 | BN31: =IF(BM31=0,0,(BL31/365)/BM31) -> 0.07727818198 | BP31: 1.861579534 | BQ31: 0.08150045001 | BR31: =IF(BQ31=0,0,(BP31/365)/BQ31) -> 0.06257901523 | BX31: =INDEX(Annual_CTM_BO!AJ:AJ,MATCH(WithdrawalVol_Summary_BO!$E31,Annual_CTM_BO!$E:$E,FALSE),0) -> 1.861579534 | BY31: =INDEX(Annual_CTM_BO!AN:AN,MATCH(WithdrawalVol_Summary_BO!$E31,Annual_CTM_BO!$E:$E,FALSE),0) -> 0.08150045001 | BZ31: =IF(BY31=0,0,(BX31/365)/BY31) -> 0.06257901523 | CB31: 1.852477247 | CC31: 0.09676370115 | CD31: =IF(CC31=0,0,(CB31/365)/CC31) -> 0.05245024807 | CJ31: =INDEX(Annual_CTM_BO!AQ:AQ,MATCH(WithdrawalVol_Summary_BO!$E31,Annual_CTM_BO!$E:$E,FALSE),0) -> 1.852477247 | CK31: =INDEX(Annual_CTM_BO!AU:AU,MATCH(WithdrawalVol_Summary_BO!$E31,Annual_CTM_BO!$E:$E,FALSE),0) -> 0.09676370115 | CL31: =IF(CK31=0,0,(CJ31/365)/CK31) -> 0.05245024807 | CN31: 1.88522606 | CO31: 0.1166382102 | CP31: =IF(CO31=0,0,(CN31/365)/CO31) -> 0.04428225444 | CV31: =INDEX(Annual_CTM_BO!AX:AX,MATCH(WithdrawalVol_Summary_BO!$E31,Annual_CTM_BO!$E:$E,FALSE),0) -> 1.88522606 | CW31: =INDEX(Annual_CTM_BO!BB:BB,MATCH(WithdrawalVol_Summary_BO!$E31,Annual_CTM_BO!$E:$E,FALSE),0) -> 0.1166382102 | CX31: =IF(CW31=0,0,(CV31/365)/CW31) -> 0.04428225444
... 32 more rows

Sheet 2023 Cost Breakdown -->
C9: 2023 Tariffs
C10: Section 4.
C11: =Model_Name -> VTS Tariff Model
C12: Go to Table of Contents
C13: ç | D13: è
C17: Section Cover Notes:
C18: Breakdown of cost allocation based on the figures provided in ORC Replacement Values

Sheet 2023Allocation-Direct_BO
B1: 2023 Revenue Allocation - Direct
B2: =Model_Name -> VTS Tariff Model | L2: Cells highlighted yellow have manual changes to formulas
B3: Go to Table of Contents
A4: é | B4: ç | C4: è
T6: Capital Raising ($) | Y6: Asset Return ($) | AG6: Asset Depreciation ($) | AO6: Direct Operating & Maintenance ($)
C7: Asset Group Number | G7: Tariff Zone | H7: Start Location | I7: End Location | J7: Pipeline Length | K7: Allocation % | L7: Compressor ORC @ year end | M7: City Gates & Field Regulators ORC @ year end | N7: Pipeline ORC @ year end | P7: Direct Costs Allocated to Asset Zones | R7: Total Capital Raising | T7: Amortisation of Financing | U7: Amortisation of Debt Raising | W7: Total Direct Asset Return | Y7: Pipelines | Z7: City Gates & Field Regulators | AA7: Compressors | AB7: Odourant Plants | AC7: Direct Augmentations | AE7: Total Direct Depreciation | AG7: Pipelines | AH7: City Gates & Field Regulators | AI7: Compressors | AJ7: Odourant Plants | AK7: Direct Augmentations | AM7: Total Direct O&M | AO7: Pipes | AP7: City Gates & Field Regulators | AQ7: Compressors | AR7: Comp. Fuel | AS7: Odourising
C8: Total | J8: =SUM(J12:J41)+SUM(J47:J51) -> 1884.38193 | L8: =SUM(L12:L46)+SUM(L49:L50) -> 197956269 | M8: =SUM(M12:M46)+M49 -> 59233476.97 | N8: =SUM(N12:N46)+N49 -> 1439861767 | P8: =SUM(P12:P41,P47:P51) -> 62649641.99 | R8: =SUM(R12:R42,R47:R55) -> 461873.5068 | U8: =SUM(U12:U43,U47:U55) -> 461873.5068 | W8: =SUM(W12:W43,W47:W55) -> 28212019.15 | Y8: =SUM(Y12:Y43,Y47:Y55) -> 21037761.94 | Z8: =SUM(Z12:Z43,Z47:Z55) -> 1469659.989 | AA8: =SUM(AA12:AA43,AA47:AA55) -> 5695688.491 | AE8: =SUM(AE12:AE43,AE47:AE55) -> 8653806.98 | AG8: =SUM(AG12:AG43,AG47:AG55) -> 3000655.302 | AH8: =SUM(AH12:AH43,AH47:AH55) -> 1214497.157 | AI8: =SUM(AI12:AI43,AI47:AI55) -> 4425844.03 | AM8: =SUM(AM12:AM43,AM47:AM55) -> 25321942.35
C9: Injection Zones | P9: =P12+P13+P19+P48+P50+P51 -> 12102123.4 | R9: =R12+R13+R19+R48+R50+R51 -> 81390.13791 | W9: =W12+W13+W19+W48+W50+W51 -> 6150958.553 | AE9: =AE12+AE13+AE19+AE48+AE50+AE51 -> 2470287.066 | AM9: =AM12+AM13+AM19+AM48+AM50+AM51 -> 3399487.64
C10: Withdrawal Zones | P10: =P8-P9 -> 50547518.59 | R10: =R8-R9 -> 380483.3689 | W10: =W8-W9 -> 22061060.6 | AE10: =AE8-AE9 -> 6183519.914 | AM10: =AM8-AM9 -> 21922454.71
A12: 1 | C12: =Pipeline_BA!D9 -> 1 Longford to Tyers (loop end) | G12: =Pipeline_BA!G9 -> LaTrobe | H12: =Pipeline_BA!H9 -> Longford | I12: =Pipeline_BA!I9 -> Tyers (end loop) | J12: =Pipeline_BA!K9 -> 64.7847 | K12: =Pipeline_BA!M9 -> 1 | L12: =(INDEX([4]Compressors_TA!$U$17:$U$60,MATCH(C12,[4]Compressors_TA!$D$17:$D$60,FALSE),1))*Pipeline_BA!$O9 -> 1363126.799 | M12: =(INDEX([4]CG_TA!$U$17:$U$60,MATCH(C12,[4]CG_TA!$D$17:$D$60,FALSE),1))*Pipeline_BA!$P9 -> 1012055.152 | N12: =(INDEX([4]Pipelines_TA!$U$17:$U$60,MATCH(C12,[4]Pipelines_TA!$D$17:$D$60,FALSE),1))*Pipeline_BA!$Q9 -> 88344321.02 | P12: =R12+W12+AE12+AM12 -> 2883015.873 | R12: =SUM(T12:U12) -> 23237.11492 | U12: =W12/(SUM($W$12:$W$46)+$W$49)*RAB_Model_BO!$J$21 -> 23237.11492 | W12: =SUM(Y12:AC12) -> 1347326.696 | Y12: =$N12/$N$8*$Y$58 -> 1266119.128 | Z12: =$M12/$M$8*$Z$58 -> 38402.81316 | AA12: =$L12/$L$8*$AA$58 -> 33896.01955 | AB12: =AB58 -> 8908.735887 | AE12: =SUM(AG12:AK12) -> 253731.9046 | AG12: =$N12/$N$8*$AG$58 -> 178739.986 | AH12: =$M12/$M$8*$AH$58 -> 31735.3046 | AI12: =$L12/$L$8*$AI$58 -> 30446.12354 | AJ12: =AJ58 -> 12810.49043 | AM12: =SUM(AO12:AS12) -> 1258720.158 | AO12: =IF(G12="Metro",$J12*Opex_Forecast_BA!$J$10,$J12*Opex_Forecast_BA!$J$8) -> 604946.6955 | AS12: ='O&M_Regulatory_TO'!J73+'O&M_Regulatory_TO'!J43 -> 653773.462
A13: 1 | C13: =Pipeline_BA!D10 -> 2 Tyers (loop end) to Bunyip | G13: =Pipeline_BA!G10 -> West Gippsland | H13: =Pipeline_BA!H10 -> Tyers (end loop) | I13: =Pipeline_BA!I10 -> Bunyip | J13: =Pipeline_BA!K10 -> 62.0923 | K13: =Pipeline_BA!M10 -> 1 | L13: =(INDEX([4]Compressors_TA!$U$17:$U$60,MATCH(C13,[4]Compressors_TA!$D$17:$D$60,FALSE),1))*Pipeline_BA!$O10 -> 49907992.46 | M13: =(INDEX([4]CG_TA!$U$17:$U$60,MATCH(C13,[4]CG_TA!$D$17:$D$60,FALSE),1))*Pipeline_BA!$P10 -> 43457.77438 | N13: =(INDEX([4]Pipelines_TA!$U$17:$U$60,MATCH(C13,[4]Pipelines_TA!$D$17:$D$60,FALSE),1))*Pipeline_BA!$Q10 -> 84803650.73 | P13: =R13+W13+AE13+AM13 -> 5219697.372 | R13: =SUM(T13:U13) -> 42393.66257 | U13: =W13/(SUM($W$12:$W$46)+$W$49)*RAB_Model_BO!$J$21 -> 42393.66257 | W13: =SUM(Y13:AC13) -> 2458055.293 | Y13: =$N13/$N$8*$Y$58 -> 1215375.511 | Z13: =$M13/$M$8*$Z$58 -> 1649.021584 | AA13: =$L13/$L$8*$AA$58 -> 1241030.76 | AE13: =SUM(AG13:AK13) -> 1287659.295 | AG13: =$N13/$N$8*$AG$58 -> 171576.4315 | AH13: =$M13/$M$8*$AH$58 -> 1362.717936 | AI13: =$L13/$L$8*$AI$58 -> 1114720.146 | AM13: =SUM(AO13:AS13) -> 1431589.121 | AO13: =IF(G13="Metro",$J13*Opex_Forecast_BA!$J$10,$J13*Opex_Forecast_BA!$J$8) -> 579805.5976 | AQ13: ='O&M_Regulatory_TO'!J32 -> 851783.5238
A14: 1 | C14: =Pipeline_BA!D11 -> 3 Tyers to Morwell & Maryvale lateral | G14: =Pipeline_BA!G11 -> Maryvale | H14: =Pipeline_BA!H11 -> Maryvale lateral | I14: =Pipeline_BA!I11 -> 0 | J14: =Pipeline_BA!K11 -> 5.4 | K14: =Pipeline_BA!M11 -> 1 | L14: =(INDEX([4]Compressors_TA!$U$17:$U$60,MATCH(C14,[4]Compressors_TA!$D$17:$D$60,FALSE),1))*Pipeline_BA!$O11 -> 0 | M14: =(INDEX([4]CG_TA!$U$17:$U$60,MATCH(C14,[4]CG_TA!$D$17:$D$60,FALSE),1))*Pipeline_BA!$P11 -> 0 | N14: =(INDEX([4]Pipelines_TA!$U$17:$U$60,MATCH(C14,[4]Pipelines_TA!$D$17:$D$60,FALSE),1))*Pipeline_BA!$Q11*(J14/($J$15+$J$14+$J$16)) -> 2689759.489 | P14: 95079.61595 | R14: 664.8423436 | U14: =W14/(SUM($W$12:$W$46)+$W$49)*RAB_Model_BO!$J$21 -> 664.8423436 | W14: 38548.66843 | Y14: =$N14/$N$8*$Y$58 -> 38548.66843 | Z14: 0 | AA14: 0 | AE14: 5441.974854 | AG14: 5441.974854 | AH14: 0 | AI14: 0 | AM14: 50424.13032 | AO14: =IF(G14="Metro",$J14*Opex_Forecast_BA!$J$10,$J14*Opex_Forecast_BA!$J$8) -> 50424.13032
A15: 1 | C15: =Pipeline_BA!D12 -> 3 Tyers to Morwell & Maryvale lateral | G15: =Pipeline_BA!G12 -> Tyers | H15: =Pipeline_BA!H12 -> Tyers | I15: =Pipeline_BA!I12 -> Morwell | J15: =Pipeline_BA!K12 -> 20.63046 | K15: =Pipeline_BA!M12 -> 1 | L15: =(INDEX([4]Compressors_TA!$U$17:$U$60,MATCH(C15,[4]Compressors_TA!$D$17:$D$60,FALSE),1))*Pipeline_BA!$O12 -> 0 | M15: =(INDEX([4]CG_TA!$U$17:$U$60,MATCH(C15,[4]CG_TA!$D$17:$D$60,FALSE),1))*Pipeline_BA!$P12 -> 2953297.504 | N15: =(INDEX([4]Pipelines_TA!$U$17:$U$60,MATCH(C15,[4]Pipelines_TA!$D$17:$D$60,FALSE),1))*Pipeline_BA!$Q12*(J15/($J$15+$J$14+$J$16)) -> 10276106.58 | P15: 613113.5553 | R15: 4472.749141 | U15: =W15/(SUM($W$12:$W$46)+$W$49)*RAB_Model_BO!$J$21 -> 4472.749141 | W15: 259337.4584 | Y15: 147273.4745 | Z15: 112063.9839 | AA15: 0 | AE15: 113398.2227 | AG15: 20790.82306 | AH15: 92607.3996 | AI15: 0 | AM15: 235905.1251 | AO15: =IF(G15="Metro",$J15*Opex_Forecast_BA!$J$10,$J15*Opex_Forecast_BA!$J$8) -> 192643.1488 | AP15: ='O&M_Regulatory_TO'!J55 -> 43261.97631
A16: 1 | C16: =Pipeline_BA!D13 -> 3 Tyers to Morwell & Maryvale lateral | G16: =Pipeline_BA!G13 -> LaTrobe | H16: =Pipeline_BA!H13 -> Latrobe | I16: =Pipeline_BA!I13 -> Morwell | J16: =Pipeline_BA!K13 -> 0 | K16: =Pipeline_BA!M13 -> 1 | L16: =(INDEX([4]Compressors_TA!$U$17:$U$60,MATCH(C16,[4]Compressors_TA!$D$17:$D$60,FALSE),1))*Pipeline_BA!$O13 -> 0 | M16: =(INDEX([4]CG_TA!$U$17:$U$60,MATCH(C16,[4]CG_TA!$D$17:$D$60,FALSE),1))*Pipeline_BA!$P13 -> 0 | N16: =(INDEX([4]Pipelines_TA!$U$17:$U$60,MATCH(C16,[4]Pipelines_TA!$D$17:$D$60,FALSE),1))*Pipeline_BA!$Q13*(J16/($J$15+$J$14+$J$16)) -> 0 | P16: 0 | R16: 0 | U16: =W16/(SUM($W$12:$W$46)+$W$49)*RAB_Model_BO!$J$21 -> 0 | W16: 0 | Y16: 0 | Z16: 0 | AA16: 0 | AE16: 0 | AG16: 0 | AH16: 0 | AI16: 0 | AM16: 0 | AO16: =IF(G16="Metro",$J16*Opex_Forecast_BA!$J$10,$J16*Opex_Forecast_BA!$J$8) -> 0
A17: 1 | C17: =Pipeline_BA!D14 -> 4 Lurgi pipeline plus laterals | G17: =Pipeline_BA!G14 -> Lurgi | H17: =Pipeline_BA!H14 -> Morwell | I17: =Pipeline_BA!I14 -> Healsville - Koo Wee Rup Rd | J17: =Pipeline_BA!K14 -> 97.74857 | K17: =Pipeline_BA!M14 -> 1 | L17: =(INDEX([4]Compressors_TA!$U$17:$U$60,MATCH(C17,[4]Compressors_TA!$D$17:$D$60,FALSE),1))*Pipeline_BA!$O14 -> 0 | M17: =(INDEX([4]CG_TA!$U$17:$U$60,MATCH(C17,[4]CG_TA!$D$17:$D$60,FALSE),1))*Pipeline_BA!$P14 -> 0 | N17: =(INDEX([4]Pipelines_TA!$U$17:$U$60,MATCH(C17,[4]Pipelines_TA!$D$17:$D$60,FALSE),1))*Pipeline_BA!$Q14*(J17/($J$17+$J$18)) -> 7502022.859 | P17: 1037305.642 | R17: 1854.315406 | U17: =W17/(SUM($W$12:$W$46)+$W$49)*RAB_Model_BO!$J$21 -> 1854.315406 | W17: 107516.3013 | Y17: 107516.3013 | Z17: 0 | AA17: 0 | AE17: 15178.24174 | AG17: 15178.24174 | AH17: 0 | AI17: 0 | AM17: 912756.7838 | AO17: =IF(G17="Metro",$J17*Opex_Forecast_BA!$J$10,$J17*Opex_Forecast_BA!$J$8) -> 912756.7838
A18: 1 | C18: =Pipeline_BA!D15 -> 4 Lurgi pipeline plus laterals | G18: =Pipeline_BA!G15 -> Metro | H18: =Pipeline_BA!H15 -> Healsville - Koo Wee Rup Rd | I18: =Pipeline_BA!I15 -> Dandenong | J18: =Pipeline_BA!K15 -> 30.62093 | K18: =Pipeline_BA!M15 -> 1 | L18: =(INDEX([4]Compressors_TA!$U$17:$U$60,MATCH(C18,[4]Compressors_TA!$D$17:$D$60,FALSE),1))*Pipeline_BA!$O15 -> 0 | M18: =(INDEX([4]CG_TA!$U$17:$U$60,MATCH(C18,[4]CG_TA!$D$17:$D$60,FALSE),1))*Pipeline_BA!$P15 -> 5111185.954 | N18: =(INDEX([4]Pipelines_TA!$U$17:$U$60,MATCH(C18,[4]Pipelines_TA!$D$17:$D$60,FALSE),1))*Pipeline_BA!$Q15*(J18/($J$17+$J$18)) -> 2350100.025 | P18: 1134450.432 | R18: 3925.838436 | U18: =W18/(SUM($W$12:$W$46)+$W$49)*RAB_Model_BO!$J$21 -> 3925.838436 | W18: 227626.6631 | Y18: =$N18/$N$8*$Y$58 -> 33680.7908 | Z18: 193945.8723 | AA18: 0 | AE18: 165027.6977 | AG18: =$N18/$N$8*$AG$58 -> 4754.769076 | AH18: 160272.9286 | AI18: 0 | AM18: 737870.233 | AO18: =IF(G18="Metro",$J18*Opex_Forecast_BA!$J$10,$J18*Opex_Forecast_BA!$J$8) -> 608084.3041 | AP18: ='O&M_Regulatory_TO'!J52+'O&M_Regulatory_TO'!J56 -> 129785.9289
A19: 1 | C19: =Pipeline_BA!D16 -> 5 Bunyip to Pakenham | G19: =Pipeline_BA!G16 -> Metro | H19: =Pipeline_BA!H16 -> Bunyip | I19: =Pipeline_BA!I16 -> Pakenham | J19: =Pipeline_BA!K16 -> 18.6693 | K19: =Pipeline_BA!M16 -> 1 | L19: =(INDEX([4]Compressors_TA!$U$17:$U$60,MATCH(C19,[4]Compressors_TA!$D$17:$D$60,FALSE),1))*Pipeline_BA!$O16 -> 0 | M19: =(INDEX([4]CG_TA!$U$17:$U$60,MATCH(C19,[4]CG_TA!$D$17:$D$60,FALSE),1))*Pipeline_BA!$P16 -> 0 | N19: =(INDEX([4]Pipelines_TA!$U$17:$U$60,MATCH(C19,[4]Pipelines_TA!$D$17:$D$60,FALSE),1))*Pipeline_BA!$Q16 -> 25466082.67 | P19: 793532.2574 | R19: 6294.588849 | U19: =W19/(SUM($W$12:$W$46)+$W$49)*RAB_Model_BO!$J$21 -> 6294.588849 | W19: 364970.7645 | Y19: 364970.7645 | Z19: 0 | AA19: 0 | AE19: 51523.48456 | AG19: 51523.48456 | AH19: 0 | AI19: 0 | AM19: 370743.4195 | AO19: =IF(G19="Metro",$J19*Opex_Forecast_BA!$J$10,$J19*Opex_Forecast_BA!$J$8) -> 370743.4195
A20: 1 | C20: =Pipeline_BA!D17 -> 6 Pakenham to Wollert | G20: =Pipeline_BA!G17 -> Metro | H20: =Pipeline_BA!H17 -> Pakenham | I20: =Pipeline_BA!I17 -> Wollert | J20: =Pipeline_BA!K17 -> 92.4117 | K20: =Pipeline_BA!M17 -> 1 | L20: =(INDEX([4]Compressors_TA!$U$17:$U$60,MATCH(C20,[4]Compressors_TA!$D$17:$D$60,FALSE),1))*Pipeline_BA!$O17 -> 0 | M20: =(INDEX([4]CG_TA!$U$17:$U$60,MATCH(C20,[4]CG_TA!$D$17:$D$60,FALSE),1))*Pipeline_BA!$P17 -> 0 | N20: =(INDEX([4]Pipelines_TA!$U$17:$U$60,MATCH(C20,[4]Pipelines_TA!$D$17:$D$60,FALSE),1))*Pipeline_BA!$Q17 -> 125000810.6 | P20: 3910421.455 | R20: 30897.12379 | U20: =W20/(SUM($W$12:$W$46)+$W$49)*RAB_Model_BO!$J$21 -> 30897.12379 | W20: 1791466.792 | Y20: 1791466.792 | Z20: 0 | AA20: 0 | AE20: 252904.1243 | AG20: 252904.1243 | AH20: 0 | AI20: 0 | AM20: 1835153.416 | AO20: =IF(G20="Metro",$J20*Opex_Forecast_BA!$J$10,$J20*Opex_Forecast_BA!$J$8) -> 1835153.416
A21: 1 | C21: =Pipeline_BA!D18 -> 7 Pakenham to Dandenong | G21: =Pipeline_BA!G18 -> Metro | H21: =Pipeline_BA!H18 -> Pakenham | I21: =Pipeline_BA!I18 -> Dandenong | J21: =Pipeline_BA!K18 -> 27.9937 | K21: =Pipeline_BA!M18 -> 1 | L21: =(INDEX([4]Compressors_TA!$U$17:$U$60,MATCH(C21,[4]Compressors_TA!$D$17:$D$60,FALSE),1))*Pipeline_BA!$O18 -> 0 | M21: =(INDEX([4]CG_TA!$U$17:$U$60,MATCH(C21,[4]CG_TA!$D$17:$D$60,FALSE),1))*Pipeline_BA!$P18 -> 0 | N21: =(INDEX([4]Pipelines_TA!$U$17:$U$60,MATCH(C21,[4]Pipelines_TA!$D$17:$D$60,FALSE),1))*Pipeline_BA!$Q18 -> 38173896.29 | P21: 1189676.006 | R21: 9435.647603 | U21: =W21/(SUM($W$12:$W$46)+$W$49)*RAB_Model_BO!$J$21 -> 9435.647603 | W21: 547094.5922 | Y21: 547094.5922 | Z21: 0 | AA21: 0 | AE21: 77234.18563 | AG21: 77234.18563 | AH21: 0 | AI21: 0 | AM21: 555911.5802 | AO21: =IF(G21="Metro",$J21*Opex_Forecast_BA!$J$10,$J21*Opex_Forecast_BA!$J$8) -> 555911.5802
A22: 1 | C22: =Pipeline_BA!D19 -> 8 Dandenong to St. Kilda | G22: =Pipeline_BA!G19 -> Metro | H22: =Pipeline_BA!H19 -> Dandenong | I22: =Pipeline_BA!I19 -> St Kilda | J22: =Pipeline_BA!K19 -> 36.1183 | K22: =Pipeline_BA!M19 -> 1 | L22: =(INDEX([4]Compressors_TA!$U$17:$U$60,MATCH(C22,[4]Compressors_TA!$D$17:$D$60,FALSE),1))*Pipeline_BA!$O19 -> 0 | M22: =(INDEX([4]CG_TA!$U$17:$U$60,MATCH(C22,[4]CG_TA!$D$17:$D$60,FALSE),1))*Pipeline_BA!$P19 -> 20149673.74 | N22: =(INDEX([4]Pipelines_TA!$U$17:$U$60,MATCH(C22,[4]Pipelines_TA!$D$17:$D$60,FALSE),1))*Pipeline_BA!$Q19 -> 109427619.6 | P22: 4260842.176 | R22: 40234.51556 | U22: =W22/(SUM($W$12:$W$46)+$W$49)*RAB_Model_BO!$J$21 -> 40234.51556 | W22: 2332864.347 | Y22: 1568277.403 | Z22: 764586.9442 | AA22: 0 | AE22: 853235.252 | AG22: 221396.1347 | AH22: 631839.1173 | AI22: 0 | AM22: 1034508.062 | AO22: =IF(G22="Metro",$J22*Opex_Forecast_BA!$J$10,$J22*Opex_Forecast_BA!$J$8) -> 717253.5687 | AP22: ='O&M_Regulatory_TO'!J51 -> 317254.493
A23: 1 | C23: =Pipeline_BA!D20 -> 9 St. Kilda to Werribee | G23: =Pipeline_BA!G20 -> Metro | H23: =Pipeline_BA!H20 -> St Kilda | I23: =Pipeline_BA!I20 -> Werribee | J23: =Pipeline_BA!K20 -> 37.5682 | K23: =Pipeline_BA!M20 -> 0.85 | L23: =(INDEX([4]Compressors_TA!$U$17:$U$60,MATCH(C23,[4]Compressors_TA!$D$17:$D$60,FALSE),1))*Pipeline_BA!$O20 -> 65027296.78 | M23: =(INDEX([4]CG_TA!$U$17:$U$60,MATCH(C23,[4]CG_TA!$D$17:$D$60,FALSE),1))*Pipeline_BA!$P20 -> 834626.7806 | N23: =(INDEX([4]Pipelines_TA!$U$17:$U$60,MATCH(C23,[4]Pipelines_TA!$D$17:$D$60,FALSE),1))*Pipeline_BA!$Q20 -> 81818241.04 | P23: 7053095.231 | R23: 48657.67075 | U23: =W23/(SUM($W$12:$W$46)+$W$49)*RAB_Model_BO!$J$21 -> 48657.67075 | W23: 2821252.939 | Y23: 1172589.69 | Z23: 31670.22692 | AA23: 1616993.022 | AE23: 1644125.346 | AG23: 165536.2913 | AH23: 26171.63211 | AI23: 1452417.422 | AM23: 2539059.276 | AO23: =IF(G23="Metro",$J23*Opex_Forecast_BA!$J$10,$J23*Opex_Forecast_BA!$J$8) -> 746046.3399 | AQ23: ='O&M_Regulatory_TO'!J31*$K23 -> 1793012.936
A24: 1 | C24: =Pipeline_BA!D21 -> 10 Werribee to Geelong | G24: =Pipeline_BA!G21 -> Metro | H24: =Pipeline_BA!H21 -> Werribee | I24: =Pipeline_BA!I21 -> Little River | J24: =Pipeline_BA!K21 -> 17.5975 | K24: =Pipeline_BA!M21 -> 1 | L24: =(INDEX([4]Compressors_TA!$U$17:$U$60,MATCH(C24,[4]Compressors_TA!$D$17:$D$60,FALSE),1))*Pipeline_BA!$O21 -> 0 | M24: =(INDEX([4]CG_TA!$U$17:$U$60,MATCH(C24,[4]CG_TA!$D$17:$D$60,FALSE),1))*Pipeline_BA!$P21 -> 0 | N24: =(INDEX([4]Pipelines_TA!$U$17:$U$60,MATCH(C24,[4]Pipelines_TA!$D$17:$D$60,FALSE),1))*Pipeline_BA!$Q21*(J24/($J$24+$J$25)) -> 10839283.03 | P24: 529413.3036 | R24: 2679.203981 | U24: =W24/(SUM($W$12:$W$46)+$W$49)*RAB_Model_BO!$J$21 -> 2679.203981 | W24: 155344.7173 | Y24: 155344.7173 | Z24: 0 | AA24: 0 | AE24: 21930.25284 | AG24: 21930.25284 | AH24: 0 | AI24: 0 | AM24: 349459.1294 | AO24: =IF(G24="Metro",$J24*Opex_Forecast_BA!$J$10,$J24*Opex_Forecast_BA!$J$8) -> 349459.1294
A25: 1 | C25: =Pipeline_BA!D22 -> 10 Werribee to Geelong | G25: =Pipeline_BA!G22 -> Metro | H25: =Pipeline_BA!H22 -> Little River | I25: =Pipeline_BA!I22 -> Geelong | J25: =Pipeline_BA!K22 -> 18.1277 | K25: =Pipeline_BA!M22 -> 1 | L25: =(INDEX([4]Compressors_TA!$U$17:$U$60,MATCH(C25,[4]Compressors_TA!$D$17:$D$60,FALSE),1))*Pipeline_BA!$O22 -> 0 | M25: =(INDEX([4]CG_TA!$U$17:$U$60,MATCH(C25,[4]CG_TA!$D$17:$D$60,FALSE),1))*Pipeline_BA!$P22 -> 0 | N25: =(INDEX([4]Pipelines_TA!$U$17:$U$60,MATCH(C25,[4]Pipelines_TA!$D$17:$D$60,FALSE),1))*Pipeline_BA!$Q22*(J25/($J$24+$J$25)) -> 11165862.82 | P25: 545364.1451 | R25: 2759.926467 | U25: =W25/(SUM($W$12:$W$46)+$W$49)*RAB_Model_BO!$J$21 -> 2759.926467 | W25: 160025.1417 | Y25: =$N25/$N$8*$Y$58 -> 160025.1417 | Z25: 0 | AA25: 0 | AE25: 22590.99556 | AG25: 22590.99556 | AH25: 0 | AI25: 0 | AM25: 359988.0813 | AO25: =IF(G25="Metro",$J25*Opex_Forecast_BA!$J$10,$J25*Opex_Forecast_BA!$J$8) -> 359988.0813
A26: 1 | C26: =Pipeline_BA!D23 -> 11 Brooklyn to Ballan Junction | G26: =Pipeline_BA!G23 -> Metro | H26: =Pipeline_BA!H23 -> Brooklyn | I26: =Pipeline_BA!I23 -> Melton South City Gate | J26: =Pipeline_BA!K23 -> 26.245 | K26: =Pipeline_BA!M23 -> 0.15 | L26: =(INDEX([4]Compressors_TA!$U$17:$U$60,MATCH(C26,[4]Compressors_TA!$D$17:$D$60,FALSE),1))+(INDEX([4]Compressors_TA!$U$17:$U$60,MATCH(C23,[4]Compressors_TA!$D$17:$D$60,FALSE),1))*K26 -> 14212984.58 | M26: =(INDEX([4]CG_TA!$U$17:$U$60,MATCH(C26,[4]CG_TA!$D$17:$D$60,FALSE),1))*Pipeline_BA!$P23*(J26/($J$26+$J$27)) -> 387967.1444 | N26: =(INDEX([4]Pipelines_TA!$U$17:$U$60,MATCH(C26,[4]Pipelines_TA!$D$17:$D$60,FALSE),1))*Pipeline_BA!$Q23*(J26/($J$26+$J$27)) -> 6700323.155 | P26: 1652954.231 | R26: 8005.522717 | U26: =W26/(SUM($W$12:$W$46)+$W$49)*RAB_Model_BO!$J$21 -> 8005.522717 | W26: 464173.565 | Y26: 96026.62866 | Z26: 14721.55913 | AA26: 353425.3772 | AE26: 343175.9928 | AG26: 13556.22697 | AH26: 12165.59738 | AI26: 317454.1684 | AM26: 837599.1506 | AO26: =IF(G26="Metro",$J26*Opex_Forecast_BA!$J$10,$J26*Opex_Forecast_BA!$J$8) -> 521185.1031 | AQ26: ='O&M_Regulatory_TO'!J31*$K26 -> 316414.0475
A27: 1 | C27: =Pipeline_BA!D24 -> 11 Brooklyn to Ballan Junction | G27: =Pipeline_BA!G24 -> Calder | H27: =Pipeline_BA!H24 -> Melton South City Gate | I27: =Pipeline_BA!I24 -> Ballan Junction | J27: =Pipeline_BA!K24 -> 40.3542 | K27: =Pipeline_BA!M24 -> 1 | L27: =(INDEX([4]Compressors_TA!$U$17:$U$60,MATCH(C27,[4]Compressors_TA!$D$17:$D$60,FALSE),1))*Pipeline_BA!$O24 -> 0 | M27: =(INDEX([4]CG_TA!$U$17:$U$60,MATCH(C27,[4]CG_TA!$D$17:$D$60,FALSE),1))*Pipeline_BA!$P24*(J27/($J$26+$J$27)) -> 596536.6255 | N27: =(INDEX([4]Pipelines_TA!$U$17:$U$60,MATCH(C27,[4]Pipelines_TA!$D$17:$D$60,FALSE),1))*Pipeline_BA!$Q24*(J27/($J$26+$J$27)) -> 10302388.29 | P27: 589592.1269 | R27: 2936.89273 | U27: =W27/(SUM($W$12:$W$46)+$W$49)*RAB_Model_BO!$J$21 -> 2936.89273 | W27: 170285.9409 | Y27: 147650.1344 | Z27: 22635.80649 | AA27: 0 | AE27: 39549.76734 | AG27: 20843.99673 | AH27: 18705.77061 | AI27: 0 | AM27: 376819.5259 | AO27: =IF(G27="Metro",$J27*Opex_Forecast_BA!$J$10,$J27*Opex_Forecast_BA!$J$8) -> 376819.5259
A28: 1 | C28: =Pipeline_BA!D25 -> 12 Ballan Junction to Ballarat | G28: =Pipeline_BA!G25 -> Calder | H28: =Pipeline_BA!H25 -> Ballan Jctn | I28: =Pipeline_BA!I25 -> Ballarat | J28: =Pipeline_BA!K25 -> 22.6004 | K28: =Pipeline_BA!M25 -> 1 | L28: =(INDEX([4]Compressors_TA!$U$17:$U$60,MATCH(C28,[4]Compressors_TA!$D$17:$D$60,FALSE),1))*Pipeline_BA!$O25 -> 0 | M28: =(INDEX([4]CG_TA!$U$17:$U$60,MATCH(C28,[4]CG_TA!$D$17:$D$60,FALSE),1))*Pipeline_BA!$P25 -> 0 | N28: =(INDEX([4]Pipelines_TA!$U$17:$U$60,MATCH(C28,[4]Pipelines_TA!$D$17:$D$60,FALSE),1))*Pipeline_BA!$Q25 -> 13077901.87 | P28: 428157.8646 | R28: 3232.535461 | U28: =W28/(SUM($W$12:$W$46)+$W$49)*RAB_Model_BO!$J$21 -> 3232.535461 | W28: 187427.7998 | Y28: 187427.7998 | Z28: 0 | AA28: 0 | AE28: 26459.47098 | AG28: 26459.47098 | AH28: 0 | AI28: 0 | AM28: 211038.0583 | AO28: =IF(G28="Metro",$J28*Opex_Forecast_BA!$J$10,$J28*Opex_Forecast_BA!$J$8) -> 211038.0583
A29: 1 | C29: =Pipeline_BA!D26 -> 13 Wollert to Euroa | G29: =Pipeline_BA!G26 -> South Hume | H29: =Pipeline_BA!H26 -> Wollert | I29: =Pipeline_BA!I26 -> Euroa | J29: =Pipeline_BA!K26 -> 124.3139 | K29: =Pipeline_BA!M26 -> 1 | L29: =(INDEX([4]Compressors_TA!$U$17:$U$60,MATCH(C29,[4]Compressors_TA!$D$17:$D$60,FALSE),1))*Pipeline_BA!$O26 -> 4300516.798 | M29: =(INDEX([4]CG_TA!$U$17:$U$60,MATCH(C29,[4]CG_TA!$D$17:$D$60,FALSE),1))*Pipeline_BA!$P26 -> 1067088.38 | N29: =(INDEX([4]Pipelines_TA!$U$17:$U$60,MATCH(C29,[4]Pipelines_TA!$D$17:$D$60,FALSE),1))*Pipeline_BA!$Q26 -> 384710206.8 | P29: 9358953.848 | R29: 97633.58292 | U29: =W29/(SUM($W$12:$W$46)+$W$49)*RAB_Model_BO!$J$21 -> 97633.58292 | W29: =SUM(Y29:AC29) -> 5660958.047 | Y29: =$N29/$N$8*$Y$58 -> 5513528.723 | Z29: 40491.06969 | AA29: 106938.2552 | AE29: 907868.5417 | AG29: =$N29/$N$8*$AG$58 -> 778353.3359 | AH29: 33460.99737 | AI29: 96054.20847 | AM29: 2692493.676 | AO29: =IF(G29="Metro",$J29*Opex_Forecast_BA!$J$10,$J29*Opex_Forecast_BA!$J$8) -> 1160818.573 | AP29: ='O&M_Regulatory_TO'!J62+'O&M_Regulatory_TO'!J64 -> 64892.96447 | AQ29: ='O&M_Regulatory_TO'!J33 -> 1466782.139
A30: 1 | C30: =Pipeline_BA!D27 -> 14 Ballan Junction to Daylesford Jctn | G30: =Pipeline_BA!G27 -> Calder | H30: =Pipeline_BA!H27 -> Ballan Junction | I30: =Pipeline_BA!I27 -> Daylesford Junction | J30: =Pipeline_BA!K27 -> 39.9597 | K30: =Pipeline_BA!M27 -> 1 | L30: =(INDEX([4]Compressors_TA!$U$17:$U$60,MATCH(C30,[4]Compressors_TA!$D$17:$D$60,FALSE),1))*Pipeline_BA!$O27 -> 0 | M30: =(INDEX([4]CG_TA!$U$17:$U$60,MATCH(C30,[4]CG_TA!$D$17:$D$60,FALSE),1))*Pipeline_BA!$P27 -> 0 | N30: =(INDEX([4]Pipelines_TA!$U$17:$U$60,MATCH(C30,[4]Pipelines_TA!$D$17:$D$60,FALSE),1))*Pipeline_BA!$Q27 -> 5966611.019 | P30: 472193.6579 | R30: 1474.79939 | U30: =W30/(SUM($W$12:$W$46)+$W$49)*RAB_Model_BO!$J$21 -> 1474.79939 | W30: 85511.32944 | Y30: 85511.32944 | Z30: 0 | AA30: 0 | AE30: 12071.76599 | AG30: 12071.76599 | AH30: 0 | AI30: 0 | AM30: 373135.7631 | AO30: =IF(G30="Metro",$J30*Opex_Forecast_BA!$J$10,$J30*Opex_Forecast_BA!$J$8) -> 373135.7631
A31: 1 | C31: =Pipeline_BA!D28 -> 15 Daylesford Junction to Bendigo | G31: =Pipeline_BA!G28 -> Calder | H31: =Pipeline_BA!H28 -> Daylesford Junction | I31: =Pipeline_BA!I28 -> Bendigo | J31: =Pipeline_BA!K28 -> 50.7336 | K31: =Pipeline_BA!M28 -> 1 | L31: =(INDEX([4]Compressors_TA!$U$17:$U$60,MATCH(C31,[4]Compressors_TA!$D$17:$D$60,FALSE),1))*Pipeline_BA!$O28 -> 0 | M31: =(INDEX([4]CG_TA!$U$17:$U$60,MATCH(C31,[4]CG_TA!$D$17:$D$60,FALSE),1))*Pipeline_BA!$P28 -> 162879.546 | N31: =(INDEX([4]Pipelines_TA!$U$17:$U$60,MATCH(C31,[4]Pipelines_TA!$D$17:$D$60,FALSE),1))*Pipeline_BA!$Q28 -> 22576139.77 | P31: 859944.7878 | R31: 5686.860568 | U31: =W31/(SUM($W$12:$W$46)+$W$49)*RAB_Model_BO!$J$21 -> 5686.860568 | W31: 329733.6647 | Y31: 323553.1391 | Z31: 6180.525596 | AA31: 0 | AE31: 50783.95543 | AG31: 45676.49465 | AH31: 5107.460789 | AI31: 0 | AM31: 473740.3071 | AO31: =IF(G31="Metro",$J31*Opex_Forecast_BA!$J$10,$J31*Opex_Forecast_BA!$J$8) -> 473740.3071
A32: 1 | C32: =Pipeline_BA!D29 -> 16 Guilford to Maryborough | G32: =Pipeline_BA!G29 -> Calder | H32: =Pipeline_BA!H29 -> Guildford | I32: =Pipeline_BA!I29 -> Maryborough | J32: =Pipeline_BA!K29 -> 31.3668 | K32: =Pipeline_BA!M29 -> 1 | L32: =(INDEX([4]Compressors_TA!$U$17:$U$60,MATCH(C32,[4]Compressors_TA!$D$17:$D$60,FALSE),1))*Pipeline_BA!$O29 -> 0 | M32: =(INDEX([4]CG_TA!$U$17:$U$60,MATCH(C32,[4]CG_TA!$D$17:$D$60,FALSE),1))*Pipeline_BA!$P29 -> 0 | N32: =(INDEX([4]Pipelines_TA!$U$17:$U$60,MATCH(C32,[4]Pipelines_TA!$D$17:$D$60,FALSE),1))*Pipeline_BA!$Q29 -> 6965159.249 | P32: 408532.7941 | R32: 1721.615935 | U32: =W32/(SUM($W$12:$W$46)+$W$49)*RAB_Model_BO!$J$21 -> 1721.615935 | W32: 99822.16459 | Y32: =$N32/$N$8*$Y$58 -> 99822.16459 | Z32: 0 | AA32: 0 | AE32: 14092.04862 | AG32: 14092.04862 | AH32: 0 | AI32: 0 | AM32: 292896.965 | AO32: =IF(G32="Metro",$J32*Opex_Forecast_BA!$J$10,$J32*Opex_Forecast_BA!$J$8) -> 292896.965
A33: 1 | C33: =Pipeline_BA!D30 -> 17 Wandong to Daylesford Junction | G33: =Pipeline_BA!G30 -> Calder | H33: =Pipeline_BA!H30 -> Wandong | I33: =Pipeline_BA!I30 -> Daylesford Junction | J33: =Pipeline_BA!K30 -> 84.0628 | K33: =Pipeline_BA!M30 -> 1 | L33: =(INDEX([4]Compressors_TA!$U$17:$U$60,MATCH(C33,[4]Compressors_TA!$D$17:$D$60,FALSE),1))*Pipeline_BA!$O30 -> 24716.12492 | M33: =(INDEX([4]CG_TA!$U$17:$U$60,MATCH(C33,[4]CG_TA!$D$17:$D$60,FALSE),1))*Pipeline_BA!$P30 -> 129165.1622 | N33: =(INDEX([4]Pipelines_TA!$U$17:$U$60,MATCH(C33,[4]Pipelines_TA!$D$17:$D$60,FALSE),1))*Pipeline_BA!$Q30 -> 25283132.94 | P33: 1258188.518 | R33: 6344.498607 | U33: =W33/(SUM($W$12:$W$46)+$W$49)*RAB_Model_BO!$J$21 -> 6344.498607 | W33: 367864.6155 | Y33: 362348.7945 | Z33: 4901.220633 | AA33: 614.6003834 | AE33: 55755.65328 | AG33: 51153.33703 | AH33: 4050.269157 | AI33: 552.0470973 | AM33: 828223.7509 | AO33: =IF(G33="Metro",$J33*Opex_Forecast_BA!$J$10,$J33*Opex_Forecast_BA!$J$8) -> 784961.7745 | AP33: ='O&M_Regulatory_TO'!J65 -> 43261.97631
